{"text_format":"1","workbook":"xlsx","n_sheets":27,"sheets":["Cover","Contents","Dates1","DataPack","Table 1","Table 2","Table 2a","Table 2b","Table 2c","Table 2d","Table 2e","Table 2f","Table 2g","Table 2h","Table 2i","Table 2j","Table 3","Chart 1","Chart 1a","Chart 2","Chart 2a","Chart 2b","Chart 2c","Chart 3","Chart 4","Chart 4a","Chart 4b"],"not_rendered":{"charts":16,"images":1,"macros":0,"external_links":3,"defined_names":22,"comments":0,"pivot_tables":0},"unopened":[],"bounds":{"document_bytes":16777216,"sheet_cells":100000,"rows_first":2000,"rows_last":500,"rows_between":2000,"halvings":0,"cell_chars":16384,"cell_head_chars":4096},"cells_cut":0,"cells_raw":0,"read":"whole","date_system":"1900"}

{"sheet":"Cover","index":0,"n_rows":34,"n_cols":3,"rows_kept":34,"cut":false,"hidden":false,"merged":[[12,2,15,2],[12,1,15,1],[5,1,5,2],[28,1,28,2]]}
[]
[]
[]
[]
[]
[null,"Official Statistics Release"]
[null,"Policy area:","Learning and skills inspections and outcomes"]
[null,"Theme:","Education, children's services and skills"]
[null,"Published on:","6 March 2012"]
[null,"Coverage:","England"]
[null,"Period covered:","1 October to 31 December 2011"]
[null,"Status:","PROVISIONAL"]
[null,"Issued by:","Office for Standards in Education, Children's Services and Skills (Ofsted)\n125 Kingsway\nLondon\nWC2B 6SE"]
[]
[]
[]
[null,"Responsible director:","Matthew Coffey"]
[null,"Responsible statistician:","Jo Parkman"]
[null,"Public enquiries:","enquiries@ofsted.gov.uk"]
[null,"Press enquiries:","pressenquiries@ofsted.gov.uk"]
[null,"Link to official statistics release web page:","http://www.ofsted.gov.uk/publications/20110009"]
[null,"Publication medium:","Ofsted website"]
[null,"Publication frequency:","Quarterly"]
[null,"Next publication date:","12 June 2012"]
[]
[]
[null,"© Crown copyright"]
[]
[null,"You may use and re-use this information (not including logos) free of charge in any format or medium, under the terms of the Open Government Licence. "]
[null,"To view this licence, visit:"]
[null,"http://www.nationalarchives.gov.uk/doc/open-government-licence/"]
[null,"Or write to the Information Policy Team, The National Archives, Kew, London, TW9 4DU"]
[null,"Or email:"]
[null,"psi@nationalarchives.gsi.gov.uk"]

{"sheet":"Contents","index":1,"n_rows":52,"n_cols":2,"rows_kept":52,"cut":false,"hidden":false,"merged":[[35,17,35,21],[37,17,37,21],[43,17,43,21],[23,16,23,20],[27,1,27,15],[27,16,27,20],[29,1,29,15],[41,17,41,21],[39,17,39,21],[29,16,29,21],[23,1,23,15],[5,1,5,15],[9,1,9,15],[9,16,9,21],[11,1,11,15],[7,1,7,15],[13,1,13,15],[19,1,19,15],[25,1,25,15],[15,1,15,15],[37,1,37,16],[15,16,15,21],[33,1,33,16],[31,1,31,6],[32,1,32,7],[17,1,17,15],[21,1,21,15],[21,16,21,21]]}
[]
[null,"Contents"]
[]
[null,"Tables"]
[]
[null,"Table 1: Number of learning and skills providers inspected between 1 October and 31 December 2011, by provider and inspection type (provisional)"]
[]
[null,"Table 2: Inspection outcomes of learning and skills providers inspected between 1 October and 31 December 2011 (provisional)"]
[]
[null,"Table 2a: Inspection outcomes of colleges inspected between 1 October and 31 December 2011 (provisional)"]
[]
[null,"Table 2b: Inspection outcomes of general further education colleges/tertiary colleges inspected between 1 October and 31 December 2011 (provisional)"]
[]
[null,"Table 2c: Inspection outcomes of sixth form colleges inspected between 1 October and 31 December 2011 (provisional)"]
[]
[null,"Table 2d: Inspection outcomes of independent specialist colleges inspected between 1 October and 31 December 2011 (provisional)"]
[]
[null,"Table 2e: Inspection outcomes of further education in higher education institutions inspected between 1 October and 31 December 2011 (provisional)"]
[]
[null,"Table 2f: Inspection outcomes of dance and drama colleges inspected between 1 October and 31 December 2011 (provisional)"]
[]
[null,"Table 2g: Inspection outcomes of independent learning providers inspected between 1 October and 31 December 2011 (provisional)"]
[]
[null,"Table 2h: Inspection outcomes of adult and community learning providers inspected between 1 October and 31 December 2011 (provisional)"]
[]
[null,"Table 2i: Inspection outcomes of Next Step providers inspected between 1 October and 31 December 2011 (provisional)"]
[]
[null,"Table 2j: Inspection outcomes of prison and young offender institutions inspected between 1 October and 31 December 2011 (provisional)"]
[]
[null,"Table 3: Learning and skills providers judged inadequate between 1 October 2011 and 31 December 2011"]
[]
[null,"Charts"]
[]
[null,"Chart 1: Overall effectiveness of learning and skills providers inspected between 1 October and 31 December 2011 (provisional)"]
[]
[null,"Chart 1a: Overall effectiveness of learning and skills providers inspected between 1 September 2010 and 30 June 2011 (provisional)"]
[]
[null,"Chart 2: Key inspection judgements of learning and skills providers inspected between 1 October and 31 December 2011 (provisional)"]
[]
[null,"Chart 2a: Key inspection judgements of colleges inspected between 1 October and 31 December 2011 (provisional)"]
[]
[null,"Chart 2b: Key inspection judgements of independent learning providers inspected between 1 October and 31 December 2011 (provisional)"]
[]
[null,"Chart 2c: Key inspection judgements of adult and community learning providers inspected between 1 October and 31 December 2011 (provisional)"]
[]
[null,"Chart 3: Overall effectiveness of learning and skills providers inspected between 1 January 2010 and 31 December 2011, by quarter"]
[]
[null,"Chart 4: Overall effectiveness of colleges inspected between 1 September 2005 and 31 December 2011, by academic year"]
[]
[null,"Chart 4a: Overall effectiveness of independent learning providers inspected between 1 September 2007 and 31 March 2011, by academic year"]
[]
[null,"Chart 4b: Overall effectiveness of adult and community learning providers inspected between 1 September 2007 and 31 March 2011, by academic year"]

{"sheet":"Dates1","index":2,"n_rows":294,"n_cols":3,"rows_kept":294,"cut":false,"hidden":true,"merged":[]}
[]
[]
[null,"1 October and 31 December 2011"]
[null,"October 2011"]
[null,"November 2011"]
[null,"December 2011"]
[]
[]
[null,"1 September 2009","30 September 2009"]
[null,"1 October 2009","31 October 2009"]
[null,"1 November 2009","30 November 2009"]
[null,"1 December 2009","31 December 2009"]
[null,"1 January 2010","31 January 2010"]
[null,"1 February 2010","28 February 2010"]
[null,"1 March 2010","31 March 2010"]
[null,"1 April 2010","30 April 2010"]
[null,"1 May 2010","31 May 2010"]
[null,"1 June 2010","30 June 2010"]
[null,"1 July 2010","31 July 2010"]
[null,"1 August 2010","31 August 2010"]
[]
[]
[]
[]
[]
[]
[]
[]
[]
[]
[]
[]
[]
[]
[]
[]
[]
[]
[]
[null,1,{"$f":"CHAR(B40)","v":"\u0001"}]
[null,2,"\u0002"]
[null,3,"\u0003"]
[null,4,"\u0004"]
[null,5,"\u0005"]
[null,6,"\u0006"]
[null,7,"\u0007"]
[null,8,"\b"]
[null,9,"\t"]
[null,10,"\n"]
[null,11,"\u000b"]
[null,12,"\f"]
[null,13,"\r"]
[null,14,"\u000e"]
[null,15,"\u000f"]
[null,16,"\u0010"]
[null,17,"\u0011"]
[null,18,"\u0012"]
[null,19,"\u0013"]
[null,20,"\u0014"]
[null,21,"\u0015"]
[null,22,"\u0016"]
[null,23,"\u0017"]
[null,24,"\u0018"]
[null,25,"\u0019"]
[null,26,"\u001a"]
[null,27,"\u001b"]
[null,28,"\u001c"]
[null,29,"\u001d"]
[null,30,"\u001e"]
[null,31,"\u001f"]
[null,32," "]
[null,33,"!"]
[null,34,"\""]
[null,35,"#"]
[null,36,"$"]
[null,37,"%"]
[null,38,"&"]
[null,39,"'"]
[null,40,"("]
[null,41,")"]
[null,42,"*"]
[null,43,"+"]
[null,44,","]
[null,45,"-"]
[null,46,"."]
[null,47,"/"]
[null,48,"0"]
[null,49,"1"]
[null,50,"2"]
[null,51,"3"]
[null,52,"4"]
[null,53,"5"]
[null,54,"6"]
[null,55,"7"]
[null,56,"8"]
[null,57,"9"]
[null,58,":"]
[null,59,";"]
[null,60,"<"]
[null,61,"="]
[null,62,">"]
[null,63,"?"]
[null,64,"@"]
[null,65,{"$f":"CHAR(B104)","v":"A"}]
[null,66,"B"]
[null,67,"C"]
[null,68,"D"]
[null,69,"E"]
[null,70,"F"]
[null,71,"G"]
[null,72,"H"]
[null,73,"I"]
[null,74,"J"]
[null,75,"K"]
[null,76,"L"]
[null,77,"M"]
[null,78,"N"]
[null,79,"O"]
[null,80,"P"]
[null,81,"Q"]
[null,82,"R"]
[null,83,"S"]
[null,84,"T"]
[null,85,"U"]
[null,86,"V"]
[null,87,"W"]
[null,88,"X"]
[null,89,"Y"]
[null,90,"Z"]
[null,91,"["]
[null,92,"\\"]
[null,93,"]"]
[null,94,"^"]
[null,95,"_"]
[null,96,"`"]
[null,97,"a"]
[null,98,"b"]
[null,99,"c"]
[null,100,"d"]
[null,101,"e"]
[null,102,"f"]
[null,103,"g"]
[null,104,"h"]
[null,105,"i"]
[null,106,"j"]
[null,107,"k"]
[null,108,"l"]
[null,109,"m"]
[null,110,"n"]
[null,111,"o"]
[null,112,"p"]
[null,113,"q"]
[null,114,"r"]
[null,115,"s"]
[null,116,"t"]
[null,117,"u"]
[null,118,"v"]
[null,119,"w"]
[null,120,"x"]
[null,121,"y"]
[null,122,"z"]
[null,123,"{"]
[null,124,"|"]
[null,125,"}"]
[null,126,"~"]
[null,127,"\u007f"]
[null,128,"€"]
[null,129,{"$f":"CHAR(B168)","v":"\u0081"}]
[null,130,"‚"]
[null,131,"ƒ"]
[null,132,"„"]
[null,133,"…"]
[null,134,"†"]
[null,135,"‡"]
[null,136,"ˆ"]
[null,137,"‰"]
[null,138,"Š"]
[null,139,"‹"]
[null,140,"Œ"]
[null,141,"\u008d"]
[null,142,"Ž"]
[null,143,"\u008f"]
[null,144,"\u0090"]
[null,145,"‘"]
[null,146,"’"]
[null,147,"“"]
[null,148,"”"]
[null,149,"•"]
[null,150,"–"]
[null,151,"—"]
[null,152,"˜"]
[null,153,"™"]
[null,154,"š"]
[null,155,"›"]
[null,156,"œ"]
[null,157,"\u009d"]
[null,158,"ž"]
[null,159,"Ÿ"]
[null,160," "]
[null,161,"¡"]
[null,162,"¢"]
[null,163,"£"]
[null,164,"¤"]
[null,165,"¥"]
[null,166,"¦"]
[null,167,"§"]
[null,168,"¨"]
[null,169,"©"]
[null,170,"ª"]
[null,171,"«"]
[null,172,"¬"]
[null,173,"­"]
[null,174,"®"]
[null,175,"¯"]
[null,176,"°"]
[null,177,"±"]
[null,178,"²"]
[null,179,"³"]
[null,180,"´"]
[null,181,"µ"]
[null,182,"¶"]
[null,183,"·"]
[null,184,"¸"]
[null,185,"¹"]
[null,186,"º"]
[null,187,"»"]
[null,188,"¼"]
[null,189,"½"]
[null,190,"¾"]
[null,191,"¿"]
[null,192,"À"]
[null,193,{"$f":"CHAR(B232)","v":"Á"}]
[null,194,"Â"]
[null,195,"Ã"]
[null,196,"Ä"]
[null,197,"Å"]
[null,198,"Æ"]
[null,199,"Ç"]
[null,200,"È"]
[null,201,"É"]
[null,202,"Ê"]
[null,203,"Ë"]
[null,204,"Ì"]
[null,205,"Í"]
[null,206,"Î"]
[null,207,"Ï"]
[null,208,"Ð"]
[null,209,"Ñ"]
[null,210,"Ò"]
[null,211,"Ó"]
[null,212,"Ô"]
[null,213,"Õ"]
[null,214,"Ö"]
[null,215,"×"]
[null,216,"Ø"]
[null,217,"Ù"]
[null,218,"Ú"]
[null,219,"Û"]
[null,220,"Ü"]
[null,221,"Ý"]
[null,222,"Þ"]
[null,223,"ß"]
[null,224,"à"]
[null,225,"á"]
[null,226,"â"]
[null,227,"ã"]
[null,228,"ä"]
[null,229,"å"]
[null,230,"æ"]
[null,231,"ç"]
[null,232,"è"]
[null,233,"é"]
[null,234,"ê"]
[null,235,"ë"]
[null,236,"ì"]
[null,237,"í"]
[null,238,"î"]
[null,239,"ï"]
[null,240,"ð"]
[null,241,"ñ"]
[null,242,"ò"]
[null,243,"ó"]
[null,244,"ô"]
[null,245,"õ"]
[null,246,"ö"]
[null,247,"÷"]
[null,248,"ø"]
[null,249,"ù"]
[null,250,"ú"]
[null,251,"û"]
[null,252,"ü"]
[null,253,"ý"]
[null,254,"þ"]
[null,255,"ÿ"]

{"sheet":"DataPack","index":3,"n_rows":452,"n_cols":37,"rows_kept":452,"cut":false,"hidden":true,"merged":[]}
["Table1","Quarter",null,null,null,null,null,null,null,null,"Month1",null,null,null,null,null,null,null,null,"Month2",null,null,null,null,null,null,null,null,"Month3"]
[null,"All L&S","All colleges","HEI","DaDa","ILP","ACL","Next Step","Prison","Probation","All L&S","All colleges","HEI","DaDa","ILP","ACL","Next Step","Prison","Probation","All L&S","All colleges","HEI","DaDa","ILP","ACL","Next Step","Prison","Probation","All L&S","All colleges","HEI","DaDa","ILP","ACL","Next Step","Prison","Probation"]
["Full inspections",84,23,3,3,32,17,2,4,0,25,5,0,2,9,8,0,1,0,39,13,1,1,14,6,2,2,0,20,5,2,0,9,3,0,1,0]
["Re-inspections",3,0,0,0,3,0,0,0,0,1,0,0,0,1,0,0,0,0,2,0,0,0,2,0,0,0,0,0,0,0,0,0,0,0,0,0]
["Focused monitoring visits",46,14,0,0,20,9,3,0,0,18,8,0,0,7,2,1,0,0,14,4,0,0,5,5,0,0,0,14,2,0,0,8,2,2,0,0]
["Re-inspection monitoring visits",9,6,0,0,1,2,0,0,0,4,3,0,0,1,0,0,0,0,4,2,0,0,0,2,0,0,0,1,1,0,0,0,0,0,0,0]
["Partial re-inspections",3,3,0,0,0,0,0,0,0,1,1,0,0,0,0,0,0,0,2,2,0,0,0,0,0,0,0,0,0,0,0,0,0,0,0,0]
["Full/short unannounced prison inspections",0,0,0,0,0,0,0,0,0,0,0,0,0,0,0,0,0,0,0,0,0,0,0,0,0,0,0,0,0,0,0,0,0,0,0,0]
[]
["Table2 All learning and skills","Quarter",null,null,null,null,"Month1",null,null,null,null,"Month2",null,null,null,null,"Month3"]
[null,"Outstanding","Good","Satisfactory","Inadequate","Total","Outstanding","Good","Satisfactory","Inadequate","Total","Outstanding","Good","Satisfactory","Inadequate","Total","Outstanding","Good","Satisfactory","Inadequate","Total"]
["Overall effectiveness",3,41,27,10,81,0,15,6,3,24,1,18,15,5,39,2,8,6,2,18]
["Capacity to improve",2,41,29,9,81,0,13,9,2,24,1,17,16,5,39,1,11,4,2,18]
["A. Outcomes for learners",4,41,29,7,81,0,14,8,2,24,2,20,14,3,39,2,7,7,2,18]
["A1. How well do learners achieve and enjoy their learning",4,41,28,8,81,0,14,8,2,24,2,20,14,3,39,2,7,6,3,18]
["A1.a) How well do learners attain their learning goals",5,37,31,8,81,1,13,9,1,24,2,18,15,4,39,2,6,7,3,18]
["A1.b) How well do learners progress?",3,41,31,6,81,0,14,8,2,24,2,20,15,2,39,1,7,8,2,18]
["A2. How well do learners improve their economic and social well-being through learning and development?",8,51,20,2,81,1,15,8,0,24,4,25,8,2,39,3,11,4,0,18]
["A3. How safe do learners feel?",11,55,15,0,81,3,18,3,0,24,4,29,6,0,39,4,8,6,0,18]
["A4. Are learners able to make informed choices about their own health and well being?*",5,24,15,0,44,1,7,7,0,15,2,12,5,0,19,2,5,3,0,10]
["A5. How well do learners make a positive contribution to the community?*",7,25,10,2,44,2,5,5,2,14,4,15,3,0,22,1,5,2,0,8]
["B. Quality of provision",4,46,28,3,81,0,18,6,0,24,3,18,16,2,39,1,10,6,1,18]
["B1. How effectively do teaching, training and assessment support learning and development?",2,45,31,3,81,0,17,7,0,24,1,19,17,2,39,1,9,7,1,18]
["B2. How effectively does the provision meet the needs and interests of users?",8,50,23,0,81,3,16,5,0,24,3,25,11,0,39,2,9,7,0,18]
["B3. How well do partnerships with schools, employers, community groups and others lead to benefits for learners?",16,46,19,0,81,3,15,6,0,24,6,22,11,0,39,7,9,2,0,18]
["B4. How effective are the care, guidance and support learners receive in helping them to achieve?",8,45,25,3,81,2,15,7,0,24,4,20,14,1,39,2,10,4,2,18]
["C. Leadership and management",3,41,29,8,81,0,14,9,1,24,1,18,15,5,39,2,9,5,2,18]
["C1. How effectively do leaders and managers raise expectations and promote ambition throughout the organisation?",10,44,19,8,81,1,16,6,1,24,5,21,8,5,39,4,7,5,2,18]
["C2. How effectively do governors and supervisory bodies provide leadership, direction and challenge?*",7,22,13,5,47,2,5,5,1,13,2,11,6,3,22,3,6,2,1,12]
["C3. Safeguarding",9,47,23,2,81,4,13,7,0,24,3,23,11,2,39,2,11,5,0,18]
["C4. Equality and diversity",2,36,40,3,81,1,9,13,1,24,0,18,19,2,39,1,9,8,0,18]
["C5. How effectively does the provider engage with users to support and promote improvement?",8,37,34,2,81,1,14,9,0,24,4,16,18,1,39,3,7,7,1,18]
["C6. How effectively does self-assessment improve the quality of the provision and outcomes for learners?",2,34,33,12,81,0,11,10,3,24,1,14,17,7,39,1,9,6,2,18]
["C7. How efficiently and effectively does the provider use its available resources to secure value for money?",4,42,29,6,81,0,15,8,1,24,1,20,15,3,39,3,7,6,2,18]
[]
["Table2a all colleges","Quarter",null,null,null,null,"Month1",null,null,null,null,"Month2",null,null,null,null,"Month3"]
[null,"Outstanding","Good","Satisfactory","Inadequate","Total","Outstanding","Good","Satisfactory","Inadequate","Total","Outstanding","Good","Satisfactory","Inadequate","Total","Outstanding","Good","Satisfactory","Inadequate","Total"]
["Overall effectiveness",1,8,9,5,23,0,2,2,1,5,1,3,6,3,13,0,3,1,1,5]
["Capacity to improve",1,9,9,4,23,0,3,2,0,5,1,3,6,3,13,0,3,1,1,5]
["A. Outcomes for learners",1,7,11,4,23,0,2,2,1,5,1,3,7,2,13,0,2,2,1,5]
["A1. How well do learners achieve and enjoy their learning",1,7,11,4,23,0,2,2,1,5,1,3,7,2,13,0,2,2,1,5]
["A1.a) How well do learners attain their learning goals",1,6,10,6,23,0,2,2,1,5,1,3,5,4,13,0,1,3,1,5]
["A1.b) How well do learners progress?",0,8,12,3,23,0,2,2,1,5,0,4,8,1,13,0,2,2,1,5]
["A2. How well do learners improve their economic and social well-being through learning and development?",2,10,9,2,23,1,1,3,0,5,1,6,4,2,13,0,3,2,0,5]
["A3. How safe do learners feel?",6,15,2,0,23,3,2,0,0,5,2,10,1,0,13,1,3,1,0,5]
["A4. Are learners able to make informed choices about their own health and well being?*",4,12,7,0,23,1,2,2,0,5,2,8,3,0,13,1,2,2,0,5]
["A5. How well do learners make a positive contribution to the community?*",4,14,4,1,23,1,2,1,1,5,3,9,1,0,13,0,3,2,0,5]
["B. Quality of provision",1,9,10,3,23,0,3,2,0,5,1,3,7,2,13,0,3,1,1,5]
["B1. How effectively do teaching, training and assessment support learning and development?",0,11,9,3,23,0,3,2,0,5,0,5,6,2,13,0,3,1,1,5]
["B2. How effectively does the provision meet the needs and interests of users?",2,12,9,0,23,1,3,1,0,5,1,6,6,0,13,0,3,2,0,5]
["B3. How well do partnerships with schools, employers, community groups and others lead to benefits for learners?",7,10,6,0,23,2,2,1,0,5,2,7,4,0,13,3,1,1,0,5]
["B4. How effective are the care, guidance and support learners receive in helping them to achieve?",3,7,11,2,23,1,2,2,0,5,2,2,8,1,13,0,3,1,1,5]
["C. Leadership and management",1,9,8,5,23,0,2,2,1,5,1,4,5,3,13,0,3,1,1,5]
["C1. How effectively do leaders and managers raise expectations and promote ambition throughout the organisation?",2,13,3,5,23,0,3,1,1,5,1,7,2,3,13,1,3,0,1,5]
["C2. How effectively do governors and supervisory bodies provide leadership, direction and challenge?*",3,11,6,3,23,1,2,2,0,5,2,5,4,2,13,0,4,0,1,5]
["C3. Safeguarding",4,12,5,2,23,2,2,1,0,5,1,7,3,2,13,1,3,1,0,5]
["C4. Equality and diversity",1,10,11,1,23,1,1,3,0,5,0,6,6,1,13,0,3,2,0,5]
["C5. How effectively does the provider engage with users to support and promote improvement?",5,8,10,0,23,1,2,2,0,5,3,4,6,0,13,1,2,2,0,5]
["C6. How effectively does self-assessment improve the quality of the provision and outcomes for learners?",0,8,10,5,23,0,1,3,1,5,0,4,6,3,13,0,3,1,1,5]
["C7. How efficiently and effectively does the provider use its available resources to secure value for money?",2,7,10,4,23,0,2,3,0,5,1,4,5,3,13,1,1,2,1,5]
[]
["Table2b GFEC/TC","Quarter",null,null,null,null,"Month1",null,null,null,null,"Month2",null,null,null,null,"Month3"]
[null,"Outstanding","Good","Satisfactory","Inadequate","Total","Outstanding","Good","Satisfactory","Inadequate","Total","Outstanding","Good","Satisfactory","Inadequate","Total","Outstanding","Good","Satisfactory","Inadequate","Total"]
["Overall effectiveness",1,5,5,2,13,0,0,0,0,0,1,2,4,1,8,0,3,1,1,5]
["Capacity to improve",1,5,5,2,13,0,0,0,0,0,1,2,4,1,8,0,3,1,1,5]
["A. Outcomes for learners",1,4,6,2,13,0,0,0,0,0,1,2,4,1,8,0,2,2,1,5]
["A1. How well do learners achieve and enjoy their learning",1,4,6,2,13,0,0,0,0,0,1,2,4,1,8,0,2,2,1,5]
["A1.a) How well do learners attain their learning goals",1,3,7,2,13,0,0,0,0,0,1,2,4,1,8,0,1,3,1,5]
["A1.b) How well do learners progress?",0,5,7,1,13,0,0,0,0,0,0,3,5,0,8,0,2,2,1,5]
["A2. How well do learners improve their economic and social well-being through learning and development?",1,7,4,1,13,0,0,0,0,0,1,4,2,1,8,0,3,2,0,5]
["A3. How safe do learners feel?",3,9,1,0,13,0,0,0,0,0,2,6,0,0,8,1,3,1,0,5]
["A4. Are learners able to make informed choices about their own health and well being?*",2,7,4,0,13,0,0,0,0,0,1,5,2,0,8,1,2,2,0,5]
["A5. How well do learners make a positive contribution to the community?*",2,9,2,0,13,0,0,0,0,0,2,6,0,0,8,0,3,2,0,5]
["B. Quality of provision",1,5,5,2,13,0,0,0,0,0,1,2,4,1,8,0,3,1,1,5]
["B1. How effectively do teaching, training and assessment support learning and development?",0,6,5,2,13,0,0,0,0,0,0,3,4,1,8,0,3,1,1,5]
["B2. How effectively does the provision meet the needs and interests of users?",1,7,5,0,13,0,0,0,0,0,1,4,3,0,8,0,3,2,0,5]
["B3. How well do partnerships with schools, employers, community groups and others lead to benefits for learners?",5,6,2,0,13,0,0,0,0,0,2,5,1,0,8,3,1,1,0,5]
["B4. How effective are the care, guidance and support learners receive in helping them to achieve?",1,5,5,2,13,0,0,0,0,0,1,2,4,1,8,0,3,1,1,5]
["C. Leadership and management",1,6,4,2,13,0,0,0,0,0,1,3,3,1,8,0,3,1,1,5]
["C1. How effectively do leaders and managers raise expectations and promote ambition throughout the organisation?",2,8,1,2,13,0,0,0,0,0,1,5,1,1,8,1,3,0,1,5]
["C2. How effectively do governors and supervisory bodies provide leadership, direction and challenge?*",2,8,1,2,13,0,0,0,0,0,2,4,1,1,8,0,4,0,1,5]
["C3. Safeguarding",2,8,2,1,13,0,0,0,0,0,1,5,1,1,8,1,3,1,0,5]
["C4. Equality and diversity",0,7,6,0,13,0,0,0,0,0,0,4,4,0,8,0,3,2,0,5]
["C5. How effectively does the provider engage with users to support and promote improvement?",3,5,5,0,13,0,0,0,0,0,2,3,3,0,8,1,2,2,0,5]
["C6. How effectively does self-assessment improve the quality of the provision and outcomes for learners?",0,6,5,2,13,0,0,0,0,0,0,3,4,1,8,0,3,1,1,5]
["C7. How efficiently and effectively does the provider use its available resources to secure value for money?",2,4,5,2,13,0,0,0,0,0,1,3,3,1,8,1,1,2,1,5]
[]
["Table2c SFC","Quarter",null,null,null,null,"Month1",null,null,null,null,"Month2",null,null,null,null,"Month3"]
[null,"Outstanding","Good","Satisfactory","Inadequate","Total","Outstanding","Good","Satisfactory","Inadequate","Total","Outstanding","Good","Satisfactory","Inadequate","Total","Outstanding","Good","Satisfactory","Inadequate","Total"]
["Overall effectiveness",0,2,4,2,8,0,2,2,1,5,0,0,2,1,3,0,0,0,0,0]
["Capacity to improve",0,3,4,1,8,0,3,2,0,5,0,0,2,1,3,0,0,0,0,0]
["A. Outcomes for learners",0,2,4,2,8,0,2,2,1,5,0,0,2,1,3,0,0,0,0,0]
["A1. How well do learners achieve and enjoy their learning",0,2,4,2,8,0,2,2,1,5,0,0,2,1,3,0,0,0,0,0]
["A1.a) How well do learners attain their learning goals",0,2,2,4,8,0,2,2,1,5,0,0,0,3,3,0,0,0,0,0]
["A1.b) How well do learners progress?",0,2,4,2,8,0,2,2,1,5,0,0,2,1,3,0,0,0,0,0]
["A2. How well do learners improve their economic and social well-being through learning and development?",1,2,4,1,8,1,1,3,0,5,0,1,1,1,3,0,0,0,0,0]
["A3. How safe do learners feel?",3,5,0,0,8,3,2,0,0,5,0,3,0,0,3,0,0,0,0,0]
["A4. Are learners able to make informed choices about their own health and well being?*",1,5,2,0,8,1,2,2,0,5,0,3,0,0,3,0,0,0,0,0]
["A5. How well do learners make a positive contribution to the community?*",1,4,2,1,8,1,2,1,1,5,0,2,1,0,3,0,0,0,0,0]
["B. Quality of provision",0,3,5,0,8,0,3,2,0,5,0,0,3,0,3,0,0,0,0,0]
["B1. How effectively do teaching, training and assessment support learning and development?",0,4,4,0,8,0,3,2,0,5,0,1,2,0,3,0,0,0,0,0]
["B2. How effectively does the provision meet the needs and interests of users?",1,4,3,0,8,1,3,1,0,5,0,1,2,0,3,0,0,0,0,0]
["B3. How well do partnerships with schools, employers, community groups and others lead to benefits for learners?",2,3,3,0,8,2,2,1,0,5,0,1,2,0,3,0,0,0,0,0]
["B4. How effective are the care, guidance and support learners receive in helping them to achieve?",1,2,5,0,8,1,2,2,0,5,0,0,3,0,3,0,0,0,0,0]
["C. Leadership and management",0,2,4,2,8,0,2,2,1,5,0,0,2,1,3,0,0,0,0,0]
["C1. How effectively do leaders and managers raise expectations and promote ambition throughout the organisation?",0,4,2,2,8,0,3,1,1,5,0,1,1,1,3,0,0,0,0,0]
["C2. How effectively do governors and supervisory bodies provide leadership, direction and challenge?*",1,2,5,0,8,1,2,2,0,5,0,0,3,0,3,0,0,0,0,0]
["C3. Safeguarding",2,3,3,0,8,2,2,1,0,5,0,1,2,0,3,0,0,0,0,0]
["C4. Equality and diversity",1,2,5,0,8,1,1,3,0,5,0,1,2,0,3,0,0,0,0,0]
["C5. How effectively does the provider engage with users to support and promote improvement?",1,3,4,0,8,1,2,2,0,5,0,1,2,0,3,0,0,0,0,0]
["C6. How effectively does self-assessment improve the quality of the provision and outcomes for learners?",0,1,5,2,8,0,1,3,1,5,0,0,2,1,3,0,0,0,0,0]
["C7. How efficiently and effectively does the provider use its available resources to secure value for money?",0,2,5,1,8,0,2,3,0,5,0,0,2,1,3,0,0,0,0,0]
[]
["Table2d ISC","Quarter",null,null,null,null,"Month1",null,null,null,null,"Month2",null,null,null,null,"Month3"]
[null,"Outstanding","Good","Satisfactory","Inadequate","Total","Outstanding","Good","Satisfactory","Inadequate","Total","Outstanding","Good","Satisfactory","Inadequate","Total","Outstanding","Good","Satisfactory","Inadequate","Total"]
["Overall effectiveness",0,1,0,1,2,0,0,0,0,0,0,1,0,1,2,0,0,0,0,0]
["Capacity to improve",0,1,0,1,2,0,0,0,0,0,0,1,0,1,2,0,0,0,0,0]
["A. Outcomes for learners",0,1,1,0,2,0,0,0,0,0,0,1,1,0,2,0,0,0,0,0]
["A1. How well do learners achieve and enjoy their learning",0,1,1,0,2,0,0,0,0,0,0,1,1,0,2,0,0,0,0,0]
["A1.a) How well do learners attain their learning goals",0,1,1,0,2,0,0,0,0,0,0,1,1,0,2,0,0,0,0,0]
["A1.b) How well do learners progress?",0,1,1,0,2,0,0,0,0,0,0,1,1,0,2,0,0,0,0,0]
["A2. How well do learners improve their economic and social well-being through learning and development?",0,1,1,0,2,0,0,0,0,0,0,1,1,0,2,0,0,0,0,0]
["A3. How safe do learners feel?",0,1,1,0,2,0,0,0,0,0,0,1,1,0,2,0,0,0,0,0]
["A4. Are learners able to make informed choices about their own health and well being?*",1,0,1,0,2,0,0,0,0,0,1,0,1,0,2,0,0,0,0,0]
["A5. How well do learners make a positive contribution to the community?*",1,1,0,0,2,0,0,0,0,0,1,1,0,0,2,0,0,0,0,0]
["B. Quality of provision",0,1,0,1,2,0,0,0,0,0,0,1,0,1,2,0,0,0,0,0]
["B1. How effectively do teaching, training and assessment support learning and development?",0,1,0,1,2,0,0,0,0,0,0,1,0,1,2,0,0,0,0,0]
["B2. How effectively does the provision meet the needs and interests of users?",0,1,1,0,2,0,0,0,0,0,0,1,1,0,2,0,0,0,0,0]
["B3. How well do partnerships with schools, employers, community groups and others lead to benefits for learners?",0,1,1,0,2,0,0,0,0,0,0,1,1,0,2,0,0,0,0,0]
["B4. How effective are the care, guidance and support learners receive in helping them to achieve?",1,0,1,0,2,0,0,0,0,0,1,0,1,0,2,0,0,0,0,0]
["C. Leadership and management",0,1,0,1,2,0,0,0,0,0,0,1,0,1,2,0,0,0,0,0]
["C1. How effectively do leaders and managers raise expectations and promote ambition throughout the organisation?",0,1,0,1,2,0,0,0,0,0,0,1,0,1,2,0,0,0,0,0]
["C2. How effectively do governors and supervisory bodies provide leadership, direction and challenge?*",0,1,0,1,2,0,0,0,0,0,0,1,0,1,2,0,0,0,0,0]
["C3. Safeguarding",0,1,0,1,2,0,0,0,0,0,0,1,0,1,2,0,0,0,0,0]
["C4. Equality and diversity",0,1,0,1,2,0,0,0,0,0,0,1,0,1,2,0,0,0,0,0]
["C5. How effectively does the provider engage with users to support and promote improvement?",1,0,1,0,2,0,0,0,0,0,1,0,1,0,2,0,0,0,0,0]
["C6. How effectively does self-assessment improve the quality of the provision and outcomes for learners?",0,1,0,1,2,0,0,0,0,0,0,1,0,1,2,0,0,0,0,0]
["C7. How efficiently and effectively does the provider use its available resources to secure value for money?",0,1,0,1,2,0,0,0,0,0,0,1,0,1,2,0,0,0,0,0]
[]
["Table2e HEI","Quarter",null,null,null,null,"Month1",null,null,null,null,"Month2",null,null,null,null,"Month3"]
[null,"Outstanding","Good","Satisfactory","Inadequate","Total","Outstanding","Good","Satisfactory","Inadequate","Total","Outstanding","Good","Satisfactory","Inadequate","Total","Outstanding","Good","Satisfactory","Inadequate","Total"]
["Overall effectiveness",1,1,1,0,3,0,0,0,0,0,0,1,0,0,1,1,0,1,0,2]
["Capacity to improve",1,2,0,0,3,0,0,0,0,0,0,1,0,0,1,1,1,0,0,2]
["A. Outcomes for learners",1,1,1,0,3,0,0,0,0,0,0,1,0,0,1,1,0,1,0,2]
["A1. How well do learners achieve and enjoy their learning",1,1,1,0,3,0,0,0,0,0,0,1,0,0,1,1,0,1,0,2]
["A1.a) How well do learners attain their learning goals",1,1,1,0,3,0,0,0,0,0,0,1,0,0,1,1,0,1,0,2]
["A1.b) How well do learners progress?",1,1,1,0,3,0,0,0,0,0,0,1,0,0,1,1,0,1,0,2]
["A2. How well do learners improve their economic and social well-being through learning and development?",2,1,0,0,3,0,0,0,0,0,1,0,0,0,1,1,1,0,0,2]
["A3. How safe do learners feel?",2,1,0,0,3,0,0,0,0,0,1,0,0,0,1,1,1,0,0,2]
["A4. Are learners able to make informed choices about their own health and well being?*",0,0,1,0,1,0,0,0,0,0,0,0,0,0,0,0,0,1,0,1]
["A5. How well do learners make a positive contribution to the community?*",0,1,0,0,1,0,0,0,0,0,0,0,0,0,0,0,1,0,0,1]
["B. Quality of provision",1,1,1,0,3,0,0,0,0,0,0,1,0,0,1,1,0,1,0,2]
["B1. How effectively do teaching, training and assessment support learning and development?",0,2,1,0,3,0,0,0,0,0,0,1,0,0,1,0,1,1,0,2]
["B2. How effectively does the provision meet the needs and interests of users?",1,2,0,0,3,0,0,0,0,0,0,1,0,0,1,1,1,0,0,2]
["B3. How well do partnerships with schools, employers, community groups and others lead to benefits for learners?",2,1,0,0,3,0,0,0,0,0,1,0,0,0,1,1,1,0,0,2]
["B4. How effective are the care, guidance and support learners receive in helping them to achieve?",1,2,0,0,3,0,0,0,0,0,0,1,0,0,1,1,1,0,0,2]
["C. Leadership and management",0,3,0,0,3,0,0,0,0,0,0,1,0,0,1,0,2,0,0,2]
["C1. How effectively do leaders and managers raise expectations and promote ambition throughout the organisation?",1,2,0,0,3,0,0,0,0,0,0,1,0,0,1,1,1,0,0,2]
["C2. How effectively do governors and supervisory bodies provide leadership, direction and challenge?*",0,2,0,0,2,0,0,0,0,0,0,1,0,0,1,0,1,0,0,1]
["C3. Safeguarding",0,3,0,0,3,0,0,0,0,0,0,1,0,0,1,0,2,0,0,2]
["C4. Equality and diversity",1,1,1,0,3,0,0,0,0,0,1,0,0,0,1,0,1,1,0,2]
["C5. How effectively does the provider engage with users to support and promote improvement?",1,1,1,0,3,0,0,0,0,0,0,1,0,0,1,1,0,1,0,2]
["C6. How effectively does self-assessment improve the quality of the provision and outcomes for learners?",0,2,1,0,3,0,0,0,0,0,0,0,1,0,1,0,2,0,0,2]
["C7. How efficiently and effectively does the provider use its available resources to secure value for money?",1,2,0,0,3,0,0,0,0,0,0,1,0,0,1,1,1,0,0,2]
[]
["Table2f DaDa","Quarter",null,null,null,null,"Month1",null,null,null,null,"Month2",null,null,null,null,"Month3"]
[null,"Outstanding","Good","Satisfactory","Inadequate","Total","Outstanding","Good","Satisfactory","Inadequate","Total","Outstanding","Good","Satisfactory","Inadequate","Total","Outstanding","Good","Satisfactory","Inadequate","Total"]
["Overall effectiveness",1,1,1,0,3,1,1,0,0,2,0,0,1,0,1,0,0,0,0,0]
["Capacity to improve",1,1,1,0,3,1,1,0,0,2,0,0,1,0,1,0,0,0,0,0]
["A. Outcomes for learners",1,1,1,0,3,1,1,0,0,2,0,0,1,0,1,0,0,0,0,0]
["A1. How well do learners achieve and enjoy their learning",1,1,1,0,3,1,1,0,0,2,0,0,1,0,1,0,0,0,0,0]
["A1.a) How well do learners attain their learning goals",1,1,1,0,3,1,1,0,0,2,0,0,1,0,1,0,0,0,0,0]
["A1.b) How well do learners progress?",1,1,1,0,3,1,1,0,0,2,0,0,1,0,1,0,0,0,0,0]
["A2. How well do learners improve their economic and social well-being through learning and development?",2,0,1,0,3,2,0,0,0,2,0,0,1,0,1,0,0,0,0,0]
["A3. How safe do learners feel?",2,1,0,0,3,2,0,0,0,2,0,1,0,0,1,0,0,0,0,0]
["A4. Are learners able to make informed choices about their own health and well being?*",2,1,0,0,3,2,0,0,0,2,0,1,0,0,1,0,0,0,0,0]
["A5. How well do learners make a positive contribution to the community?*",1,0,0,0,1,1,0,0,0,1,0,0,0,0,0,0,0,0,0,0]
["B. Quality of provision",1,1,1,0,3,1,1,0,0,2,0,0,1,0,1,0,0,0,0,0]
["B1. How effectively do teaching, training and assessment support learning and development?",0,2,1,0,3,0,2,0,0,2,0,0,1,0,1,0,0,0,0,0]
["B2. How effectively does the provision meet the needs and interests of users?",1,1,1,0,3,1,1,0,0,2,0,0,1,0,1,0,0,0,0,0]
["B3. How well do partnerships with schools, employers, community groups and others lead to benefits for learners?",2,1,0,0,3,2,0,0,0,2,0,1,0,0,1,0,0,0,0,0]
["B4. How effective are the care, guidance and support learners receive in helping them to achieve?",2,1,0,0,3,2,0,0,0,2,0,1,0,0,1,0,0,0,0,0]
["C. Leadership and management",1,1,1,0,3,1,1,0,0,2,0,0,1,0,1,0,0,0,0,0]
["C1. How effectively do leaders and managers raise expectations and promote ambition throughout the organisation?",1,1,1,0,3,1,1,0,0,2,0,0,1,0,1,0,0,0,0,0]
["C2. How effectively do governors and supervisory bodies provide leadership, direction and challenge?*",1,0,0,0,1,1,0,0,0,1,0,0,0,0,0,0,0,0,0,0]
["C3. Safeguarding",2,1,0,0,3,2,0,0,0,2,0,1,0,0,1,0,0,0,0,0]
["C4. Equality and diversity",2,1,0,0,3,2,0,0,0,2,0,1,0,0,1,0,0,0,0,0]
["C5. How effectively does the provider engage with users to support and promote improvement?",0,2,1,0,3,0,2,0,0,2,0,0,1,0,1,0,0,0,0,0]
["C6. How effectively does self-assessment improve the quality of the provision and outcomes for learners?",0,2,1,0,3,0,2,0,0,2,0,0,1,0,1,0,0,0,0,0]
["C7. How efficiently and effectively does the provider use its available resources to secure value for money?",1,2,0,0,3,1,1,0,0,2,0,1,0,0,1,0,0,0,0,0]
[]
["Table2g ILP","Quarter",null,null,null,null,"Month1",null,null,null,null,"Month2",null,null,null,null,"Month3"]
[null,"Outstanding","Good","Satisfactory","Inadequate","Total","Outstanding","Good","Satisfactory","Inadequate","Total","Outstanding","Good","Satisfactory","Inadequate","Total","Outstanding","Good","Satisfactory","Inadequate","Total"]
["Overall effectiveness",1,15,14,5,35,0,6,2,2,10,0,6,8,2,16,1,3,4,1,9]
["Capacity to improve",1,14,15,5,35,0,4,4,2,10,0,5,9,2,16,1,5,2,1,9]
["A. Outcomes for learners",1,18,13,3,35,0,6,3,1,10,0,9,6,1,16,1,3,4,1,9]
["A1. How well do learners achieve and enjoy their learning",1,18,12,4,35,0,6,3,1,10,0,9,6,1,16,1,3,3,2,9]
["A1.a) How well do learners attain their learning goals",1,17,15,2,35,0,6,4,0,10,0,8,8,0,16,1,3,3,2,9]
["A1.b) How well do learners progress?",2,17,13,3,35,0,6,3,1,10,1,8,6,1,16,1,3,4,1,9]
["A2. How well do learners improve their economic and social well-being through learning and development?",3,24,8,0,35,0,7,3,0,10,1,12,3,0,16,2,5,2,0,9]
["A3. How safe do learners feel?",3,21,11,0,35,0,7,3,0,10,1,11,4,0,16,2,3,4,0,9]
["A4. Are learners able to make informed choices about their own health and well being?*",1,3,5,0,9,0,1,3,0,4,0,1,2,0,3,1,1,0,0,2]
["A5. How well do learners make a positive contribution to the community?*",0,4,3,1,8,0,2,1,1,4,0,2,2,0,4,0,0,0,0,0]
["B. Quality of provision",2,18,15,0,35,0,7,3,0,10,1,7,8,0,16,1,4,4,0,9]
["B1. How effectively do teaching, training and assessment support learning and development?",2,15,18,0,35,0,6,4,0,10,1,6,9,0,16,1,3,5,0,9]
["B2. How effectively does the provision meet the needs and interests of users?",3,22,10,0,35,0,7,3,0,10,1,11,4,0,16,2,4,3,0,9]
["B3. How well do partnerships with schools, employers, community groups and others lead to benefits for learners?",3,22,10,0,35,0,7,3,0,10,0,10,6,0,16,3,5,1,0,9]
["B4. How effective are the care, guidance and support learners receive in helping them to achieve?",3,22,9,1,35,1,7,2,0,10,1,10,5,0,16,1,5,2,1,9]
["C. Leadership and management",1,14,17,3,35,0,5,5,0,10,0,5,9,2,16,1,4,3,1,9]
["C1. How effectively do leaders and managers raise expectations and promote ambition throughout the organisation?",4,17,11,3,35,1,6,3,0,10,1,8,5,2,16,2,3,3,1,9]
["C2. How effectively do governors and supervisory bodies provide leadership, direction and challenge?*",2,4,3,0,9,1,1,0,0,2,0,2,1,0,3,1,1,2,0,4]
["C3. Safeguarding",4,18,13,0,35,2,5,3,0,10,1,8,7,0,16,1,5,3,0,9]
["C4. Equality and diversity",0,11,22,2,35,0,4,5,1,10,0,3,12,1,16,0,4,5,0,9]
["C5. How effectively does the provider engage with users to support and promote improvement?",2,13,18,2,35,0,6,4,0,10,0,5,10,1,16,2,2,4,1,9]
["C6. How effectively does self-assessment improve the quality of the provision and outcomes for learners?",2,10,17,6,35,0,3,5,2,10,1,3,9,3,16,1,4,3,1,9]
["C7. How efficiently and effectively does the provider use its available resources to secure value for money?",1,17,15,2,35,0,6,3,1,10,0,7,9,0,16,1,4,3,1,9]
[]
["Table2h ACL","Quarter",null,null,null,null,"Month1",null,null,null,null,"Month2",null,null,null,null,"Month3"]
[null,"Outstanding","Good","Satisfactory","Inadequate","Total","Outstanding","Good","Satisfactory","Inadequate","Total","Outstanding","Good","Satisfactory","Inadequate","Total","Outstanding","Good","Satisfactory","Inadequate","Total"]
["Overall effectiveness",1,13,3,0,17,0,6,2,0,8,0,5,1,0,6,1,2,0,0,3]
["Capacity to improve",0,13,4,0,17,0,5,3,0,8,0,5,1,0,6,0,3,0,0,3]
["A. Outcomes for learners",1,12,4,0,17,0,5,3,0,8,0,5,1,0,6,1,2,0,0,3]
["A1. How well do learners achieve and enjoy their learning",1,12,4,0,17,0,5,3,0,8,0,5,1,0,6,1,2,0,0,3]
["A1.a) How well do learners attain their learning goals",2,10,5,0,17,1,4,3,0,8,0,4,2,0,6,1,2,0,0,3]
["A1.b) How well do learners progress?",0,12,5,0,17,0,5,3,0,8,0,5,1,0,6,0,2,1,0,3]
["A2. How well do learners improve their economic and social well-being through learning and development?",2,14,1,0,17,0,7,1,0,8,1,5,0,0,6,1,2,0,0,3]
["A3. How safe do learners feel?",2,14,1,0,17,0,8,0,0,8,1,4,1,0,6,1,2,0,0,3]
["A4. Are learners able to make informed choices about their own health and well being?*",0,8,3,0,11,0,3,2,0,5,0,3,0,0,3,0,2,1,0,3]
["A5. How well do learners make a positive contribution to the community?*",2,5,3,0,10,1,1,3,0,5,0,3,0,0,3,1,1,0,0,2]
["B. Quality of provision",1,14,2,0,17,0,7,1,0,8,1,4,1,0,6,0,3,0,0,3]
["B1. How effectively do teaching, training and assessment support learning and development?",0,15,2,0,17,0,7,1,0,8,0,5,1,0,6,0,3,0,0,3]
["B2. How effectively does the provision meet the needs and interests of users?",3,11,3,0,17,2,5,1,0,8,1,4,1,0,6,0,2,1,0,3]
["B3. How well do partnerships with schools, employers, community groups and others lead to benefits for learners?",5,10,2,0,17,1,5,2,0,8,3,3,0,0,6,1,2,0,0,3]
["B4. How effective are the care, guidance and support learners receive in helping them to achieve?",2,12,3,0,17,0,6,2,0,8,1,4,1,0,6,1,2,0,0,3]
["C. Leadership and management",1,13,3,0,17,0,6,2,0,8,0,5,1,0,6,1,2,0,0,3]
["C1. How effectively do leaders and managers raise expectations and promote ambition throughout the organisation?",4,9,4,0,17,0,6,2,0,8,3,2,1,0,6,1,1,1,0,3]
["C2. How effectively do governors and supervisory bodies provide leadership, direction and challenge?*",2,6,4,2,14,0,2,3,1,6,0,3,1,1,5,2,1,0,0,3]
["C3. Safeguarding",1,12,4,0,17,0,5,3,0,8,1,4,1,0,6,0,3,0,0,3]
["C4. Equality and diversity",1,12,4,0,17,0,4,4,0,8,0,6,0,0,6,1,2,0,0,3]
["C5. How effectively does the provider engage with users to support and promote improvement?",1,11,5,0,17,0,5,3,0,8,1,3,2,0,6,0,3,0,0,3]
["C6. How effectively does self-assessment improve the quality of the provision and outcomes for learners?",0,13,3,1,17,0,6,2,0,8,0,5,0,1,6,0,2,1,0,3]
["C7. How efficiently and effectively does the provider use its available resources to secure value for money?",1,13,3,0,17,0,6,2,0,8,0,5,1,0,6,1,2,0,0,3]
[]
["Table2i NextStep","Quarter",null,null,null,null,"Month1",null,null,null,null,"Month2",null,null,null,null,"Month3"]
[null,"Outstanding","Good","Satisfactory","Inadequate","Total","Outstanding","Good","Satisfactory","Inadequate","Total","Outstanding","Good","Satisfactory","Inadequate","Total","Outstanding","Good","Satisfactory","Inadequate","Total"]
["Overall effectiveness",0,2,0,0,2,0,0,0,0,0,0,2,0,0,2,0,0,0,0,0]
["Capacity to improve",0,2,0,0,2,0,0,0,0,0,0,2,0,0,2,0,0,0,0,0]
["A. Outcomes for learners",0,2,0,0,2,0,0,0,0,0,0,2,0,0,2,0,0,0,0,0]
["A1. How well do learners achieve and enjoy their learning",0,2,0,0,2,0,0,0,0,0,0,2,0,0,2,0,0,0,0,0]
["A1.a) How well do learners attain their learning goals",0,2,0,0,2,0,0,0,0,0,0,2,0,0,2,0,0,0,0,0]
["A1.b) How well do learners progress?",0,2,0,0,2,0,0,0,0,0,0,2,0,0,2,0,0,0,0,0]
["A2. How well do learners improve their economic and social well-being through learning and development?",0,2,0,0,2,0,0,0,0,0,0,2,0,0,2,0,0,0,0,0]
["A3. How safe do learners feel?",0,2,0,0,2,0,0,0,0,0,0,2,0,0,2,0,0,0,0,0]
["A4. Are learners able to make informed choices about their own health and well being?*",0,0,0,0,0,0,0,0,0,0,0,0,0,0,0,0,0,0,0,0]
["A5. How well do learners make a positive contribution to the community?*",0,1,0,0,1,0,0,0,0,0,0,1,0,0,1,0,0,0,0,0]
["B. Quality of provision",0,2,0,0,2,0,0,0,0,0,0,2,0,0,2,0,0,0,0,0]
["B1. How effectively do teaching, training and assessment support learning and development?",0,2,0,0,2,0,0,0,0,0,0,2,0,0,2,0,0,0,0,0]
["B2. How effectively does the provision meet the needs and interests of users?",0,2,0,0,2,0,0,0,0,0,0,2,0,0,2,0,0,0,0,0]
["B3. How well do partnerships with schools, employers, community groups and others lead to benefits for learners?",0,2,0,0,2,0,0,0,0,0,0,2,0,0,2,0,0,0,0,0]
["B4. How effective are the care, guidance and support learners receive in helping them to achieve?",0,2,0,0,2,0,0,0,0,0,0,2,0,0,2,0,0,0,0,0]
["C. Leadership and management",0,2,0,0,2,0,0,0,0,0,0,2,0,0,2,0,0,0,0,0]
["C1. How effectively do leaders and managers raise expectations and promote ambition throughout the organisation?",0,2,0,0,2,0,0,0,0,0,0,2,0,0,2,0,0,0,0,0]
["C2. How effectively do governors and supervisory bodies provide leadership, direction and challenge?*",0,1,0,0,1,0,0,0,0,0,0,1,0,0,1,0,0,0,0,0]
["C3. Safeguarding",0,2,0,0,2,0,0,0,0,0,0,2,0,0,2,0,0,0,0,0]
["C4. Equality and diversity",0,2,0,0,2,0,0,0,0,0,0,2,0,0,2,0,0,0,0,0]
["C5. How effectively does the provider engage with users to support and promote improvement?",0,2,0,0,2,0,0,0,0,0,0,2,0,0,2,0,0,0,0,0]
["C6. How effectively does self-assessment improve the quality of the provision and outcomes for learners?",0,1,1,0,2,0,0,0,0,0,0,1,1,0,2,0,0,0,0,0]
["C7. How efficiently and effectively does the provider use its available resources to secure value for money?",0,2,0,0,2,0,0,0,0,0,0,2,0,0,2,0,0,0,0,0]
[]
["Table2j Prison","Quarter",null,null,null,null,"Month1",null,null,null,null,"Month2",null,null,null,null,"Month3"]
[null,"Outstanding","Good","Satisfactory","Inadequate","Total","Outstanding","Good","Satisfactory","Inadequate","Total","Outstanding","Good","Satisfactory","Inadequate","Total","Outstanding","Good","Satisfactory","Inadequate","Total"]
["Overall effectiveness",0,3,1,0,4,0,1,0,0,1,0,2,0,0,2,0,0,1,0,1]
["Capacity to improve",0,3,1,0,4,0,1,0,0,1,0,2,0,0,2,0,0,1,0,1]
["A. Outcomes for learners",1,2,1,0,4,0,1,0,0,1,1,1,0,0,2,0,0,1,0,1]
["A1. How well do learners achieve and enjoy their learning",1,2,1,0,4,0,1,0,0,1,1,1,0,0,2,0,0,1,0,1]
["A1.a) How well do learners attain their learning goals",1,2,1,0,4,0,1,0,0,1,1,1,0,0,2,0,0,1,0,1]
["A1.b) How well do learners progress?",1,2,1,0,4,0,1,0,0,1,1,1,0,0,2,0,0,1,0,1]
["A2. How well do learners improve their economic and social well-being through learning and development?",1,1,2,0,4,0,0,1,0,1,1,0,1,0,2,0,1,0,0,1]
["A3. How safe do learners feel?",0,3,1,0,4,0,1,0,0,1,0,2,0,0,2,0,0,1,0,1]
["A4. Are learners able to make informed choices about their own health and well being?*",0,1,0,0,1,0,1,0,0,1,0,0,0,0,0,0,0,0,0,0]
["A5. How well do learners make a positive contribution to the community?*",1,1,0,0,2,0,0,0,0,0,1,0,0,0,1,0,1,0,0,1]
["B. Quality of provision",0,3,1,0,4,0,1,0,0,1,0,2,0,0,2,0,0,1,0,1]
["B1. How effectively do teaching, training and assessment support learning and development?",0,2,2,0,4,0,1,0,0,1,0,1,1,0,2,0,0,1,0,1]
["B2. How effectively does the provision meet the needs and interests of users?",0,3,1,0,4,0,1,0,0,1,0,2,0,0,2,0,0,1,0,1]
["B3. How well do partnerships with schools, employers, community groups and others lead to benefits for learners?",1,2,1,0,4,0,1,0,0,1,1,0,1,0,2,0,1,0,0,1]
["B4. How effective are the care, guidance and support learners receive in helping them to achieve?",0,2,2,0,4,0,0,1,0,1,0,2,0,0,2,0,0,1,0,1]
["C. Leadership and management",0,3,1,0,4,0,1,0,0,1,0,2,0,0,2,0,0,1,0,1]
["C1. How effectively do leaders and managers raise expectations and promote ambition throughout the organisation?",0,3,1,0,4,0,1,0,0,1,0,2,0,0,2,0,0,1,0,1]
["C2. How effectively do governors and supervisory bodies provide leadership, direction and challenge?*",0,0,0,0,0,0,0,0,0,0,0,0,0,0,0,0,0,0,0,0]
["C3. Safeguarding",0,3,1,0,4,0,1,0,0,1,0,2,0,0,2,0,0,1,0,1]
["C4. Equality and diversity",0,1,3,0,4,0,0,1,0,1,0,1,1,0,2,0,0,1,0,1]
["C5. How effectively does the provider engage with users to support and promote improvement?",0,3,1,0,4,0,1,0,0,1,0,2,0,0,2,0,0,1,0,1]
["C6. How effectively does self-assessment improve the quality of the provision and outcomes for learners?",0,2,2,0,4,0,1,0,0,1,0,1,1,0,2,0,0,1,0,1]
["C7. How efficiently and effectively does the provider use its available resources to secure value for money?",0,3,1,0,4,0,1,0,0,1,0,2,0,0,2,0,0,1,0,1]
[]
["Table2k Probation","Quarter",null,null,null,null,"Month1",null,null,null,null,"Month2",null,null,null,null,"Month3"]
[null,"Outstanding","Good","Satisfactory","Inadequate","Total","Outstanding","Good","Satisfactory","Inadequate","Total","Outstanding","Good","Satisfactory","Inadequate","Total","Outstanding","Good","Satisfactory","Inadequate","Total"]
["Overall effectiveness",0,0,0,0,0,0,0,0,0,0,0,0,0,0,0,0,0,0,0,0]
["Capacity to improve",0,0,0,0,0,0,0,0,0,0,0,0,0,0,0,0,0,0,0,0]
["A. Outcomes for learners",0,0,0,0,0,0,0,0,0,0,0,0,0,0,0,0,0,0,0,0]
["A1. How well do learners achieve and enjoy their learning",0,0,0,0,0,0,0,0,0,0,0,0,0,0,0,0,0,0,0,0]
["A1.a) How well do learners attain their learning goals",0,0,0,0,0,0,0,0,0,0,0,0,0,0,0,0,0,0,0,0]
["A1.b) How well do learners progress?",0,0,0,0,0,0,0,0,0,0,0,0,0,0,0,0,0,0,0,0]
["A2. How well do learners improve their economic and social well-being through learning and development?",0,0,0,0,0,0,0,0,0,0,0,0,0,0,0,0,0,0,0,0]
["A3. How safe do learners feel?",0,0,0,0,0,0,0,0,0,0,0,0,0,0,0,0,0,0,0,0]
["A4. Are learners able to make informed choices about their own health and well being?*",0,0,0,0,0,0,0,0,0,0,0,0,0,0,0,0,0,0,0,0]
["A5. How well do learners make a positive contribution to the community?*",0,0,0,0,0,0,0,0,0,0,0,0,0,0,0,0,0,0,0,0]
["B. Quality of provision",0,0,0,0,0,0,0,0,0,0,0,0,0,0,0,0,0,0,0,0]
["B1. How effectively do teaching, training and assessment support learning and development?",0,0,0,0,0,0,0,0,0,0,0,0,0,0,0,0,0,0,0,0]
["B2. How effectively does the provision meet the needs and interests of users?",0,0,0,0,0,0,0,0,0,0,0,0,0,0,0,0,0,0,0,0]
["B3. How well do partnerships with schools, employers, community groups and others lead to benefits for learners?",0,0,0,0,0,0,0,0,0,0,0,0,0,0,0,0,0,0,0,0]
["B4. How effective are the care, guidance and support learners receive in helping them to achieve?",0,0,0,0,0,0,0,0,0,0,0,0,0,0,0,0,0,0,0,0]
["C. Leadership and management",0,0,0,0,0,0,0,0,0,0,0,0,0,0,0,0,0,0,0,0]
["C1. How effectively do leaders and managers raise expectations and promote ambition throughout the organisation?",0,0,0,0,0,0,0,0,0,0,0,0,0,0,0,0,0,0,0,0]
["C2. How effectively do governors and supervisory bodies provide leadership, direction and challenge?*",0,0,0,0,0,0,0,0,0,0,0,0,0,0,0,0,0,0,0,0]
["C3. Safeguarding",0,0,0,0,0,0,0,0,0,0,0,0,0,0,0,0,0,0,0,0]
["C4. Equality and diversity",0,0,0,0,0,0,0,0,0,0,0,0,0,0,0,0,0,0,0,0]
["C5. How effectively does the provider engage with users to support and promote improvement?",0,0,0,0,0,0,0,0,0,0,0,0,0,0,0,0,0,0,0,0]
["C6. How effectively does self-assessment improve the quality of the provision and outcomes for learners?",0,0,0,0,0,0,0,0,0,0,0,0,0,0,0,0,0,0,0,0]
["C7. How efficiently and effectively does the provider use its available resources to secure value for money?",0,0,0,0,0,0,0,0,0,0,0,0,0,0,0,0,0,0,0,0]
[]
["Cross tabulation all L&S "]
[null,"Capacity to improve"]
["Overall effectiveness","Outstanding","Good","Satisfactory","Inadequate","Total"]
["Outstanding","0","0","0","0",0]
["Good","0","0","0","0",0]
["Satisfactory","0","0","0","0",0]
["Inadequate","0","0","0","0",0]
["Total",0,0,0,0,0]
[]
[null,"Outcomes for learners"]
["Overall effectiveness","Outstanding","Good","Satisfactory","Inadequate","Total"]
["Outstanding","0","0","0","0",0]
["Good","0","0","0","0",0]
["Satisfactory","0","0","0","0",0]
["Inadequate","0","0","0","0",0]
["Total",0,0,0,0,0]
[]
[null,"Quality of provision"]
["Overall effectiveness","Outstanding","Good","Satisfactory","Inadequate","Total"]
["Outstanding","0","0","0","0",0]
["Good","0","0","0","0",0]
["Satisfactory","0","0","0","0",0]
["Inadequate","0","0","0","0",0]
["Total",0,0,0,0,0]
[]
[null,"Leadership and management"]
["Overall effectiveness","Outstanding","Good","Satisfactory","Inadequate","Total"]
["Outstanding","0","0","0","0",0]
["Good","0","0","0","0",0]
["Satisfactory","0","0","0","0",0]
["Inadequate","0","0","0","0",0]
["Total",0,0,0,0,0]
[]
["Cross tabulation all colleges"]
[null,"Capacity to improve"]
["Overall effectiveness","Outstanding","Good","Satisfactory","Inadequate","Total"]
["Outstanding","0","0","0","0",0]
["Good","0","0","0","0",0]
["Satisfactory","0","0","0","0",0]
["Inadequate","0","0","0","0",0]
["Total",0,0,0,0,0]
[]
[null,"Outcomes for learners"]
["Overall effectiveness","Outstanding","Good","Satisfactory","Inadequate","Total"]
["Outstanding","0","0","0","0",0]
["Good","0","0","0","0",0]
["Satisfactory","0","0","0","0",0]
["Inadequate","0","0","0","0",0]
["Total",0,0,0,0,0]
[]
[null,"Quality of provision"]
["Overall effectiveness","Outstanding","Good","Satisfactory","Inadequate","Total"]
["Outstanding","0","0","0","0",0]
["Good","0","0","0","0",0]
["Satisfactory","0","0","0","0",0]
["Inadequate","0","0","0","0",0]
["Total",0,0,0,0,0]
[]
[null,"Leadership and management"]
["Overall effectiveness","Outstanding","Good","Satisfactory","Inadequate","Total"]
["Outstanding","0","0","0","0",0]
["Good","0","0","0","0",0]
["Satisfactory","0","0","0","0",0]
["Inadequate","0","0","0","0",0]
["Total",0,0,0,0,0]
[]
["Cross tabulation all WBLs"]
[null,"Capacity to improve"]
["Overall effectiveness","Outstanding","Good","Satisfactory","Inadequate","Total"]
["Outstanding","0","0","0","0",0]
["Good","0","0","0","0",0]
["Satisfactory","0","0","0","0",0]
["Inadequate","0","0","0","0",0]
["Total",0,0,0,0,0]
[]
[null,"Outcomes for learners"]
["Overall effectiveness","Outstanding","Good","Satisfactory","Inadequate","Total"]
["Outstanding","0","0","0","0",0]
["Good","0","0","0","0",0]
["Satisfactory","0","0","0","0",0]
["Inadequate","0","0","0","0",0]
["Total",0,0,0,0,0]
[]
[null,"Quality of provision"]
["Overall effectiveness","Outstanding","Good","Satisfactory","Inadequate","Total"]
["Outstanding","0","0","0","0",0]
["Good","0","0","0","0",0]
["Satisfactory","0","0","0","0",0]
["Inadequate","0","0","0","0",0]
["Total",0,0,0,0,0]
[]
[null,"Leadership and management"]
["Overall effectiveness","Outstanding","Good","Satisfactory","Inadequate","Total"]
["Outstanding","0","0","0","0",0]
["Good","0","0","0","0",0]
["Satisfactory","0","0","0","0",0]
["Inadequate","0","0","0","0",0]
["Total",0,0,0,0,0]
[]
["Cross tabulation all ACLs"]
[null,"Capacity to improve"]
["Overall effectiveness","Outstanding","Good","Satisfactory","Inadequate","Total"]
["Outstanding","0","0","0","0",0]
["Good","0","0","0","0",0]
["Satisfactory","0","0","0","0",0]
["Inadequate","0","0","0","0",0]
["Total",0,0,0,0,0]
[]
[null,"Outcomes for learners"]
["Overall effectiveness","Outstanding","Good","Satisfactory","Inadequate","Total"]
["Outstanding","0","0","0","0",0]
["Good","0","0","0","0",0]
["Satisfactory","0","0","0","0",0]
["Inadequate","0","0","0","0",0]
["Total",0,0,0,0,0]
[]
[null,"Quality of provision"]
["Overall effectiveness","Outstanding","Good","Satisfactory","Inadequate","Total"]
["Outstanding","0","0","0","0",0]
["Good","0","0","0","0",0]
["Satisfactory","0","0","0","0",0]
["Inadequate","0","0","0","0",0]
["Total",0,0,0,0,0]
[]
[null,"Leadership and management"]
["Overall effectiveness","Outstanding","Good","Satisfactory","Inadequate","Total"]
["Outstanding","0","0","0","0",0]
["Good","0","0","0","0",0]
["Satisfactory","0","0","0","0",0]
["Inadequate","0","0","0","0",0]
["Total",0,0,0,0,0]

{"sheet":"Table 1","index":4,"n_rows":16,"n_cols":25,"rows_kept":16,"cut":false,"hidden":false,"merged":[[8,21,8,23],[5,24,5,26],[10,24,10,26],[5,18,5,20],[9,15,9,17],[10,6,10,8],[6,24,6,26],[7,24,7,26],[8,24,8,26],[10,21,10,23],[5,21,5,23],[6,21,6,23],[7,21,7,23],[8,15,8,17],[3,2,3,6],[10,3,10,5],[9,3,9,5],[8,3,8,5],[9,6,9,8],[8,6,8,8],[9,24,9,26],[5,12,5,14],[10,15,10,17],[10,18,10,20],[9,18,9,20],[6,18,6,20],[7,18,7,20],[8,18,8,20],[6,15,6,17],[7,15,7,17],[9,21,9,23],[11,12,11,14],[12,22,12,26],[5,6,5,8],[5,3,5,5],[7,3,7,5],[6,3,6,5],[7,6,7,8],[6,6,6,8],[5,15,5,17],[11,21,11,23],[11,24,11,26],[11,3,11,5],[11,6,11,8],[11,15,11,17],[11,18,11,20],[6,12,6,14],[7,12,7,14],[8,12,8,14],[9,12,9,14],[10,12,10,14],[11,9,11,11],[5,9,5,11],[6,9,6,11],[7,9,7,11],[8,9,8,11],[9,9,9,11],[10,9,10,11]]}
[]
[null,{"$f":"\"Table 1: Number of learning and skills providers inspected \" & IF('Table 1'!C4=Dates1!$B$3, \"between \" & Dates1!$B$3, IF('Table 1'!C4 = Dates1!B4, \"in \" & Dates1!B4, IF('Table 1'!C4=Dates1!B5, \"in \" & Dates1!B5, IF('Table 1'!C4=Dates1!B6, \"in \" & Dates1!B6, IF('Table 1'!C4=Dates1!B7, \"in \" & Dates1!B7))))) & \", by provider and inspection type (provisional)\"&CHAR(185)","v":"Table 1: Number of learning and skills providers inspected between 1 October and 31 December 2011, by provider and inspection type (provisional)¹"}]
[]
[null,"Select period:","1 October and 31 December 2011"]
[]
[null,"Inspection activity",null,"All learning and skills",null,null,"All colleges1",null,null,"Dance and drama colleges2",null,null,"Further education in higher education institutions",null,null,"Independent learning provider3",null,null,"Adult and community learning",null,null,"Next Step",null,null,"Prison and young offender institutions"]
[null,"Full inspections",null,{"$f":"IF($C$4=Dates1!$B$3, DataPack!$B$3, IF($C$4=Dates1!$B$4, DataPack!$K$3, IF($C$4=Dates1!$B$5, DataPack!$T$3, IF($C$4=Dates1!$B$6, DataPack!$AC$3))))","v":84},null,null,{"$f":"IF($C$4=Dates1!$B$3, DataPack!$C$3, IF($C$4=Dates1!$B$4, DataPack!$L$3, IF($C$4=Dates1!$B$5, DataPack!$U$3, IF($C$4=Dates1!$B$6, DataPack!$AD$3))))","v":23},null,null,{"$f":"IF($C$4=Dates1!$B$3, DataPack!$E$3, IF($C$4=Dates1!$B$4, DataPack!$N$3, IF($C$4=Dates1!$B$5, DataPack!$W$3, IF($C$4=Dates1!$B$6, DataPack!$AF$3))))","v":3},null,null,{"$f":"IF($C$4=Dates1!$B$3, DataPack!$D$3, IF($C$4=Dates1!$B$4, DataPack!$M$3, IF($C$4=Dates1!$B$5, DataPack!$V$3, IF($C$4=Dates1!$B$6, DataPack!$AE$3))))","v":3},null,null,{"$f":"IF($C$4=Dates1!$B$3, DataPack!$F$3, IF($C$4=Dates1!$B$4, DataPack!$O$3, IF($C$4=Dates1!$B$5, DataPack!$X$3, IF($C$4=Dates1!$B$6, DataPack!$AG$3))))","v":32},null,null,{"$f":"IF($C$4=Dates1!$B$3, DataPack!$G$3, IF($C$4=Dates1!$B$4, DataPack!$P$3, IF($C$4=Dates1!$B$5, DataPack!$Y$3, IF($C$4=Dates1!$B$6, DataPack!$AH$3))))","v":17},null,null,{"$f":"IF($C$4=Dates1!$B$3, DataPack!$H$3, IF($C$4=Dates1!$B$4, DataPack!$Q$3, IF($C$4=Dates1!$B$5, DataPack!$Z$3, IF($C$4=Dates1!$B$6, DataPack!$AI$3))))","v":2},null,null,{"$f":"IF($C$4=Dates1!$B$3, DataPack!$I$3, IF($C$4=Dates1!$B$4, DataPack!$R$3, IF($C$4=Dates1!$B$5, DataPack!$AA$3, IF($C$4=Dates1!$B$6, DataPack!$AJ$3))))","v":4}]
[null,"Re-inspections",null,{"$f":"IF($C$4=Dates1!$B$3, DataPack!$B$4, IF($C$4=Dates1!$B$4, DataPack!$K$4, IF($C$4=Dates1!$B$5, DataPack!$T$4, IF($C$4=Dates1!$B$6, DataPack!$AC$4))))","v":3},null,null,{"$f":"IF($C$4=Dates1!$B$3, DataPack!$C$4, IF($C$4=Dates1!$B$4, DataPack!$L$4, IF($C$4=Dates1!$B$5, DataPack!$U$4, IF($C$4=Dates1!$B$6, DataPack!$AD$4))))","v":0},null,null,{"$f":"IF($C$4=Dates1!$B$3, DataPack!$E$4, IF($C$4=Dates1!$B$4, DataPack!$N$4, IF($C$4=Dates1!$B$5, DataPack!$W$4, IF($C$4=Dates1!$B$6, DataPack!$AF$4))))","v":0},null,null,{"$f":"IF($C$4=Dates1!$B$3, DataPack!$D$4, IF($C$4=Dates1!$B$4, DataPack!$M$4, IF($C$4=Dates1!$B$5, DataPack!$V$4, IF($C$4=Dates1!$B$6, DataPack!$AE$4))))","v":0},null,null,{"$f":"IF($C$4=Dates1!$B$3, DataPack!$F$4, IF($C$4=Dates1!$B$4, DataPack!$O$4, IF($C$4=Dates1!$B$5, DataPack!$X$4, IF($C$4=Dates1!$B$6, DataPack!$AG$4))))","v":3},null,null,{"$f":"IF($C$4=Dates1!$B$3, DataPack!$G$4, IF($C$4=Dates1!$B$4, DataPack!$P$4, IF($C$4=Dates1!$B$5, DataPack!$Y$4, IF($C$4=Dates1!$B$6, DataPack!$AH$4))))","v":0},null,null,{"$f":"IF($C$4=Dates1!$B$3, DataPack!$H$4, IF($C$4=Dates1!$B$4, DataPack!$Q$4, IF($C$4=Dates1!$B$5, DataPack!$Z$4, IF($C$4=Dates1!$B$6, DataPack!$AI$4))))","v":0},null,null,{"$f":"IF($C$4=Dates1!$B$3, DataPack!$I$4, IF($C$4=Dates1!$B$4, DataPack!$R$4, IF($C$4=Dates1!$B$5, DataPack!$AA$4, IF($C$4=Dates1!$B$6, DataPack!$AJ$4))))","v":0}]
[null,"Focused monitoring visits",null,{"$f":"IF($C$4=Dates1!$B$3, DataPack!$B$5, IF($C$4=Dates1!$B$4, DataPack!$K$5, IF($C$4=Dates1!$B$5, DataPack!$T$5, IF($C$4=Dates1!$B$6, DataPack!$AC$5))))","v":46},null,null,{"$f":"IF($C$4=Dates1!$B$3, DataPack!$C$5, IF($C$4=Dates1!$B$4, DataPack!$L$5, IF($C$4=Dates1!$B$5, DataPack!$U$5, IF($C$4=Dates1!$B$6, DataPack!$AD$5))))","v":14},null,null,{"$f":"IF($C$4=Dates1!$B$3, DataPack!$E$5, IF($C$4=Dates1!$B$4, DataPack!$N$5, IF($C$4=Dates1!$B$5, DataPack!$W$5, IF($C$4=Dates1!$B$6, DataPack!$AF$5))))","v":0},null,null,{"$f":"IF($C$4=Dates1!$B$3, DataPack!$D$5, IF($C$4=Dates1!$B$4, DataPack!$M$5, IF($C$4=Dates1!$B$5, DataPack!$V$5, IF($C$4=Dates1!$B$6, DataPack!$AE$5))))","v":0},null,null,{"$f":"IF($C$4=Dates1!$B$3, DataPack!$F$5, IF($C$4=Dates1!$B$4, DataPack!$O$5, IF($C$4=Dates1!$B$5, DataPack!$X$5, IF($C$4=Dates1!$B$6, DataPack!$AG$5))))","v":20},null,null,{"$f":"IF($C$4=Dates1!$B$3, DataPack!$G$5, IF($C$4=Dates1!$B$4, DataPack!$P$5, IF($C$4=Dates1!$B$5, DataPack!$Y$5, IF($C$4=Dates1!$B$6, DataPack!$AH$5))))","v":9},null,null,{"$f":"IF($C$4=Dates1!$B$3, DataPack!$H$5, IF($C$4=Dates1!$B$4, DataPack!$Q$5, IF($C$4=Dates1!$B$5, DataPack!$Z$5, IF($C$4=Dates1!$B$6, DataPack!$AI$5))))","v":3},null,null,{"$f":"IF($C$4=Dates1!$B$3, DataPack!$I$5, IF($C$4=Dates1!$B$4, DataPack!$R$5, IF($C$4=Dates1!$B$5, DataPack!$AA$5, IF($C$4=Dates1!$B$6, DataPack!$AJ$5))))","v":0}]
[null,"Re-inspection monitoring visits",null,{"$f":"IF($C$4=Dates1!$B$3, DataPack!$B$6, IF($C$4=Dates1!$B$4, DataPack!$K$6, IF($C$4=Dates1!$B$5, DataPack!$T$6, IF($C$4=Dates1!$B$6, DataPack!$AC$6))))","v":9},null,null,{"$f":"IF($C$4=Dates1!$B$3, DataPack!$C$6, IF($C$4=Dates1!$B$4, DataPack!$L$6, IF($C$4=Dates1!$B$5, DataPack!$U$6, IF($C$4=Dates1!$B$6, DataPack!$AD$6))))","v":6},null,null,{"$f":"IF($C$4=Dates1!$B$3, DataPack!$E$6, IF($C$4=Dates1!$B$4, DataPack!$N$6, IF($C$4=Dates1!$B$5, DataPack!$W$6, IF($C$4=Dates1!$B$6, DataPack!$AF$6))))","v":0},null,null,{"$f":"IF($C$4=Dates1!$B$3, DataPack!$D$6, IF($C$4=Dates1!$B$4, DataPack!$M$6, IF($C$4=Dates1!$B$5, DataPack!$V$6, IF($C$4=Dates1!$B$6, DataPack!$AE$6))))","v":0},null,null,{"$f":"IF($C$4=Dates1!$B$3, DataPack!$F$6, IF($C$4=Dates1!$B$4, DataPack!$O$6, IF($C$4=Dates1!$B$5, DataPack!$X$6, IF($C$4=Dates1!$B$6, DataPack!$AG$6))))","v":1},null,null,{"$f":"IF($C$4=Dates1!$B$3, DataPack!$G$6, IF($C$4=Dates1!$B$4, DataPack!$P$6, IF($C$4=Dates1!$B$5, DataPack!$Y$6, IF($C$4=Dates1!$B$6, DataPack!$AH$6))))","v":2},null,null,{"$f":"IF($C$4=Dates1!$B$3, DataPack!$H$6, IF($C$4=Dates1!$B$4, DataPack!$Q$3, IF($C$4=Dates1!$B$5, DataPack!$Z$6, IF($C$4=Dates1!$B$6, DataPack!$AI$6))))","v":0},null,null,{"$f":"IF($C$4=Dates1!$B$3, DataPack!$I$6, IF($C$4=Dates1!$B$4, DataPack!$R$6, IF($C$4=Dates1!$B$5, DataPack!$AA$6, IF($C$4=Dates1!$B$6, DataPack!$AJ$6))))","v":0}]
[null,"Partial re-inspections",null,{"$f":"IF($C$4=Dates1!$B$3, DataPack!$B$7, IF($C$4=Dates1!$B$4, DataPack!$K$7, IF($C$4=Dates1!$B$5, DataPack!$T$7, IF($C$4=Dates1!$B$6, DataPack!$AC$7))))","v":3},null,null,{"$f":"IF($C$4=Dates1!$B$3, DataPack!$C$7, IF($C$4=Dates1!$B$4, DataPack!$L$7, IF($C$4=Dates1!$B$5, DataPack!$U$7, IF($C$4=Dates1!$B$6, DataPack!$AD$7))))","v":3},null,null,{"$f":"IF($C$4=Dates1!$B$3, DataPack!$E$7, IF($C$4=Dates1!$B$4, DataPack!$N$7, IF($C$4=Dates1!$B$5, DataPack!$W$7, IF($C$4=Dates1!$B$6, DataPack!$AF$7))))","v":0},null,null,{"$f":"IF($C$4=Dates1!$B$3, DataPack!$D$7, IF($C$4=Dates1!$B$4, DataPack!$M$7, IF($C$4=Dates1!$B$5, DataPack!$V$7, IF($C$4=Dates1!$B$6, DataPack!$AE$7))))","v":0},null,null,{"$f":"IF($C$4=Dates1!$B$3, DataPack!$F$7, IF($C$4=Dates1!$B$4, DataPack!$O$7, IF($C$4=Dates1!$B$5, DataPack!$X$7, IF($C$4=Dates1!$B$6, DataPack!$AG$7))))","v":0},null,null,{"$f":"IF($C$4=Dates1!$B$3, DataPack!$G$7, IF($C$4=Dates1!$B$4, DataPack!$P$7, IF($C$4=Dates1!$B$5, DataPack!$Y$7, IF($C$4=Dates1!$B$6, DataPack!$AH$7))))","v":0},null,null,{"$f":"IF($C$4=Dates1!$B$3, DataPack!$H$7, IF($C$4=Dates1!$B$4, DataPack!$Q$7, IF($C$4=Dates1!$B$5, DataPack!$Z$7, IF($C$4=Dates1!$B$6, DataPack!$AI$7))))","v":0},null,null,{"$f":"IF($C$4=Dates1!$B$3, DataPack!$I$7, IF($C$4=Dates1!$B$4, DataPack!$R$7, IF($C$4=Dates1!$B$5, DataPack!$AA$7, IF($C$4=Dates1!$B$6, DataPack!$AJ$7))))","v":0}]
[null,"Total",null,{"$f":"SUM(D7:F11)","v":145},null,null,{"$f":"SUM(G7:I11)","v":46},null,null,{"$f":"SUM(J7:L11)","v":3},null,null,{"$f":"SUM(M7:O11)","v":3},null,null,{"$f":"SUM(P7:R11)","v":56},null,null,{"$f":"SUM(S7:U11)","v":28},null,null,{"$f":"SUM(V7:X11)","v":5},null,null,{"$f":"SUM(Y7:AA11)","v":4}]
[null,null,null,null,null,null,null,null,null,null,null,null,null,null,null,null,null,null,null,null,null,null,"Source: Ofsted inspections"]
[null,"1. Includes general further education college/tertiary college, sixth form college, specialist further education college and independent specialist college."]
[null,"2. Inspection of the Dance and Drama Awards scheme only not providers as a whole."]
[null,"3. Includes employer provision."]

{"sheet":"Table 2","index":5,"n_rows":33,"n_cols":16,"rows_kept":33,"cut":false,"hidden":false,"merged":[[4,13,4,14],[4,15,4,16],[7,1,7,6],[8,1,8,6],[4,2,4,6],[4,8,5,8],[4,9,4,10],[4,11,4,12],[9,1,9,6],[10,1,10,6],[11,1,11,6],[12,1,12,6],[13,1,13,6],[14,1,14,6],[15,1,15,6],[16,1,16,6],[17,1,17,6],[18,1,18,6],[19,1,19,6],[20,1,20,6],[21,1,21,6],[22,1,22,6],[23,1,23,6],[24,1,24,6],[29,1,29,6],[30,12,30,16],[25,1,25,6],[26,1,26,6],[27,1,27,6],[28,1,28,6]]}
[]
[null,{"$f":"\"Table 2: Inspection outcomes of learning and skills providers inspected \" & IF('Table 2'!$C$5=Dates1!$B$3, \"between \" & Dates1!$B$3, IF('Table 2'!$C$5 = Dates1!B4, \"in \" & Dates1!B4, IF('Table 2'!$C$5=Dates1!B5, \"in \" & Dates1!B5, IF('Table 2'!$C$5=Dates1!B6, \"in \" & Dates1!B6, IF('Table 2'!$C$5=Dates1!B7, \"in \" & Dates1!B7))))) &  \" (provisional)\"&CHAR(185)","v":"Table 2: Inspection outcomes of learning and skills providers inspected between 1 October and 31 December 2011 (provisional)¹"}]
[]
[]
[null,"Select period:","1 October and 31 December 2011",null,null,null,null,null,"Total number inspected","Outstanding",null,"Good",null,"Satisfactory",null,"Inadequate"]
[null,null,null,null,null,null,null,null,null,"Number",null,"Number",null,"Number",null,"Number"]
[]
[null,"Overall effectiveness",null,null,null,null,null,null,{"$f":"J8+L8+N8+P8","v":81},{"$f":"IF($C$5=Dates1!$B$3, DataPack!$B12, IF($C$5=Dates1!$B$4, DataPack!$G12, IF($C$5=Dates1!$B$5, DataPack!$L12, IF($C$5=Dates1!$B$6, DataPack!$Q12))))","v":3},null,{"$f":"IF($C$5=Dates1!$B$3, DataPack!$C12, IF($C$5=Dates1!$B$4, DataPack!$H12, IF($C$5=Dates1!$B$5, DataPack!$M12, IF($C$5=Dates1!$B$6, DataPack!$R12))))","v":41},null,{"$f":"IF($C$5=Dates1!$B$3, DataPack!$D12, IF($C$5=Dates1!$B$4, DataPack!$I12, IF($C$5=Dates1!$B$5, DataPack!$N12, IF($C$5=Dates1!$B$6, DataPack!$S12))))","v":27},null,{"$f":"IF($C$5=Dates1!$B$3, DataPack!$E12, IF($C$5=Dates1!$B$4, DataPack!$J12, IF($C$5=Dates1!$B$5, DataPack!$O12, IF($C$5=Dates1!$B$6, DataPack!$T12))))","v":10}]
[null,"Capacity to improve",null,null,null,null,null,null,81,{"$f":"IF($C$5=Dates1!$B$3, DataPack!$B13, IF($C$5=Dates1!$B$4, DataPack!$G13, IF($C$5=Dates1!$B$5, DataPack!$L13, IF($C$5=Dates1!$B$6, DataPack!$Q13))))","v":2},null,{"$f":"IF($C$5=Dates1!$B$3, DataPack!$C13, IF($C$5=Dates1!$B$4, DataPack!$H13, IF($C$5=Dates1!$B$5, DataPack!$M13, IF($C$5=Dates1!$B$6, DataPack!$R13))))","v":41},null,{"$f":"IF($C$5=Dates1!$B$3, DataPack!$D13, IF($C$5=Dates1!$B$4, DataPack!$I13, IF($C$5=Dates1!$B$5, DataPack!$N13, IF($C$5=Dates1!$B$6, DataPack!$S13))))","v":29},null,{"$f":"IF($C$5=Dates1!$B$3, DataPack!$E13, IF($C$5=Dates1!$B$4, DataPack!$J13, IF($C$5=Dates1!$B$5, DataPack!$O13, IF($C$5=Dates1!$B$6, DataPack!$T13))))","v":9}]
[null,"A. Outcomes for learners",null,null,null,null,null,null,81,{"$f":"IF($C$5=Dates1!$B$3, DataPack!$B14, IF($C$5=Dates1!$B$4, DataPack!$G14, IF($C$5=Dates1!$B$5, DataPack!$L14, IF($C$5=Dates1!$B$6, DataPack!$Q14))))","v":4},null,{"$f":"IF($C$5=Dates1!$B$3, DataPack!$C14, IF($C$5=Dates1!$B$4, DataPack!$H14, IF($C$5=Dates1!$B$5, DataPack!$M14, IF($C$5=Dates1!$B$6, DataPack!$R14))))","v":41},null,{"$f":"IF($C$5=Dates1!$B$3, DataPack!$D14, IF($C$5=Dates1!$B$4, DataPack!$I14, IF($C$5=Dates1!$B$5, DataPack!$N14, IF($C$5=Dates1!$B$6, DataPack!$S14))))","v":29},null,{"$f":"IF($C$5=Dates1!$B$3, DataPack!$E14, IF($C$5=Dates1!$B$4, DataPack!$J14, IF($C$5=Dates1!$B$5, DataPack!$O14, IF($C$5=Dates1!$B$6, DataPack!$T14))))","v":7}]
[null,"     A1. How well do learners achieve and enjoy their learning",null,null,null,null,null,null,81,{"$f":"IF($C$5=Dates1!$B$3, DataPack!$B15, IF($C$5=Dates1!$B$4, DataPack!$G15, IF($C$5=Dates1!$B$5, DataPack!$L15, IF($C$5=Dates1!$B$6, DataPack!$Q15))))","v":4},null,{"$f":"IF($C$5=Dates1!$B$3, DataPack!$C15, IF($C$5=Dates1!$B$4, DataPack!$H15, IF($C$5=Dates1!$B$5, DataPack!$M15, IF($C$5=Dates1!$B$6, DataPack!$R15))))","v":41},null,{"$f":"IF($C$5=Dates1!$B$3, DataPack!$D15, IF($C$5=Dates1!$B$4, DataPack!$I15, IF($C$5=Dates1!$B$5, DataPack!$N15, IF($C$5=Dates1!$B$6, DataPack!$S15))))","v":28},null,{"$f":"IF($C$5=Dates1!$B$3, DataPack!$E15, IF($C$5=Dates1!$B$4, DataPack!$J15, IF($C$5=Dates1!$B$5, DataPack!$O15, IF($C$5=Dates1!$B$6, DataPack!$T15))))","v":8}]
[null,"          A1.a) How well do learners attain their learning goals",null,null,null,null,null,null,81,{"$f":"IF($C$5=Dates1!$B$3, DataPack!$B16, IF($C$5=Dates1!$B$4, DataPack!$G16, IF($C$5=Dates1!$B$5, DataPack!$L16, IF($C$5=Dates1!$B$6, DataPack!$Q16))))","v":5},null,{"$f":"IF($C$5=Dates1!$B$3, DataPack!$C16, IF($C$5=Dates1!$B$4, DataPack!$H16, IF($C$5=Dates1!$B$5, DataPack!$M16, IF($C$5=Dates1!$B$6, DataPack!$R16))))","v":37},null,{"$f":"IF($C$5=Dates1!$B$3, DataPack!$D16, IF($C$5=Dates1!$B$4, DataPack!$I16, IF($C$5=Dates1!$B$5, DataPack!$N16, IF($C$5=Dates1!$B$6, DataPack!$S16))))","v":31},null,{"$f":"IF($C$5=Dates1!$B$3, DataPack!$E16, IF($C$5=Dates1!$B$4, DataPack!$J16, IF($C$5=Dates1!$B$5, DataPack!$O16, IF($C$5=Dates1!$B$6, DataPack!$T16))))","v":8}]
[null,"          A1.b) How well do learners progress?",null,null,null,null,null,null,81,{"$f":"IF($C$5=Dates1!$B$3, DataPack!$B17, IF($C$5=Dates1!$B$4, DataPack!$G17, IF($C$5=Dates1!$B$5, DataPack!$L17, IF($C$5=Dates1!$B$6, DataPack!$Q17))))","v":3},null,{"$f":"IF($C$5=Dates1!$B$3, DataPack!$C17, IF($C$5=Dates1!$B$4, DataPack!$H17, IF($C$5=Dates1!$B$5, DataPack!$M17, IF($C$5=Dates1!$B$6, DataPack!$R17))))","v":41},null,{"$f":"IF($C$5=Dates1!$B$3, DataPack!$D17, IF($C$5=Dates1!$B$4, DataPack!$I17, IF($C$5=Dates1!$B$5, DataPack!$N17, IF($C$5=Dates1!$B$6, DataPack!$S17))))","v":31},null,{"$f":"IF($C$5=Dates1!$B$3, DataPack!$E17, IF($C$5=Dates1!$B$4, DataPack!$J17, IF($C$5=Dates1!$B$5, DataPack!$O17, IF($C$5=Dates1!$B$6, DataPack!$T17))))","v":6}]
[null,"     A2. How well do learners improve their economic and social well-being through learning \n     and development?",null,null,null,null,null,null,81,{"$f":"IF($C$5=Dates1!$B$3, DataPack!$B18, IF($C$5=Dates1!$B$4, DataPack!$G18, IF($C$5=Dates1!$B$5, DataPack!$L18, IF($C$5=Dates1!$B$6, DataPack!$Q18))))","v":8},null,{"$f":"IF($C$5=Dates1!$B$3, DataPack!$C18, IF($C$5=Dates1!$B$4, DataPack!$H18, IF($C$5=Dates1!$B$5, DataPack!$M18, IF($C$5=Dates1!$B$6, DataPack!$R18))))","v":51},null,{"$f":"IF($C$5=Dates1!$B$3, DataPack!$D18, IF($C$5=Dates1!$B$4, DataPack!$I18, IF($C$5=Dates1!$B$5, DataPack!$N18, IF($C$5=Dates1!$B$6, DataPack!$S18))))","v":20},null,{"$f":"IF($C$5=Dates1!$B$3, DataPack!$E18, IF($C$5=Dates1!$B$4, DataPack!$J18, IF($C$5=Dates1!$B$5, DataPack!$O18, IF($C$5=Dates1!$B$6, DataPack!$T18))))","v":2}]
[null,"     A3. How safe do learners feel?",null,null,null,null,null,null,81,{"$f":"IF($C$5=Dates1!$B$3, DataPack!$B19, IF($C$5=Dates1!$B$4, DataPack!$G19, IF($C$5=Dates1!$B$5, DataPack!$L19, IF($C$5=Dates1!$B$6, DataPack!$Q19))))","v":11},null,{"$f":"IF($C$5=Dates1!$B$3, DataPack!$C19, IF($C$5=Dates1!$B$4, DataPack!$H19, IF($C$5=Dates1!$B$5, DataPack!$M19, IF($C$5=Dates1!$B$6, DataPack!$R19))))","v":55},null,{"$f":"IF($C$5=Dates1!$B$3, DataPack!$D19, IF($C$5=Dates1!$B$4, DataPack!$I19, IF($C$5=Dates1!$B$5, DataPack!$N19, IF($C$5=Dates1!$B$6, DataPack!$S19))))","v":15},null,{"$f":"IF($C$5=Dates1!$B$3, DataPack!$E19, IF($C$5=Dates1!$B$4, DataPack!$J19, IF($C$5=Dates1!$B$5, DataPack!$O19, IF($C$5=Dates1!$B$6, DataPack!$T19))))","v":0}]
[null,"     A4. Are learners able to make informed choices about their own health and well being?2",null,null,null,null,null,null,44,{"$f":"IF($C$5=Dates1!$B$3, DataPack!$B20, IF($C$5=Dates1!$B$4, DataPack!$G20, IF($C$5=Dates1!$B$5, DataPack!$L20, IF($C$5=Dates1!$B$6, DataPack!$Q20))))","v":5},null,{"$f":"IF($C$5=Dates1!$B$3, DataPack!$C20, IF($C$5=Dates1!$B$4, DataPack!$H20, IF($C$5=Dates1!$B$5, DataPack!$M20, IF($C$5=Dates1!$B$6, DataPack!$R20))))","v":24},null,{"$f":"IF($C$5=Dates1!$B$3, DataPack!$D20, IF($C$5=Dates1!$B$4, DataPack!$I20, IF($C$5=Dates1!$B$5, DataPack!$N20, IF($C$5=Dates1!$B$6, DataPack!$S20))))","v":15},null,{"$f":"IF($C$5=Dates1!$B$3, DataPack!$E20, IF($C$5=Dates1!$B$4, DataPack!$J20, IF($C$5=Dates1!$B$5, DataPack!$O20, IF($C$5=Dates1!$B$6, DataPack!$T20))))","v":0}]
[null,"     A5. How well do learners make a positive contribution to the community?2",null,null,null,null,null,null,44,{"$f":"IF($C$5=Dates1!$B$3, DataPack!$B21, IF($C$5=Dates1!$B$4, DataPack!$G21, IF($C$5=Dates1!$B$5, DataPack!$L21, IF($C$5=Dates1!$B$6, DataPack!$Q21))))","v":7},null,{"$f":"IF($C$5=Dates1!$B$3, DataPack!$C21, IF($C$5=Dates1!$B$4, DataPack!$H21, IF($C$5=Dates1!$B$5, DataPack!$M21, IF($C$5=Dates1!$B$6, DataPack!$R21))))","v":25},null,{"$f":"IF($C$5=Dates1!$B$3, DataPack!$D21, IF($C$5=Dates1!$B$4, DataPack!$I21, IF($C$5=Dates1!$B$5, DataPack!$N21, IF($C$5=Dates1!$B$6, DataPack!$S21))))","v":10},null,{"$f":"IF($C$5=Dates1!$B$3, DataPack!$E21, IF($C$5=Dates1!$B$4, DataPack!$J21, IF($C$5=Dates1!$B$5, DataPack!$O21, IF($C$5=Dates1!$B$6, DataPack!$T21))))","v":2}]
[null,"B. Quality of provision",null,null,null,null,null,null,81,{"$f":"IF($C$5=Dates1!$B$3, DataPack!$B22, IF($C$5=Dates1!$B$4, DataPack!$G22, IF($C$5=Dates1!$B$5, DataPack!$L22, IF($C$5=Dates1!$B$6, DataPack!$Q22))))","v":4},null,{"$f":"IF($C$5=Dates1!$B$3, DataPack!$C22, IF($C$5=Dates1!$B$4, DataPack!$H22, IF($C$5=Dates1!$B$5, DataPack!$M22, IF($C$5=Dates1!$B$6, DataPack!$R22))))","v":46},null,{"$f":"IF($C$5=Dates1!$B$3, DataPack!$D22, IF($C$5=Dates1!$B$4, DataPack!$I22, IF($C$5=Dates1!$B$5, DataPack!$N22, IF($C$5=Dates1!$B$6, DataPack!$S22))))","v":28},null,{"$f":"IF($C$5=Dates1!$B$3, DataPack!$E22, IF($C$5=Dates1!$B$4, DataPack!$J22, IF($C$5=Dates1!$B$5, DataPack!$O22, IF($C$5=Dates1!$B$6, DataPack!$T22))))","v":3}]
[null,"     B1. How effectively do teaching, training and assessment support learning and \n     development?",null,null,null,null,null,null,81,{"$f":"IF($C$5=Dates1!$B$3, DataPack!$B23, IF($C$5=Dates1!$B$4, DataPack!$G23, IF($C$5=Dates1!$B$5, DataPack!$L23, IF($C$5=Dates1!$B$6, DataPack!$Q23))))","v":2},null,{"$f":"IF($C$5=Dates1!$B$3, DataPack!$C23, IF($C$5=Dates1!$B$4, DataPack!$H23, IF($C$5=Dates1!$B$5, DataPack!$M23, IF($C$5=Dates1!$B$6, DataPack!$R23))))","v":45},null,{"$f":"IF($C$5=Dates1!$B$3, DataPack!$D23, IF($C$5=Dates1!$B$4, DataPack!$I23, IF($C$5=Dates1!$B$5, DataPack!$N23, IF($C$5=Dates1!$B$6, DataPack!$S23))))","v":31},null,{"$f":"IF($C$5=Dates1!$B$3, DataPack!$E23, IF($C$5=Dates1!$B$4, DataPack!$J23, IF($C$5=Dates1!$B$5, DataPack!$O23, IF($C$5=Dates1!$B$6, DataPack!$T23))))","v":3}]
[null,"     B2. How effectively does the provision meet the needs and interests of users?",null,null,null,null,null,null,81,{"$f":"IF($C$5=Dates1!$B$3, DataPack!$B24, IF($C$5=Dates1!$B$4, DataPack!$G24, IF($C$5=Dates1!$B$5, DataPack!$L24, IF($C$5=Dates1!$B$6, DataPack!$Q24))))","v":8},null,{"$f":"IF($C$5=Dates1!$B$3, DataPack!$C24, IF($C$5=Dates1!$B$4, DataPack!$H24, IF($C$5=Dates1!$B$5, DataPack!$M24, IF($C$5=Dates1!$B$6, DataPack!$R24))))","v":50},null,{"$f":"IF($C$5=Dates1!$B$3, DataPack!$D24, IF($C$5=Dates1!$B$4, DataPack!$I24, IF($C$5=Dates1!$B$5, DataPack!$N24, IF($C$5=Dates1!$B$6, DataPack!$S24))))","v":23},null,{"$f":"IF($C$5=Dates1!$B$3, DataPack!$E24, IF($C$5=Dates1!$B$4, DataPack!$J24, IF($C$5=Dates1!$B$5, DataPack!$O24, IF($C$5=Dates1!$B$6, DataPack!$T24))))","v":0}]
[null,"     B3. How well do partnerships with schools, employers, community groups and others \n     lead to benefits for learners?",null,null,null,null,null,null,81,{"$f":"IF($C$5=Dates1!$B$3, DataPack!$B25, IF($C$5=Dates1!$B$4, DataPack!$G25, IF($C$5=Dates1!$B$5, DataPack!$L25, IF($C$5=Dates1!$B$6, DataPack!$Q25))))","v":16},null,{"$f":"IF($C$5=Dates1!$B$3, DataPack!$C25, IF($C$5=Dates1!$B$4, DataPack!$H25, IF($C$5=Dates1!$B$5, DataPack!$M25, IF($C$5=Dates1!$B$6, DataPack!$R25))))","v":46},null,{"$f":"IF($C$5=Dates1!$B$3, DataPack!$D25, IF($C$5=Dates1!$B$4, DataPack!$I25, IF($C$5=Dates1!$B$5, DataPack!$N25, IF($C$5=Dates1!$B$6, DataPack!$S25))))","v":19},null,{"$f":"IF($C$5=Dates1!$B$3, DataPack!$E25, IF($C$5=Dates1!$B$4, DataPack!$J25, IF($C$5=Dates1!$B$5, DataPack!$O25, IF($C$5=Dates1!$B$6, DataPack!$T25))))","v":0}]
[null,"     B4. How effective are the care, guidance and support learners receive in helping them \n     to achieve?",null,null,null,null,null,null,81,{"$f":"IF($C$5=Dates1!$B$3, DataPack!$B26, IF($C$5=Dates1!$B$4, DataPack!$G26, IF($C$5=Dates1!$B$5, DataPack!$L26, IF($C$5=Dates1!$B$6, DataPack!$Q26))))","v":8},null,{"$f":"IF($C$5=Dates1!$B$3, DataPack!$C26, IF($C$5=Dates1!$B$4, DataPack!$H26, IF($C$5=Dates1!$B$5, DataPack!$M26, IF($C$5=Dates1!$B$6, DataPack!$R26))))","v":45},null,{"$f":"IF($C$5=Dates1!$B$3, DataPack!$D26, IF($C$5=Dates1!$B$4, DataPack!$I26, IF($C$5=Dates1!$B$5, DataPack!$N26, IF($C$5=Dates1!$B$6, DataPack!$S26))))","v":25},null,{"$f":"IF($C$5=Dates1!$B$3, DataPack!$E26, IF($C$5=Dates1!$B$4, DataPack!$J26, IF($C$5=Dates1!$B$5, DataPack!$O26, IF($C$5=Dates1!$B$6, DataPack!$T26))))","v":3}]
[null,"C. Leadership and management",null,null,null,null,null,null,81,{"$f":"IF($C$5=Dates1!$B$3, DataPack!$B27, IF($C$5=Dates1!$B$4, DataPack!$G27, IF($C$5=Dates1!$B$5, DataPack!$L27, IF($C$5=Dates1!$B$6, DataPack!$Q27))))","v":3},null,{"$f":"IF($C$5=Dates1!$B$3, DataPack!$C27, IF($C$5=Dates1!$B$4, DataPack!$H27, IF($C$5=Dates1!$B$5, DataPack!$M27, IF($C$5=Dates1!$B$6, DataPack!$R27))))","v":41},null,{"$f":"IF($C$5=Dates1!$B$3, DataPack!$D27, IF($C$5=Dates1!$B$4, DataPack!$I27, IF($C$5=Dates1!$B$5, DataPack!$N27, IF($C$5=Dates1!$B$6, DataPack!$S27))))","v":29},null,{"$f":"IF($C$5=Dates1!$B$3, DataPack!$E27, IF($C$5=Dates1!$B$4, DataPack!$J27, IF($C$5=Dates1!$B$5, DataPack!$O27, IF($C$5=Dates1!$B$6, DataPack!$T27))))","v":8}]
[null,"     C1. How effectively do leaders and managers raise expectations and promote ambition \n     throughout the organisation?",null,null,null,null,null,null,81,{"$f":"IF($C$5=Dates1!$B$3, DataPack!$B28, IF($C$5=Dates1!$B$4, DataPack!$G28, IF($C$5=Dates1!$B$5, DataPack!$L28, IF($C$5=Dates1!$B$6, DataPack!$Q28))))","v":10},null,{"$f":"IF($C$5=Dates1!$B$3, DataPack!$C28, IF($C$5=Dates1!$B$4, DataPack!$H28, IF($C$5=Dates1!$B$5, DataPack!$M28, IF($C$5=Dates1!$B$6, DataPack!$R28))))","v":44},null,{"$f":"IF($C$5=Dates1!$B$3, DataPack!$D28, IF($C$5=Dates1!$B$4, DataPack!$I28, IF($C$5=Dates1!$B$5, DataPack!$N28, IF($C$5=Dates1!$B$6, DataPack!$S28))))","v":19},null,{"$f":"IF($C$5=Dates1!$B$3, DataPack!$E28, IF($C$5=Dates1!$B$4, DataPack!$J28, IF($C$5=Dates1!$B$5, DataPack!$O28, IF($C$5=Dates1!$B$6, DataPack!$T28))))","v":8}]
[null,"     C2. How effectively do governors and supervisory bodies provide leadership, direction \n     and challenge?2",null,null,null,null,null,null,47,{"$f":"IF($C$5=Dates1!$B$3, DataPack!$B29, IF($C$5=Dates1!$B$4, DataPack!$G29, IF($C$5=Dates1!$B$5, DataPack!$L29, IF($C$5=Dates1!$B$6, DataPack!$Q29))))","v":7},null,{"$f":"IF($C$5=Dates1!$B$3, DataPack!$C29, IF($C$5=Dates1!$B$4, DataPack!$H29, IF($C$5=Dates1!$B$5, DataPack!$M29, IF($C$5=Dates1!$B$6, DataPack!$R29))))","v":22},null,{"$f":"IF($C$5=Dates1!$B$3, DataPack!$D29, IF($C$5=Dates1!$B$4, DataPack!$I29, IF($C$5=Dates1!$B$5, DataPack!$N29, IF($C$5=Dates1!$B$6, DataPack!$S29))))","v":13},null,{"$f":"IF($C$5=Dates1!$B$3, DataPack!$E29, IF($C$5=Dates1!$B$4, DataPack!$J29, IF($C$5=Dates1!$B$5, DataPack!$O29, IF($C$5=Dates1!$B$6, DataPack!$T29))))","v":5}]
[null,"    C3. How effectively does the provider promote the safeguarding of learners?",null,null,null,null,null,null,81,{"$f":"IF($C$5=Dates1!$B$3, DataPack!$B30, IF($C$5=Dates1!$B$4, DataPack!$G30, IF($C$5=Dates1!$B$5, DataPack!$L30, IF($C$5=Dates1!$B$6, DataPack!$Q30))))","v":9},null,{"$f":"IF($C$5=Dates1!$B$3, DataPack!$C30, IF($C$5=Dates1!$B$4, DataPack!$H30, IF($C$5=Dates1!$B$5, DataPack!$M30, IF($C$5=Dates1!$B$6, DataPack!$R30))))","v":47},null,{"$f":"IF($C$5=Dates1!$B$3, DataPack!$D30, IF($C$5=Dates1!$B$4, DataPack!$I30, IF($C$5=Dates1!$B$5, DataPack!$N30, IF($C$5=Dates1!$B$6, DataPack!$S30))))","v":23},null,{"$f":"IF($C$5=Dates1!$B$3, DataPack!$E30, IF($C$5=Dates1!$B$4, DataPack!$J30, IF($C$5=Dates1!$B$5, DataPack!$O30, IF($C$5=Dates1!$B$6, DataPack!$T30))))","v":2}]
[null,"C4. How effectively does the provider actively promote equality and diversity,\ntackle discrimination and narrow the achievement gap?",null,null,null,null,null,null,81,{"$f":"IF($C$5=Dates1!$B$3, DataPack!$B31, IF($C$5=Dates1!$B$4, DataPack!$G31, IF($C$5=Dates1!$B$5, DataPack!$L31, IF($C$5=Dates1!$B$6, DataPack!$Q31))))","v":2},null,{"$f":"IF($C$5=Dates1!$B$3, DataPack!$C31, IF($C$5=Dates1!$B$4, DataPack!$H31, IF($C$5=Dates1!$B$5, DataPack!$M31, IF($C$5=Dates1!$B$6, DataPack!$R31))))","v":36},null,{"$f":"IF($C$5=Dates1!$B$3, DataPack!$D31, IF($C$5=Dates1!$B$4, DataPack!$I31, IF($C$5=Dates1!$B$5, DataPack!$N31, IF($C$5=Dates1!$B$6, DataPack!$S31))))","v":40},null,{"$f":"IF($C$5=Dates1!$B$3, DataPack!$E31, IF($C$5=Dates1!$B$4, DataPack!$J31, IF($C$5=Dates1!$B$5, DataPack!$O31, IF($C$5=Dates1!$B$6, DataPack!$T31))))","v":3}]
[null,"     C5. How effectively does the provider engage with users to support and promote \n     improvement?",null,null,null,null,null,null,81,{"$f":"IF($C$5=Dates1!$B$3, DataPack!$B32, IF($C$5=Dates1!$B$4, DataPack!$G32, IF($C$5=Dates1!$B$5, DataPack!$L32, IF($C$5=Dates1!$B$6, DataPack!$Q32))))","v":8},null,{"$f":"IF($C$5=Dates1!$B$3, DataPack!$C32, IF($C$5=Dates1!$B$4, DataPack!$H32, IF($C$5=Dates1!$B$5, DataPack!$M32, IF($C$5=Dates1!$B$6, DataPack!$R32))))","v":37},null,{"$f":"IF($C$5=Dates1!$B$3, DataPack!$D32, IF($C$5=Dates1!$B$4, DataPack!$I32, IF($C$5=Dates1!$B$5, DataPack!$N32, IF($C$5=Dates1!$B$6, DataPack!$S32))))","v":34},null,{"$f":"IF($C$5=Dates1!$B$3, DataPack!$E32, IF($C$5=Dates1!$B$4, DataPack!$J32, IF($C$5=Dates1!$B$5, DataPack!$O32, IF($C$5=Dates1!$B$6, DataPack!$T32))))","v":2}]
[null,"     C6. How effectively does self-assessment improve the quality of the provision and \n     outcomes for learners?",null,null,null,null,null,null,81,{"$f":"IF($C$5=Dates1!$B$3, DataPack!$B33, IF($C$5=Dates1!$B$4, DataPack!$G33, IF($C$5=Dates1!$B$5, DataPack!$L33, IF($C$5=Dates1!$B$6, DataPack!$Q33))))","v":2},null,{"$f":"IF($C$5=Dates1!$B$3, DataPack!$C33, IF($C$5=Dates1!$B$4, DataPack!$H33, IF($C$5=Dates1!$B$5, DataPack!$M33, IF($C$5=Dates1!$B$6, DataPack!$R33))))","v":34},null,{"$f":"IF($C$5=Dates1!$B$3, DataPack!$D33, IF($C$5=Dates1!$B$4, DataPack!$I33, IF($C$5=Dates1!$B$5, DataPack!$N33, IF($C$5=Dates1!$B$6, DataPack!$S33))))","v":33},null,{"$f":"IF($C$5=Dates1!$B$3, DataPack!$E33, IF($C$5=Dates1!$B$4, DataPack!$J33, IF($C$5=Dates1!$B$5, DataPack!$O33, IF($C$5=Dates1!$B$6, DataPack!$T33))))","v":12}]
[null,"     C7. How efficiently and effectively does the provider use its available resources to \n     secure value for money?",null,null,null,null,null,null,81,{"$f":"IF($C$5=Dates1!$B$3, DataPack!$B34, IF($C$5=Dates1!$B$4, DataPack!$G34, IF($C$5=Dates1!$B$5, DataPack!$L34, IF($C$5=Dates1!$B$6, DataPack!$Q34))))","v":4},null,{"$f":"IF($C$5=Dates1!$B$3, DataPack!$C34, IF($C$5=Dates1!$B$4, DataPack!$H34, IF($C$5=Dates1!$B$5, DataPack!$M34, IF($C$5=Dates1!$B$6, DataPack!$R34))))","v":42},null,{"$f":"IF($C$5=Dates1!$B$3, DataPack!$D34, IF($C$5=Dates1!$B$4, DataPack!$I34, IF($C$5=Dates1!$B$5, DataPack!$N34, IF($C$5=Dates1!$B$6, DataPack!$S34))))","v":29},null,{"$f":"IF($C$5=Dates1!$B$3, DataPack!$E34, IF($C$5=Dates1!$B$4, DataPack!$J34, IF($C$5=Dates1!$B$5, DataPack!$O34, IF($C$5=Dates1!$B$6, DataPack!$T34))))","v":6}]
[null,null,null,null,null,null,null,null,null,null,null,null,"Source: Ofsted inspections"]
[null,"1. Does not include inspections of the Dance and Drama Awards scheme or further education in higher education institute inspections."]
[null,"2. Where applicable to the type of provision."]

{"sheet":"Table 2a","index":6,"n_rows":33,"n_cols":16,"rows_kept":33,"cut":false,"hidden":false,"merged":[[30,12,30,16],[15,1,15,6],[8,1,8,6],[9,1,9,6],[10,1,10,6],[11,1,11,6],[16,1,16,6],[17,1,17,6],[18,1,18,6],[19,1,19,6],[12,1,12,6],[13,1,13,6],[14,1,14,6],[4,13,4,14],[4,15,4,16],[4,9,4,10],[4,11,4,12],[7,1,7,6],[4,2,4,6],[4,8,5,8],[20,1,20,6],[21,1,21,6],[22,1,22,6],[23,1,23,6],[28,1,28,6],[29,1,29,6],[24,1,24,6],[25,1,25,6],[26,1,26,6],[27,1,27,6]]}
[]
[null,{"$f":"\"Table 2a: Inspection outcomes of colleges inspected \"&IF('Table 2a'!$C$5=Dates1!$B$3,\"between \"&Dates1!$B$3,IF('Table 2a'!$C$5=Dates1!B4,\"in \"&Dates1!B4,IF('Table 2a'!$C$5=Dates1!B5,\"in \"&Dates1!B5,IF('Table 2a'!$C$5=Dates1!B6,\"in \"&Dates1!B6,IF('Table 2a'!$C$5=Dates1!B7,\"in \"&Dates1!B7)))))&\" (provisional)\"&CHAR(185)","v":"Table 2a: Inspection outcomes of colleges inspected between 1 October and 31 December 2011 (provisional)¹"}]
[]
[]
[null,"Select period:","1 October and 31 December 2011",null,null,null,null,null,"Total number inspected","Outstanding",null,"Good",null,"Satisfactory",null,"Inadequate"]
[null,null,null,null,null,null,null,null,"Number","Number",null,"Number",null,"Number",null,"Number"]
[]
[null,"Overall effectiveness",null,null,null,null,null,null,{"$f":"J8+L8+N8+P8","v":23},{"$f":"IF($C$5=Dates1!$B$3, DataPack!$B38, IF($C$5=Dates1!$B$4, DataPack!$G38, IF($C$5=Dates1!$B$5, DataPack!$L38, IF($C$5=Dates1!$B$6, DataPack!$Q38))))","v":1},null,{"$f":"IF($C$5=Dates1!$B$3, DataPack!$C38, IF($C$5=Dates1!$B$4, DataPack!$H38, IF($C$5=Dates1!$B$5, DataPack!$M38, IF($C$5=Dates1!$B$6, DataPack!$R38))))","v":8},null,{"$f":"IF($C$5=Dates1!$B$3, DataPack!$D38, IF($C$5=Dates1!$B$4, DataPack!$I38, IF($C$5=Dates1!$B$5, DataPack!$N38, IF($C$5=Dates1!$B$6, DataPack!$S38))))","v":9},null,{"$f":"IF($C$5=Dates1!$B$3, DataPack!$E38, IF($C$5=Dates1!$B$4, DataPack!$J38, IF($C$5=Dates1!$B$5, DataPack!$O38, IF($C$5=Dates1!$B$6, DataPack!$T38))))","v":5}]
[null,"Capacity to improve",null,null,null,null,null,null,23,{"$f":"IF($C$5=Dates1!$B$3, DataPack!$B39, IF($C$5=Dates1!$B$4, DataPack!$G39, IF($C$5=Dates1!$B$5, DataPack!$L39, IF($C$5=Dates1!$B$6, DataPack!$Q39))))","v":1},null,{"$f":"IF($C$5=Dates1!$B$3, DataPack!$C39, IF($C$5=Dates1!$B$4, DataPack!$H39, IF($C$5=Dates1!$B$5, DataPack!$M39, IF($C$5=Dates1!$B$6, DataPack!$R39))))","v":9},null,{"$f":"IF($C$5=Dates1!$B$3, DataPack!$D39, IF($C$5=Dates1!$B$4, DataPack!$I39, IF($C$5=Dates1!$B$5, DataPack!$N39, IF($C$5=Dates1!$B$6, DataPack!$S39))))","v":9},null,{"$f":"IF($C$5=Dates1!$B$3, DataPack!$E39, IF($C$5=Dates1!$B$4, DataPack!$J39, IF($C$5=Dates1!$B$5, DataPack!$O39, IF($C$5=Dates1!$B$6, DataPack!$T39))))","v":4}]
[null,"A. Outcomes for learners",null,null,null,null,null,null,23,{"$f":"IF($C$5=Dates1!$B$3, DataPack!$B40, IF($C$5=Dates1!$B$4, DataPack!$G40, IF($C$5=Dates1!$B$5, DataPack!$L40, IF($C$5=Dates1!$B$6, DataPack!$Q40))))","v":1},null,{"$f":"IF($C$5=Dates1!$B$3, DataPack!$C40, IF($C$5=Dates1!$B$4, DataPack!$H40, IF($C$5=Dates1!$B$5, DataPack!$M40, IF($C$5=Dates1!$B$6, DataPack!$R40))))","v":7},null,{"$f":"IF($C$5=Dates1!$B$3, DataPack!$D40, IF($C$5=Dates1!$B$4, DataPack!$I40, IF($C$5=Dates1!$B$5, DataPack!$N40, IF($C$5=Dates1!$B$6, DataPack!$S40))))","v":11},null,{"$f":"IF($C$5=Dates1!$B$3, DataPack!$E40, IF($C$5=Dates1!$B$4, DataPack!$J40, IF($C$5=Dates1!$B$5, DataPack!$O40, IF($C$5=Dates1!$B$6, DataPack!$T40))))","v":4}]
[null,"     A1. How well do learners achieve and enjoy their learning",null,null,null,null,null,null,23,{"$f":"IF($C$5=Dates1!$B$3, DataPack!$B41, IF($C$5=Dates1!$B$4, DataPack!$G41, IF($C$5=Dates1!$B$5, DataPack!$L41, IF($C$5=Dates1!$B$6, DataPack!$Q41))))","v":1},null,{"$f":"IF($C$5=Dates1!$B$3, DataPack!$C41, IF($C$5=Dates1!$B$4, DataPack!$H41, IF($C$5=Dates1!$B$5, DataPack!$M41, IF($C$5=Dates1!$B$6, DataPack!$R41))))","v":7},null,{"$f":"IF($C$5=Dates1!$B$3, DataPack!$D41, IF($C$5=Dates1!$B$4, DataPack!$I41, IF($C$5=Dates1!$B$5, DataPack!$N41, IF($C$5=Dates1!$B$6, DataPack!$S41))))","v":11},null,{"$f":"IF($C$5=Dates1!$B$3, DataPack!$E41, IF($C$5=Dates1!$B$4, DataPack!$J41, IF($C$5=Dates1!$B$5, DataPack!$O41, IF($C$5=Dates1!$B$6, DataPack!$T41))))","v":4}]
[null,"          A1.a) How well do learners attain their learning goals",null,null,null,null,null,null,23,{"$f":"IF($C$5=Dates1!$B$3, DataPack!$B42, IF($C$5=Dates1!$B$4, DataPack!$G42, IF($C$5=Dates1!$B$5, DataPack!$L42, IF($C$5=Dates1!$B$6, DataPack!$Q42))))","v":1},null,{"$f":"IF($C$5=Dates1!$B$3, DataPack!$C42, IF($C$5=Dates1!$B$4, DataPack!$H42, IF($C$5=Dates1!$B$5, DataPack!$M42, IF($C$5=Dates1!$B$6, DataPack!$R42))))","v":6},null,{"$f":"IF($C$5=Dates1!$B$3, DataPack!$D42, IF($C$5=Dates1!$B$4, DataPack!$I42, IF($C$5=Dates1!$B$5, DataPack!$N42, IF($C$5=Dates1!$B$6, DataPack!$S42))))","v":10},null,{"$f":"IF($C$5=Dates1!$B$3, DataPack!$E42, IF($C$5=Dates1!$B$4, DataPack!$J42, IF($C$5=Dates1!$B$5, DataPack!$O42, IF($C$5=Dates1!$B$6, DataPack!$T42))))","v":6}]
[null,"          A1.b) How well do learners progress?",null,null,null,null,null,null,23,{"$f":"IF($C$5=Dates1!$B$3, DataPack!$B43, IF($C$5=Dates1!$B$4, DataPack!$G43, IF($C$5=Dates1!$B$5, DataPack!$L43, IF($C$5=Dates1!$B$6, DataPack!$Q43))))","v":0},null,{"$f":"IF($C$5=Dates1!$B$3, DataPack!$C43, IF($C$5=Dates1!$B$4, DataPack!$H43, IF($C$5=Dates1!$B$5, DataPack!$M43, IF($C$5=Dates1!$B$6, DataPack!$R43))))","v":8},null,{"$f":"IF($C$5=Dates1!$B$3, DataPack!$D43, IF($C$5=Dates1!$B$4, DataPack!$I43, IF($C$5=Dates1!$B$5, DataPack!$N43, IF($C$5=Dates1!$B$6, DataPack!$S43))))","v":12},null,{"$f":"IF($C$5=Dates1!$B$3, DataPack!$E43, IF($C$5=Dates1!$B$4, DataPack!$J43, IF($C$5=Dates1!$B$5, DataPack!$O43, IF($C$5=Dates1!$B$6, DataPack!$T43))))","v":3}]
[null,"     A2. How well do learners improve their economic and social well-being through learning \n     and development?",null,null,null,null,null,null,23,{"$f":"IF($C$5=Dates1!$B$3, DataPack!$B44, IF($C$5=Dates1!$B$4, DataPack!$G44, IF($C$5=Dates1!$B$5, DataPack!$L44, IF($C$5=Dates1!$B$6, DataPack!$Q44))))","v":2},null,{"$f":"IF($C$5=Dates1!$B$3, DataPack!$C44, IF($C$5=Dates1!$B$4, DataPack!$H44, IF($C$5=Dates1!$B$5, DataPack!$M44, IF($C$5=Dates1!$B$6, DataPack!$R44))))","v":10},null,{"$f":"IF($C$5=Dates1!$B$3, DataPack!$D44, IF($C$5=Dates1!$B$4, DataPack!$I44, IF($C$5=Dates1!$B$5, DataPack!$N44, IF($C$5=Dates1!$B$6, DataPack!$S44))))","v":9},null,{"$f":"IF($C$5=Dates1!$B$3, DataPack!$E44, IF($C$5=Dates1!$B$4, DataPack!$J44, IF($C$5=Dates1!$B$5, DataPack!$O44, IF($C$5=Dates1!$B$6, DataPack!$T44))))","v":2}]
[null,"     A3. How safe do learners feel?",null,null,null,null,null,null,23,{"$f":"IF($C$5=Dates1!$B$3, DataPack!$B45, IF($C$5=Dates1!$B$4, DataPack!$G45, IF($C$5=Dates1!$B$5, DataPack!$L45, IF($C$5=Dates1!$B$6, DataPack!$Q45))))","v":6},null,{"$f":"IF($C$5=Dates1!$B$3, DataPack!$C45, IF($C$5=Dates1!$B$4, DataPack!$H45, IF($C$5=Dates1!$B$5, DataPack!$M45, IF($C$5=Dates1!$B$6, DataPack!$R45))))","v":15},null,{"$f":"IF($C$5=Dates1!$B$3, DataPack!$D45, IF($C$5=Dates1!$B$4, DataPack!$I45, IF($C$5=Dates1!$B$5, DataPack!$N45, IF($C$5=Dates1!$B$6, DataPack!$S45))))","v":2},null,{"$f":"IF($C$5=Dates1!$B$3, DataPack!$E45, IF($C$5=Dates1!$B$4, DataPack!$J45, IF($C$5=Dates1!$B$5, DataPack!$O45, IF($C$5=Dates1!$B$6, DataPack!$T45))))","v":0}]
[null,"     A4. Are learners able to make informed choices about their own health and well being?2",null,null,null,null,null,null,23,{"$f":"IF($C$5=Dates1!$B$3, DataPack!$B46, IF($C$5=Dates1!$B$4, DataPack!$G46, IF($C$5=Dates1!$B$5, DataPack!$L46, IF($C$5=Dates1!$B$6, DataPack!$Q46))))","v":4},null,{"$f":"IF($C$5=Dates1!$B$3, DataPack!$C46, IF($C$5=Dates1!$B$4, DataPack!$H46, IF($C$5=Dates1!$B$5, DataPack!$M46, IF($C$5=Dates1!$B$6, DataPack!$R46))))","v":12},null,{"$f":"IF($C$5=Dates1!$B$3, DataPack!$D46, IF($C$5=Dates1!$B$4, DataPack!$I46, IF($C$5=Dates1!$B$5, DataPack!$N46, IF($C$5=Dates1!$B$6, DataPack!$S46))))","v":7},null,{"$f":"IF($C$5=Dates1!$B$3, DataPack!$E46, IF($C$5=Dates1!$B$4, DataPack!$J46, IF($C$5=Dates1!$B$5, DataPack!$O46, IF($C$5=Dates1!$B$6, DataPack!$T46))))","v":0}]
[null,"     A5. How well do learners make a positive contribution to the community?2",null,null,null,null,null,null,23,{"$f":"IF($C$5=Dates1!$B$3, DataPack!$B47, IF($C$5=Dates1!$B$4, DataPack!$G47, IF($C$5=Dates1!$B$5, DataPack!$L47, IF($C$5=Dates1!$B$6, DataPack!$Q47))))","v":4},null,{"$f":"IF($C$5=Dates1!$B$3, DataPack!$C47, IF($C$5=Dates1!$B$4, DataPack!$H47, IF($C$5=Dates1!$B$5, DataPack!$M47, IF($C$5=Dates1!$B$6, DataPack!$R47))))","v":14},null,{"$f":"IF($C$5=Dates1!$B$3, DataPack!$D47, IF($C$5=Dates1!$B$4, DataPack!$I47, IF($C$5=Dates1!$B$5, DataPack!$N47, IF($C$5=Dates1!$B$6, DataPack!$S47))))","v":4},null,{"$f":"IF($C$5=Dates1!$B$3, DataPack!$E47, IF($C$5=Dates1!$B$4, DataPack!$J47, IF($C$5=Dates1!$B$5, DataPack!$O47, IF($C$5=Dates1!$B$6, DataPack!$T47))))","v":1}]
[null,"B. Quality of provision",null,null,null,null,null,null,23,{"$f":"IF($C$5=Dates1!$B$3, DataPack!$B48, IF($C$5=Dates1!$B$4, DataPack!$G48, IF($C$5=Dates1!$B$5, DataPack!$L48, IF($C$5=Dates1!$B$6, DataPack!$Q48))))","v":1},null,{"$f":"IF($C$5=Dates1!$B$3, DataPack!$C48, IF($C$5=Dates1!$B$4, DataPack!$H48, IF($C$5=Dates1!$B$5, DataPack!$M48, IF($C$5=Dates1!$B$6, DataPack!$R48))))","v":9},null,{"$f":"IF($C$5=Dates1!$B$3, DataPack!$D48, IF($C$5=Dates1!$B$4, DataPack!$I48, IF($C$5=Dates1!$B$5, DataPack!$N48, IF($C$5=Dates1!$B$6, DataPack!$S48))))","v":10},null,{"$f":"IF($C$5=Dates1!$B$3, DataPack!$E48, IF($C$5=Dates1!$B$4, DataPack!$J48, IF($C$5=Dates1!$B$5, DataPack!$O48, IF($C$5=Dates1!$B$6, DataPack!$T48))))","v":3}]
[null,"     B1. How effectively do teaching, training and assessment support learning and \n     development?",null,null,null,null,null,null,23,{"$f":"IF($C$5=Dates1!$B$3, DataPack!$B49, IF($C$5=Dates1!$B$4, DataPack!$G49, IF($C$5=Dates1!$B$5, DataPack!$L49, IF($C$5=Dates1!$B$6, DataPack!$Q49))))","v":0},null,{"$f":"IF($C$5=Dates1!$B$3, DataPack!$C49, IF($C$5=Dates1!$B$4, DataPack!$H49, IF($C$5=Dates1!$B$5, DataPack!$M49, IF($C$5=Dates1!$B$6, DataPack!$R49))))","v":11},null,{"$f":"IF($C$5=Dates1!$B$3, DataPack!$D49, IF($C$5=Dates1!$B$4, DataPack!$I49, IF($C$5=Dates1!$B$5, DataPack!$N49, IF($C$5=Dates1!$B$6, DataPack!$S49))))","v":9},null,{"$f":"IF($C$5=Dates1!$B$3, DataPack!$E49, IF($C$5=Dates1!$B$4, DataPack!$J49, IF($C$5=Dates1!$B$5, DataPack!$O49, IF($C$5=Dates1!$B$6, DataPack!$T49))))","v":3}]
[null,"     B2. How effectively does the provision meet the needs and interests of users?",null,null,null,null,null,null,23,{"$f":"IF($C$5=Dates1!$B$3, DataPack!$B50, IF($C$5=Dates1!$B$4, DataPack!$G50, IF($C$5=Dates1!$B$5, DataPack!$L50, IF($C$5=Dates1!$B$6, DataPack!$Q50))))","v":2},null,{"$f":"IF($C$5=Dates1!$B$3, DataPack!$C50, IF($C$5=Dates1!$B$4, DataPack!$H50, IF($C$5=Dates1!$B$5, DataPack!$M50, IF($C$5=Dates1!$B$6, DataPack!$R50))))","v":12},null,{"$f":"IF($C$5=Dates1!$B$3, DataPack!$D50, IF($C$5=Dates1!$B$4, DataPack!$I50, IF($C$5=Dates1!$B$5, DataPack!$N50, IF($C$5=Dates1!$B$6, DataPack!$S50))))","v":9},null,{"$f":"IF($C$5=Dates1!$B$3, DataPack!$E50, IF($C$5=Dates1!$B$4, DataPack!$J50, IF($C$5=Dates1!$B$5, DataPack!$O50, IF($C$5=Dates1!$B$6, DataPack!$T50))))","v":0}]
[null,"     B3. How well do partnerships with schools, employers, community groups and others \n     lead to benefits for learners?",null,null,null,null,null,null,23,{"$f":"IF($C$5=Dates1!$B$3, DataPack!$B51, IF($C$5=Dates1!$B$4, DataPack!$G51, IF($C$5=Dates1!$B$5, DataPack!$L51, IF($C$5=Dates1!$B$6, DataPack!$Q51))))","v":7},null,{"$f":"IF($C$5=Dates1!$B$3, DataPack!$C51, IF($C$5=Dates1!$B$4, DataPack!$H51, IF($C$5=Dates1!$B$5, DataPack!$M51, IF($C$5=Dates1!$B$6, DataPack!$R51))))","v":10},null,{"$f":"IF($C$5=Dates1!$B$3, DataPack!$D51, IF($C$5=Dates1!$B$4, DataPack!$I51, IF($C$5=Dates1!$B$5, DataPack!$N51, IF($C$5=Dates1!$B$6, DataPack!$S51))))","v":6},null,{"$f":"IF($C$5=Dates1!$B$3, DataPack!$E51, IF($C$5=Dates1!$B$4, DataPack!$J51, IF($C$5=Dates1!$B$5, DataPack!$O51, IF($C$5=Dates1!$B$6, DataPack!$T51))))","v":0}]
[null,"     B4. How effective are the care, guidance and support learners receive in helping them \n     to achieve?",null,null,null,null,null,null,23,{"$f":"IF($C$5=Dates1!$B$3, DataPack!$B52, IF($C$5=Dates1!$B$4, DataPack!$G52, IF($C$5=Dates1!$B$5, DataPack!$L52, IF($C$5=Dates1!$B$6, DataPack!$Q52))))","v":3},null,{"$f":"IF($C$5=Dates1!$B$3, DataPack!$C52, IF($C$5=Dates1!$B$4, DataPack!$H52, IF($C$5=Dates1!$B$5, DataPack!$M52, IF($C$5=Dates1!$B$6, DataPack!$R52))))","v":7},null,{"$f":"IF($C$5=Dates1!$B$3, DataPack!$D52, IF($C$5=Dates1!$B$4, DataPack!$I52, IF($C$5=Dates1!$B$5, DataPack!$N52, IF($C$5=Dates1!$B$6, DataPack!$S52))))","v":11},null,{"$f":"IF($C$5=Dates1!$B$3, DataPack!$E52, IF($C$5=Dates1!$B$4, DataPack!$J52, IF($C$5=Dates1!$B$5, DataPack!$O52, IF($C$5=Dates1!$B$6, DataPack!$T52))))","v":2}]
[null,"C. Leadership and management",null,null,null,null,null,null,23,{"$f":"IF($C$5=Dates1!$B$3, DataPack!$B53, IF($C$5=Dates1!$B$4, DataPack!$G53, IF($C$5=Dates1!$B$5, DataPack!$L53, IF($C$5=Dates1!$B$6, DataPack!$Q53))))","v":1},null,{"$f":"IF($C$5=Dates1!$B$3, DataPack!$C53, IF($C$5=Dates1!$B$4, DataPack!$H53, IF($C$5=Dates1!$B$5, DataPack!$M53, IF($C$5=Dates1!$B$6, DataPack!$R53))))","v":9},null,{"$f":"IF($C$5=Dates1!$B$3, DataPack!$D53, IF($C$5=Dates1!$B$4, DataPack!$I53, IF($C$5=Dates1!$B$5, DataPack!$N53, IF($C$5=Dates1!$B$6, DataPack!$S53))))","v":8},null,{"$f":"IF($C$5=Dates1!$B$3, DataPack!$E53, IF($C$5=Dates1!$B$4, DataPack!$J53, IF($C$5=Dates1!$B$5, DataPack!$O53, IF($C$5=Dates1!$B$6, DataPack!$T53))))","v":5}]
[null,"     C1. How effectively do leaders and managers raise expectations and promote ambition \n     throughout the organisation?",null,null,null,null,null,null,23,{"$f":"IF($C$5=Dates1!$B$3, DataPack!$B54, IF($C$5=Dates1!$B$4, DataPack!$G54, IF($C$5=Dates1!$B$5, DataPack!$L54, IF($C$5=Dates1!$B$6, DataPack!$Q54))))","v":2},null,{"$f":"IF($C$5=Dates1!$B$3, DataPack!$C54, IF($C$5=Dates1!$B$4, DataPack!$H54, IF($C$5=Dates1!$B$5, DataPack!$M54, IF($C$5=Dates1!$B$6, DataPack!$R54))))","v":13},null,{"$f":"IF($C$5=Dates1!$B$3, DataPack!$D54, IF($C$5=Dates1!$B$4, DataPack!$I54, IF($C$5=Dates1!$B$5, DataPack!$N54, IF($C$5=Dates1!$B$6, DataPack!$S54))))","v":3},null,{"$f":"IF($C$5=Dates1!$B$3, DataPack!$E54, IF($C$5=Dates1!$B$4, DataPack!$J54, IF($C$5=Dates1!$B$5, DataPack!$O54, IF($C$5=Dates1!$B$6, DataPack!$T54))))","v":5}]
[null,"     C2. How effectively do governors and supervisory bodies provide leadership, direction \n     and challenge?2",null,null,null,null,null,null,23,{"$f":"IF($C$5=Dates1!$B$3, DataPack!$B55, IF($C$5=Dates1!$B$4, DataPack!$G55, IF($C$5=Dates1!$B$5, DataPack!$L55, IF($C$5=Dates1!$B$6, DataPack!$Q55))))","v":3},null,{"$f":"IF($C$5=Dates1!$B$3, DataPack!$C55, IF($C$5=Dates1!$B$4, DataPack!$H55, IF($C$5=Dates1!$B$5, DataPack!$M55, IF($C$5=Dates1!$B$6, DataPack!$R55))))","v":11},null,{"$f":"IF($C$5=Dates1!$B$3, DataPack!$D55, IF($C$5=Dates1!$B$4, DataPack!$I55, IF($C$5=Dates1!$B$5, DataPack!$N55, IF($C$5=Dates1!$B$6, DataPack!$S55))))","v":6},null,{"$f":"IF($C$5=Dates1!$B$3, DataPack!$E55, IF($C$5=Dates1!$B$4, DataPack!$J55, IF($C$5=Dates1!$B$5, DataPack!$O55, IF($C$5=Dates1!$B$6, DataPack!$T55))))","v":3}]
[null,"    C3. How effectively does the provider promote the safeguarding of learners?",null,null,null,null,null,null,23,{"$f":"IF($C$5=Dates1!$B$3, DataPack!$B56, IF($C$5=Dates1!$B$4, DataPack!$G56, IF($C$5=Dates1!$B$5, DataPack!$L56, IF($C$5=Dates1!$B$6, DataPack!$Q56))))","v":4},null,{"$f":"IF($C$5=Dates1!$B$3, DataPack!$C56, IF($C$5=Dates1!$B$4, DataPack!$H56, IF($C$5=Dates1!$B$5, DataPack!$M56, IF($C$5=Dates1!$B$6, DataPack!$R56))))","v":12},null,{"$f":"IF($C$5=Dates1!$B$3, DataPack!$D56, IF($C$5=Dates1!$B$4, DataPack!$I56, IF($C$5=Dates1!$B$5, DataPack!$N56, IF($C$5=Dates1!$B$6, DataPack!$S56))))","v":5},null,{"$f":"IF($C$5=Dates1!$B$3, DataPack!$E56, IF($C$5=Dates1!$B$4, DataPack!$J56, IF($C$5=Dates1!$B$5, DataPack!$O56, IF($C$5=Dates1!$B$6, DataPack!$T56))))","v":2}]
[null,"C4. How effectively does the provider actively promote equality and diversity,\ntackle discrimination and narrow the achievement gap?",null,null,null,null,null,null,23,{"$f":"IF($C$5=Dates1!$B$3, DataPack!$B57, IF($C$5=Dates1!$B$4, DataPack!$G57, IF($C$5=Dates1!$B$5, DataPack!$L57, IF($C$5=Dates1!$B$6, DataPack!$Q57))))","v":1},null,{"$f":"IF($C$5=Dates1!$B$3, DataPack!$C57, IF($C$5=Dates1!$B$4, DataPack!$H57, IF($C$5=Dates1!$B$5, DataPack!$M57, IF($C$5=Dates1!$B$6, DataPack!$R57))))","v":10},null,{"$f":"IF($C$5=Dates1!$B$3, DataPack!$D57, IF($C$5=Dates1!$B$4, DataPack!$I57, IF($C$5=Dates1!$B$5, DataPack!$N57, IF($C$5=Dates1!$B$6, DataPack!$S57))))","v":11},null,{"$f":"IF($C$5=Dates1!$B$3, DataPack!$E57, IF($C$5=Dates1!$B$4, DataPack!$J57, IF($C$5=Dates1!$B$5, DataPack!$O57, IF($C$5=Dates1!$B$6, DataPack!$T57))))","v":1}]
[null,"     C5. How effectively does the provider engage with users to support and promote \n     improvement?",null,null,null,null,null,null,23,{"$f":"IF($C$5=Dates1!$B$3, DataPack!$B58, IF($C$5=Dates1!$B$4, DataPack!$G58, IF($C$5=Dates1!$B$5, DataPack!$L58, IF($C$5=Dates1!$B$6, DataPack!$Q58))))","v":5},null,{"$f":"IF($C$5=Dates1!$B$3, DataPack!$C58, IF($C$5=Dates1!$B$4, DataPack!$H58, IF($C$5=Dates1!$B$5, DataPack!$M58, IF($C$5=Dates1!$B$6, DataPack!$R58))))","v":8},null,{"$f":"IF($C$5=Dates1!$B$3, DataPack!$D58, IF($C$5=Dates1!$B$4, DataPack!$I58, IF($C$5=Dates1!$B$5, DataPack!$N58, IF($C$5=Dates1!$B$6, DataPack!$S58))))","v":10},null,{"$f":"IF($C$5=Dates1!$B$3, DataPack!$E58, IF($C$5=Dates1!$B$4, DataPack!$J58, IF($C$5=Dates1!$B$5, DataPack!$O58, IF($C$5=Dates1!$B$6, DataPack!$T58))))","v":0}]
[null,"     C6. How effectively does self-assessment improve the quality of the provision and \n     outcomes for learners?",null,null,null,null,null,null,23,{"$f":"IF($C$5=Dates1!$B$3, DataPack!$B59, IF($C$5=Dates1!$B$4, DataPack!$G59, IF($C$5=Dates1!$B$5, DataPack!$L59, IF($C$5=Dates1!$B$6, DataPack!$Q59))))","v":0},null,{"$f":"IF($C$5=Dates1!$B$3, DataPack!$C59, IF($C$5=Dates1!$B$4, DataPack!$H59, IF($C$5=Dates1!$B$5, DataPack!$M59, IF($C$5=Dates1!$B$6, DataPack!$R59))))","v":8},null,{"$f":"IF($C$5=Dates1!$B$3, DataPack!$D59, IF($C$5=Dates1!$B$4, DataPack!$I59, IF($C$5=Dates1!$B$5, DataPack!$N59, IF($C$5=Dates1!$B$6, DataPack!$S59))))","v":10},null,{"$f":"IF($C$5=Dates1!$B$3, DataPack!$E59, IF($C$5=Dates1!$B$4, DataPack!$J59, IF($C$5=Dates1!$B$5, DataPack!$O59, IF($C$5=Dates1!$B$6, DataPack!$T59))))","v":5}]
[null,"     C7. How efficiently and effectively does the provider use its available resources to \n     secure value for money?",null,null,null,null,null,null,23,{"$f":"IF($C$5=Dates1!$B$3, DataPack!$B60, IF($C$5=Dates1!$B$4, DataPack!$G60, IF($C$5=Dates1!$B$5, DataPack!$L60, IF($C$5=Dates1!$B$6, DataPack!$Q60))))","v":2},null,{"$f":"IF($C$5=Dates1!$B$3, DataPack!$C60, IF($C$5=Dates1!$B$4, DataPack!$H60, IF($C$5=Dates1!$B$5, DataPack!$M60, IF($C$5=Dates1!$B$6, DataPack!$R60))))","v":7},null,{"$f":"IF($C$5=Dates1!$B$3, DataPack!$D60, IF($C$5=Dates1!$B$4, DataPack!$I60, IF($C$5=Dates1!$B$5, DataPack!$N60, IF($C$5=Dates1!$B$6, DataPack!$S60))))","v":10},null,{"$f":"IF($C$5=Dates1!$B$3, DataPack!$E60, IF($C$5=Dates1!$B$4, DataPack!$J60, IF($C$5=Dates1!$B$5, DataPack!$O60, IF($C$5=Dates1!$B$6, DataPack!$T60))))","v":4}]
[null,null,null,null,null,null,null,null,null,null,null,null,"Source: Ofsted inspections"]
[null,"1. Includes general further education college/tertiary college, sixth form college, specialist further education college and independent specialist college."]
[null,"2. Where applicable to the type of provision."]

{"sheet":"Table 2b","index":7,"n_rows":33,"n_cols":16,"rows_kept":33,"cut":false,"hidden":false,"merged":[[4,2,4,6],[8,1,8,6],[9,1,9,6],[10,1,10,6],[7,1,7,6],[16,1,16,6],[11,1,11,6],[12,1,12,6],[13,1,13,6],[14,1,14,6],[4,8,5,8],[29,1,29,6],[28,1,28,6],[15,1,15,6],[20,1,20,6],[19,1,19,6],[18,1,18,6],[17,1,17,6],[22,1,22,6],[21,1,21,6],[30,12,30,16],[4,9,4,10],[4,11,4,12],[4,13,4,14],[4,15,4,16],[27,1,27,6],[26,1,26,6],[23,1,23,6],[25,1,25,6],[24,1,24,6]]}
[]
[null,{"$f":"\"Table 2b: Inspection outcomes of general further education colleges/tertiary colleges inspected \" & IF('Table 2b'!C5=Dates1!$B$3, \"between \" & Dates1!$B$3, IF('Table 2b'!C5 = Dates1!B4, \"in \" & Dates1!B4, IF('Table 2b'!C5=Dates1!B5, \"in \" & Dates1!B5, IF('Table 2b'!C5=Dates1!B6, \"in \" & Dates1!B6, IF('Table 2b'!C5=Dates1!B7, \"in \" & Dates1!B7)))))  & \" (provisional)\"&CHAR(185)","v":"Table 2b: Inspection outcomes of general further education colleges/tertiary colleges inspected between 1 October and 31 December 2011 (provisional)¹"}]
[]
[]
[null,"Select period:","1 October and 31 December 2011",null,null,null,null,null,"Total number inspected","Outstanding",null,"Good",null,"Satisfactory",null,"Inadequate"]
[null,null,null,null,null,null,null,null,"Number","Number",null,"Number",null,"Number",null,"Number"]
[]
[null,"Overall effectiveness",null,null,null,null,null,null,{"$f":"J8+L8+N8+P8","v":13},{"$f":"IF($C$5=Dates1!$B$3, DataPack!$B64, IF($C$5=Dates1!$B$4, DataPack!$G64, IF($C$5=Dates1!$B$5, DataPack!$L64, IF($C$5=Dates1!$B$6, DataPack!$Q64))))","v":1},null,{"$f":"IF($C$5=Dates1!$B$3, DataPack!$C64, IF($C$5=Dates1!$B$4, DataPack!$H64, IF($C$5=Dates1!$B$5, DataPack!$M64, IF($C$5=Dates1!$B$6, DataPack!$R64))))","v":5},null,{"$f":"IF($C$5=Dates1!$B$3, DataPack!$D64, IF($C$5=Dates1!$B$4, DataPack!$I64, IF($C$5=Dates1!$B$5, DataPack!$N64, IF($C$5=Dates1!$B$6, DataPack!$S64))))","v":5},null,{"$f":"IF($C$5=Dates1!$B$3, DataPack!$E64, IF($C$5=Dates1!$B$4, DataPack!$J64, IF($C$5=Dates1!$B$5, DataPack!$O64, IF($C$5=Dates1!$B$6, DataPack!$T64))))","v":2}]
[null,"Capacity to improve",null,null,null,null,null,null,13,{"$f":"IF($C$5=Dates1!$B$3, DataPack!$B65, IF($C$5=Dates1!$B$4, DataPack!$G65, IF($C$5=Dates1!$B$5, DataPack!$L65, IF($C$5=Dates1!$B$6, DataPack!$Q65))))","v":1},null,{"$f":"IF($C$5=Dates1!$B$3, DataPack!$C65, IF($C$5=Dates1!$B$4, DataPack!$H65, IF($C$5=Dates1!$B$5, DataPack!$M65, IF($C$5=Dates1!$B$6, DataPack!$R65))))","v":5},null,{"$f":"IF($C$5=Dates1!$B$3, DataPack!$D65, IF($C$5=Dates1!$B$4, DataPack!$I65, IF($C$5=Dates1!$B$5, DataPack!$N65, IF($C$5=Dates1!$B$6, DataPack!$S65))))","v":5},null,{"$f":"IF($C$5=Dates1!$B$3, DataPack!$E65, IF($C$5=Dates1!$B$4, DataPack!$J65, IF($C$5=Dates1!$B$5, DataPack!$O65, IF($C$5=Dates1!$B$6, DataPack!$T65))))","v":2}]
[null,"A. Outcomes for learners",null,null,null,null,null,null,13,{"$f":"IF($C$5=Dates1!$B$3, DataPack!$B66, IF($C$5=Dates1!$B$4, DataPack!$G66, IF($C$5=Dates1!$B$5, DataPack!$L66, IF($C$5=Dates1!$B$6, DataPack!$Q66))))","v":1},null,{"$f":"IF($C$5=Dates1!$B$3, DataPack!$C66, IF($C$5=Dates1!$B$4, DataPack!$H66, IF($C$5=Dates1!$B$5, DataPack!$M66, IF($C$5=Dates1!$B$6, DataPack!$R66))))","v":4},null,{"$f":"IF($C$5=Dates1!$B$3, DataPack!$D66, IF($C$5=Dates1!$B$4, DataPack!$I66, IF($C$5=Dates1!$B$5, DataPack!$N66, IF($C$5=Dates1!$B$6, DataPack!$S66))))","v":6},null,{"$f":"IF($C$5=Dates1!$B$3, DataPack!$E66, IF($C$5=Dates1!$B$4, DataPack!$J66, IF($C$5=Dates1!$B$5, DataPack!$O66, IF($C$5=Dates1!$B$6, DataPack!$T66))))","v":2}]
[null,"     A1. How well do learners achieve and enjoy their learning",null,null,null,null,null,null,13,{"$f":"IF($C$5=Dates1!$B$3, DataPack!$B67, IF($C$5=Dates1!$B$4, DataPack!$G67, IF($C$5=Dates1!$B$5, DataPack!$L67, IF($C$5=Dates1!$B$6, DataPack!$Q67))))","v":1},null,{"$f":"IF($C$5=Dates1!$B$3, DataPack!$C67, IF($C$5=Dates1!$B$4, DataPack!$H67, IF($C$5=Dates1!$B$5, DataPack!$M67, IF($C$5=Dates1!$B$6, DataPack!$R67))))","v":4},null,{"$f":"IF($C$5=Dates1!$B$3, DataPack!$D67, IF($C$5=Dates1!$B$4, DataPack!$I67, IF($C$5=Dates1!$B$5, DataPack!$N67, IF($C$5=Dates1!$B$6, DataPack!$S67))))","v":6},null,{"$f":"IF($C$5=Dates1!$B$3, DataPack!$E67, IF($C$5=Dates1!$B$4, DataPack!$J67, IF($C$5=Dates1!$B$5, DataPack!$O67, IF($C$5=Dates1!$B$6, DataPack!$T67))))","v":2}]
[null,"          A1.a) How well do learners attain their learning goals",null,null,null,null,null,null,13,{"$f":"IF($C$5=Dates1!$B$3, DataPack!$B68, IF($C$5=Dates1!$B$4, DataPack!$G68, IF($C$5=Dates1!$B$5, DataPack!$L68, IF($C$5=Dates1!$B$6, DataPack!$Q68))))","v":1},null,{"$f":"IF($C$5=Dates1!$B$3, DataPack!$C68, IF($C$5=Dates1!$B$4, DataPack!$H68, IF($C$5=Dates1!$B$5, DataPack!$M68, IF($C$5=Dates1!$B$6, DataPack!$R68))))","v":3},null,{"$f":"IF($C$5=Dates1!$B$3, DataPack!$D68, IF($C$5=Dates1!$B$4, DataPack!$I68, IF($C$5=Dates1!$B$5, DataPack!$N68, IF($C$5=Dates1!$B$6, DataPack!$S68))))","v":7},null,{"$f":"IF($C$5=Dates1!$B$3, DataPack!$E68, IF($C$5=Dates1!$B$4, DataPack!$J68, IF($C$5=Dates1!$B$5, DataPack!$O68, IF($C$5=Dates1!$B$6, DataPack!$T68))))","v":2}]
[null,"          A1.b) How well do learners progress?",null,null,null,null,null,null,13,{"$f":"IF($C$5=Dates1!$B$3, DataPack!$B69, IF($C$5=Dates1!$B$4, DataPack!$G69, IF($C$5=Dates1!$B$5, DataPack!$L69, IF($C$5=Dates1!$B$6, DataPack!$Q69))))","v":0},null,{"$f":"IF($C$5=Dates1!$B$3, DataPack!$C69, IF($C$5=Dates1!$B$4, DataPack!$H69, IF($C$5=Dates1!$B$5, DataPack!$M69, IF($C$5=Dates1!$B$6, DataPack!$R69))))","v":5},null,{"$f":"IF($C$5=Dates1!$B$3, DataPack!$D69, IF($C$5=Dates1!$B$4, DataPack!$I69, IF($C$5=Dates1!$B$5, DataPack!$N69, IF($C$5=Dates1!$B$6, DataPack!$S69))))","v":7},null,{"$f":"IF($C$5=Dates1!$B$3, DataPack!$E69, IF($C$5=Dates1!$B$4, DataPack!$J69, IF($C$5=Dates1!$B$5, DataPack!$O69, IF($C$5=Dates1!$B$6, DataPack!$T69))))","v":1}]
[null,"     A2. How well do learners improve their economic and social well-being through learning \n     and development?",null,null,null,null,null,null,13,{"$f":"IF($C$5=Dates1!$B$3, DataPack!$B70, IF($C$5=Dates1!$B$4, DataPack!$G70, IF($C$5=Dates1!$B$5, DataPack!$L70, IF($C$5=Dates1!$B$6, DataPack!$Q70))))","v":1},null,{"$f":"IF($C$5=Dates1!$B$3, DataPack!$C70, IF($C$5=Dates1!$B$4, DataPack!$H70, IF($C$5=Dates1!$B$5, DataPack!$M70, IF($C$5=Dates1!$B$6, DataPack!$R70))))","v":7},null,{"$f":"IF($C$5=Dates1!$B$3, DataPack!$D70, IF($C$5=Dates1!$B$4, DataPack!$I70, IF($C$5=Dates1!$B$5, DataPack!$N70, IF($C$5=Dates1!$B$6, DataPack!$S70))))","v":4},null,{"$f":"IF($C$5=Dates1!$B$3, DataPack!$E70, IF($C$5=Dates1!$B$4, DataPack!$J70, IF($C$5=Dates1!$B$5, DataPack!$O70, IF($C$5=Dates1!$B$6, DataPack!$T70))))","v":1}]
[null,"     A3. How safe do learners feel?",null,null,null,null,null,null,13,{"$f":"IF($C$5=Dates1!$B$3, DataPack!$B71, IF($C$5=Dates1!$B$4, DataPack!$G71, IF($C$5=Dates1!$B$5, DataPack!$L71, IF($C$5=Dates1!$B$6, DataPack!$Q71))))","v":3},null,{"$f":"IF($C$5=Dates1!$B$3, DataPack!$C71, IF($C$5=Dates1!$B$4, DataPack!$H71, IF($C$5=Dates1!$B$5, DataPack!$M71, IF($C$5=Dates1!$B$6, DataPack!$R71))))","v":9},null,{"$f":"IF($C$5=Dates1!$B$3, DataPack!$D71, IF($C$5=Dates1!$B$4, DataPack!$I71, IF($C$5=Dates1!$B$5, DataPack!$N71, IF($C$5=Dates1!$B$6, DataPack!$S71))))","v":1},null,{"$f":"IF($C$5=Dates1!$B$3, DataPack!$E71, IF($C$5=Dates1!$B$4, DataPack!$J71, IF($C$5=Dates1!$B$5, DataPack!$O71, IF($C$5=Dates1!$B$6, DataPack!$T71))))","v":0}]
[null,"     A4. Are learners able to make informed choices about their own health and well being?2",null,null,null,null,null,null,13,{"$f":"IF($C$5=Dates1!$B$3, DataPack!$B72, IF($C$5=Dates1!$B$4, DataPack!$G72, IF($C$5=Dates1!$B$5, DataPack!$L72, IF($C$5=Dates1!$B$6, DataPack!$Q72))))","v":2},null,{"$f":"IF($C$5=Dates1!$B$3, DataPack!$C72, IF($C$5=Dates1!$B$4, DataPack!$H72, IF($C$5=Dates1!$B$5, DataPack!$M72, IF($C$5=Dates1!$B$6, DataPack!$R72))))","v":7},null,{"$f":"IF($C$5=Dates1!$B$3, DataPack!$D72, IF($C$5=Dates1!$B$4, DataPack!$I72, IF($C$5=Dates1!$B$5, DataPack!$N72, IF($C$5=Dates1!$B$6, DataPack!$S72))))","v":4},null,{"$f":"IF($C$5=Dates1!$B$3, DataPack!$E72, IF($C$5=Dates1!$B$4, DataPack!$J72, IF($C$5=Dates1!$B$5, DataPack!$O72, IF($C$5=Dates1!$B$6, DataPack!$T72))))","v":0}]
[null,"     A5. How well do learners make a positive contribution to the community?2",null,null,null,null,null,null,13,{"$f":"IF($C$5=Dates1!$B$3, DataPack!$B73, IF($C$5=Dates1!$B$4, DataPack!$G73, IF($C$5=Dates1!$B$5, DataPack!$L73, IF($C$5=Dates1!$B$6, DataPack!$Q73))))","v":2},null,{"$f":"IF($C$5=Dates1!$B$3, DataPack!$C73, IF($C$5=Dates1!$B$4, DataPack!$H73, IF($C$5=Dates1!$B$5, DataPack!$M73, IF($C$5=Dates1!$B$6, DataPack!$R73))))","v":9},null,{"$f":"IF($C$5=Dates1!$B$3, DataPack!$D73, IF($C$5=Dates1!$B$4, DataPack!$I73, IF($C$5=Dates1!$B$5, DataPack!$N73, IF($C$5=Dates1!$B$6, DataPack!$S73))))","v":2},null,{"$f":"IF($C$5=Dates1!$B$3, DataPack!$E73, IF($C$5=Dates1!$B$4, DataPack!$J73, IF($C$5=Dates1!$B$5, DataPack!$O73, IF($C$5=Dates1!$B$6, DataPack!$T73))))","v":0}]
[null,"B. Quality of provision",null,null,null,null,null,null,13,{"$f":"IF($C$5=Dates1!$B$3, DataPack!$B74, IF($C$5=Dates1!$B$4, DataPack!$G74, IF($C$5=Dates1!$B$5, DataPack!$L74, IF($C$5=Dates1!$B$6, DataPack!$Q74))))","v":1},null,{"$f":"IF($C$5=Dates1!$B$3, DataPack!$C74, IF($C$5=Dates1!$B$4, DataPack!$H74, IF($C$5=Dates1!$B$5, DataPack!$M74, IF($C$5=Dates1!$B$6, DataPack!$R74))))","v":5},null,{"$f":"IF($C$5=Dates1!$B$3, DataPack!$D74, IF($C$5=Dates1!$B$4, DataPack!$I74, IF($C$5=Dates1!$B$5, DataPack!$N74, IF($C$5=Dates1!$B$6, DataPack!$S74))))","v":5},null,{"$f":"IF($C$5=Dates1!$B$3, DataPack!$E74, IF($C$5=Dates1!$B$4, DataPack!$J74, IF($C$5=Dates1!$B$5, DataPack!$O74, IF($C$5=Dates1!$B$6, DataPack!$T74))))","v":2}]
[null,"     B1. How effectively do teaching, training and assessment support learning and \n     development?",null,null,null,null,null,null,13,{"$f":"IF($C$5=Dates1!$B$3, DataPack!$B75, IF($C$5=Dates1!$B$4, DataPack!$G75, IF($C$5=Dates1!$B$5, DataPack!$L75, IF($C$5=Dates1!$B$6, DataPack!$Q75))))","v":0},null,{"$f":"IF($C$5=Dates1!$B$3, DataPack!$C75, IF($C$5=Dates1!$B$4, DataPack!$H75, IF($C$5=Dates1!$B$5, DataPack!$M75, IF($C$5=Dates1!$B$6, DataPack!$R75))))","v":6},null,{"$f":"IF($C$5=Dates1!$B$3, DataPack!$D75, IF($C$5=Dates1!$B$4, DataPack!$I75, IF($C$5=Dates1!$B$5, DataPack!$N75, IF($C$5=Dates1!$B$6, DataPack!$S75))))","v":5},null,{"$f":"IF($C$5=Dates1!$B$3, DataPack!$E75, IF($C$5=Dates1!$B$4, DataPack!$J75, IF($C$5=Dates1!$B$5, DataPack!$O75, IF($C$5=Dates1!$B$6, DataPack!$T75))))","v":2}]
[null,"     B2. How effectively does the provision meet the needs and interests of users?",null,null,null,null,null,null,13,{"$f":"IF($C$5=Dates1!$B$3, DataPack!$B76, IF($C$5=Dates1!$B$4, DataPack!$G76, IF($C$5=Dates1!$B$5, DataPack!$L76, IF($C$5=Dates1!$B$6, DataPack!$Q76))))","v":1},null,{"$f":"IF($C$5=Dates1!$B$3, DataPack!$C76, IF($C$5=Dates1!$B$4, DataPack!$H76, IF($C$5=Dates1!$B$5, DataPack!$M76, IF($C$5=Dates1!$B$6, DataPack!$R76))))","v":7},null,{"$f":"IF($C$5=Dates1!$B$3, DataPack!$D76, IF($C$5=Dates1!$B$4, DataPack!$I76, IF($C$5=Dates1!$B$5, DataPack!$N76, IF($C$5=Dates1!$B$6, DataPack!$S76))))","v":5},null,{"$f":"IF($C$5=Dates1!$B$3, DataPack!$E76, IF($C$5=Dates1!$B$4, DataPack!$J76, IF($C$5=Dates1!$B$5, DataPack!$O76, IF($C$5=Dates1!$B$6, DataPack!$T76))))","v":0}]
[null,"     B3. How well do partnerships with schools, employers, community groups and others \n     lead to benefits for learners?",null,null,null,null,null,null,13,{"$f":"IF($C$5=Dates1!$B$3, DataPack!$B77, IF($C$5=Dates1!$B$4, DataPack!$G77, IF($C$5=Dates1!$B$5, DataPack!$L77, IF($C$5=Dates1!$B$6, DataPack!$Q77))))","v":5},null,{"$f":"IF($C$5=Dates1!$B$3, DataPack!$C77, IF($C$5=Dates1!$B$4, DataPack!$H77, IF($C$5=Dates1!$B$5, DataPack!$M77, IF($C$5=Dates1!$B$6, DataPack!$R77))))","v":6},null,{"$f":"IF($C$5=Dates1!$B$3, DataPack!$D77, IF($C$5=Dates1!$B$4, DataPack!$I77, IF($C$5=Dates1!$B$5, DataPack!$N77, IF($C$5=Dates1!$B$6, DataPack!$S77))))","v":2},null,{"$f":"IF($C$5=Dates1!$B$3, DataPack!$E77, IF($C$5=Dates1!$B$4, DataPack!$J77, IF($C$5=Dates1!$B$5, DataPack!$O77, IF($C$5=Dates1!$B$6, DataPack!$T77))))","v":0}]
[null,"     B4. How effective are the care, guidance and support learners receive in helping them \n     to achieve?",null,null,null,null,null,null,13,{"$f":"IF($C$5=Dates1!$B$3, DataPack!$B78, IF($C$5=Dates1!$B$4, DataPack!$G78, IF($C$5=Dates1!$B$5, DataPack!$L78, IF($C$5=Dates1!$B$6, DataPack!$Q78))))","v":1},null,{"$f":"IF($C$5=Dates1!$B$3, DataPack!$C78, IF($C$5=Dates1!$B$4, DataPack!$H78, IF($C$5=Dates1!$B$5, DataPack!$M78, IF($C$5=Dates1!$B$6, DataPack!$R78))))","v":5},null,{"$f":"IF($C$5=Dates1!$B$3, DataPack!$D78, IF($C$5=Dates1!$B$4, DataPack!$I78, IF($C$5=Dates1!$B$5, DataPack!$N78, IF($C$5=Dates1!$B$6, DataPack!$S78))))","v":5},null,{"$f":"IF($C$5=Dates1!$B$3, DataPack!$E78, IF($C$5=Dates1!$B$4, DataPack!$J78, IF($C$5=Dates1!$B$5, DataPack!$O78, IF($C$5=Dates1!$B$6, DataPack!$T78))))","v":2}]
[null,"C. Leadership and management",null,null,null,null,null,null,13,{"$f":"IF($C$5=Dates1!$B$3, DataPack!$B79, IF($C$5=Dates1!$B$4, DataPack!$G79, IF($C$5=Dates1!$B$5, DataPack!$L79, IF($C$5=Dates1!$B$6, DataPack!$Q79))))","v":1},null,{"$f":"IF($C$5=Dates1!$B$3, DataPack!$C79, IF($C$5=Dates1!$B$4, DataPack!$H79, IF($C$5=Dates1!$B$5, DataPack!$M79, IF($C$5=Dates1!$B$6, DataPack!$R79))))","v":6},null,{"$f":"IF($C$5=Dates1!$B$3, DataPack!$D79, IF($C$5=Dates1!$B$4, DataPack!$I79, IF($C$5=Dates1!$B$5, DataPack!$N79, IF($C$5=Dates1!$B$6, DataPack!$S79))))","v":4},null,{"$f":"IF($C$5=Dates1!$B$3, DataPack!$E79, IF($C$5=Dates1!$B$4, DataPack!$J79, IF($C$5=Dates1!$B$5, DataPack!$O79, IF($C$5=Dates1!$B$6, DataPack!$T79))))","v":2}]
[null,"     C1. How effectively do leaders and managers raise expectations and promote ambition \n     throughout the organisation?",null,null,null,null,null,null,13,{"$f":"IF($C$5=Dates1!$B$3, DataPack!$B80, IF($C$5=Dates1!$B$4, DataPack!$G80, IF($C$5=Dates1!$B$5, DataPack!$L80, IF($C$5=Dates1!$B$6, DataPack!$Q80))))","v":2},null,{"$f":"IF($C$5=Dates1!$B$3, DataPack!$C80, IF($C$5=Dates1!$B$4, DataPack!$H80, IF($C$5=Dates1!$B$5, DataPack!$M80, IF($C$5=Dates1!$B$6, DataPack!$R80))))","v":8},null,{"$f":"IF($C$5=Dates1!$B$3, DataPack!$D80, IF($C$5=Dates1!$B$4, DataPack!$I80, IF($C$5=Dates1!$B$5, DataPack!$N80, IF($C$5=Dates1!$B$6, DataPack!$S80))))","v":1},null,{"$f":"IF($C$5=Dates1!$B$3, DataPack!$E80, IF($C$5=Dates1!$B$4, DataPack!$J80, IF($C$5=Dates1!$B$5, DataPack!$O80, IF($C$5=Dates1!$B$6, DataPack!$T80))))","v":2}]
[null,"     C2. How effectively do governors and supervisory bodies provide leadership, direction \n     and challenge?2",null,null,null,null,null,null,13,{"$f":"IF($C$5=Dates1!$B$3, DataPack!$B81, IF($C$5=Dates1!$B$4, DataPack!$G81, IF($C$5=Dates1!$B$5, DataPack!$L81, IF($C$5=Dates1!$B$6, DataPack!$Q81))))","v":2},null,{"$f":"IF($C$5=Dates1!$B$3, DataPack!$C81, IF($C$5=Dates1!$B$4, DataPack!$H81, IF($C$5=Dates1!$B$5, DataPack!$M81, IF($C$5=Dates1!$B$6, DataPack!$R81))))","v":8},null,{"$f":"IF($C$5=Dates1!$B$3, DataPack!$D81, IF($C$5=Dates1!$B$4, DataPack!$I81, IF($C$5=Dates1!$B$5, DataPack!$N81, IF($C$5=Dates1!$B$6, DataPack!$S81))))","v":1},null,{"$f":"IF($C$5=Dates1!$B$3, DataPack!$E81, IF($C$5=Dates1!$B$4, DataPack!$J81, IF($C$5=Dates1!$B$5, DataPack!$O81, IF($C$5=Dates1!$B$6, DataPack!$T81))))","v":2}]
[null,"    C3. How effectively does the provider promote the safeguarding of learners?",null,null,null,null,null,null,13,{"$f":"IF($C$5=Dates1!$B$3, DataPack!$B82, IF($C$5=Dates1!$B$4, DataPack!$G82, IF($C$5=Dates1!$B$5, DataPack!$L82, IF($C$5=Dates1!$B$6, DataPack!$Q82))))","v":2},null,{"$f":"IF($C$5=Dates1!$B$3, DataPack!$C82, IF($C$5=Dates1!$B$4, DataPack!$H82, IF($C$5=Dates1!$B$5, DataPack!$M82, IF($C$5=Dates1!$B$6, DataPack!$R82))))","v":8},null,{"$f":"IF($C$5=Dates1!$B$3, DataPack!$D82, IF($C$5=Dates1!$B$4, DataPack!$I82, IF($C$5=Dates1!$B$5, DataPack!$N82, IF($C$5=Dates1!$B$6, DataPack!$S82))))","v":2},null,{"$f":"IF($C$5=Dates1!$B$3, DataPack!$E82, IF($C$5=Dates1!$B$4, DataPack!$J82, IF($C$5=Dates1!$B$5, DataPack!$O82, IF($C$5=Dates1!$B$6, DataPack!$T82))))","v":1}]
[null,"C4. How effectively does the provider actively promote equality and diversity,\ntackle discrimination and narrow the achievement gap?",null,null,null,null,null,null,13,{"$f":"IF($C$5=Dates1!$B$3, DataPack!$B83, IF($C$5=Dates1!$B$4, DataPack!$G83, IF($C$5=Dates1!$B$5, DataPack!$L83, IF($C$5=Dates1!$B$6, DataPack!$Q83))))","v":0},null,{"$f":"IF($C$5=Dates1!$B$3, DataPack!$C83, IF($C$5=Dates1!$B$4, DataPack!$H83, IF($C$5=Dates1!$B$5, DataPack!$M83, IF($C$5=Dates1!$B$6, DataPack!$R83))))","v":7},null,{"$f":"IF($C$5=Dates1!$B$3, DataPack!$D83, IF($C$5=Dates1!$B$4, DataPack!$I83, IF($C$5=Dates1!$B$5, DataPack!$N83, IF($C$5=Dates1!$B$6, DataPack!$S83))))","v":6},null,{"$f":"IF($C$5=Dates1!$B$3, DataPack!$E83, IF($C$5=Dates1!$B$4, DataPack!$J83, IF($C$5=Dates1!$B$5, DataPack!$O83, IF($C$5=Dates1!$B$6, DataPack!$T83))))","v":0}]
[null,"     C5. How effectively does the provider engage with users to support and promote \n     improvement?",null,null,null,null,null,null,13,{"$f":"IF($C$5=Dates1!$B$3, DataPack!$B84, IF($C$5=Dates1!$B$4, DataPack!$G84, IF($C$5=Dates1!$B$5, DataPack!$L84, IF($C$5=Dates1!$B$6, DataPack!$Q84))))","v":3},null,{"$f":"IF($C$5=Dates1!$B$3, DataPack!$C84, IF($C$5=Dates1!$B$4, DataPack!$H84, IF($C$5=Dates1!$B$5, DataPack!$M84, IF($C$5=Dates1!$B$6, DataPack!$R84))))","v":5},null,{"$f":"IF($C$5=Dates1!$B$3, DataPack!$D84, IF($C$5=Dates1!$B$4, DataPack!$I84, IF($C$5=Dates1!$B$5, DataPack!$N84, IF($C$5=Dates1!$B$6, DataPack!$S84))))","v":5},null,{"$f":"IF($C$5=Dates1!$B$3, DataPack!$E84, IF($C$5=Dates1!$B$4, DataPack!$J84, IF($C$5=Dates1!$B$5, DataPack!$O84, IF($C$5=Dates1!$B$6, DataPack!$T84))))","v":0}]
[null,"     C6. How effectively does self-assessment improve the quality of the provision and \n     outcomes for learners?",null,null,null,null,null,null,13,{"$f":"IF($C$5=Dates1!$B$3, DataPack!$B85, IF($C$5=Dates1!$B$4, DataPack!$G85, IF($C$5=Dates1!$B$5, DataPack!$L85, IF($C$5=Dates1!$B$6, DataPack!$Q85))))","v":0},null,{"$f":"IF($C$5=Dates1!$B$3, DataPack!$C85, IF($C$5=Dates1!$B$4, DataPack!$H85, IF($C$5=Dates1!$B$5, DataPack!$M85, IF($C$5=Dates1!$B$6, DataPack!$R85))))","v":6},null,{"$f":"IF($C$5=Dates1!$B$3, DataPack!$D85, IF($C$5=Dates1!$B$4, DataPack!$I85, IF($C$5=Dates1!$B$5, DataPack!$N85, IF($C$5=Dates1!$B$6, DataPack!$S85))))","v":5},null,{"$f":"IF($C$5=Dates1!$B$3, DataPack!$E85, IF($C$5=Dates1!$B$4, DataPack!$J85, IF($C$5=Dates1!$B$5, DataPack!$O85, IF($C$5=Dates1!$B$6, DataPack!$T85))))","v":2}]
[null,"     C7. How efficiently and effectively does the provider use its available resources to \n     secure value for money?",null,null,null,null,null,null,13,{"$f":"IF($C$5=Dates1!$B$3, DataPack!$B86, IF($C$5=Dates1!$B$4, DataPack!$G86, IF($C$5=Dates1!$B$5, DataPack!$L86, IF($C$5=Dates1!$B$6, DataPack!$Q86))))","v":2},null,{"$f":"IF($C$5=Dates1!$B$3, DataPack!$C86, IF($C$5=Dates1!$B$4, DataPack!$H86, IF($C$5=Dates1!$B$5, DataPack!$M86, IF($C$5=Dates1!$B$6, DataPack!$R86))))","v":4},null,{"$f":"IF($C$5=Dates1!$B$3, DataPack!$D86, IF($C$5=Dates1!$B$4, DataPack!$I86, IF($C$5=Dates1!$B$5, DataPack!$N86, IF($C$5=Dates1!$B$6, DataPack!$S86))))","v":5},null,{"$f":"IF($C$5=Dates1!$B$3, DataPack!$E86, IF($C$5=Dates1!$B$4, DataPack!$J86, IF($C$5=Dates1!$B$5, DataPack!$O86, IF($C$5=Dates1!$B$6, DataPack!$T86))))","v":2}]
[null,null,null,null,null,null,null,null,null,null,null,null,"Source: Ofsted inspections"]
[null,"1. Includes specialist further education college."]
[null,"2. Where applicable to the type of provision."]

{"sheet":"Table 2c","index":8,"n_rows":32,"n_cols":16,"rows_kept":32,"cut":false,"hidden":false,"merged":[[30,12,30,16],[4,9,4,10],[4,11,4,12],[4,13,4,14],[4,15,4,16],[25,1,25,6],[24,1,24,6],[29,1,29,6],[28,1,28,6],[27,1,27,6],[26,1,26,6],[14,1,14,6],[15,1,15,6],[23,1,23,6],[22,1,22,6],[21,1,21,6],[20,1,20,6],[19,1,19,6],[18,1,18,6],[17,1,17,6],[16,1,16,6],[4,8,5,8],[11,1,11,6],[12,1,12,6],[13,1,13,6],[4,2,4,6],[8,1,8,6],[9,1,9,6],[10,1,10,6],[7,1,7,6]]}
[]
[null,{"$f":"\"Table 2c: Inspection outcomes of sixth form colleges inspected \" & IF('Table 2c'!C5=Dates1!$B$3, \"between \" & Dates1!$B$3, IF('Table 2c'!C5 = Dates1!B4, \"in \" & Dates1!B4, IF('Table 2c'!C5=Dates1!B5, \"in \" & Dates1!B5, IF('Table 2c'!C5=Dates1!B6, \"in \" & Dates1!B6, IF('Table 2c'!C5=Dates1!B7, \"in \" & Dates1!B7)))))  & \" (provisional)\"","v":"Table 2c: Inspection outcomes of sixth form colleges inspected between 1 October and 31 December 2011 (provisional)"}]
[]
[]
[null,"Select period:","1 October and 31 December 2011",null,null,null,null,null,"Total number inspected","Outstanding",null,"Good",null,"Satisfactory",null,"Inadequate"]
[null,null,null,null,null,null,null,null,"Number","Number",null,"Number",null,"Number",null,"Number"]
[]
[null,"Overall effectiveness",null,null,null,null,null,null,{"$f":"J8+L8+N8+P8","v":8},{"$f":"IF($C$5=Dates1!$B$3, DataPack!$B90, IF($C$5=Dates1!$B$4, DataPack!$G90, IF($C$5=Dates1!$B$5, DataPack!$L90, IF($C$5=Dates1!$B$6, DataPack!$Q90))))","v":0},null,{"$f":"IF($C$5=Dates1!$B$3, DataPack!$C90, IF($C$5=Dates1!$B$4, DataPack!$H90, IF($C$5=Dates1!$B$5, DataPack!$M90, IF($C$5=Dates1!$B$6, DataPack!$R90))))","v":2},null,{"$f":"IF($C$5=Dates1!$B$3, DataPack!$D90, IF($C$5=Dates1!$B$4, DataPack!$I90, IF($C$5=Dates1!$B$5, DataPack!$N90, IF($C$5=Dates1!$B$6, DataPack!$S90))))","v":4},null,{"$f":"IF($C$5=Dates1!$B$3, DataPack!$E90, IF($C$5=Dates1!$B$4, DataPack!$J90, IF($C$5=Dates1!$B$5, DataPack!$O90, IF($C$5=Dates1!$B$6, DataPack!$T90))))","v":2}]
[null,"Capacity to improve",null,null,null,null,null,null,8,{"$f":"IF($C$5=Dates1!$B$3, DataPack!$B91, IF($C$5=Dates1!$B$4, DataPack!$G91, IF($C$5=Dates1!$B$5, DataPack!$L91, IF($C$5=Dates1!$B$6, DataPack!$Q91))))","v":0},null,{"$f":"IF($C$5=Dates1!$B$3, DataPack!$C91, IF($C$5=Dates1!$B$4, DataPack!$H91, IF($C$5=Dates1!$B$5, DataPack!$M91, IF($C$5=Dates1!$B$6, DataPack!$R91))))","v":3},null,{"$f":"IF($C$5=Dates1!$B$3, DataPack!$D91, IF($C$5=Dates1!$B$4, DataPack!$I91, IF($C$5=Dates1!$B$5, DataPack!$N91, IF($C$5=Dates1!$B$6, DataPack!$S91))))","v":4},null,{"$f":"IF($C$5=Dates1!$B$3, DataPack!$E91, IF($C$5=Dates1!$B$4, DataPack!$J91, IF($C$5=Dates1!$B$5, DataPack!$O91, IF($C$5=Dates1!$B$6, DataPack!$T91))))","v":1}]
[null,"A. Outcomes for learners",null,null,null,null,null,null,8,{"$f":"IF($C$5=Dates1!$B$3, DataPack!$B92, IF($C$5=Dates1!$B$4, DataPack!$G92, IF($C$5=Dates1!$B$5, DataPack!$L92, IF($C$5=Dates1!$B$6, DataPack!$Q92))))","v":0},null,{"$f":"IF($C$5=Dates1!$B$3, DataPack!$C92, IF($C$5=Dates1!$B$4, DataPack!$H92, IF($C$5=Dates1!$B$5, DataPack!$M92, IF($C$5=Dates1!$B$6, DataPack!$R92))))","v":2},null,{"$f":"IF($C$5=Dates1!$B$3, DataPack!$D92, IF($C$5=Dates1!$B$4, DataPack!$I92, IF($C$5=Dates1!$B$5, DataPack!$N92, IF($C$5=Dates1!$B$6, DataPack!$S92))))","v":4},null,{"$f":"IF($C$5=Dates1!$B$3, DataPack!$E92, IF($C$5=Dates1!$B$4, DataPack!$J92, IF($C$5=Dates1!$B$5, DataPack!$O92, IF($C$5=Dates1!$B$6, DataPack!$T92))))","v":2}]
[null,"     A1. How well do learners achieve and enjoy their learning",null,null,null,null,null,null,8,{"$f":"IF($C$5=Dates1!$B$3, DataPack!$B93, IF($C$5=Dates1!$B$4, DataPack!$G93, IF($C$5=Dates1!$B$5, DataPack!$L93, IF($C$5=Dates1!$B$6, DataPack!$Q93))))","v":0},null,{"$f":"IF($C$5=Dates1!$B$3, DataPack!$C93, IF($C$5=Dates1!$B$4, DataPack!$H93, IF($C$5=Dates1!$B$5, DataPack!$M93, IF($C$5=Dates1!$B$6, DataPack!$R93))))","v":2},null,{"$f":"IF($C$5=Dates1!$B$3, DataPack!$D93, IF($C$5=Dates1!$B$4, DataPack!$I93, IF($C$5=Dates1!$B$5, DataPack!$N93, IF($C$5=Dates1!$B$6, DataPack!$S93))))","v":4},null,{"$f":"IF($C$5=Dates1!$B$3, DataPack!$E93, IF($C$5=Dates1!$B$4, DataPack!$J93, IF($C$5=Dates1!$B$5, DataPack!$O93, IF($C$5=Dates1!$B$6, DataPack!$T93))))","v":2}]
[null,"          A1.a) How well do learners attain their learning goals",null,null,null,null,null,null,8,{"$f":"IF($C$5=Dates1!$B$3, DataPack!$B94, IF($C$5=Dates1!$B$4, DataPack!$G94, IF($C$5=Dates1!$B$5, DataPack!$L94, IF($C$5=Dates1!$B$6, DataPack!$Q94))))","v":0},null,{"$f":"IF($C$5=Dates1!$B$3, DataPack!$C94, IF($C$5=Dates1!$B$4, DataPack!$H94, IF($C$5=Dates1!$B$5, DataPack!$M94, IF($C$5=Dates1!$B$6, DataPack!$R94))))","v":2},null,{"$f":"IF($C$5=Dates1!$B$3, DataPack!$D94, IF($C$5=Dates1!$B$4, DataPack!$I94, IF($C$5=Dates1!$B$5, DataPack!$N94, IF($C$5=Dates1!$B$6, DataPack!$S94))))","v":2},null,{"$f":"IF($C$5=Dates1!$B$3, DataPack!$E94, IF($C$5=Dates1!$B$4, DataPack!$J94, IF($C$5=Dates1!$B$5, DataPack!$O94, IF($C$5=Dates1!$B$6, DataPack!$T94))))","v":4}]
[null,"          A1.b) How well do learners progress?",null,null,null,null,null,null,8,{"$f":"IF($C$5=Dates1!$B$3, DataPack!$B95, IF($C$5=Dates1!$B$4, DataPack!$G95, IF($C$5=Dates1!$B$5, DataPack!$L95, IF($C$5=Dates1!$B$6, DataPack!$Q95))))","v":0},null,{"$f":"IF($C$5=Dates1!$B$3, DataPack!$C95, IF($C$5=Dates1!$B$4, DataPack!$H95, IF($C$5=Dates1!$B$5, DataPack!$M95, IF($C$5=Dates1!$B$6, DataPack!$R95))))","v":2},null,{"$f":"IF($C$5=Dates1!$B$3, DataPack!$D95, IF($C$5=Dates1!$B$4, DataPack!$I95, IF($C$5=Dates1!$B$5, DataPack!$N95, IF($C$5=Dates1!$B$6, DataPack!$S95))))","v":4},null,{"$f":"IF($C$5=Dates1!$B$3, DataPack!$E95, IF($C$5=Dates1!$B$4, DataPack!$J95, IF($C$5=Dates1!$B$5, DataPack!$O95, IF($C$5=Dates1!$B$6, DataPack!$T95))))","v":2}]
[null,"     A2. How well do learners improve their economic and social well-being through learning \n     and development?",null,null,null,null,null,null,8,{"$f":"IF($C$5=Dates1!$B$3, DataPack!$B96, IF($C$5=Dates1!$B$4, DataPack!$G96, IF($C$5=Dates1!$B$5, DataPack!$L96, IF($C$5=Dates1!$B$6, DataPack!$Q96))))","v":1},null,{"$f":"IF($C$5=Dates1!$B$3, DataPack!$C96, IF($C$5=Dates1!$B$4, DataPack!$H96, IF($C$5=Dates1!$B$5, DataPack!$M96, IF($C$5=Dates1!$B$6, DataPack!$R96))))","v":2},null,{"$f":"IF($C$5=Dates1!$B$3, DataPack!$D96, IF($C$5=Dates1!$B$4, DataPack!$I96, IF($C$5=Dates1!$B$5, DataPack!$N96, IF($C$5=Dates1!$B$6, DataPack!$S96))))","v":4},null,{"$f":"IF($C$5=Dates1!$B$3, DataPack!$E96, IF($C$5=Dates1!$B$4, DataPack!$J96, IF($C$5=Dates1!$B$5, DataPack!$O96, IF($C$5=Dates1!$B$6, DataPack!$T96))))","v":1}]
[null,"     A3. How safe do learners feel?",null,null,null,null,null,null,8,{"$f":"IF($C$5=Dates1!$B$3, DataPack!$B97, IF($C$5=Dates1!$B$4, DataPack!$G97, IF($C$5=Dates1!$B$5, DataPack!$L97, IF($C$5=Dates1!$B$6, DataPack!$Q97))))","v":3},null,{"$f":"IF($C$5=Dates1!$B$3, DataPack!$C97, IF($C$5=Dates1!$B$4, DataPack!$H97, IF($C$5=Dates1!$B$5, DataPack!$M97, IF($C$5=Dates1!$B$6, DataPack!$R97))))","v":5},null,{"$f":"IF($C$5=Dates1!$B$3, DataPack!$D97, IF($C$5=Dates1!$B$4, DataPack!$I97, IF($C$5=Dates1!$B$5, DataPack!$N97, IF($C$5=Dates1!$B$6, DataPack!$S97))))","v":0},null,{"$f":"IF($C$5=Dates1!$B$3, DataPack!$E97, IF($C$5=Dates1!$B$4, DataPack!$J97, IF($C$5=Dates1!$B$5, DataPack!$O97, IF($C$5=Dates1!$B$6, DataPack!$T97))))","v":0}]
[null,"     A4. Are learners able to make informed choices about their own health and well being?1",null,null,null,null,null,null,8,{"$f":"IF($C$5=Dates1!$B$3, DataPack!$B98, IF($C$5=Dates1!$B$4, DataPack!$G98, IF($C$5=Dates1!$B$5, DataPack!$L98, IF($C$5=Dates1!$B$6, DataPack!$Q98))))","v":1},null,{"$f":"IF($C$5=Dates1!$B$3, DataPack!$C98, IF($C$5=Dates1!$B$4, DataPack!$H98, IF($C$5=Dates1!$B$5, DataPack!$M98, IF($C$5=Dates1!$B$6, DataPack!$R98))))","v":5},null,{"$f":"IF($C$5=Dates1!$B$3, DataPack!$D98, IF($C$5=Dates1!$B$4, DataPack!$I98, IF($C$5=Dates1!$B$5, DataPack!$N98, IF($C$5=Dates1!$B$6, DataPack!$S98))))","v":2},null,{"$f":"IF($C$5=Dates1!$B$3, DataPack!$E98, IF($C$5=Dates1!$B$4, DataPack!$J98, IF($C$5=Dates1!$B$5, DataPack!$O98, IF($C$5=Dates1!$B$6, DataPack!$T98))))","v":0}]
[null,"     A5. How well do learners make a positive contribution to the community?1",null,null,null,null,null,null,8,{"$f":"IF($C$5=Dates1!$B$3, DataPack!$B99, IF($C$5=Dates1!$B$4, DataPack!$G99, IF($C$5=Dates1!$B$5, DataPack!$L99, IF($C$5=Dates1!$B$6, DataPack!$Q99))))","v":1},null,{"$f":"IF($C$5=Dates1!$B$3, DataPack!$C99, IF($C$5=Dates1!$B$4, DataPack!$H99, IF($C$5=Dates1!$B$5, DataPack!$M99, IF($C$5=Dates1!$B$6, DataPack!$R99))))","v":4},null,{"$f":"IF($C$5=Dates1!$B$3, DataPack!$D99, IF($C$5=Dates1!$B$4, DataPack!$I99, IF($C$5=Dates1!$B$5, DataPack!$N99, IF($C$5=Dates1!$B$6, DataPack!$S99))))","v":2},null,{"$f":"IF($C$5=Dates1!$B$3, DataPack!$E99, IF($C$5=Dates1!$B$4, DataPack!$J99, IF($C$5=Dates1!$B$5, DataPack!$O99, IF($C$5=Dates1!$B$6, DataPack!$T99))))","v":1}]
[null,"B. Quality of provision",null,null,null,null,null,null,8,{"$f":"IF($C$5=Dates1!$B$3, DataPack!$B100, IF($C$5=Dates1!$B$4, DataPack!$G100, IF($C$5=Dates1!$B$5, DataPack!$L100, IF($C$5=Dates1!$B$6, DataPack!$Q100))))","v":0},null,{"$f":"IF($C$5=Dates1!$B$3, DataPack!$C100, IF($C$5=Dates1!$B$4, DataPack!$H100, IF($C$5=Dates1!$B$5, DataPack!$M100, IF($C$5=Dates1!$B$6, DataPack!$R100))))","v":3},null,{"$f":"IF($C$5=Dates1!$B$3, DataPack!$D100, IF($C$5=Dates1!$B$4, DataPack!$I100, IF($C$5=Dates1!$B$5, DataPack!$N100, IF($C$5=Dates1!$B$6, DataPack!$S100))))","v":5},null,{"$f":"IF($C$5=Dates1!$B$3, DataPack!$E100, IF($C$5=Dates1!$B$4, DataPack!$J100, IF($C$5=Dates1!$B$5, DataPack!$O100, IF($C$5=Dates1!$B$6, DataPack!$T100))))","v":0}]
[null,"     B1. How effectively do teaching, training and assessment support learning and \n     development?",null,null,null,null,null,null,8,{"$f":"IF($C$5=Dates1!$B$3, DataPack!$B101, IF($C$5=Dates1!$B$4, DataPack!$G101, IF($C$5=Dates1!$B$5, DataPack!$L101, IF($C$5=Dates1!$B$6, DataPack!$Q101))))","v":0},null,{"$f":"IF($C$5=Dates1!$B$3, DataPack!$C101, IF($C$5=Dates1!$B$4, DataPack!$H101, IF($C$5=Dates1!$B$5, DataPack!$M101, IF($C$5=Dates1!$B$6, DataPack!$R101))))","v":4},null,{"$f":"IF($C$5=Dates1!$B$3, DataPack!$D101, IF($C$5=Dates1!$B$4, DataPack!$I101, IF($C$5=Dates1!$B$5, DataPack!$N101, IF($C$5=Dates1!$B$6, DataPack!$S101))))","v":4},null,{"$f":"IF($C$5=Dates1!$B$3, DataPack!$E101, IF($C$5=Dates1!$B$4, DataPack!$J101, IF($C$5=Dates1!$B$5, DataPack!$O101, IF($C$5=Dates1!$B$6, DataPack!$T101))))","v":0}]
[null,"     B2. How effectively does the provision meet the needs and interests of users?",null,null,null,null,null,null,8,{"$f":"IF($C$5=Dates1!$B$3, DataPack!$B102, IF($C$5=Dates1!$B$4, DataPack!$G102, IF($C$5=Dates1!$B$5, DataPack!$L102, IF($C$5=Dates1!$B$6, DataPack!$Q102))))","v":1},null,{"$f":"IF($C$5=Dates1!$B$3, DataPack!$C102, IF($C$5=Dates1!$B$4, DataPack!$H102, IF($C$5=Dates1!$B$5, DataPack!$M102, IF($C$5=Dates1!$B$6, DataPack!$R102))))","v":4},null,{"$f":"IF($C$5=Dates1!$B$3, DataPack!$D102, IF($C$5=Dates1!$B$4, DataPack!$I102, IF($C$5=Dates1!$B$5, DataPack!$N102, IF($C$5=Dates1!$B$6, DataPack!$S102))))","v":3},null,{"$f":"IF($C$5=Dates1!$B$3, DataPack!$E102, IF($C$5=Dates1!$B$4, DataPack!$J102, IF($C$5=Dates1!$B$5, DataPack!$O102, IF($C$5=Dates1!$B$6, DataPack!$T102))))","v":0}]
[null,"     B3. How well do partnerships with schools, employers, community groups and others \n     lead to benefits for learners?",null,null,null,null,null,null,8,{"$f":"IF($C$5=Dates1!$B$3, DataPack!$B103, IF($C$5=Dates1!$B$4, DataPack!$G103, IF($C$5=Dates1!$B$5, DataPack!$L103, IF($C$5=Dates1!$B$6, DataPack!$Q103))))","v":2},null,{"$f":"IF($C$5=Dates1!$B$3, DataPack!$C103, IF($C$5=Dates1!$B$4, DataPack!$H103, IF($C$5=Dates1!$B$5, DataPack!$M103, IF($C$5=Dates1!$B$6, DataPack!$R103))))","v":3},null,{"$f":"IF($C$5=Dates1!$B$3, DataPack!$D103, IF($C$5=Dates1!$B$4, DataPack!$I103, IF($C$5=Dates1!$B$5, DataPack!$N103, IF($C$5=Dates1!$B$6, DataPack!$S103))))","v":3},null,{"$f":"IF($C$5=Dates1!$B$3, DataPack!$E103, IF($C$5=Dates1!$B$4, DataPack!$J103, IF($C$5=Dates1!$B$5, DataPack!$O103, IF($C$5=Dates1!$B$6, DataPack!$T103))))","v":0}]
[null,"     B4. How effective are the care, guidance and support learners receive in helping them \n     to achieve?",null,null,null,null,null,null,8,{"$f":"IF($C$5=Dates1!$B$3, DataPack!$B104, IF($C$5=Dates1!$B$4, DataPack!$G104, IF($C$5=Dates1!$B$5, DataPack!$L104, IF($C$5=Dates1!$B$6, DataPack!$Q104))))","v":1},null,{"$f":"IF($C$5=Dates1!$B$3, DataPack!$C104, IF($C$5=Dates1!$B$4, DataPack!$H104, IF($C$5=Dates1!$B$5, DataPack!$M104, IF($C$5=Dates1!$B$6, DataPack!$R104))))","v":2},null,{"$f":"IF($C$5=Dates1!$B$3, DataPack!$D104, IF($C$5=Dates1!$B$4, DataPack!$I104, IF($C$5=Dates1!$B$5, DataPack!$N104, IF($C$5=Dates1!$B$6, DataPack!$S104))))","v":5},null,{"$f":"IF($C$5=Dates1!$B$3, DataPack!$E104, IF($C$5=Dates1!$B$4, DataPack!$J104, IF($C$5=Dates1!$B$5, DataPack!$O104, IF($C$5=Dates1!$B$6, DataPack!$T104))))","v":0}]
[null,"C. Leadership and management",null,null,null,null,null,null,8,{"$f":"IF($C$5=Dates1!$B$3, DataPack!$B105, IF($C$5=Dates1!$B$4, DataPack!$G105, IF($C$5=Dates1!$B$5, DataPack!$L105, IF($C$5=Dates1!$B$6, DataPack!$Q105))))","v":0},null,{"$f":"IF($C$5=Dates1!$B$3, DataPack!$C105, IF($C$5=Dates1!$B$4, DataPack!$H105, IF($C$5=Dates1!$B$5, DataPack!$M105, IF($C$5=Dates1!$B$6, DataPack!$R105))))","v":2},null,{"$f":"IF($C$5=Dates1!$B$3, DataPack!$D105, IF($C$5=Dates1!$B$4, DataPack!$I105, IF($C$5=Dates1!$B$5, DataPack!$N105, IF($C$5=Dates1!$B$6, DataPack!$S105))))","v":4},null,{"$f":"IF($C$5=Dates1!$B$3, DataPack!$E105, IF($C$5=Dates1!$B$4, DataPack!$J105, IF($C$5=Dates1!$B$5, DataPack!$O105, IF($C$5=Dates1!$B$6, DataPack!$T105))))","v":2}]
[null,"     C1. How effectively do leaders and managers raise expectations and promote ambition \n     throughout the organisation?",null,null,null,null,null,null,8,{"$f":"IF($C$5=Dates1!$B$3, DataPack!$B106, IF($C$5=Dates1!$B$4, DataPack!$G106, IF($C$5=Dates1!$B$5, DataPack!$L106, IF($C$5=Dates1!$B$6, DataPack!$Q106))))","v":0},null,{"$f":"IF($C$5=Dates1!$B$3, DataPack!$C106, IF($C$5=Dates1!$B$4, DataPack!$H106, IF($C$5=Dates1!$B$5, DataPack!$M106, IF($C$5=Dates1!$B$6, DataPack!$R106))))","v":4},null,{"$f":"IF($C$5=Dates1!$B$3, DataPack!$D106, IF($C$5=Dates1!$B$4, DataPack!$I106, IF($C$5=Dates1!$B$5, DataPack!$N106, IF($C$5=Dates1!$B$6, DataPack!$S106))))","v":2},null,{"$f":"IF($C$5=Dates1!$B$3, DataPack!$E106, IF($C$5=Dates1!$B$4, DataPack!$J106, IF($C$5=Dates1!$B$5, DataPack!$O106, IF($C$5=Dates1!$B$6, DataPack!$T106))))","v":2}]
[null,"     C2. How effectively do governors and supervisory bodies provide leadership, direction \n     and challenge?1",null,null,null,null,null,null,8,{"$f":"IF($C$5=Dates1!$B$3, DataPack!$B107, IF($C$5=Dates1!$B$4, DataPack!$G107, IF($C$5=Dates1!$B$5, DataPack!$L107, IF($C$5=Dates1!$B$6, DataPack!$Q107))))","v":1},null,{"$f":"IF($C$5=Dates1!$B$3, DataPack!$C107, IF($C$5=Dates1!$B$4, DataPack!$H107, IF($C$5=Dates1!$B$5, DataPack!$M107, IF($C$5=Dates1!$B$6, DataPack!$R107))))","v":2},null,{"$f":"IF($C$5=Dates1!$B$3, DataPack!$D107, IF($C$5=Dates1!$B$4, DataPack!$I107, IF($C$5=Dates1!$B$5, DataPack!$N107, IF($C$5=Dates1!$B$6, DataPack!$S107))))","v":5},null,{"$f":"IF($C$5=Dates1!$B$3, DataPack!$E107, IF($C$5=Dates1!$B$4, DataPack!$J107, IF($C$5=Dates1!$B$5, DataPack!$O107, IF($C$5=Dates1!$B$6, DataPack!$T107))))","v":0}]
[null,"    C3. How effectively does the provider promote the safeguarding of learners?",null,null,null,null,null,null,8,{"$f":"IF($C$5=Dates1!$B$3, DataPack!$B108, IF($C$5=Dates1!$B$4, DataPack!$G108, IF($C$5=Dates1!$B$5, DataPack!$L108, IF($C$5=Dates1!$B$6, DataPack!$Q108))))","v":2},null,{"$f":"IF($C$5=Dates1!$B$3, DataPack!$C108, IF($C$5=Dates1!$B$4, DataPack!$H108, IF($C$5=Dates1!$B$5, DataPack!$M108, IF($C$5=Dates1!$B$6, DataPack!$R108))))","v":3},null,{"$f":"IF($C$5=Dates1!$B$3, DataPack!$D108, IF($C$5=Dates1!$B$4, DataPack!$I108, IF($C$5=Dates1!$B$5, DataPack!$N108, IF($C$5=Dates1!$B$6, DataPack!$S108))))","v":3},null,{"$f":"IF($C$5=Dates1!$B$3, DataPack!$E108, IF($C$5=Dates1!$B$4, DataPack!$J108, IF($C$5=Dates1!$B$5, DataPack!$O108, IF($C$5=Dates1!$B$6, DataPack!$T108))))","v":0}]
[null,"C4. How effectively does the provider actively promote equality and diversity,\ntackle discrimination and narrow the achievement gap?",null,null,null,null,null,null,8,{"$f":"IF($C$5=Dates1!$B$3, DataPack!$B109, IF($C$5=Dates1!$B$4, DataPack!$G109, IF($C$5=Dates1!$B$5, DataPack!$L109, IF($C$5=Dates1!$B$6, DataPack!$Q109))))","v":1},null,{"$f":"IF($C$5=Dates1!$B$3, DataPack!$C109, IF($C$5=Dates1!$B$4, DataPack!$H109, IF($C$5=Dates1!$B$5, DataPack!$M109, IF($C$5=Dates1!$B$6, DataPack!$R109))))","v":2},null,{"$f":"IF($C$5=Dates1!$B$3, DataPack!$D109, IF($C$5=Dates1!$B$4, DataPack!$I109, IF($C$5=Dates1!$B$5, DataPack!$N109, IF($C$5=Dates1!$B$6, DataPack!$S109))))","v":5},null,{"$f":"IF($C$5=Dates1!$B$3, DataPack!$E109, IF($C$5=Dates1!$B$4, DataPack!$J109, IF($C$5=Dates1!$B$5, DataPack!$O109, IF($C$5=Dates1!$B$6, DataPack!$T109))))","v":0}]
[null,"     C5. How effectively does the provider engage with users to support and promote \n     improvement?",null,null,null,null,null,null,8,{"$f":"IF($C$5=Dates1!$B$3, DataPack!$B110, IF($C$5=Dates1!$B$4, DataPack!$G110, IF($C$5=Dates1!$B$5, DataPack!$L110, IF($C$5=Dates1!$B$6, DataPack!$Q110))))","v":1},null,{"$f":"IF($C$5=Dates1!$B$3, DataPack!$C110, IF($C$5=Dates1!$B$4, DataPack!$H110, IF($C$5=Dates1!$B$5, DataPack!$M110, IF($C$5=Dates1!$B$6, DataPack!$R110))))","v":3},null,{"$f":"IF($C$5=Dates1!$B$3, DataPack!$D110, IF($C$5=Dates1!$B$4, DataPack!$I110, IF($C$5=Dates1!$B$5, DataPack!$N110, IF($C$5=Dates1!$B$6, DataPack!$S110))))","v":4},null,{"$f":"IF($C$5=Dates1!$B$3, DataPack!$E110, IF($C$5=Dates1!$B$4, DataPack!$J110, IF($C$5=Dates1!$B$5, DataPack!$O110, IF($C$5=Dates1!$B$6, DataPack!$T110))))","v":0}]
[null,"     C6. How effectively does self-assessment improve the quality of the provision and \n     outcomes for learners?",null,null,null,null,null,null,8,{"$f":"IF($C$5=Dates1!$B$3, DataPack!$B111, IF($C$5=Dates1!$B$4, DataPack!$G111, IF($C$5=Dates1!$B$5, DataPack!$L111, IF($C$5=Dates1!$B$6, DataPack!$Q111))))","v":0},null,{"$f":"IF($C$5=Dates1!$B$3, DataPack!$C111, IF($C$5=Dates1!$B$4, DataPack!$H111, IF($C$5=Dates1!$B$5, DataPack!$M111, IF($C$5=Dates1!$B$6, DataPack!$R111))))","v":1},null,{"$f":"IF($C$5=Dates1!$B$3, DataPack!$D111, IF($C$5=Dates1!$B$4, DataPack!$I111, IF($C$5=Dates1!$B$5, DataPack!$N111, IF($C$5=Dates1!$B$6, DataPack!$S111))))","v":5},null,{"$f":"IF($C$5=Dates1!$B$3, DataPack!$E111, IF($C$5=Dates1!$B$4, DataPack!$J111, IF($C$5=Dates1!$B$5, DataPack!$O111, IF($C$5=Dates1!$B$6, DataPack!$T111))))","v":2}]
[null,"     C7. How efficiently and effectively does the provider use its available resources to \n     secure value for money?",null,null,null,null,null,null,8,{"$f":"IF($C$5=Dates1!$B$3, DataPack!$B112, IF($C$5=Dates1!$B$4, DataPack!$G112, IF($C$5=Dates1!$B$5, DataPack!$L112, IF($C$5=Dates1!$B$6, DataPack!$Q112))))","v":0},null,{"$f":"IF($C$5=Dates1!$B$3, DataPack!$C112, IF($C$5=Dates1!$B$4, DataPack!$H112, IF($C$5=Dates1!$B$5, DataPack!$M112, IF($C$5=Dates1!$B$6, DataPack!$R112))))","v":2},null,{"$f":"IF($C$5=Dates1!$B$3, DataPack!$D112, IF($C$5=Dates1!$B$4, DataPack!$I112, IF($C$5=Dates1!$B$5, DataPack!$N112, IF($C$5=Dates1!$B$6, DataPack!$S112))))","v":5},null,{"$f":"IF($C$5=Dates1!$B$3, DataPack!$E112, IF($C$5=Dates1!$B$4, DataPack!$J112, IF($C$5=Dates1!$B$5, DataPack!$O112, IF($C$5=Dates1!$B$6, DataPack!$T112))))","v":1}]
[null,null,null,null,null,null,null,null,null,null,null,null,"Source: Ofsted inspections"]
[null,"1. Where appplicable to the type of provision. "]

{"sheet":"Table 2d","index":9,"n_rows":32,"n_cols":16,"rows_kept":32,"cut":false,"hidden":false,"merged":[[4,8,5,8],[4,2,4,6],[8,1,8,6],[9,1,9,6],[10,1,10,6],[7,1,7,6],[21,1,21,6],[23,1,23,6],[16,1,16,6],[11,1,11,6],[12,1,12,6],[13,1,13,6],[14,1,14,6],[15,1,15,6],[30,12,30,16],[4,9,4,10],[4,11,4,12],[4,13,4,14],[4,15,4,16],[27,1,27,6],[20,1,20,6],[19,1,19,6],[18,1,18,6],[17,1,17,6],[26,1,26,6],[22,1,22,6],[25,1,25,6],[24,1,24,6],[29,1,29,6],[28,1,28,6]]}
[]
[null,{"$f":"\"Table 2d: Inspection outcomes of independent specialist colleges inspected \" & IF('Table 2d'!C5=Dates1!$B$3, \"between \" & Dates1!$B$3, IF('Table 2d'!C5 = Dates1!B4, \"in \" & Dates1!B4, IF('Table 2d'!C5=Dates1!B5, \"in \" & Dates1!B5, IF('Table 2d'!C5=Dates1!B6, \"in \" & Dates1!B6, IF('Table 2d'!C5=Dates1!B7, \"in \" & Dates1!B7)))))  & \" (provisional)\"","v":"Table 2d: Inspection outcomes of independent specialist colleges inspected between 1 October and 31 December 2011 (provisional)"}]
[]
[]
[null,"Select period:","1 October and 31 December 2011",null,null,null,null,null,"Total number inspected","Outstanding",null,"Good",null,"Satisfactory",null,"Inadequate"]
[null,null,null,null,null,null,null,null,"Number","Number",null,"Number",null,"Number",null,"Number"]
[]
[null,"Overall effectiveness",null,null,null,null,null,null,{"$f":"J8+L8+N8+P8","v":2},{"$f":"IF($C$5=Dates1!$B$3, DataPack!$B116, IF($C$5=Dates1!$B$4, DataPack!$G116, IF($C$5=Dates1!$B$5, DataPack!$L116, IF($C$5=Dates1!$B$6, DataPack!$Q116))))","v":0},null,{"$f":"IF($C$5=Dates1!$B$3, DataPack!$C116, IF($C$5=Dates1!$B$4, DataPack!$H116, IF($C$5=Dates1!$B$5, DataPack!$M116, IF($C$5=Dates1!$B$6, DataPack!$R116))))","v":1},null,{"$f":"IF($C$5=Dates1!$B$3, DataPack!$D116, IF($C$5=Dates1!$B$4, DataPack!$I116, IF($C$5=Dates1!$B$5, DataPack!$N116, IF($C$5=Dates1!$B$6, DataPack!$S116))))","v":0},null,{"$f":"IF($C$5=Dates1!$B$3, DataPack!$E116, IF($C$5=Dates1!$B$4, DataPack!$J116, IF($C$5=Dates1!$B$5, DataPack!$O116, IF($C$5=Dates1!$B$6, DataPack!$T116))))","v":1}]
[null,"Capacity to improve",null,null,null,null,null,null,2,{"$f":"IF($C$5=Dates1!$B$3, DataPack!$B117, IF($C$5=Dates1!$B$4, DataPack!$G117, IF($C$5=Dates1!$B$5, DataPack!$L117, IF($C$5=Dates1!$B$6, DataPack!$Q117))))","v":0},null,{"$f":"IF($C$5=Dates1!$B$3, DataPack!$C117, IF($C$5=Dates1!$B$4, DataPack!$H117, IF($C$5=Dates1!$B$5, DataPack!$M117, IF($C$5=Dates1!$B$6, DataPack!$R117))))","v":1},null,{"$f":"IF($C$5=Dates1!$B$3, DataPack!$D117, IF($C$5=Dates1!$B$4, DataPack!$I117, IF($C$5=Dates1!$B$5, DataPack!$N117, IF($C$5=Dates1!$B$6, DataPack!$S117))))","v":0},null,{"$f":"IF($C$5=Dates1!$B$3, DataPack!$E117, IF($C$5=Dates1!$B$4, DataPack!$J117, IF($C$5=Dates1!$B$5, DataPack!$O117, IF($C$5=Dates1!$B$6, DataPack!$T117))))","v":1}]
[null,"A. Outcomes for learners",null,null,null,null,null,null,2,{"$f":"IF($C$5=Dates1!$B$3, DataPack!$B118, IF($C$5=Dates1!$B$4, DataPack!$G118, IF($C$5=Dates1!$B$5, DataPack!$L118, IF($C$5=Dates1!$B$6, DataPack!$Q118))))","v":0},null,{"$f":"IF($C$5=Dates1!$B$3, DataPack!$C118, IF($C$5=Dates1!$B$4, DataPack!$H118, IF($C$5=Dates1!$B$5, DataPack!$M118, IF($C$5=Dates1!$B$6, DataPack!$R118))))","v":1},null,{"$f":"IF($C$5=Dates1!$B$3, DataPack!$D118, IF($C$5=Dates1!$B$4, DataPack!$I118, IF($C$5=Dates1!$B$5, DataPack!$N118, IF($C$5=Dates1!$B$6, DataPack!$S118))))","v":1},null,{"$f":"IF($C$5=Dates1!$B$3, DataPack!$E118, IF($C$5=Dates1!$B$4, DataPack!$J118, IF($C$5=Dates1!$B$5, DataPack!$O118, IF($C$5=Dates1!$B$6, DataPack!$T118))))","v":0}]
[null,"     A1. How well do learners achieve and enjoy their learning",null,null,null,null,null,null,2,{"$f":"IF($C$5=Dates1!$B$3, DataPack!$B119, IF($C$5=Dates1!$B$4, DataPack!$G119, IF($C$5=Dates1!$B$5, DataPack!$L119, IF($C$5=Dates1!$B$6, DataPack!$Q119))))","v":0},null,{"$f":"IF($C$5=Dates1!$B$3, DataPack!$C119, IF($C$5=Dates1!$B$4, DataPack!$H119, IF($C$5=Dates1!$B$5, DataPack!$M119, IF($C$5=Dates1!$B$6, DataPack!$R119))))","v":1},null,{"$f":"IF($C$5=Dates1!$B$3, DataPack!$D119, IF($C$5=Dates1!$B$4, DataPack!$I119, IF($C$5=Dates1!$B$5, DataPack!$N119, IF($C$5=Dates1!$B$6, DataPack!$S119))))","v":1},null,{"$f":"IF($C$5=Dates1!$B$3, DataPack!$E119, IF($C$5=Dates1!$B$4, DataPack!$J119, IF($C$5=Dates1!$B$5, DataPack!$O119, IF($C$5=Dates1!$B$6, DataPack!$T119))))","v":0}]
[null,"          A1.a) How well do learners attain their learning goals",null,null,null,null,null,null,2,{"$f":"IF($C$5=Dates1!$B$3, DataPack!$B120, IF($C$5=Dates1!$B$4, DataPack!$G120, IF($C$5=Dates1!$B$5, DataPack!$L120, IF($C$5=Dates1!$B$6, DataPack!$Q120))))","v":0},null,{"$f":"IF($C$5=Dates1!$B$3, DataPack!$C120, IF($C$5=Dates1!$B$4, DataPack!$H120, IF($C$5=Dates1!$B$5, DataPack!$M120, IF($C$5=Dates1!$B$6, DataPack!$R120))))","v":1},null,{"$f":"IF($C$5=Dates1!$B$3, DataPack!$D120, IF($C$5=Dates1!$B$4, DataPack!$I120, IF($C$5=Dates1!$B$5, DataPack!$N120, IF($C$5=Dates1!$B$6, DataPack!$S120))))","v":1},null,{"$f":"IF($C$5=Dates1!$B$3, DataPack!$E120, IF($C$5=Dates1!$B$4, DataPack!$J120, IF($C$5=Dates1!$B$5, DataPack!$O120, IF($C$5=Dates1!$B$6, DataPack!$T120))))","v":0}]
[null,"          A1.b) How well do learners progress?",null,null,null,null,null,null,2,{"$f":"IF($C$5=Dates1!$B$3, DataPack!$B121, IF($C$5=Dates1!$B$4, DataPack!$G121, IF($C$5=Dates1!$B$5, DataPack!$L121, IF($C$5=Dates1!$B$6, DataPack!$Q121))))","v":0},null,{"$f":"IF($C$5=Dates1!$B$3, DataPack!$C121, IF($C$5=Dates1!$B$4, DataPack!$H121, IF($C$5=Dates1!$B$5, DataPack!$M121, IF($C$5=Dates1!$B$6, DataPack!$R121))))","v":1},null,{"$f":"IF($C$5=Dates1!$B$3, DataPack!$D121, IF($C$5=Dates1!$B$4, DataPack!$I121, IF($C$5=Dates1!$B$5, DataPack!$N121, IF($C$5=Dates1!$B$6, DataPack!$S121))))","v":1},null,{"$f":"IF($C$5=Dates1!$B$3, DataPack!$E121, IF($C$5=Dates1!$B$4, DataPack!$J121, IF($C$5=Dates1!$B$5, DataPack!$O121, IF($C$5=Dates1!$B$6, DataPack!$T121))))","v":0}]
[null,"     A2. How well do learners improve their economic and social well-being through learning \n     and development?",null,null,null,null,null,null,2,{"$f":"IF($C$5=Dates1!$B$3, DataPack!$B122, IF($C$5=Dates1!$B$4, DataPack!$G122, IF($C$5=Dates1!$B$5, DataPack!$L122, IF($C$5=Dates1!$B$6, DataPack!$Q122))))","v":0},null,{"$f":"IF($C$5=Dates1!$B$3, DataPack!$C122, IF($C$5=Dates1!$B$4, DataPack!$H122, IF($C$5=Dates1!$B$5, DataPack!$M122, IF($C$5=Dates1!$B$6, DataPack!$R122))))","v":1},null,{"$f":"IF($C$5=Dates1!$B$3, DataPack!$D122, IF($C$5=Dates1!$B$4, DataPack!$I122, IF($C$5=Dates1!$B$5, DataPack!$N122, IF($C$5=Dates1!$B$6, DataPack!$S122))))","v":1},null,{"$f":"IF($C$5=Dates1!$B$3, DataPack!$E122, IF($C$5=Dates1!$B$4, DataPack!$J122, IF($C$5=Dates1!$B$5, DataPack!$O122, IF($C$5=Dates1!$B$6, DataPack!$T122))))","v":0}]
[null,"     A3. How safe do learners feel?",null,null,null,null,null,null,2,{"$f":"IF($C$5=Dates1!$B$3, DataPack!$B123, IF($C$5=Dates1!$B$4, DataPack!$G123, IF($C$5=Dates1!$B$5, DataPack!$L123, IF($C$5=Dates1!$B$6, DataPack!$Q123))))","v":0},null,{"$f":"IF($C$5=Dates1!$B$3, DataPack!$C123, IF($C$5=Dates1!$B$4, DataPack!$H123, IF($C$5=Dates1!$B$5, DataPack!$M123, IF($C$5=Dates1!$B$6, DataPack!$R123))))","v":1},null,{"$f":"IF($C$5=Dates1!$B$3, DataPack!$D123, IF($C$5=Dates1!$B$4, DataPack!$I123, IF($C$5=Dates1!$B$5, DataPack!$N123, IF($C$5=Dates1!$B$6, DataPack!$S123))))","v":1},null,{"$f":"IF($C$5=Dates1!$B$3, DataPack!$E123, IF($C$5=Dates1!$B$4, DataPack!$J123, IF($C$5=Dates1!$B$5, DataPack!$O123, IF($C$5=Dates1!$B$6, DataPack!$T123))))","v":0}]
[null,"     A4. Are learners able to make informed choices about their own health and well being?1",null,null,null,null,null,null,2,{"$f":"IF($C$5=Dates1!$B$3, DataPack!$B124, IF($C$5=Dates1!$B$4, DataPack!$G124, IF($C$5=Dates1!$B$5, DataPack!$L124, IF($C$5=Dates1!$B$6, DataPack!$Q124))))","v":1},null,{"$f":"IF($C$5=Dates1!$B$3, DataPack!$C124, IF($C$5=Dates1!$B$4, DataPack!$H124, IF($C$5=Dates1!$B$5, DataPack!$M124, IF($C$5=Dates1!$B$6, DataPack!$R124))))","v":0},null,{"$f":"IF($C$5=Dates1!$B$3, DataPack!$D124, IF($C$5=Dates1!$B$4, DataPack!$I124, IF($C$5=Dates1!$B$5, DataPack!$N124, IF($C$5=Dates1!$B$6, DataPack!$S124))))","v":1},null,{"$f":"IF($C$5=Dates1!$B$3, DataPack!$E124, IF($C$5=Dates1!$B$4, DataPack!$J124, IF($C$5=Dates1!$B$5, DataPack!$O124, IF($C$5=Dates1!$B$6, DataPack!$T124))))","v":0}]
[null,"     A5. How well do learners make a positive contribution to the community?1",null,null,null,null,null,null,2,{"$f":"IF($C$5=Dates1!$B$3, DataPack!$B125, IF($C$5=Dates1!$B$4, DataPack!$G125, IF($C$5=Dates1!$B$5, DataPack!$L125, IF($C$5=Dates1!$B$6, DataPack!$Q125))))","v":1},null,{"$f":"IF($C$5=Dates1!$B$3, DataPack!$C125, IF($C$5=Dates1!$B$4, DataPack!$H125, IF($C$5=Dates1!$B$5, DataPack!$M125, IF($C$5=Dates1!$B$6, DataPack!$R125))))","v":1},null,{"$f":"IF($C$5=Dates1!$B$3, DataPack!$D125, IF($C$5=Dates1!$B$4, DataPack!$I125, IF($C$5=Dates1!$B$5, DataPack!$N125, IF($C$5=Dates1!$B$6, DataPack!$S125))))","v":0},null,{"$f":"IF($C$5=Dates1!$B$3, DataPack!$E125, IF($C$5=Dates1!$B$4, DataPack!$J125, IF($C$5=Dates1!$B$5, DataPack!$O125, IF($C$5=Dates1!$B$6, DataPack!$T125))))","v":0}]
[null,"B. Quality of provision",null,null,null,null,null,null,2,{"$f":"IF($C$5=Dates1!$B$3, DataPack!$B126, IF($C$5=Dates1!$B$4, DataPack!$G126, IF($C$5=Dates1!$B$5, DataPack!$L126, IF($C$5=Dates1!$B$6, DataPack!$Q126))))","v":0},null,{"$f":"IF($C$5=Dates1!$B$3, DataPack!$C126, IF($C$5=Dates1!$B$4, DataPack!$H126, IF($C$5=Dates1!$B$5, DataPack!$M126, IF($C$5=Dates1!$B$6, DataPack!$R126))))","v":1},null,{"$f":"IF($C$5=Dates1!$B$3, DataPack!$D126, IF($C$5=Dates1!$B$4, DataPack!$I126, IF($C$5=Dates1!$B$5, DataPack!$N126, IF($C$5=Dates1!$B$6, DataPack!$S126))))","v":0},null,{"$f":"IF($C$5=Dates1!$B$3, DataPack!$E126, IF($C$5=Dates1!$B$4, DataPack!$J126, IF($C$5=Dates1!$B$5, DataPack!$O126, IF($C$5=Dates1!$B$6, DataPack!$T126))))","v":1}]
[null,"     B1. How effectively do teaching, training and assessment support learning and \n     development?",null,null,null,null,null,null,2,{"$f":"IF($C$5=Dates1!$B$3, DataPack!$B127, IF($C$5=Dates1!$B$4, DataPack!$G127, IF($C$5=Dates1!$B$5, DataPack!$L127, IF($C$5=Dates1!$B$6, DataPack!$Q127))))","v":0},null,{"$f":"IF($C$5=Dates1!$B$3, DataPack!$C127, IF($C$5=Dates1!$B$4, DataPack!$H127, IF($C$5=Dates1!$B$5, DataPack!$M127, IF($C$5=Dates1!$B$6, DataPack!$R127))))","v":1},null,{"$f":"IF($C$5=Dates1!$B$3, DataPack!$D127, IF($C$5=Dates1!$B$4, DataPack!$I127, IF($C$5=Dates1!$B$5, DataPack!$N127, IF($C$5=Dates1!$B$6, DataPack!$S127))))","v":0},null,{"$f":"IF($C$5=Dates1!$B$3, DataPack!$E127, IF($C$5=Dates1!$B$4, DataPack!$J127, IF($C$5=Dates1!$B$5, DataPack!$O127, IF($C$5=Dates1!$B$6, DataPack!$T127))))","v":1}]
[null,"     B2. How effectively does the provision meet the needs and interests of users?",null,null,null,null,null,null,2,{"$f":"IF($C$5=Dates1!$B$3, DataPack!$B128, IF($C$5=Dates1!$B$4, DataPack!$G128, IF($C$5=Dates1!$B$5, DataPack!$L128, IF($C$5=Dates1!$B$6, DataPack!$Q128))))","v":0},null,{"$f":"IF($C$5=Dates1!$B$3, DataPack!$C128, IF($C$5=Dates1!$B$4, DataPack!$H128, IF($C$5=Dates1!$B$5, DataPack!$M128, IF($C$5=Dates1!$B$6, DataPack!$R128))))","v":1},null,{"$f":"IF($C$5=Dates1!$B$3, DataPack!$D128, IF($C$5=Dates1!$B$4, DataPack!$I128, IF($C$5=Dates1!$B$5, DataPack!$N128, IF($C$5=Dates1!$B$6, DataPack!$S128))))","v":1},null,{"$f":"IF($C$5=Dates1!$B$3, DataPack!$E128, IF($C$5=Dates1!$B$4, DataPack!$J128, IF($C$5=Dates1!$B$5, DataPack!$O128, IF($C$5=Dates1!$B$6, DataPack!$T128))))","v":0}]
[null,"     B3. How well do partnerships with schools, employers, community groups and others \n     lead to benefits for learners?",null,null,null,null,null,null,2,{"$f":"IF($C$5=Dates1!$B$3, DataPack!$B129, IF($C$5=Dates1!$B$4, DataPack!$G129, IF($C$5=Dates1!$B$5, DataPack!$L129, IF($C$5=Dates1!$B$6, DataPack!$Q129))))","v":0},null,{"$f":"IF($C$5=Dates1!$B$3, DataPack!$C129, IF($C$5=Dates1!$B$4, DataPack!$H129, IF($C$5=Dates1!$B$5, DataPack!$M129, IF($C$5=Dates1!$B$6, DataPack!$R129))))","v":1},null,{"$f":"IF($C$5=Dates1!$B$3, DataPack!$D129, IF($C$5=Dates1!$B$4, DataPack!$I129, IF($C$5=Dates1!$B$5, DataPack!$N129, IF($C$5=Dates1!$B$6, DataPack!$S129))))","v":1},null,{"$f":"IF($C$5=Dates1!$B$3, DataPack!$E129, IF($C$5=Dates1!$B$4, DataPack!$J129, IF($C$5=Dates1!$B$5, DataPack!$O129, IF($C$5=Dates1!$B$6, DataPack!$T129))))","v":0}]
[null,"     B4. How effective are the care, guidance and support learners receive in helping them \n     to achieve?",null,null,null,null,null,null,2,{"$f":"IF($C$5=Dates1!$B$3, DataPack!$B130, IF($C$5=Dates1!$B$4, DataPack!$G130, IF($C$5=Dates1!$B$5, DataPack!$L130, IF($C$5=Dates1!$B$6, DataPack!$Q130))))","v":1},null,{"$f":"IF($C$5=Dates1!$B$3, DataPack!$C130, IF($C$5=Dates1!$B$4, DataPack!$H130, IF($C$5=Dates1!$B$5, DataPack!$M130, IF($C$5=Dates1!$B$6, DataPack!$R130))))","v":0},null,{"$f":"IF($C$5=Dates1!$B$3, DataPack!$D130, IF($C$5=Dates1!$B$4, DataPack!$I130, IF($C$5=Dates1!$B$5, DataPack!$N130, IF($C$5=Dates1!$B$6, DataPack!$S130))))","v":1},null,{"$f":"IF($C$5=Dates1!$B$3, DataPack!$E130, IF($C$5=Dates1!$B$4, DataPack!$J130, IF($C$5=Dates1!$B$5, DataPack!$O130, IF($C$5=Dates1!$B$6, DataPack!$T130))))","v":0}]
[null,"C. Leadership and management",null,null,null,null,null,null,2,{"$f":"IF($C$5=Dates1!$B$3, DataPack!$B131, IF($C$5=Dates1!$B$4, DataPack!$G131, IF($C$5=Dates1!$B$5, DataPack!$L131, IF($C$5=Dates1!$B$6, DataPack!$Q131))))","v":0},null,{"$f":"IF($C$5=Dates1!$B$3, DataPack!$C131, IF($C$5=Dates1!$B$4, DataPack!$H131, IF($C$5=Dates1!$B$5, DataPack!$M131, IF($C$5=Dates1!$B$6, DataPack!$R131))))","v":1},null,{"$f":"IF($C$5=Dates1!$B$3, DataPack!$D131, IF($C$5=Dates1!$B$4, DataPack!$I131, IF($C$5=Dates1!$B$5, DataPack!$N131, IF($C$5=Dates1!$B$6, DataPack!$S131))))","v":0},null,{"$f":"IF($C$5=Dates1!$B$3, DataPack!$E131, IF($C$5=Dates1!$B$4, DataPack!$J131, IF($C$5=Dates1!$B$5, DataPack!$O131, IF($C$5=Dates1!$B$6, DataPack!$T131))))","v":1}]
[null,"     C1. How effectively do leaders and managers raise expectations and promote ambition \n     throughout the organisation?",null,null,null,null,null,null,2,{"$f":"IF($C$5=Dates1!$B$3, DataPack!$B132, IF($C$5=Dates1!$B$4, DataPack!$G132, IF($C$5=Dates1!$B$5, DataPack!$L132, IF($C$5=Dates1!$B$6, DataPack!$Q132))))","v":0},null,{"$f":"IF($C$5=Dates1!$B$3, DataPack!$C132, IF($C$5=Dates1!$B$4, DataPack!$H132, IF($C$5=Dates1!$B$5, DataPack!$M132, IF($C$5=Dates1!$B$6, DataPack!$R132))))","v":1},null,{"$f":"IF($C$5=Dates1!$B$3, DataPack!$D132, IF($C$5=Dates1!$B$4, DataPack!$I132, IF($C$5=Dates1!$B$5, DataPack!$N132, IF($C$5=Dates1!$B$6, DataPack!$S132))))","v":0},null,{"$f":"IF($C$5=Dates1!$B$3, DataPack!$E132, IF($C$5=Dates1!$B$4, DataPack!$J132, IF($C$5=Dates1!$B$5, DataPack!$O132, IF($C$5=Dates1!$B$6, DataPack!$T132))))","v":1}]
[null,"     C2. How effectively do governors and supervisory bodies provide leadership, direction \n     and challenge?1",null,null,null,null,null,null,2,{"$f":"IF($C$5=Dates1!$B$3, DataPack!$B133, IF($C$5=Dates1!$B$4, DataPack!$G133, IF($C$5=Dates1!$B$5, DataPack!$L133, IF($C$5=Dates1!$B$6, DataPack!$Q133))))","v":0},null,{"$f":"IF($C$5=Dates1!$B$3, DataPack!$C133, IF($C$5=Dates1!$B$4, DataPack!$H133, IF($C$5=Dates1!$B$5, DataPack!$M133, IF($C$5=Dates1!$B$6, DataPack!$R133))))","v":1},null,{"$f":"IF($C$5=Dates1!$B$3, DataPack!$D133, IF($C$5=Dates1!$B$4, DataPack!$I133, IF($C$5=Dates1!$B$5, DataPack!$N133, IF($C$5=Dates1!$B$6, DataPack!$S133))))","v":0},null,{"$f":"IF($C$5=Dates1!$B$3, DataPack!$E133, IF($C$5=Dates1!$B$4, DataPack!$J133, IF($C$5=Dates1!$B$5, DataPack!$O133, IF($C$5=Dates1!$B$6, DataPack!$T133))))","v":1}]
[null,"    C3. How effectively does the provider promote the safeguarding of learners?",null,null,null,null,null,null,2,{"$f":"IF($C$5=Dates1!$B$3, DataPack!$B134, IF($C$5=Dates1!$B$4, DataPack!$G134, IF($C$5=Dates1!$B$5, DataPack!$L134, IF($C$5=Dates1!$B$6, DataPack!$Q134))))","v":0},null,{"$f":"IF($C$5=Dates1!$B$3, DataPack!$C134, IF($C$5=Dates1!$B$4, DataPack!$H134, IF($C$5=Dates1!$B$5, DataPack!$M134, IF($C$5=Dates1!$B$6, DataPack!$R134))))","v":1},null,{"$f":"IF($C$5=Dates1!$B$3, DataPack!$D134, IF($C$5=Dates1!$B$4, DataPack!$I134, IF($C$5=Dates1!$B$5, DataPack!$N134, IF($C$5=Dates1!$B$6, DataPack!$S134))))","v":0},null,{"$f":"IF($C$5=Dates1!$B$3, DataPack!$E134, IF($C$5=Dates1!$B$4, DataPack!$J134, IF($C$5=Dates1!$B$5, DataPack!$O134, IF($C$5=Dates1!$B$6, DataPack!$T134))))","v":1}]
[null,"C4. How effectively does the provider actively promote equality and diversity,\ntackle discrimination and narrow the achievement gap?",null,null,null,null,null,null,2,{"$f":"IF($C$5=Dates1!$B$3, DataPack!$B135, IF($C$5=Dates1!$B$4, DataPack!$G135, IF($C$5=Dates1!$B$5, DataPack!$L135, IF($C$5=Dates1!$B$6, DataPack!$Q135))))","v":0},null,{"$f":"IF($C$5=Dates1!$B$3, DataPack!$C135, IF($C$5=Dates1!$B$4, DataPack!$H135, IF($C$5=Dates1!$B$5, DataPack!$M135, IF($C$5=Dates1!$B$6, DataPack!$R135))))","v":1},null,{"$f":"IF($C$5=Dates1!$B$3, DataPack!$D135, IF($C$5=Dates1!$B$4, DataPack!$I135, IF($C$5=Dates1!$B$5, DataPack!$N135, IF($C$5=Dates1!$B$6, DataPack!$S135))))","v":0},null,{"$f":"IF($C$5=Dates1!$B$3, DataPack!$E135, IF($C$5=Dates1!$B$4, DataPack!$J135, IF($C$5=Dates1!$B$5, DataPack!$O135, IF($C$5=Dates1!$B$6, DataPack!$T135))))","v":1}]
[null,"     C5. How effectively does the provider engage with users to support and promote \n     improvement?",null,null,null,null,null,null,2,{"$f":"IF($C$5=Dates1!$B$3, DataPack!$B136, IF($C$5=Dates1!$B$4, DataPack!$G136, IF($C$5=Dates1!$B$5, DataPack!$L136, IF($C$5=Dates1!$B$6, DataPack!$Q136))))","v":1},null,{"$f":"IF($C$5=Dates1!$B$3, DataPack!$C136, IF($C$5=Dates1!$B$4, DataPack!$H136, IF($C$5=Dates1!$B$5, DataPack!$M136, IF($C$5=Dates1!$B$6, DataPack!$R136))))","v":0},null,{"$f":"IF($C$5=Dates1!$B$3, DataPack!$D136, IF($C$5=Dates1!$B$4, DataPack!$I136, IF($C$5=Dates1!$B$5, DataPack!$N136, IF($C$5=Dates1!$B$6, DataPack!$S136))))","v":1},null,{"$f":"IF($C$5=Dates1!$B$3, DataPack!$E136, IF($C$5=Dates1!$B$4, DataPack!$J136, IF($C$5=Dates1!$B$5, DataPack!$O136, IF($C$5=Dates1!$B$6, DataPack!$T136))))","v":0}]
[null,"     C6. How effectively does self-assessment improve the quality of the provision and \n     outcomes for learners?",null,null,null,null,null,null,2,{"$f":"IF($C$5=Dates1!$B$3, DataPack!$B137, IF($C$5=Dates1!$B$4, DataPack!$G137, IF($C$5=Dates1!$B$5, DataPack!$L137, IF($C$5=Dates1!$B$6, DataPack!$Q137))))","v":0},null,{"$f":"IF($C$5=Dates1!$B$3, DataPack!$C137, IF($C$5=Dates1!$B$4, DataPack!$H137, IF($C$5=Dates1!$B$5, DataPack!$M137, IF($C$5=Dates1!$B$6, DataPack!$R137))))","v":1},null,{"$f":"IF($C$5=Dates1!$B$3, DataPack!$D137, IF($C$5=Dates1!$B$4, DataPack!$I137, IF($C$5=Dates1!$B$5, DataPack!$N137, IF($C$5=Dates1!$B$6, DataPack!$S137))))","v":0},null,{"$f":"IF($C$5=Dates1!$B$3, DataPack!$E137, IF($C$5=Dates1!$B$4, DataPack!$J137, IF($C$5=Dates1!$B$5, DataPack!$O137, IF($C$5=Dates1!$B$6, DataPack!$T137))))","v":1}]
[null,"     C7. How efficiently and effectively does the provider use its available resources to \n     secure value for money?",null,null,null,null,null,null,2,{"$f":"IF($C$5=Dates1!$B$3, DataPack!$B138, IF($C$5=Dates1!$B$4, DataPack!$G138, IF($C$5=Dates1!$B$5, DataPack!$L138, IF($C$5=Dates1!$B$6, DataPack!$Q138))))","v":0},null,{"$f":"IF($C$5=Dates1!$B$3, DataPack!$C138, IF($C$5=Dates1!$B$4, DataPack!$H138, IF($C$5=Dates1!$B$5, DataPack!$M138, IF($C$5=Dates1!$B$6, DataPack!$R138))))","v":1},null,{"$f":"IF($C$5=Dates1!$B$3, DataPack!$D138, IF($C$5=Dates1!$B$4, DataPack!$I138, IF($C$5=Dates1!$B$5, DataPack!$N138, IF($C$5=Dates1!$B$6, DataPack!$S138))))","v":0},null,{"$f":"IF($C$5=Dates1!$B$3, DataPack!$E138, IF($C$5=Dates1!$B$4, DataPack!$J138, IF($C$5=Dates1!$B$5, DataPack!$O138, IF($C$5=Dates1!$B$6, DataPack!$T138))))","v":1}]
[null,null,null,null,null,null,null,null,null,null,null,null,"Source: Ofsted inspections"]
[null,"1. Where applicable to the type of provision."]

{"sheet":"Table 2e","index":10,"n_rows":32,"n_cols":16,"rows_kept":32,"cut":false,"hidden":false,"merged":[[4,2,4,6],[4,8,5,8],[4,9,4,10],[4,11,4,12],[4,13,4,14],[4,15,4,16],[7,1,7,6],[8,1,8,6],[9,1,9,6],[10,1,10,6],[11,1,11,6],[12,1,12,6],[13,1,13,6],[14,1,14,6],[15,1,15,6],[16,1,16,6],[17,1,17,6],[18,1,18,6],[19,1,19,6],[20,1,20,6],[21,1,21,6],[22,1,22,6],[23,1,23,6],[24,1,24,6],[25,1,25,6],[26,1,26,6],[27,1,27,6],[28,1,28,6],[29,1,29,6],[30,12,30,16]]}
[]
[null,{"$f":"\"Table 2e: Inspection outcomes of further education in higher education institutions inspected \" & IF('Table 2e'!C5=Dates1!$B$3, \"between \" & Dates1!$B$3, IF('Table 2e'!C5 = Dates1!B4, \"in \" & Dates1!B4, IF('Table 2e'!C5=Dates1!B5, \"in \" & Dates1!B5, IF('Table 2e'!C5=Dates1!B6, \"in \" & Dates1!B6, IF('Table 2e'!C5=Dates1!B7, \"in \" & Dates1!B7)))))  & \" (provisional)\"","v":"Table 2e: Inspection outcomes of further education in higher education institutions inspected between 1 October and 31 December 2011 (provisional)"}]
[null,"Inspection judgements relate to the further education provision only not providers as a whole"]
[]
[null,"Select period:","1 October and 31 December 2011",null,null,null,null,null,"Total number inspected","Outstanding",null,"Good",null,"Satisfactory",null,"Inadequate"]
[null,null,null,null,null,null,null,null,"Number","Number",null,"Number",null,"Number",null,"Number"]
[]
[null,"Overall effectiveness",null,null,null,null,null,null,{"$f":"J8+L8+N8+P8","v":3},{"$f":"IF($C$5=Dates1!$B$3, DataPack!$B142, IF($C$5=Dates1!$B$4, DataPack!$G142, IF($C$5=Dates1!$B$5, DataPack!$L142, IF($C$5=Dates1!$B$6, DataPack!$Q142))))","v":1},null,{"$f":"IF($C$5=Dates1!$B$3, DataPack!$C142, IF($C$5=Dates1!$B$4, DataPack!$H142, IF($C$5=Dates1!$B$5, DataPack!$M142, IF($C$5=Dates1!$B$6, DataPack!$R142))))","v":1},null,{"$f":"IF($C$5=Dates1!$B$3, DataPack!$D142, IF($C$5=Dates1!$B$4, DataPack!$I142, IF($C$5=Dates1!$B$5, DataPack!$N142, IF($C$5=Dates1!$B$6, DataPack!$S142))))","v":1},null,{"$f":"IF($C$5=Dates1!$B$3, DataPack!$E142, IF($C$5=Dates1!$B$4, DataPack!$J142, IF($C$5=Dates1!$B$5, DataPack!$O142, IF($C$5=Dates1!$B$6, DataPack!$T142))))","v":0}]
[null,"Capacity to improve",null,null,null,null,null,null,3,{"$f":"IF($C$5=Dates1!$B$3, DataPack!$B143, IF($C$5=Dates1!$B$4, DataPack!$G143, IF($C$5=Dates1!$B$5, DataPack!$L143, IF($C$5=Dates1!$B$6, DataPack!$Q143))))","v":1},null,{"$f":"IF($C$5=Dates1!$B$3, DataPack!$C143, IF($C$5=Dates1!$B$4, DataPack!$H143, IF($C$5=Dates1!$B$5, DataPack!$M143, IF($C$5=Dates1!$B$6, DataPack!$R143))))","v":2},null,{"$f":"IF($C$5=Dates1!$B$3, DataPack!$D143, IF($C$5=Dates1!$B$4, DataPack!$I143, IF($C$5=Dates1!$B$5, DataPack!$N143, IF($C$5=Dates1!$B$6, DataPack!$S143))))","v":0},null,{"$f":"IF($C$5=Dates1!$B$3, DataPack!$E143, IF($C$5=Dates1!$B$4, DataPack!$J143, IF($C$5=Dates1!$B$5, DataPack!$O143, IF($C$5=Dates1!$B$6, DataPack!$T143))))","v":0}]
[null,"A. Outcomes for learners",null,null,null,null,null,null,3,{"$f":"IF($C$5=Dates1!$B$3, DataPack!$B144, IF($C$5=Dates1!$B$4, DataPack!$G144, IF($C$5=Dates1!$B$5, DataPack!$L144, IF($C$5=Dates1!$B$6, DataPack!$Q144))))","v":1},null,{"$f":"IF($C$5=Dates1!$B$3, DataPack!$C144, IF($C$5=Dates1!$B$4, DataPack!$H144, IF($C$5=Dates1!$B$5, DataPack!$M144, IF($C$5=Dates1!$B$6, DataPack!$R144))))","v":1},null,{"$f":"IF($C$5=Dates1!$B$3, DataPack!$D144, IF($C$5=Dates1!$B$4, DataPack!$I144, IF($C$5=Dates1!$B$5, DataPack!$N144, IF($C$5=Dates1!$B$6, DataPack!$S144))))","v":1},null,{"$f":"IF($C$5=Dates1!$B$3, DataPack!$E144, IF($C$5=Dates1!$B$4, DataPack!$J144, IF($C$5=Dates1!$B$5, DataPack!$O144, IF($C$5=Dates1!$B$6, DataPack!$T144))))","v":0}]
[null,"     A1. How well do learners achieve and enjoy their learning",null,null,null,null,null,null,3,{"$f":"IF($C$5=Dates1!$B$3, DataPack!$B145, IF($C$5=Dates1!$B$4, DataPack!$G145, IF($C$5=Dates1!$B$5, DataPack!$L145, IF($C$5=Dates1!$B$6, DataPack!$Q145))))","v":1},null,{"$f":"IF($C$5=Dates1!$B$3, DataPack!$C145, IF($C$5=Dates1!$B$4, DataPack!$H145, IF($C$5=Dates1!$B$5, DataPack!$M145, IF($C$5=Dates1!$B$6, DataPack!$R145))))","v":1},null,{"$f":"IF($C$5=Dates1!$B$3, DataPack!$D145, IF($C$5=Dates1!$B$4, DataPack!$I145, IF($C$5=Dates1!$B$5, DataPack!$N145, IF($C$5=Dates1!$B$6, DataPack!$S145))))","v":1},null,{"$f":"IF($C$5=Dates1!$B$3, DataPack!$E145, IF($C$5=Dates1!$B$4, DataPack!$J145, IF($C$5=Dates1!$B$5, DataPack!$O145, IF($C$5=Dates1!$B$6, DataPack!$T145))))","v":0}]
[null,"          A1.a) How well do learners attain their learning goals",null,null,null,null,null,null,3,{"$f":"IF($C$5=Dates1!$B$3, DataPack!$B146, IF($C$5=Dates1!$B$4, DataPack!$G146, IF($C$5=Dates1!$B$5, DataPack!$L146, IF($C$5=Dates1!$B$6, DataPack!$Q146))))","v":1},null,{"$f":"IF($C$5=Dates1!$B$3, DataPack!$C146, IF($C$5=Dates1!$B$4, DataPack!$H146, IF($C$5=Dates1!$B$5, DataPack!$M146, IF($C$5=Dates1!$B$6, DataPack!$R146))))","v":1},null,{"$f":"IF($C$5=Dates1!$B$3, DataPack!$D146, IF($C$5=Dates1!$B$4, DataPack!$I146, IF($C$5=Dates1!$B$5, DataPack!$N146, IF($C$5=Dates1!$B$6, DataPack!$S146))))","v":1},null,{"$f":"IF($C$5=Dates1!$B$3, DataPack!$E146, IF($C$5=Dates1!$B$4, DataPack!$J146, IF($C$5=Dates1!$B$5, DataPack!$O146, IF($C$5=Dates1!$B$6, DataPack!$T146))))","v":0}]
[null,"          A1.b) How well do learners progress?",null,null,null,null,null,null,3,{"$f":"IF($C$5=Dates1!$B$3, DataPack!$B147, IF($C$5=Dates1!$B$4, DataPack!$G147, IF($C$5=Dates1!$B$5, DataPack!$L147, IF($C$5=Dates1!$B$6, DataPack!$Q147))))","v":1},null,{"$f":"IF($C$5=Dates1!$B$3, DataPack!$C147, IF($C$5=Dates1!$B$4, DataPack!$H147, IF($C$5=Dates1!$B$5, DataPack!$M147, IF($C$5=Dates1!$B$6, DataPack!$R147))))","v":1},null,{"$f":"IF($C$5=Dates1!$B$3, DataPack!$D147, IF($C$5=Dates1!$B$4, DataPack!$I147, IF($C$5=Dates1!$B$5, DataPack!$N147, IF($C$5=Dates1!$B$6, DataPack!$S147))))","v":1},null,{"$f":"IF($C$5=Dates1!$B$3, DataPack!$E147, IF($C$5=Dates1!$B$4, DataPack!$J147, IF($C$5=Dates1!$B$5, DataPack!$O147, IF($C$5=Dates1!$B$6, DataPack!$T147))))","v":0}]
[null,"     A2. How well do learners improve their economic and social well-being through learning \n     and development?",null,null,null,null,null,null,3,{"$f":"IF($C$5=Dates1!$B$3, DataPack!$B148, IF($C$5=Dates1!$B$4, DataPack!$G148, IF($C$5=Dates1!$B$5, DataPack!$L148, IF($C$5=Dates1!$B$6, DataPack!$Q148))))","v":2},null,{"$f":"IF($C$5=Dates1!$B$3, DataPack!$C148, IF($C$5=Dates1!$B$4, DataPack!$H148, IF($C$5=Dates1!$B$5, DataPack!$M148, IF($C$5=Dates1!$B$6, DataPack!$R148))))","v":1},null,{"$f":"IF($C$5=Dates1!$B$3, DataPack!$D148, IF($C$5=Dates1!$B$4, DataPack!$I148, IF($C$5=Dates1!$B$5, DataPack!$N148, IF($C$5=Dates1!$B$6, DataPack!$S148))))","v":0},null,{"$f":"IF($C$5=Dates1!$B$3, DataPack!$E148, IF($C$5=Dates1!$B$4, DataPack!$J148, IF($C$5=Dates1!$B$5, DataPack!$O148, IF($C$5=Dates1!$B$6, DataPack!$T148))))","v":0}]
[null,"     A3. How safe do learners feel?",null,null,null,null,null,null,3,{"$f":"IF($C$5=Dates1!$B$3, DataPack!$B149, IF($C$5=Dates1!$B$4, DataPack!$G149, IF($C$5=Dates1!$B$5, DataPack!$L149, IF($C$5=Dates1!$B$6, DataPack!$Q149))))","v":2},null,{"$f":"IF($C$5=Dates1!$B$3, DataPack!$C149, IF($C$5=Dates1!$B$4, DataPack!$H149, IF($C$5=Dates1!$B$5, DataPack!$M149, IF($C$5=Dates1!$B$6, DataPack!$R149))))","v":1},null,{"$f":"IF($C$5=Dates1!$B$3, DataPack!$D149, IF($C$5=Dates1!$B$4, DataPack!$I149, IF($C$5=Dates1!$B$5, DataPack!$N149, IF($C$5=Dates1!$B$6, DataPack!$S149))))","v":0},null,{"$f":"IF($C$5=Dates1!$B$3, DataPack!$E149, IF($C$5=Dates1!$B$4, DataPack!$J149, IF($C$5=Dates1!$B$5, DataPack!$O149, IF($C$5=Dates1!$B$6, DataPack!$T149))))","v":0}]
[null,"     A4. Are learners able to make informed choices about their own health and well being?1",null,null,null,null,null,null,1,{"$f":"IF($C$5=Dates1!$B$3, DataPack!$B150, IF($C$5=Dates1!$B$4, DataPack!$G150, IF($C$5=Dates1!$B$5, DataPack!$L150, IF($C$5=Dates1!$B$6, DataPack!$Q150))))","v":0},null,{"$f":"IF($C$5=Dates1!$B$3, DataPack!$C150, IF($C$5=Dates1!$B$4, DataPack!$H150, IF($C$5=Dates1!$B$5, DataPack!$M150, IF($C$5=Dates1!$B$6, DataPack!$R150))))","v":0},null,{"$f":"IF($C$5=Dates1!$B$3, DataPack!$D150, IF($C$5=Dates1!$B$4, DataPack!$I150, IF($C$5=Dates1!$B$5, DataPack!$N150, IF($C$5=Dates1!$B$6, DataPack!$S150))))","v":1},null,{"$f":"IF($C$5=Dates1!$B$3, DataPack!$E150, IF($C$5=Dates1!$B$4, DataPack!$J150, IF($C$5=Dates1!$B$5, DataPack!$O150, IF($C$5=Dates1!$B$6, DataPack!$T150))))","v":0}]
[null,"     A5. How well do learners make a positive contribution to the community?1",null,null,null,null,null,null,1,{"$f":"IF($C$5=Dates1!$B$3, DataPack!$B151, IF($C$5=Dates1!$B$4, DataPack!$G151, IF($C$5=Dates1!$B$5, DataPack!$L151, IF($C$5=Dates1!$B$6, DataPack!$Q151))))","v":0},null,{"$f":"IF($C$5=Dates1!$B$3, DataPack!$C151, IF($C$5=Dates1!$B$4, DataPack!$H151, IF($C$5=Dates1!$B$5, DataPack!$M151, IF($C$5=Dates1!$B$6, DataPack!$R151))))","v":1},null,{"$f":"IF($C$5=Dates1!$B$3, DataPack!$D151, IF($C$5=Dates1!$B$4, DataPack!$I151, IF($C$5=Dates1!$B$5, DataPack!$N151, IF($C$5=Dates1!$B$6, DataPack!$S151))))","v":0},null,{"$f":"IF($C$5=Dates1!$B$3, DataPack!$E151, IF($C$5=Dates1!$B$4, DataPack!$J151, IF($C$5=Dates1!$B$5, DataPack!$O151, IF($C$5=Dates1!$B$6, DataPack!$T151))))","v":0}]
[null,"B. Quality of provision",null,null,null,null,null,null,3,{"$f":"IF($C$5=Dates1!$B$3, DataPack!$B152, IF($C$5=Dates1!$B$4, DataPack!$G152, IF($C$5=Dates1!$B$5, DataPack!$L152, IF($C$5=Dates1!$B$6, DataPack!$Q152))))","v":1},null,{"$f":"IF($C$5=Dates1!$B$3, DataPack!$C152, IF($C$5=Dates1!$B$4, DataPack!$H152, IF($C$5=Dates1!$B$5, DataPack!$M152, IF($C$5=Dates1!$B$6, DataPack!$R152))))","v":1},null,{"$f":"IF($C$5=Dates1!$B$3, DataPack!$D152, IF($C$5=Dates1!$B$4, DataPack!$I152, IF($C$5=Dates1!$B$5, DataPack!$N152, IF($C$5=Dates1!$B$6, DataPack!$S152))))","v":1},null,{"$f":"IF($C$5=Dates1!$B$3, DataPack!$E152, IF($C$5=Dates1!$B$4, DataPack!$J152, IF($C$5=Dates1!$B$5, DataPack!$O152, IF($C$5=Dates1!$B$6, DataPack!$T152))))","v":0}]
[null,"     B1. How effectively do teaching, training and assessment support learning and \n     development?",null,null,null,null,null,null,3,{"$f":"IF($C$5=Dates1!$B$3, DataPack!$B153, IF($C$5=Dates1!$B$4, DataPack!$G153, IF($C$5=Dates1!$B$5, DataPack!$L153, IF($C$5=Dates1!$B$6, DataPack!$Q153))))","v":0},null,{"$f":"IF($C$5=Dates1!$B$3, DataPack!$C153, IF($C$5=Dates1!$B$4, DataPack!$H153, IF($C$5=Dates1!$B$5, DataPack!$M153, IF($C$5=Dates1!$B$6, DataPack!$R153))))","v":2},null,{"$f":"IF($C$5=Dates1!$B$3, DataPack!$D153, IF($C$5=Dates1!$B$4, DataPack!$I153, IF($C$5=Dates1!$B$5, DataPack!$N153, IF($C$5=Dates1!$B$6, DataPack!$S153))))","v":1},null,{"$f":"IF($C$5=Dates1!$B$3, DataPack!$E153, IF($C$5=Dates1!$B$4, DataPack!$J153, IF($C$5=Dates1!$B$5, DataPack!$O153, IF($C$5=Dates1!$B$6, DataPack!$T153))))","v":0}]
[null,"     B2. How effectively does the provision meet the needs and interests of users?",null,null,null,null,null,null,3,{"$f":"IF($C$5=Dates1!$B$3, DataPack!$B154, IF($C$5=Dates1!$B$4, DataPack!$G154, IF($C$5=Dates1!$B$5, DataPack!$L154, IF($C$5=Dates1!$B$6, DataPack!$Q154))))","v":1},null,{"$f":"IF($C$5=Dates1!$B$3, DataPack!$C154, IF($C$5=Dates1!$B$4, DataPack!$H154, IF($C$5=Dates1!$B$5, DataPack!$M154, IF($C$5=Dates1!$B$6, DataPack!$R154))))","v":2},null,{"$f":"IF($C$5=Dates1!$B$3, DataPack!$D154, IF($C$5=Dates1!$B$4, DataPack!$I154, IF($C$5=Dates1!$B$5, DataPack!$N154, IF($C$5=Dates1!$B$6, DataPack!$S154))))","v":0},null,{"$f":"IF($C$5=Dates1!$B$3, DataPack!$E154, IF($C$5=Dates1!$B$4, DataPack!$J154, IF($C$5=Dates1!$B$5, DataPack!$O154, IF($C$5=Dates1!$B$6, DataPack!$T154))))","v":0}]
[null,"     B3. How well do partnerships with schools, employers, community groups and others \n     lead to benefits for learners?",null,null,null,null,null,null,3,{"$f":"IF($C$5=Dates1!$B$3, DataPack!$B155, IF($C$5=Dates1!$B$4, DataPack!$G155, IF($C$5=Dates1!$B$5, DataPack!$L155, IF($C$5=Dates1!$B$6, DataPack!$Q155))))","v":2},null,{"$f":"IF($C$5=Dates1!$B$3, DataPack!$C155, IF($C$5=Dates1!$B$4, DataPack!$H155, IF($C$5=Dates1!$B$5, DataPack!$M155, IF($C$5=Dates1!$B$6, DataPack!$R155))))","v":1},null,{"$f":"IF($C$5=Dates1!$B$3, DataPack!$D155, IF($C$5=Dates1!$B$4, DataPack!$I155, IF($C$5=Dates1!$B$5, DataPack!$N155, IF($C$5=Dates1!$B$6, DataPack!$S155))))","v":0},null,{"$f":"IF($C$5=Dates1!$B$3, DataPack!$E155, IF($C$5=Dates1!$B$4, DataPack!$J155, IF($C$5=Dates1!$B$5, DataPack!$O155, IF($C$5=Dates1!$B$6, DataPack!$T155))))","v":0}]
[null,"     B4. How effective are the care, guidance and support learners receive in helping them \n     to achieve?",null,null,null,null,null,null,3,{"$f":"IF($C$5=Dates1!$B$3, DataPack!$B156, IF($C$5=Dates1!$B$4, DataPack!$G156, IF($C$5=Dates1!$B$5, DataPack!$L156, IF($C$5=Dates1!$B$6, DataPack!$Q156))))","v":1},null,{"$f":"IF($C$5=Dates1!$B$3, DataPack!$C156, IF($C$5=Dates1!$B$4, DataPack!$H156, IF($C$5=Dates1!$B$5, DataPack!$M156, IF($C$5=Dates1!$B$6, DataPack!$R156))))","v":2},null,{"$f":"IF($C$5=Dates1!$B$3, DataPack!$D156, IF($C$5=Dates1!$B$4, DataPack!$I156, IF($C$5=Dates1!$B$5, DataPack!$N156, IF($C$5=Dates1!$B$6, DataPack!$S156))))","v":0},null,{"$f":"IF($C$5=Dates1!$B$3, DataPack!$E156, IF($C$5=Dates1!$B$4, DataPack!$J156, IF($C$5=Dates1!$B$5, DataPack!$O156, IF($C$5=Dates1!$B$6, DataPack!$T156))))","v":0}]
[null,"C. Leadership and management",null,null,null,null,null,null,3,{"$f":"IF($C$5=Dates1!$B$3, DataPack!$B157, IF($C$5=Dates1!$B$4, DataPack!$G157, IF($C$5=Dates1!$B$5, DataPack!$L157, IF($C$5=Dates1!$B$6, DataPack!$Q157))))","v":0},null,{"$f":"IF($C$5=Dates1!$B$3, DataPack!$C157, IF($C$5=Dates1!$B$4, DataPack!$H157, IF($C$5=Dates1!$B$5, DataPack!$M157, IF($C$5=Dates1!$B$6, DataPack!$R157))))","v":3},null,{"$f":"IF($C$5=Dates1!$B$3, DataPack!$D157, IF($C$5=Dates1!$B$4, DataPack!$I157, IF($C$5=Dates1!$B$5, DataPack!$N157, IF($C$5=Dates1!$B$6, DataPack!$S157))))","v":0},null,{"$f":"IF($C$5=Dates1!$B$3, DataPack!$E157, IF($C$5=Dates1!$B$4, DataPack!$J157, IF($C$5=Dates1!$B$5, DataPack!$O157, IF($C$5=Dates1!$B$6, DataPack!$T157))))","v":0}]
[null,"     C1. How effectively do leaders and managers raise expectations and promote ambition \n     throughout the organisation?",null,null,null,null,null,null,3,{"$f":"IF($C$5=Dates1!$B$3, DataPack!$B158, IF($C$5=Dates1!$B$4, DataPack!$G158, IF($C$5=Dates1!$B$5, DataPack!$L158, IF($C$5=Dates1!$B$6, DataPack!$Q158))))","v":1},null,{"$f":"IF($C$5=Dates1!$B$3, DataPack!$C158, IF($C$5=Dates1!$B$4, DataPack!$H158, IF($C$5=Dates1!$B$5, DataPack!$M158, IF($C$5=Dates1!$B$6, DataPack!$R158))))","v":2},null,{"$f":"IF($C$5=Dates1!$B$3, DataPack!$D158, IF($C$5=Dates1!$B$4, DataPack!$I158, IF($C$5=Dates1!$B$5, DataPack!$N158, IF($C$5=Dates1!$B$6, DataPack!$S158))))","v":0},null,{"$f":"IF($C$5=Dates1!$B$3, DataPack!$E158, IF($C$5=Dates1!$B$4, DataPack!$J158, IF($C$5=Dates1!$B$5, DataPack!$O158, IF($C$5=Dates1!$B$6, DataPack!$T158))))","v":0}]
[null,"     C2. How effectively do governors and supervisory bodies provide leadership, direction \n     and challenge?1",null,null,null,null,null,null,2,{"$f":"IF($C$5=Dates1!$B$3, DataPack!$B159, IF($C$5=Dates1!$B$4, DataPack!$G159, IF($C$5=Dates1!$B$5, DataPack!$L159, IF($C$5=Dates1!$B$6, DataPack!$Q159))))","v":0},null,{"$f":"IF($C$5=Dates1!$B$3, DataPack!$C159, IF($C$5=Dates1!$B$4, DataPack!$H159, IF($C$5=Dates1!$B$5, DataPack!$M159, IF($C$5=Dates1!$B$6, DataPack!$R159))))","v":2},null,{"$f":"IF($C$5=Dates1!$B$3, DataPack!$D159, IF($C$5=Dates1!$B$4, DataPack!$I159, IF($C$5=Dates1!$B$5, DataPack!$N159, IF($C$5=Dates1!$B$6, DataPack!$S159))))","v":0},null,{"$f":"IF($C$5=Dates1!$B$3, DataPack!$E159, IF($C$5=Dates1!$B$4, DataPack!$J159, IF($C$5=Dates1!$B$5, DataPack!$O159, IF($C$5=Dates1!$B$6, DataPack!$T159))))","v":0}]
[null,"    C3. How effectively does the provider promote the safeguarding of learners?",null,null,null,null,null,null,3,{"$f":"IF($C$5=Dates1!$B$3, DataPack!$B160, IF($C$5=Dates1!$B$4, DataPack!$G160, IF($C$5=Dates1!$B$5, DataPack!$L160, IF($C$5=Dates1!$B$6, DataPack!$Q160))))","v":0},null,{"$f":"IF($C$5=Dates1!$B$3, DataPack!$C160, IF($C$5=Dates1!$B$4, DataPack!$H160, IF($C$5=Dates1!$B$5, DataPack!$M160, IF($C$5=Dates1!$B$6, DataPack!$R160))))","v":3},null,{"$f":"IF($C$5=Dates1!$B$3, DataPack!$D160, IF($C$5=Dates1!$B$4, DataPack!$I160, IF($C$5=Dates1!$B$5, DataPack!$N160, IF($C$5=Dates1!$B$6, DataPack!$S160))))","v":0},null,{"$f":"IF($C$5=Dates1!$B$3, DataPack!$E160, IF($C$5=Dates1!$B$4, DataPack!$J160, IF($C$5=Dates1!$B$5, DataPack!$O160, IF($C$5=Dates1!$B$6, DataPack!$T160))))","v":0}]
[null,"C4. How effectively does the provider actively promote equality and diversity,\ntackle discrimination and narrow the achievement gap?",null,null,null,null,null,null,3,{"$f":"IF($C$5=Dates1!$B$3, DataPack!$B161, IF($C$5=Dates1!$B$4, DataPack!$G161, IF($C$5=Dates1!$B$5, DataPack!$L161, IF($C$5=Dates1!$B$6, DataPack!$Q161))))","v":1},null,{"$f":"IF($C$5=Dates1!$B$3, DataPack!$C161, IF($C$5=Dates1!$B$4, DataPack!$H161, IF($C$5=Dates1!$B$5, DataPack!$M161, IF($C$5=Dates1!$B$6, DataPack!$R161))))","v":1},null,{"$f":"IF($C$5=Dates1!$B$3, DataPack!$D161, IF($C$5=Dates1!$B$4, DataPack!$I161, IF($C$5=Dates1!$B$5, DataPack!$N161, IF($C$5=Dates1!$B$6, DataPack!$S161))))","v":1},null,{"$f":"IF($C$5=Dates1!$B$3, DataPack!$E161, IF($C$5=Dates1!$B$4, DataPack!$J161, IF($C$5=Dates1!$B$5, DataPack!$O161, IF($C$5=Dates1!$B$6, DataPack!$T161))))","v":0}]
[null,"     C5. How effectively does the provider engage with users to support and promote \n     improvement?",null,null,null,null,null,null,3,{"$f":"IF($C$5=Dates1!$B$3, DataPack!$B162, IF($C$5=Dates1!$B$4, DataPack!$G162, IF($C$5=Dates1!$B$5, DataPack!$L162, IF($C$5=Dates1!$B$6, DataPack!$Q162))))","v":1},null,{"$f":"IF($C$5=Dates1!$B$3, DataPack!$C162, IF($C$5=Dates1!$B$4, DataPack!$H162, IF($C$5=Dates1!$B$5, DataPack!$M162, IF($C$5=Dates1!$B$6, DataPack!$R162))))","v":1},null,{"$f":"IF($C$5=Dates1!$B$3, DataPack!$D162, IF($C$5=Dates1!$B$4, DataPack!$I162, IF($C$5=Dates1!$B$5, DataPack!$N162, IF($C$5=Dates1!$B$6, DataPack!$S162))))","v":1},null,{"$f":"IF($C$5=Dates1!$B$3, DataPack!$E162, IF($C$5=Dates1!$B$4, DataPack!$J162, IF($C$5=Dates1!$B$5, DataPack!$O162, IF($C$5=Dates1!$B$6, DataPack!$T162))))","v":0}]
[null,"     C6. How effectively does self-assessment improve the quality of the provision and \n     outcomes for learners?",null,null,null,null,null,null,3,{"$f":"IF($C$5=Dates1!$B$3, DataPack!$B163, IF($C$5=Dates1!$B$4, DataPack!$G163, IF($C$5=Dates1!$B$5, DataPack!$L163, IF($C$5=Dates1!$B$6, DataPack!$Q163))))","v":0},null,{"$f":"IF($C$5=Dates1!$B$3, DataPack!$C163, IF($C$5=Dates1!$B$4, DataPack!$H163, IF($C$5=Dates1!$B$5, DataPack!$M163, IF($C$5=Dates1!$B$6, DataPack!$R163))))","v":2},null,{"$f":"IF($C$5=Dates1!$B$3, DataPack!$D163, IF($C$5=Dates1!$B$4, DataPack!$I163, IF($C$5=Dates1!$B$5, DataPack!$N163, IF($C$5=Dates1!$B$6, DataPack!$S163))))","v":1},null,{"$f":"IF($C$5=Dates1!$B$3, DataPack!$E163, IF($C$5=Dates1!$B$4, DataPack!$J163, IF($C$5=Dates1!$B$5, DataPack!$O163, IF($C$5=Dates1!$B$6, DataPack!$T163))))","v":0}]
[null,"     C7. How efficiently and effectively does the provider use its available resources to \n     secure value for money?",null,null,null,null,null,null,3,{"$f":"IF($C$5=Dates1!$B$3, DataPack!$B164, IF($C$5=Dates1!$B$4, DataPack!$G164, IF($C$5=Dates1!$B$5, DataPack!$L164, IF($C$5=Dates1!$B$6, DataPack!$Q164))))","v":1},null,{"$f":"IF($C$5=Dates1!$B$3, DataPack!$C164, IF($C$5=Dates1!$B$4, DataPack!$H164, IF($C$5=Dates1!$B$5, DataPack!$M164, IF($C$5=Dates1!$B$6, DataPack!$R164))))","v":2},null,{"$f":"IF($C$5=Dates1!$B$3, DataPack!$D164, IF($C$5=Dates1!$B$4, DataPack!$I164, IF($C$5=Dates1!$B$5, DataPack!$N164, IF($C$5=Dates1!$B$6, DataPack!$S164))))","v":0},null,{"$f":"IF($C$5=Dates1!$B$3, DataPack!$E164, IF($C$5=Dates1!$B$4, DataPack!$J164, IF($C$5=Dates1!$B$5, DataPack!$O164, IF($C$5=Dates1!$B$6, DataPack!$T164))))","v":0}]
[null,null,null,null,null,null,null,null,null,null,null,null,"Source: Ofsted inspections"]
[null,"1. Where applicable to the type of provision."]

{"sheet":"Table 2f","index":11,"n_rows":32,"n_cols":16,"rows_kept":32,"cut":false,"hidden":false,"merged":[[4,2,4,6],[4,8,5,8],[4,9,4,10],[4,11,4,12],[4,13,4,14],[4,15,4,16],[7,1,7,6],[8,1,8,6],[9,1,9,6],[10,1,10,6],[11,1,11,6],[12,1,12,6],[13,1,13,6],[14,1,14,6],[15,1,15,6],[16,1,16,6],[17,1,17,6],[18,1,18,6],[19,1,19,6],[20,1,20,6],[21,1,21,6],[22,1,22,6],[23,1,23,6],[24,1,24,6],[25,1,25,6],[26,1,26,6],[27,1,27,6],[28,1,28,6],[29,1,29,6],[30,12,30,16]]}
[]
[null,{"$f":"\"Table 2f: Inspection outcomes of dance and drama colleges inspected \" & IF('Table 2f'!C5=Dates1!$B$3, \"between \" & Dates1!$B$3, IF('Table 2f'!C5 = Dates1!B4, \"in \" & Dates1!B4, IF('Table 2f'!C5=Dates1!B5, \"in \" & Dates1!B5, IF('Table 2f'!C5=Dates1!B6, \"in \" & Dates1!B6, IF('Table 2f'!C5=Dates1!B7, \"in \" & Dates1!B7)))))  & \" (provisional)\"","v":"Table 2f: Inspection outcomes of dance and drama colleges inspected between 1 October and 31 December 2011 (provisional)"}]
[null,"Inspection judgements relate to the provision of the Dance and Drama Awards scheme only and not providers as a whole"]
[]
[null,"Select period:","1 October and 31 December 2011",null,null,null,null,null,"Total number inspected","Outstanding",null,"Good",null,"Satisfactory",null,"Inadequate"]
[null,null,null,null,null,null,null,null,"Number","Number",null,"Number",null,"Number",null,"Number"]
[]
[null,"Overall effectiveness",null,null,null,null,null,null,{"$f":"J8+L8+N8+P8","v":3},{"$f":"IF($C$5=Dates1!$B$3, DataPack!$B168, IF($C$5=Dates1!$B$4, DataPack!$G168, IF($C$5=Dates1!$B$5, DataPack!$L168, IF($C$5=Dates1!$B$6, DataPack!$Q168))))","v":1},null,{"$f":"IF($C$5=Dates1!$B$3, DataPack!$C168, IF($C$5=Dates1!$B$4, DataPack!$H168, IF($C$5=Dates1!$B$5, DataPack!$M168, IF($C$5=Dates1!$B$6, DataPack!$R168))))","v":1},null,{"$f":"IF($C$5=Dates1!$B$3, DataPack!$D168, IF($C$5=Dates1!$B$4, DataPack!$I168, IF($C$5=Dates1!$B$5, DataPack!$N168, IF($C$5=Dates1!$B$6, DataPack!$S168))))","v":1},null,{"$f":"IF($C$5=Dates1!$B$3, DataPack!$E168, IF($C$5=Dates1!$B$4, DataPack!$J168, IF($C$5=Dates1!$B$5, DataPack!$O168, IF($C$5=Dates1!$B$6, DataPack!$T168))))","v":0}]
[null,"Capacity to improve",null,null,null,null,null,null,3,{"$f":"IF($C$5=Dates1!$B$3, DataPack!$B169, IF($C$5=Dates1!$B$4, DataPack!$G169, IF($C$5=Dates1!$B$5, DataPack!$L169, IF($C$5=Dates1!$B$6, DataPack!$Q169))))","v":1},null,{"$f":"IF($C$5=Dates1!$B$3, DataPack!$C169, IF($C$5=Dates1!$B$4, DataPack!$H169, IF($C$5=Dates1!$B$5, DataPack!$M169, IF($C$5=Dates1!$B$6, DataPack!$R169))))","v":1},null,{"$f":"IF($C$5=Dates1!$B$3, DataPack!$D169, IF($C$5=Dates1!$B$4, DataPack!$I169, IF($C$5=Dates1!$B$5, DataPack!$N169, IF($C$5=Dates1!$B$6, DataPack!$S169))))","v":1},null,{"$f":"IF($C$5=Dates1!$B$3, DataPack!$E169, IF($C$5=Dates1!$B$4, DataPack!$J169, IF($C$5=Dates1!$B$5, DataPack!$O169, IF($C$5=Dates1!$B$6, DataPack!$T169))))","v":0}]
[null,"A. Outcomes for learners",null,null,null,null,null,null,3,{"$f":"IF($C$5=Dates1!$B$3, DataPack!$B170, IF($C$5=Dates1!$B$4, DataPack!$G170, IF($C$5=Dates1!$B$5, DataPack!$L170, IF($C$5=Dates1!$B$6, DataPack!$Q170))))","v":1},null,{"$f":"IF($C$5=Dates1!$B$3, DataPack!$C170, IF($C$5=Dates1!$B$4, DataPack!$H170, IF($C$5=Dates1!$B$5, DataPack!$M170, IF($C$5=Dates1!$B$6, DataPack!$R170))))","v":1},null,{"$f":"IF($C$5=Dates1!$B$3, DataPack!$D170, IF($C$5=Dates1!$B$4, DataPack!$I170, IF($C$5=Dates1!$B$5, DataPack!$N170, IF($C$5=Dates1!$B$6, DataPack!$S170))))","v":1},null,{"$f":"IF($C$5=Dates1!$B$3, DataPack!$E170, IF($C$5=Dates1!$B$4, DataPack!$J170, IF($C$5=Dates1!$B$5, DataPack!$O170, IF($C$5=Dates1!$B$6, DataPack!$T170))))","v":0}]
[null,"     A1. How well do learners achieve and enjoy their learning",null,null,null,null,null,null,3,{"$f":"IF($C$5=Dates1!$B$3, DataPack!$B171, IF($C$5=Dates1!$B$4, DataPack!$G171, IF($C$5=Dates1!$B$5, DataPack!$L171, IF($C$5=Dates1!$B$6, DataPack!$Q171))))","v":1},null,{"$f":"IF($C$5=Dates1!$B$3, DataPack!$C171, IF($C$5=Dates1!$B$4, DataPack!$H171, IF($C$5=Dates1!$B$5, DataPack!$M171, IF($C$5=Dates1!$B$6, DataPack!$R171))))","v":1},null,{"$f":"IF($C$5=Dates1!$B$3, DataPack!$D171, IF($C$5=Dates1!$B$4, DataPack!$I171, IF($C$5=Dates1!$B$5, DataPack!$N171, IF($C$5=Dates1!$B$6, DataPack!$S171))))","v":1},null,{"$f":"IF($C$5=Dates1!$B$3, DataPack!$E171, IF($C$5=Dates1!$B$4, DataPack!$J171, IF($C$5=Dates1!$B$5, DataPack!$O171, IF($C$5=Dates1!$B$6, DataPack!$T171))))","v":0}]
[null,"          A1.a) How well do learners attain their learning goals",null,null,null,null,null,null,3,{"$f":"IF($C$5=Dates1!$B$3, DataPack!$B172, IF($C$5=Dates1!$B$4, DataPack!$G172, IF($C$5=Dates1!$B$5, DataPack!$L172, IF($C$5=Dates1!$B$6, DataPack!$Q172))))","v":1},null,{"$f":"IF($C$5=Dates1!$B$3, DataPack!$C172, IF($C$5=Dates1!$B$4, DataPack!$H172, IF($C$5=Dates1!$B$5, DataPack!$M172, IF($C$5=Dates1!$B$6, DataPack!$R172))))","v":1},null,{"$f":"IF($C$5=Dates1!$B$3, DataPack!$D172, IF($C$5=Dates1!$B$4, DataPack!$I172, IF($C$5=Dates1!$B$5, DataPack!$N172, IF($C$5=Dates1!$B$6, DataPack!$S172))))","v":1},null,{"$f":"IF($C$5=Dates1!$B$3, DataPack!$E172, IF($C$5=Dates1!$B$4, DataPack!$J172, IF($C$5=Dates1!$B$5, DataPack!$O172, IF($C$5=Dates1!$B$6, DataPack!$T172))))","v":0}]
[null,"          A1.b) How well do learners progress?",null,null,null,null,null,null,3,{"$f":"IF($C$5=Dates1!$B$3, DataPack!$B173, IF($C$5=Dates1!$B$4, DataPack!$G173, IF($C$5=Dates1!$B$5, DataPack!$L173, IF($C$5=Dates1!$B$6, DataPack!$Q173))))","v":1},null,{"$f":"IF($C$5=Dates1!$B$3, DataPack!$C173, IF($C$5=Dates1!$B$4, DataPack!$H173, IF($C$5=Dates1!$B$5, DataPack!$M173, IF($C$5=Dates1!$B$6, DataPack!$R173))))","v":1},null,{"$f":"IF($C$5=Dates1!$B$3, DataPack!$D173, IF($C$5=Dates1!$B$4, DataPack!$I173, IF($C$5=Dates1!$B$5, DataPack!$N173, IF($C$5=Dates1!$B$6, DataPack!$S173))))","v":1},null,{"$f":"IF($C$5=Dates1!$B$3, DataPack!$E173, IF($C$5=Dates1!$B$4, DataPack!$J173, IF($C$5=Dates1!$B$5, DataPack!$O173, IF($C$5=Dates1!$B$6, DataPack!$T173))))","v":0}]
[null,"     A2. How well do learners improve their economic and social well-being through learning \n     and development?",null,null,null,null,null,null,3,{"$f":"IF($C$5=Dates1!$B$3, DataPack!$B174, IF($C$5=Dates1!$B$4, DataPack!$G174, IF($C$5=Dates1!$B$5, DataPack!$L174, IF($C$5=Dates1!$B$6, DataPack!$Q174))))","v":2},null,{"$f":"IF($C$5=Dates1!$B$3, DataPack!$C174, IF($C$5=Dates1!$B$4, DataPack!$H174, IF($C$5=Dates1!$B$5, DataPack!$M174, IF($C$5=Dates1!$B$6, DataPack!$R174))))","v":0},null,{"$f":"IF($C$5=Dates1!$B$3, DataPack!$D174, IF($C$5=Dates1!$B$4, DataPack!$I174, IF($C$5=Dates1!$B$5, DataPack!$N174, IF($C$5=Dates1!$B$6, DataPack!$S174))))","v":1},null,{"$f":"IF($C$5=Dates1!$B$3, DataPack!$E174, IF($C$5=Dates1!$B$4, DataPack!$J174, IF($C$5=Dates1!$B$5, DataPack!$O174, IF($C$5=Dates1!$B$6, DataPack!$T174))))","v":0}]
[null,"     A3. How safe do learners feel?",null,null,null,null,null,null,3,{"$f":"IF($C$5=Dates1!$B$3, DataPack!$B175, IF($C$5=Dates1!$B$4, DataPack!$G175, IF($C$5=Dates1!$B$5, DataPack!$L175, IF($C$5=Dates1!$B$6, DataPack!$Q175))))","v":2},null,{"$f":"IF($C$5=Dates1!$B$3, DataPack!$C175, IF($C$5=Dates1!$B$4, DataPack!$H175, IF($C$5=Dates1!$B$5, DataPack!$M175, IF($C$5=Dates1!$B$6, DataPack!$R175))))","v":1},null,{"$f":"IF($C$5=Dates1!$B$3, DataPack!$D175, IF($C$5=Dates1!$B$4, DataPack!$I175, IF($C$5=Dates1!$B$5, DataPack!$N175, IF($C$5=Dates1!$B$6, DataPack!$S175))))","v":0},null,{"$f":"IF($C$5=Dates1!$B$3, DataPack!$E175, IF($C$5=Dates1!$B$4, DataPack!$J175, IF($C$5=Dates1!$B$5, DataPack!$O175, IF($C$5=Dates1!$B$6, DataPack!$T175))))","v":0}]
[null,"     A4. Are learners able to make informed choices about their own health and well being?1",null,null,null,null,null,null,3,{"$f":"IF($C$5=Dates1!$B$3, DataPack!$B176, IF($C$5=Dates1!$B$4, DataPack!$G176, IF($C$5=Dates1!$B$5, DataPack!$L176, IF($C$5=Dates1!$B$6, DataPack!$Q176))))","v":2},null,{"$f":"IF($C$5=Dates1!$B$3, DataPack!$C176, IF($C$5=Dates1!$B$4, DataPack!$H176, IF($C$5=Dates1!$B$5, DataPack!$M176, IF($C$5=Dates1!$B$6, DataPack!$R176))))","v":1},null,{"$f":"IF($C$5=Dates1!$B$3, DataPack!$D176, IF($C$5=Dates1!$B$4, DataPack!$I176, IF($C$5=Dates1!$B$5, DataPack!$N176, IF($C$5=Dates1!$B$6, DataPack!$S176))))","v":0},null,{"$f":"IF($C$5=Dates1!$B$3, DataPack!$E176, IF($C$5=Dates1!$B$4, DataPack!$J176, IF($C$5=Dates1!$B$5, DataPack!$O176, IF($C$5=Dates1!$B$6, DataPack!$T176))))","v":0}]
[null,"     A5. How well do learners make a positive contribution to the community?1",null,null,null,null,null,null,1,{"$f":"IF($C$5=Dates1!$B$3, DataPack!$B177, IF($C$5=Dates1!$B$4, DataPack!$G177, IF($C$5=Dates1!$B$5, DataPack!$L177, IF($C$5=Dates1!$B$6, DataPack!$Q177))))","v":1},null,{"$f":"IF($C$5=Dates1!$B$3, DataPack!$C177, IF($C$5=Dates1!$B$4, DataPack!$H177, IF($C$5=Dates1!$B$5, DataPack!$M177, IF($C$5=Dates1!$B$6, DataPack!$R177))))","v":0},null,{"$f":"IF($C$5=Dates1!$B$3, DataPack!$D177, IF($C$5=Dates1!$B$4, DataPack!$I177, IF($C$5=Dates1!$B$5, DataPack!$N177, IF($C$5=Dates1!$B$6, DataPack!$S177))))","v":0},null,{"$f":"IF($C$5=Dates1!$B$3, DataPack!$E177, IF($C$5=Dates1!$B$4, DataPack!$J177, IF($C$5=Dates1!$B$5, DataPack!$O177, IF($C$5=Dates1!$B$6, DataPack!$T177))))","v":0}]
[null,"B. Quality of provision",null,null,null,null,null,null,3,{"$f":"IF($C$5=Dates1!$B$3, DataPack!$B178, IF($C$5=Dates1!$B$4, DataPack!$G178, IF($C$5=Dates1!$B$5, DataPack!$L178, IF($C$5=Dates1!$B$6, DataPack!$Q178))))","v":1},null,{"$f":"IF($C$5=Dates1!$B$3, DataPack!$C178, IF($C$5=Dates1!$B$4, DataPack!$H178, IF($C$5=Dates1!$B$5, DataPack!$M178, IF($C$5=Dates1!$B$6, DataPack!$R178))))","v":1},null,{"$f":"IF($C$5=Dates1!$B$3, DataPack!$D178, IF($C$5=Dates1!$B$4, DataPack!$I178, IF($C$5=Dates1!$B$5, DataPack!$N178, IF($C$5=Dates1!$B$6, DataPack!$S178))))","v":1},null,{"$f":"IF($C$5=Dates1!$B$3, DataPack!$E178, IF($C$5=Dates1!$B$4, DataPack!$J178, IF($C$5=Dates1!$B$5, DataPack!$O178, IF($C$5=Dates1!$B$6, DataPack!$T178))))","v":0}]
[null,"     B1. How effectively do teaching, training and assessment support learning and \n     development?",null,null,null,null,null,null,3,{"$f":"IF($C$5=Dates1!$B$3, DataPack!$B179, IF($C$5=Dates1!$B$4, DataPack!$G179, IF($C$5=Dates1!$B$5, DataPack!$L179, IF($C$5=Dates1!$B$6, DataPack!$Q179))))","v":0},null,{"$f":"IF($C$5=Dates1!$B$3, DataPack!$C179, IF($C$5=Dates1!$B$4, DataPack!$H179, IF($C$5=Dates1!$B$5, DataPack!$M179, IF($C$5=Dates1!$B$6, DataPack!$R179))))","v":2},null,{"$f":"IF($C$5=Dates1!$B$3, DataPack!$D179, IF($C$5=Dates1!$B$4, DataPack!$I179, IF($C$5=Dates1!$B$5, DataPack!$N179, IF($C$5=Dates1!$B$6, DataPack!$S179))))","v":1},null,{"$f":"IF($C$5=Dates1!$B$3, DataPack!$E179, IF($C$5=Dates1!$B$4, DataPack!$J179, IF($C$5=Dates1!$B$5, DataPack!$O179, IF($C$5=Dates1!$B$6, DataPack!$T179))))","v":0}]
[null,"     B2. How effectively does the provision meet the needs and interests of users?",null,null,null,null,null,null,3,{"$f":"IF($C$5=Dates1!$B$3, DataPack!$B180, IF($C$5=Dates1!$B$4, DataPack!$G180, IF($C$5=Dates1!$B$5, DataPack!$L180, IF($C$5=Dates1!$B$6, DataPack!$Q180))))","v":1},null,{"$f":"IF($C$5=Dates1!$B$3, DataPack!$C180, IF($C$5=Dates1!$B$4, DataPack!$H180, IF($C$5=Dates1!$B$5, DataPack!$M180, IF($C$5=Dates1!$B$6, DataPack!$R180))))","v":1},null,{"$f":"IF($C$5=Dates1!$B$3, DataPack!$D180, IF($C$5=Dates1!$B$4, DataPack!$I180, IF($C$5=Dates1!$B$5, DataPack!$N180, IF($C$5=Dates1!$B$6, DataPack!$S180))))","v":1},null,{"$f":"IF($C$5=Dates1!$B$3, DataPack!$E180, IF($C$5=Dates1!$B$4, DataPack!$J180, IF($C$5=Dates1!$B$5, DataPack!$O180, IF($C$5=Dates1!$B$6, DataPack!$T180))))","v":0}]
[null,"     B3. How well do partnerships with schools, employers, community groups and others \n     lead to benefits for learners?",null,null,null,null,null,null,3,{"$f":"IF($C$5=Dates1!$B$3, DataPack!$B181, IF($C$5=Dates1!$B$4, DataPack!$G181, IF($C$5=Dates1!$B$5, DataPack!$L181, IF($C$5=Dates1!$B$6, DataPack!$Q181))))","v":2},null,{"$f":"IF($C$5=Dates1!$B$3, DataPack!$C181, IF($C$5=Dates1!$B$4, DataPack!$H181, IF($C$5=Dates1!$B$5, DataPack!$M181, IF($C$5=Dates1!$B$6, DataPack!$R181))))","v":1},null,{"$f":"IF($C$5=Dates1!$B$3, DataPack!$D181, IF($C$5=Dates1!$B$4, DataPack!$I181, IF($C$5=Dates1!$B$5, DataPack!$N181, IF($C$5=Dates1!$B$6, DataPack!$S181))))","v":0},null,{"$f":"IF($C$5=Dates1!$B$3, DataPack!$E181, IF($C$5=Dates1!$B$4, DataPack!$J181, IF($C$5=Dates1!$B$5, DataPack!$O181, IF($C$5=Dates1!$B$6, DataPack!$T181))))","v":0}]
[null,"     B4. How effective are the care, guidance and support learners receive in helping them \n     to achieve?",null,null,null,null,null,null,3,{"$f":"IF($C$5=Dates1!$B$3, DataPack!$B182, IF($C$5=Dates1!$B$4, DataPack!$G182, IF($C$5=Dates1!$B$5, DataPack!$L182, IF($C$5=Dates1!$B$6, DataPack!$Q182))))","v":2},null,{"$f":"IF($C$5=Dates1!$B$3, DataPack!$C182, IF($C$5=Dates1!$B$4, DataPack!$H182, IF($C$5=Dates1!$B$5, DataPack!$M182, IF($C$5=Dates1!$B$6, DataPack!$R182))))","v":1},null,{"$f":"IF($C$5=Dates1!$B$3, DataPack!$D182, IF($C$5=Dates1!$B$4, DataPack!$I182, IF($C$5=Dates1!$B$5, DataPack!$N182, IF($C$5=Dates1!$B$6, DataPack!$S182))))","v":0},null,{"$f":"IF($C$5=Dates1!$B$3, DataPack!$E182, IF($C$5=Dates1!$B$4, DataPack!$J182, IF($C$5=Dates1!$B$5, DataPack!$O182, IF($C$5=Dates1!$B$6, DataPack!$T182))))","v":0}]
[null,"C. Leadership and management",null,null,null,null,null,null,3,{"$f":"IF($C$5=Dates1!$B$3, DataPack!$B183, IF($C$5=Dates1!$B$4, DataPack!$G183, IF($C$5=Dates1!$B$5, DataPack!$L183, IF($C$5=Dates1!$B$6, DataPack!$Q183))))","v":1},null,{"$f":"IF($C$5=Dates1!$B$3, DataPack!$C183, IF($C$5=Dates1!$B$4, DataPack!$H183, IF($C$5=Dates1!$B$5, DataPack!$M183, IF($C$5=Dates1!$B$6, DataPack!$R183))))","v":1},null,{"$f":"IF($C$5=Dates1!$B$3, DataPack!$D183, IF($C$5=Dates1!$B$4, DataPack!$I183, IF($C$5=Dates1!$B$5, DataPack!$N183, IF($C$5=Dates1!$B$6, DataPack!$S183))))","v":1},null,{"$f":"IF($C$5=Dates1!$B$3, DataPack!$E183, IF($C$5=Dates1!$B$4, DataPack!$J183, IF($C$5=Dates1!$B$5, DataPack!$O183, IF($C$5=Dates1!$B$6, DataPack!$T183))))","v":0}]
[null,"     C1. How effectively do leaders and managers raise expectations and promote ambition \n     throughout the organisation?",null,null,null,null,null,null,3,{"$f":"IF($C$5=Dates1!$B$3, DataPack!$B184, IF($C$5=Dates1!$B$4, DataPack!$G184, IF($C$5=Dates1!$B$5, DataPack!$L184, IF($C$5=Dates1!$B$6, DataPack!$Q184))))","v":1},null,{"$f":"IF($C$5=Dates1!$B$3, DataPack!$C184, IF($C$5=Dates1!$B$4, DataPack!$H184, IF($C$5=Dates1!$B$5, DataPack!$M184, IF($C$5=Dates1!$B$6, DataPack!$R184))))","v":1},null,{"$f":"IF($C$5=Dates1!$B$3, DataPack!$D184, IF($C$5=Dates1!$B$4, DataPack!$I184, IF($C$5=Dates1!$B$5, DataPack!$N184, IF($C$5=Dates1!$B$6, DataPack!$S184))))","v":1},null,{"$f":"IF($C$5=Dates1!$B$3, DataPack!$E184, IF($C$5=Dates1!$B$4, DataPack!$J184, IF($C$5=Dates1!$B$5, DataPack!$O184, IF($C$5=Dates1!$B$6, DataPack!$T184))))","v":0}]
[null,"     C2. How effectively do governors and supervisory bodies provide leadership, direction \n     and challenge?1",null,null,null,null,null,null,1,{"$f":"IF($C$5=Dates1!$B$3, DataPack!$B185, IF($C$5=Dates1!$B$4, DataPack!$G185, IF($C$5=Dates1!$B$5, DataPack!$L185, IF($C$5=Dates1!$B$6, DataPack!$Q185))))","v":1},null,{"$f":"IF($C$5=Dates1!$B$3, DataPack!$C185, IF($C$5=Dates1!$B$4, DataPack!$H185, IF($C$5=Dates1!$B$5, DataPack!$M185, IF($C$5=Dates1!$B$6, DataPack!$R185))))","v":0},null,{"$f":"IF($C$5=Dates1!$B$3, DataPack!$D185, IF($C$5=Dates1!$B$4, DataPack!$I185, IF($C$5=Dates1!$B$5, DataPack!$N185, IF($C$5=Dates1!$B$6, DataPack!$S185))))","v":0},null,{"$f":"IF($C$5=Dates1!$B$3, DataPack!$E185, IF($C$5=Dates1!$B$4, DataPack!$J185, IF($C$5=Dates1!$B$5, DataPack!$O185, IF($C$5=Dates1!$B$6, DataPack!$T185))))","v":0}]
[null,"    C3. How effectively does the provider promote the safeguarding of learners?",null,null,null,null,null,null,3,{"$f":"IF($C$5=Dates1!$B$3, DataPack!$B186, IF($C$5=Dates1!$B$4, DataPack!$G186, IF($C$5=Dates1!$B$5, DataPack!$L186, IF($C$5=Dates1!$B$6, DataPack!$Q186))))","v":2},null,{"$f":"IF($C$5=Dates1!$B$3, DataPack!$C186, IF($C$5=Dates1!$B$4, DataPack!$H186, IF($C$5=Dates1!$B$5, DataPack!$M186, IF($C$5=Dates1!$B$6, DataPack!$R186))))","v":1},null,{"$f":"IF($C$5=Dates1!$B$3, DataPack!$D186, IF($C$5=Dates1!$B$4, DataPack!$I186, IF($C$5=Dates1!$B$5, DataPack!$N186, IF($C$5=Dates1!$B$6, DataPack!$S186))))","v":0},null,{"$f":"IF($C$5=Dates1!$B$3, DataPack!$E186, IF($C$5=Dates1!$B$4, DataPack!$J186, IF($C$5=Dates1!$B$5, DataPack!$O186, IF($C$5=Dates1!$B$6, DataPack!$T186))))","v":0}]
[null,"C4. How effectively does the provider actively promote equality and diversity,\ntackle discrimination and narrow the achievement gap?",null,null,null,null,null,null,3,{"$f":"IF($C$5=Dates1!$B$3, DataPack!$B187, IF($C$5=Dates1!$B$4, DataPack!$G187, IF($C$5=Dates1!$B$5, DataPack!$L187, IF($C$5=Dates1!$B$6, DataPack!$Q187))))","v":2},null,{"$f":"IF($C$5=Dates1!$B$3, DataPack!$C187, IF($C$5=Dates1!$B$4, DataPack!$H187, IF($C$5=Dates1!$B$5, DataPack!$M187, IF($C$5=Dates1!$B$6, DataPack!$R187))))","v":1},null,{"$f":"IF($C$5=Dates1!$B$3, DataPack!$D187, IF($C$5=Dates1!$B$4, DataPack!$I187, IF($C$5=Dates1!$B$5, DataPack!$N187, IF($C$5=Dates1!$B$6, DataPack!$S187))))","v":0},null,{"$f":"IF($C$5=Dates1!$B$3, DataPack!$E187, IF($C$5=Dates1!$B$4, DataPack!$J187, IF($C$5=Dates1!$B$5, DataPack!$O187, IF($C$5=Dates1!$B$6, DataPack!$T187))))","v":0}]
[null,"     C5. How effectively does the provider engage with users to support and promote \n     improvement?",null,null,null,null,null,null,3,{"$f":"IF($C$5=Dates1!$B$3, DataPack!$B188, IF($C$5=Dates1!$B$4, DataPack!$G188, IF($C$5=Dates1!$B$5, DataPack!$L188, IF($C$5=Dates1!$B$6, DataPack!$Q188))))","v":0},null,{"$f":"IF($C$5=Dates1!$B$3, DataPack!$C188, IF($C$5=Dates1!$B$4, DataPack!$H188, IF($C$5=Dates1!$B$5, DataPack!$M188, IF($C$5=Dates1!$B$6, DataPack!$R188))))","v":2},null,{"$f":"IF($C$5=Dates1!$B$3, DataPack!$D188, IF($C$5=Dates1!$B$4, DataPack!$I188, IF($C$5=Dates1!$B$5, DataPack!$N188, IF($C$5=Dates1!$B$6, DataPack!$S188))))","v":1},null,{"$f":"IF($C$5=Dates1!$B$3, DataPack!$E188, IF($C$5=Dates1!$B$4, DataPack!$J188, IF($C$5=Dates1!$B$5, DataPack!$O188, IF($C$5=Dates1!$B$6, DataPack!$T188))))","v":0}]
[null,"     C6. How effectively does self-assessment improve the quality of the provision and \n     outcomes for learners?",null,null,null,null,null,null,3,{"$f":"IF($C$5=Dates1!$B$3, DataPack!$B189, IF($C$5=Dates1!$B$4, DataPack!$G189, IF($C$5=Dates1!$B$5, DataPack!$L189, IF($C$5=Dates1!$B$6, DataPack!$Q189))))","v":0},null,{"$f":"IF($C$5=Dates1!$B$3, DataPack!$C189, IF($C$5=Dates1!$B$4, DataPack!$H189, IF($C$5=Dates1!$B$5, DataPack!$M189, IF($C$5=Dates1!$B$6, DataPack!$R189))))","v":2},null,{"$f":"IF($C$5=Dates1!$B$3, DataPack!$D189, IF($C$5=Dates1!$B$4, DataPack!$I189, IF($C$5=Dates1!$B$5, DataPack!$N189, IF($C$5=Dates1!$B$6, DataPack!$S189))))","v":1},null,{"$f":"IF($C$5=Dates1!$B$3, DataPack!$E189, IF($C$5=Dates1!$B$4, DataPack!$J189, IF($C$5=Dates1!$B$5, DataPack!$O189, IF($C$5=Dates1!$B$6, DataPack!$T189))))","v":0}]
[null,"     C7. How efficiently and effectively does the provider use its available resources to \n     secure value for money?",null,null,null,null,null,null,3,{"$f":"IF($C$5=Dates1!$B$3, DataPack!$B190, IF($C$5=Dates1!$B$4, DataPack!$G190, IF($C$5=Dates1!$B$5, DataPack!$L190, IF($C$5=Dates1!$B$6, DataPack!$Q190))))","v":1},null,{"$f":"IF($C$5=Dates1!$B$3, DataPack!$C190, IF($C$5=Dates1!$B$4, DataPack!$H190, IF($C$5=Dates1!$B$5, DataPack!$M190, IF($C$5=Dates1!$B$6, DataPack!$R190))))","v":2},null,{"$f":"IF($C$5=Dates1!$B$3, DataPack!$D190, IF($C$5=Dates1!$B$4, DataPack!$I190, IF($C$5=Dates1!$B$5, DataPack!$N190, IF($C$5=Dates1!$B$6, DataPack!$S190))))","v":0},null,{"$f":"IF($C$5=Dates1!$B$3, DataPack!$E190, IF($C$5=Dates1!$B$4, DataPack!$J190, IF($C$5=Dates1!$B$5, DataPack!$O190, IF($C$5=Dates1!$B$6, DataPack!$T190))))","v":0}]
[null,null,null,null,null,null,null,null,null,null,null,null,"Source: Ofsted inspections"]
[null,"1. Where applicable to the type of provision."]

{"sheet":"Table 2g","index":12,"n_rows":33,"n_cols":16,"rows_kept":33,"cut":false,"hidden":false,"merged":[[4,8,5,8],[4,2,4,6],[8,1,8,6],[9,1,9,6],[10,1,10,6],[7,1,7,6],[21,1,21,6],[23,1,23,6],[16,1,16,6],[11,1,11,6],[12,1,12,6],[13,1,13,6],[14,1,14,6],[15,1,15,6],[30,12,30,16],[4,9,4,10],[4,11,4,12],[4,13,4,14],[4,15,4,16],[27,1,27,6],[20,1,20,6],[19,1,19,6],[18,1,18,6],[17,1,17,6],[26,1,26,6],[22,1,22,6],[25,1,25,6],[24,1,24,6],[29,1,29,6],[28,1,28,6]]}
[]
[null,{"$f":"\"Table 2g: Inspection outcomes of independent learning providers inspected \" & IF('Table 2g'!C5=Dates1!$B$3, \"between \" & Dates1!$B$3, IF('Table 2g'!C5 = Dates1!B4, \"in \" & Dates1!B4, IF('Table 2g'!C5=Dates1!B5, \"in \" & Dates1!B5, IF('Table 2g'!C5=Dates1!B6, \"in \" & Dates1!B6, IF('Table 2g'!C5=Dates1!B7, \"in \" & Dates1!B7)))))  & \" (provisional)\"&CHAR(185)","v":"Table 2g: Inspection outcomes of independent learning providers inspected between 1 October and 31 December 2011 (provisional)¹"}]
[]
[]
[null,"Select period:","1 October and 31 December 2011",null,null,null,null,null,"Total number inspected","Outstanding",null,"Good",null,"Satisfactory",null,"Inadequate"]
[null,null,null,null,null,null,null,null,"Number","Number",null,"Number",null,"Number",null,"Number"]
[]
[null,"Overall effectiveness",null,null,null,null,null,null,{"$f":"J8+L8+N8+P8","v":35},{"$f":"IF($C$5=Dates1!$B$3, DataPack!$B194, IF($C$5=Dates1!$B$4, DataPack!$G194, IF($C$5=Dates1!$B$5, DataPack!$L194, IF($C$5=Dates1!$B$6, DataPack!$Q194))))","v":1},null,{"$f":"IF($C$5=Dates1!$B$3, DataPack!$C194, IF($C$5=Dates1!$B$4, DataPack!$H194, IF($C$5=Dates1!$B$5, DataPack!$M194, IF($C$5=Dates1!$B$6, DataPack!$R194))))","v":15},null,{"$f":"IF($C$5=Dates1!$B$3, DataPack!$D194, IF($C$5=Dates1!$B$4, DataPack!$I194, IF($C$5=Dates1!$B$5, DataPack!$N194, IF($C$5=Dates1!$B$6, DataPack!$S194))))","v":14},null,{"$f":"IF($C$5=Dates1!$B$3, DataPack!$E194, IF($C$5=Dates1!$B$4, DataPack!$J194, IF($C$5=Dates1!$B$5, DataPack!$O194, IF($C$5=Dates1!$B$6, DataPack!$T194))))","v":5}]
[null,"Capacity to improve",null,null,null,null,null,null,35,{"$f":"IF($C$5=Dates1!$B$3, DataPack!$B195, IF($C$5=Dates1!$B$4, DataPack!$G195, IF($C$5=Dates1!$B$5, DataPack!$L195, IF($C$5=Dates1!$B$6, DataPack!$Q195))))","v":1},null,{"$f":"IF($C$5=Dates1!$B$3, DataPack!$C195, IF($C$5=Dates1!$B$4, DataPack!$H195, IF($C$5=Dates1!$B$5, DataPack!$M195, IF($C$5=Dates1!$B$6, DataPack!$R195))))","v":14},null,{"$f":"IF($C$5=Dates1!$B$3, DataPack!$D195, IF($C$5=Dates1!$B$4, DataPack!$I195, IF($C$5=Dates1!$B$5, DataPack!$N195, IF($C$5=Dates1!$B$6, DataPack!$S195))))","v":15},null,{"$f":"IF($C$5=Dates1!$B$3, DataPack!$E195, IF($C$5=Dates1!$B$4, DataPack!$J195, IF($C$5=Dates1!$B$5, DataPack!$O195, IF($C$5=Dates1!$B$6, DataPack!$T195))))","v":5}]
[null,"A. Outcomes for learners",null,null,null,null,null,null,35,{"$f":"IF($C$5=Dates1!$B$3, DataPack!$B196, IF($C$5=Dates1!$B$4, DataPack!$G196, IF($C$5=Dates1!$B$5, DataPack!$L196, IF($C$5=Dates1!$B$6, DataPack!$Q196))))","v":1},null,{"$f":"IF($C$5=Dates1!$B$3, DataPack!$C196, IF($C$5=Dates1!$B$4, DataPack!$H196, IF($C$5=Dates1!$B$5, DataPack!$M196, IF($C$5=Dates1!$B$6, DataPack!$R196))))","v":18},null,{"$f":"IF($C$5=Dates1!$B$3, DataPack!$D196, IF($C$5=Dates1!$B$4, DataPack!$I196, IF($C$5=Dates1!$B$5, DataPack!$N196, IF($C$5=Dates1!$B$6, DataPack!$S196))))","v":13},null,{"$f":"IF($C$5=Dates1!$B$3, DataPack!$E196, IF($C$5=Dates1!$B$4, DataPack!$J196, IF($C$5=Dates1!$B$5, DataPack!$O196, IF($C$5=Dates1!$B$6, DataPack!$T196))))","v":3}]
[null,"     A1. How well do learners achieve and enjoy their learning",null,null,null,null,null,null,35,{"$f":"IF($C$5=Dates1!$B$3, DataPack!$B197, IF($C$5=Dates1!$B$4, DataPack!$G197, IF($C$5=Dates1!$B$5, DataPack!$L197, IF($C$5=Dates1!$B$6, DataPack!$Q197))))","v":1},null,{"$f":"IF($C$5=Dates1!$B$3, DataPack!$C197, IF($C$5=Dates1!$B$4, DataPack!$H197, IF($C$5=Dates1!$B$5, DataPack!$M197, IF($C$5=Dates1!$B$6, DataPack!$R197))))","v":18},null,{"$f":"IF($C$5=Dates1!$B$3, DataPack!$D197, IF($C$5=Dates1!$B$4, DataPack!$I197, IF($C$5=Dates1!$B$5, DataPack!$N197, IF($C$5=Dates1!$B$6, DataPack!$S197))))","v":12},null,{"$f":"IF($C$5=Dates1!$B$3, DataPack!$E197, IF($C$5=Dates1!$B$4, DataPack!$J197, IF($C$5=Dates1!$B$5, DataPack!$O197, IF($C$5=Dates1!$B$6, DataPack!$T197))))","v":4}]
[null,"          A1.a) How well do learners attain their learning goals",null,null,null,null,null,null,35,{"$f":"IF($C$5=Dates1!$B$3, DataPack!$B198, IF($C$5=Dates1!$B$4, DataPack!$G198, IF($C$5=Dates1!$B$5, DataPack!$L198, IF($C$5=Dates1!$B$6, DataPack!$Q198))))","v":1},null,{"$f":"IF($C$5=Dates1!$B$3, DataPack!$C198, IF($C$5=Dates1!$B$4, DataPack!$H198, IF($C$5=Dates1!$B$5, DataPack!$M198, IF($C$5=Dates1!$B$6, DataPack!$R198))))","v":17},null,{"$f":"IF($C$5=Dates1!$B$3, DataPack!$D198, IF($C$5=Dates1!$B$4, DataPack!$I198, IF($C$5=Dates1!$B$5, DataPack!$N198, IF($C$5=Dates1!$B$6, DataPack!$S198))))","v":15},null,{"$f":"IF($C$5=Dates1!$B$3, DataPack!$E198, IF($C$5=Dates1!$B$4, DataPack!$J198, IF($C$5=Dates1!$B$5, DataPack!$O198, IF($C$5=Dates1!$B$6, DataPack!$T198))))","v":2}]
[null,"          A1.b) How well do learners progress?",null,null,null,null,null,null,35,{"$f":"IF($C$5=Dates1!$B$3, DataPack!$B199, IF($C$5=Dates1!$B$4, DataPack!$G199, IF($C$5=Dates1!$B$5, DataPack!$L199, IF($C$5=Dates1!$B$6, DataPack!$Q199))))","v":2},null,{"$f":"IF($C$5=Dates1!$B$3, DataPack!$C199, IF($C$5=Dates1!$B$4, DataPack!$H199, IF($C$5=Dates1!$B$5, DataPack!$M199, IF($C$5=Dates1!$B$6, DataPack!$R199))))","v":17},null,{"$f":"IF($C$5=Dates1!$B$3, DataPack!$D199, IF($C$5=Dates1!$B$4, DataPack!$I199, IF($C$5=Dates1!$B$5, DataPack!$N199, IF($C$5=Dates1!$B$6, DataPack!$S199))))","v":13},null,{"$f":"IF($C$5=Dates1!$B$3, DataPack!$E199, IF($C$5=Dates1!$B$4, DataPack!$J199, IF($C$5=Dates1!$B$5, DataPack!$O199, IF($C$5=Dates1!$B$6, DataPack!$T199))))","v":3}]
[null,"     A2. How well do learners improve their economic and social well-being through learning \n     and development?",null,null,null,null,null,null,35,{"$f":"IF($C$5=Dates1!$B$3, DataPack!$B200, IF($C$5=Dates1!$B$4, DataPack!$G200, IF($C$5=Dates1!$B$5, DataPack!$L200, IF($C$5=Dates1!$B$6, DataPack!$Q200))))","v":3},null,{"$f":"IF($C$5=Dates1!$B$3, DataPack!$C200, IF($C$5=Dates1!$B$4, DataPack!$H200, IF($C$5=Dates1!$B$5, DataPack!$M200, IF($C$5=Dates1!$B$6, DataPack!$R200))))","v":24},null,{"$f":"IF($C$5=Dates1!$B$3, DataPack!$D200, IF($C$5=Dates1!$B$4, DataPack!$I200, IF($C$5=Dates1!$B$5, DataPack!$N200, IF($C$5=Dates1!$B$6, DataPack!$S200))))","v":8},null,{"$f":"IF($C$5=Dates1!$B$3, DataPack!$E200, IF($C$5=Dates1!$B$4, DataPack!$J200, IF($C$5=Dates1!$B$5, DataPack!$O200, IF($C$5=Dates1!$B$6, DataPack!$T200))))","v":0}]
[null,"     A3. How safe do learners feel?",null,null,null,null,null,null,35,{"$f":"IF($C$5=Dates1!$B$3, DataPack!$B201, IF($C$5=Dates1!$B$4, DataPack!$G201, IF($C$5=Dates1!$B$5, DataPack!$L201, IF($C$5=Dates1!$B$6, DataPack!$Q201))))","v":3},null,{"$f":"IF($C$5=Dates1!$B$3, DataPack!$C201, IF($C$5=Dates1!$B$4, DataPack!$H201, IF($C$5=Dates1!$B$5, DataPack!$M201, IF($C$5=Dates1!$B$6, DataPack!$R201))))","v":21},null,{"$f":"IF($C$5=Dates1!$B$3, DataPack!$D201, IF($C$5=Dates1!$B$4, DataPack!$I201, IF($C$5=Dates1!$B$5, DataPack!$N201, IF($C$5=Dates1!$B$6, DataPack!$S201))))","v":11},null,{"$f":"IF($C$5=Dates1!$B$3, DataPack!$E201, IF($C$5=Dates1!$B$4, DataPack!$J201, IF($C$5=Dates1!$B$5, DataPack!$O201, IF($C$5=Dates1!$B$6, DataPack!$T201))))","v":0}]
[null,"     A4. Are learners able to make informed choices about their own health and well being?2",null,null,null,null,null,null,9,{"$f":"IF($C$5=Dates1!$B$3, DataPack!$B202, IF($C$5=Dates1!$B$4, DataPack!$G202, IF($C$5=Dates1!$B$5, DataPack!$L202, IF($C$5=Dates1!$B$6, DataPack!$Q202))))","v":1},null,{"$f":"IF($C$5=Dates1!$B$3, DataPack!$C202, IF($C$5=Dates1!$B$4, DataPack!$H202, IF($C$5=Dates1!$B$5, DataPack!$M202, IF($C$5=Dates1!$B$6, DataPack!$R202))))","v":3},null,{"$f":"IF($C$5=Dates1!$B$3, DataPack!$D202, IF($C$5=Dates1!$B$4, DataPack!$I202, IF($C$5=Dates1!$B$5, DataPack!$N202, IF($C$5=Dates1!$B$6, DataPack!$S202))))","v":5},null,{"$f":"IF($C$5=Dates1!$B$3, DataPack!$E202, IF($C$5=Dates1!$B$4, DataPack!$J202, IF($C$5=Dates1!$B$5, DataPack!$O202, IF($C$5=Dates1!$B$6, DataPack!$T202))))","v":0}]
[null,"     A5. How well do learners make a positive contribution to the community?2",null,null,null,null,null,null,8,{"$f":"IF($C$5=Dates1!$B$3, DataPack!$B203, IF($C$5=Dates1!$B$4, DataPack!$G203, IF($C$5=Dates1!$B$5, DataPack!$L203, IF($C$5=Dates1!$B$6, DataPack!$Q203))))","v":0},null,{"$f":"IF($C$5=Dates1!$B$3, DataPack!$C203, IF($C$5=Dates1!$B$4, DataPack!$H203, IF($C$5=Dates1!$B$5, DataPack!$M203, IF($C$5=Dates1!$B$6, DataPack!$R203))))","v":4},null,{"$f":"IF($C$5=Dates1!$B$3, DataPack!$D203, IF($C$5=Dates1!$B$4, DataPack!$I203, IF($C$5=Dates1!$B$5, DataPack!$N203, IF($C$5=Dates1!$B$6, DataPack!$S203))))","v":3},null,{"$f":"IF($C$5=Dates1!$B$3, DataPack!$E203, IF($C$5=Dates1!$B$4, DataPack!$J203, IF($C$5=Dates1!$B$5, DataPack!$O203, IF($C$5=Dates1!$B$6, DataPack!$T203))))","v":1}]
[null,"B. Quality of provision",null,null,null,null,null,null,35,{"$f":"IF($C$5=Dates1!$B$3, DataPack!$B204, IF($C$5=Dates1!$B$4, DataPack!$G204, IF($C$5=Dates1!$B$5, DataPack!$L204, IF($C$5=Dates1!$B$6, DataPack!$Q204))))","v":2},null,{"$f":"IF($C$5=Dates1!$B$3, DataPack!$C204, IF($C$5=Dates1!$B$4, DataPack!$H204, IF($C$5=Dates1!$B$5, DataPack!$M204, IF($C$5=Dates1!$B$6, DataPack!$R204))))","v":18},null,{"$f":"IF($C$5=Dates1!$B$3, DataPack!$D204, IF($C$5=Dates1!$B$4, DataPack!$I204, IF($C$5=Dates1!$B$5, DataPack!$N204, IF($C$5=Dates1!$B$6, DataPack!$S204))))","v":15},null,{"$f":"IF($C$5=Dates1!$B$3, DataPack!$E204, IF($C$5=Dates1!$B$4, DataPack!$J204, IF($C$5=Dates1!$B$5, DataPack!$O204, IF($C$5=Dates1!$B$6, DataPack!$T204))))","v":0}]
[null,"     B1. How effectively do teaching, training and assessment support learning and \n     development?",null,null,null,null,null,null,35,{"$f":"IF($C$5=Dates1!$B$3, DataPack!$B205, IF($C$5=Dates1!$B$4, DataPack!$G205, IF($C$5=Dates1!$B$5, DataPack!$L205, IF($C$5=Dates1!$B$6, DataPack!$Q205))))","v":2},null,{"$f":"IF($C$5=Dates1!$B$3, DataPack!$C205, IF($C$5=Dates1!$B$4, DataPack!$H205, IF($C$5=Dates1!$B$5, DataPack!$M205, IF($C$5=Dates1!$B$6, DataPack!$R205))))","v":15},null,{"$f":"IF($C$5=Dates1!$B$3, DataPack!$D205, IF($C$5=Dates1!$B$4, DataPack!$I205, IF($C$5=Dates1!$B$5, DataPack!$N205, IF($C$5=Dates1!$B$6, DataPack!$S205))))","v":18},null,{"$f":"IF($C$5=Dates1!$B$3, DataPack!$E205, IF($C$5=Dates1!$B$4, DataPack!$J205, IF($C$5=Dates1!$B$5, DataPack!$O205, IF($C$5=Dates1!$B$6, DataPack!$T205))))","v":0}]
[null,"     B2. How effectively does the provision meet the needs and interests of users?",null,null,null,null,null,null,35,{"$f":"IF($C$5=Dates1!$B$3, DataPack!$B206, IF($C$5=Dates1!$B$4, DataPack!$G206, IF($C$5=Dates1!$B$5, DataPack!$L206, IF($C$5=Dates1!$B$6, DataPack!$Q206))))","v":3},null,{"$f":"IF($C$5=Dates1!$B$3, DataPack!$C206, IF($C$5=Dates1!$B$4, DataPack!$H206, IF($C$5=Dates1!$B$5, DataPack!$M206, IF($C$5=Dates1!$B$6, DataPack!$R206))))","v":22},null,{"$f":"IF($C$5=Dates1!$B$3, DataPack!$D206, IF($C$5=Dates1!$B$4, DataPack!$I206, IF($C$5=Dates1!$B$5, DataPack!$N206, IF($C$5=Dates1!$B$6, DataPack!$S206))))","v":10},null,{"$f":"IF($C$5=Dates1!$B$3, DataPack!$E206, IF($C$5=Dates1!$B$4, DataPack!$J206, IF($C$5=Dates1!$B$5, DataPack!$O206, IF($C$5=Dates1!$B$6, DataPack!$T206))))","v":0}]
[null,"     B3. How well do partnerships with schools, employers, community groups and others \n     lead to benefits for learners?",null,null,null,null,null,null,35,{"$f":"IF($C$5=Dates1!$B$3, DataPack!$B207, IF($C$5=Dates1!$B$4, DataPack!$G207, IF($C$5=Dates1!$B$5, DataPack!$L207, IF($C$5=Dates1!$B$6, DataPack!$Q207))))","v":3},null,{"$f":"IF($C$5=Dates1!$B$3, DataPack!$C207, IF($C$5=Dates1!$B$4, DataPack!$H207, IF($C$5=Dates1!$B$5, DataPack!$M207, IF($C$5=Dates1!$B$6, DataPack!$R207))))","v":22},null,{"$f":"IF($C$5=Dates1!$B$3, DataPack!$D207, IF($C$5=Dates1!$B$4, DataPack!$I207, IF($C$5=Dates1!$B$5, DataPack!$N207, IF($C$5=Dates1!$B$6, DataPack!$S207))))","v":10},null,{"$f":"IF($C$5=Dates1!$B$3, DataPack!$E207, IF($C$5=Dates1!$B$4, DataPack!$J207, IF($C$5=Dates1!$B$5, DataPack!$O207, IF($C$5=Dates1!$B$6, DataPack!$T207))))","v":0}]
[null,"     B4. How effective are the care, guidance and support learners receive in helping them \n     to achieve?",null,null,null,null,null,null,35,{"$f":"IF($C$5=Dates1!$B$3, DataPack!$B208, IF($C$5=Dates1!$B$4, DataPack!$G208, IF($C$5=Dates1!$B$5, DataPack!$L208, IF($C$5=Dates1!$B$6, DataPack!$Q208))))","v":3},null,{"$f":"IF($C$5=Dates1!$B$3, DataPack!$C208, IF($C$5=Dates1!$B$4, DataPack!$H208, IF($C$5=Dates1!$B$5, DataPack!$M208, IF($C$5=Dates1!$B$6, DataPack!$R208))))","v":22},null,{"$f":"IF($C$5=Dates1!$B$3, DataPack!$D208, IF($C$5=Dates1!$B$4, DataPack!$I208, IF($C$5=Dates1!$B$5, DataPack!$N208, IF($C$5=Dates1!$B$6, DataPack!$S208))))","v":9},null,{"$f":"IF($C$5=Dates1!$B$3, DataPack!$E208, IF($C$5=Dates1!$B$4, DataPack!$J208, IF($C$5=Dates1!$B$5, DataPack!$O208, IF($C$5=Dates1!$B$6, DataPack!$T208))))","v":1}]
[null,"C. Leadership and management",null,null,null,null,null,null,35,{"$f":"IF($C$5=Dates1!$B$3, DataPack!$B209, IF($C$5=Dates1!$B$4, DataPack!$G209, IF($C$5=Dates1!$B$5, DataPack!$L209, IF($C$5=Dates1!$B$6, DataPack!$Q209))))","v":1},null,{"$f":"IF($C$5=Dates1!$B$3, DataPack!$C209, IF($C$5=Dates1!$B$4, DataPack!$H209, IF($C$5=Dates1!$B$5, DataPack!$M209, IF($C$5=Dates1!$B$6, DataPack!$R209))))","v":14},null,{"$f":"IF($C$5=Dates1!$B$3, DataPack!$D209, IF($C$5=Dates1!$B$4, DataPack!$I209, IF($C$5=Dates1!$B$5, DataPack!$N209, IF($C$5=Dates1!$B$6, DataPack!$S209))))","v":17},null,{"$f":"IF($C$5=Dates1!$B$3, DataPack!$E209, IF($C$5=Dates1!$B$4, DataPack!$J209, IF($C$5=Dates1!$B$5, DataPack!$O209, IF($C$5=Dates1!$B$6, DataPack!$T209))))","v":3}]
[null,"     C1. How effectively do leaders and managers raise expectations and promote ambition \n     throughout the organisation?",null,null,null,null,null,null,35,{"$f":"IF($C$5=Dates1!$B$3, DataPack!$B210, IF($C$5=Dates1!$B$4, DataPack!$G210, IF($C$5=Dates1!$B$5, DataPack!$L210, IF($C$5=Dates1!$B$6, DataPack!$Q210))))","v":4},null,{"$f":"IF($C$5=Dates1!$B$3, DataPack!$C210, IF($C$5=Dates1!$B$4, DataPack!$H210, IF($C$5=Dates1!$B$5, DataPack!$M210, IF($C$5=Dates1!$B$6, DataPack!$R210))))","v":17},null,{"$f":"IF($C$5=Dates1!$B$3, DataPack!$D210, IF($C$5=Dates1!$B$4, DataPack!$I210, IF($C$5=Dates1!$B$5, DataPack!$N210, IF($C$5=Dates1!$B$6, DataPack!$S210))))","v":11},null,{"$f":"IF($C$5=Dates1!$B$3, DataPack!$E210, IF($C$5=Dates1!$B$4, DataPack!$J210, IF($C$5=Dates1!$B$5, DataPack!$O210, IF($C$5=Dates1!$B$6, DataPack!$T210))))","v":3}]
[null,"     C2. How effectively do governors and supervisory bodies provide leadership, direction \n     and challenge?2",null,null,null,null,null,null,9,{"$f":"IF($C$5=Dates1!$B$3, DataPack!$B211, IF($C$5=Dates1!$B$4, DataPack!$G211, IF($C$5=Dates1!$B$5, DataPack!$L211, IF($C$5=Dates1!$B$6, DataPack!$Q211))))","v":2},null,{"$f":"IF($C$5=Dates1!$B$3, DataPack!$C211, IF($C$5=Dates1!$B$4, DataPack!$H211, IF($C$5=Dates1!$B$5, DataPack!$M211, IF($C$5=Dates1!$B$6, DataPack!$R211))))","v":4},null,{"$f":"IF($C$5=Dates1!$B$3, DataPack!$D211, IF($C$5=Dates1!$B$4, DataPack!$I211, IF($C$5=Dates1!$B$5, DataPack!$N211, IF($C$5=Dates1!$B$6, DataPack!$S211))))","v":3},null,{"$f":"IF($C$5=Dates1!$B$3, DataPack!$E211, IF($C$5=Dates1!$B$4, DataPack!$J211, IF($C$5=Dates1!$B$5, DataPack!$O211, IF($C$5=Dates1!$B$6, DataPack!$T211))))","v":0}]
[null,"    C3. How effectively does the provider promote the safeguarding of learners?",null,null,null,null,null,null,35,{"$f":"IF($C$5=Dates1!$B$3, DataPack!$B212, IF($C$5=Dates1!$B$4, DataPack!$G212, IF($C$5=Dates1!$B$5, DataPack!$L212, IF($C$5=Dates1!$B$6, DataPack!$Q212))))","v":4},null,{"$f":"IF($C$5=Dates1!$B$3, DataPack!$C212, IF($C$5=Dates1!$B$4, DataPack!$H212, IF($C$5=Dates1!$B$5, DataPack!$M212, IF($C$5=Dates1!$B$6, DataPack!$R212))))","v":18},null,{"$f":"IF($C$5=Dates1!$B$3, DataPack!$D212, IF($C$5=Dates1!$B$4, DataPack!$I212, IF($C$5=Dates1!$B$5, DataPack!$N212, IF($C$5=Dates1!$B$6, DataPack!$S212))))","v":13},null,{"$f":"IF($C$5=Dates1!$B$3, DataPack!$E212, IF($C$5=Dates1!$B$4, DataPack!$J212, IF($C$5=Dates1!$B$5, DataPack!$O212, IF($C$5=Dates1!$B$6, DataPack!$T212))))","v":0}]
[null,"C4. How effectively does the provider actively promote equality and diversity,\ntackle discrimination and narrow the achievement gap?",null,null,null,null,null,null,35,{"$f":"IF($C$5=Dates1!$B$3, DataPack!$B213, IF($C$5=Dates1!$B$4, DataPack!$G213, IF($C$5=Dates1!$B$5, DataPack!$L213, IF($C$5=Dates1!$B$6, DataPack!$Q213))))","v":0},null,{"$f":"IF($C$5=Dates1!$B$3, DataPack!$C213, IF($C$5=Dates1!$B$4, DataPack!$H213, IF($C$5=Dates1!$B$5, DataPack!$M213, IF($C$5=Dates1!$B$6, DataPack!$R213))))","v":11},null,{"$f":"IF($C$5=Dates1!$B$3, DataPack!$D213, IF($C$5=Dates1!$B$4, DataPack!$I213, IF($C$5=Dates1!$B$5, DataPack!$N213, IF($C$5=Dates1!$B$6, DataPack!$S213))))","v":22},null,{"$f":"IF($C$5=Dates1!$B$3, DataPack!$E213, IF($C$5=Dates1!$B$4, DataPack!$J213, IF($C$5=Dates1!$B$5, DataPack!$O213, IF($C$5=Dates1!$B$6, DataPack!$T213))))","v":2}]
[null,"     C5. How effectively does the provider engage with users to support and promote \n     improvement?",null,null,null,null,null,null,35,{"$f":"IF($C$5=Dates1!$B$3, DataPack!$B214, IF($C$5=Dates1!$B$4, DataPack!$G214, IF($C$5=Dates1!$B$5, DataPack!$L214, IF($C$5=Dates1!$B$6, DataPack!$Q214))))","v":2},null,{"$f":"IF($C$5=Dates1!$B$3, DataPack!$C214, IF($C$5=Dates1!$B$4, DataPack!$H214, IF($C$5=Dates1!$B$5, DataPack!$M214, IF($C$5=Dates1!$B$6, DataPack!$R214))))","v":13},null,{"$f":"IF($C$5=Dates1!$B$3, DataPack!$D214, IF($C$5=Dates1!$B$4, DataPack!$I214, IF($C$5=Dates1!$B$5, DataPack!$N214, IF($C$5=Dates1!$B$6, DataPack!$S214))))","v":18},null,{"$f":"IF($C$5=Dates1!$B$3, DataPack!$E214, IF($C$5=Dates1!$B$4, DataPack!$J214, IF($C$5=Dates1!$B$5, DataPack!$O214, IF($C$5=Dates1!$B$6, DataPack!$T214))))","v":2}]
[null,"     C6. How effectively does self-assessment improve the quality of the provision and \n     outcomes for learners?",null,null,null,null,null,null,35,{"$f":"IF($C$5=Dates1!$B$3, DataPack!$B215, IF($C$5=Dates1!$B$4, DataPack!$G215, IF($C$5=Dates1!$B$5, DataPack!$L215, IF($C$5=Dates1!$B$6, DataPack!$Q215))))","v":2},null,{"$f":"IF($C$5=Dates1!$B$3, DataPack!$C215, IF($C$5=Dates1!$B$4, DataPack!$H215, IF($C$5=Dates1!$B$5, DataPack!$M215, IF($C$5=Dates1!$B$6, DataPack!$R215))))","v":10},null,{"$f":"IF($C$5=Dates1!$B$3, DataPack!$D215, IF($C$5=Dates1!$B$4, DataPack!$I215, IF($C$5=Dates1!$B$5, DataPack!$N215, IF($C$5=Dates1!$B$6, DataPack!$S215))))","v":17},null,{"$f":"IF($C$5=Dates1!$B$3, DataPack!$E215, IF($C$5=Dates1!$B$4, DataPack!$J215, IF($C$5=Dates1!$B$5, DataPack!$O215, IF($C$5=Dates1!$B$6, DataPack!$T215))))","v":6}]
[null,"     C7. How efficiently and effectively does the provider use its available resources to \n     secure value for money?",null,null,null,null,null,null,35,{"$f":"IF($C$5=Dates1!$B$3, DataPack!$B216, IF($C$5=Dates1!$B$4, DataPack!$G216, IF($C$5=Dates1!$B$5, DataPack!$L216, IF($C$5=Dates1!$B$6, DataPack!$Q216))))","v":1},null,{"$f":"IF($C$5=Dates1!$B$3, DataPack!$C216, IF($C$5=Dates1!$B$4, DataPack!$H216, IF($C$5=Dates1!$B$5, DataPack!$M216, IF($C$5=Dates1!$B$6, DataPack!$R216))))","v":17},null,{"$f":"IF($C$5=Dates1!$B$3, DataPack!$D216, IF($C$5=Dates1!$B$4, DataPack!$I216, IF($C$5=Dates1!$B$5, DataPack!$N216, IF($C$5=Dates1!$B$6, DataPack!$S216))))","v":15},null,{"$f":"IF($C$5=Dates1!$B$3, DataPack!$E216, IF($C$5=Dates1!$B$4, DataPack!$J216, IF($C$5=Dates1!$B$5, DataPack!$O216, IF($C$5=Dates1!$B$6, DataPack!$T216))))","v":2}]
[null,null,null,null,null,null,null,null,null,null,null,null,"Source: Ofsted inspections"]
[null,"1. Includes employer providers."]
[null,"2. Where applicable to the type of provision."]

{"sheet":"Table 2h","index":13,"n_rows":32,"n_cols":16,"rows_kept":32,"cut":false,"hidden":false,"merged":[[4,8,5,8],[30,12,30,16],[4,9,4,10],[4,11,4,12],[4,13,4,14],[4,15,4,16],[25,1,25,6],[24,1,24,6],[29,1,29,6],[28,1,28,6],[27,1,27,6],[26,1,26,6],[14,1,14,6],[15,1,15,6],[23,1,23,6],[22,1,22,6],[21,1,21,6],[20,1,20,6],[19,1,19,6],[18,1,18,6],[17,1,17,6],[16,1,16,6],[11,1,11,6],[12,1,12,6],[13,1,13,6],[4,2,4,6],[8,1,8,6],[9,1,9,6],[10,1,10,6],[7,1,7,6]]}
[]
[null,{"$f":"\"Table 2h: Inspection outcomes of adult and community learning providers inspected \" & IF('Table 2h'!C5=Dates1!$B$3, \"between \" & Dates1!$B$3, IF('Table 2h'!C5 = Dates1!B4, \"in \" & Dates1!B4, IF('Table 2h'!C5=Dates1!B5, \"in \" & Dates1!B5, IF('Table 2h'!C5=Dates1!B6, \"in \" & Dates1!B6, IF('Table 2h'!C5=Dates1!B7, \"in \" & Dates1!B7)))))  & \" (provisional)\"","v":"Table 2h: Inspection outcomes of adult and community learning providers inspected between 1 October and 31 December 2011 (provisional)"}]
[]
[]
[null,"Select period:","1 October and 31 December 2011",null,null,null,null,null,"Total number inspected","Outstanding",null,"Good",null,"Satisfactory",null,"Inadequate"]
[null,null,null,null,null,null,null,null,"Number","Number",null,"Number",null,"Number",null,"Number"]
[]
[null,"Overall effectiveness",null,null,null,null,null,null,{"$f":"J8+L8+N8+P8","v":17},{"$f":"IF($C$5=Dates1!$B$3, DataPack!$B220, IF($C$5=Dates1!$B$4, DataPack!$G220, IF($C$5=Dates1!$B$5, DataPack!$L220, IF($C$5=Dates1!$B$6, DataPack!$Q220))))","v":1},null,{"$f":"IF($C$5=Dates1!$B$3, DataPack!$C220, IF($C$5=Dates1!$B$4, DataPack!$H220, IF($C$5=Dates1!$B$5, DataPack!$M220, IF($C$5=Dates1!$B$6, DataPack!$R220))))","v":13},null,{"$f":"IF($C$5=Dates1!$B$3, DataPack!$D220, IF($C$5=Dates1!$B$4, DataPack!$I220, IF($C$5=Dates1!$B$5, DataPack!$N220, IF($C$5=Dates1!$B$6, DataPack!$S220))))","v":3},null,{"$f":"IF($C$5=Dates1!$B$3, DataPack!$E220, IF($C$5=Dates1!$B$4, DataPack!$J220, IF($C$5=Dates1!$B$5, DataPack!$O220, IF($C$5=Dates1!$B$6, DataPack!$T220))))","v":0}]
[null,"Capacity to improve",null,null,null,null,null,null,{"$f":"J9+L9+N9+P9","v":17},{"$f":"IF($C$5=Dates1!$B$3, DataPack!$B221, IF($C$5=Dates1!$B$4, DataPack!$G221, IF($C$5=Dates1!$B$5, DataPack!$L221, IF($C$5=Dates1!$B$6, DataPack!$Q221))))","v":0},null,{"$f":"IF($C$5=Dates1!$B$3, DataPack!$C221, IF($C$5=Dates1!$B$4, DataPack!$H221, IF($C$5=Dates1!$B$5, DataPack!$M221, IF($C$5=Dates1!$B$6, DataPack!$R221))))","v":13},null,{"$f":"IF($C$5=Dates1!$B$3, DataPack!$D221, IF($C$5=Dates1!$B$4, DataPack!$I221, IF($C$5=Dates1!$B$5, DataPack!$N221, IF($C$5=Dates1!$B$6, DataPack!$S221))))","v":4},null,{"$f":"IF($C$5=Dates1!$B$3, DataPack!$E221, IF($C$5=Dates1!$B$4, DataPack!$J221, IF($C$5=Dates1!$B$5, DataPack!$O221, IF($C$5=Dates1!$B$6, DataPack!$T221))))","v":0}]
[null,"A. Outcomes for learners",null,null,null,null,null,null,17,{"$f":"IF($C$5=Dates1!$B$3, DataPack!$B222, IF($C$5=Dates1!$B$4, DataPack!$G222, IF($C$5=Dates1!$B$5, DataPack!$L222, IF($C$5=Dates1!$B$6, DataPack!$Q222))))","v":1},null,{"$f":"IF($C$5=Dates1!$B$3, DataPack!$C222, IF($C$5=Dates1!$B$4, DataPack!$H222, IF($C$5=Dates1!$B$5, DataPack!$M222, IF($C$5=Dates1!$B$6, DataPack!$R222))))","v":12},null,{"$f":"IF($C$5=Dates1!$B$3, DataPack!$D222, IF($C$5=Dates1!$B$4, DataPack!$I222, IF($C$5=Dates1!$B$5, DataPack!$N222, IF($C$5=Dates1!$B$6, DataPack!$S222))))","v":4},null,{"$f":"IF($C$5=Dates1!$B$3, DataPack!$E222, IF($C$5=Dates1!$B$4, DataPack!$J222, IF($C$5=Dates1!$B$5, DataPack!$O222, IF($C$5=Dates1!$B$6, DataPack!$T222))))","v":0}]
[null,"     A1. How well do learners achieve and enjoy their learning",null,null,null,null,null,null,17,{"$f":"IF($C$5=Dates1!$B$3, DataPack!$B223, IF($C$5=Dates1!$B$4, DataPack!$G223, IF($C$5=Dates1!$B$5, DataPack!$L223, IF($C$5=Dates1!$B$6, DataPack!$Q223))))","v":1},null,{"$f":"IF($C$5=Dates1!$B$3, DataPack!$C223, IF($C$5=Dates1!$B$4, DataPack!$H223, IF($C$5=Dates1!$B$5, DataPack!$M223, IF($C$5=Dates1!$B$6, DataPack!$R223))))","v":12},null,{"$f":"IF($C$5=Dates1!$B$3, DataPack!$D223, IF($C$5=Dates1!$B$4, DataPack!$I223, IF($C$5=Dates1!$B$5, DataPack!$N223, IF($C$5=Dates1!$B$6, DataPack!$S223))))","v":4},null,{"$f":"IF($C$5=Dates1!$B$3, DataPack!$E223, IF($C$5=Dates1!$B$4, DataPack!$J223, IF($C$5=Dates1!$B$5, DataPack!$O223, IF($C$5=Dates1!$B$6, DataPack!$T223))))","v":0}]
[null,"          A1.a) How well do learners attain their learning goals",null,null,null,null,null,null,17,{"$f":"IF($C$5=Dates1!$B$3, DataPack!$B224, IF($C$5=Dates1!$B$4, DataPack!$G224, IF($C$5=Dates1!$B$5, DataPack!$L224, IF($C$5=Dates1!$B$6, DataPack!$Q224))))","v":2},null,{"$f":"IF($C$5=Dates1!$B$3, DataPack!$C224, IF($C$5=Dates1!$B$4, DataPack!$H224, IF($C$5=Dates1!$B$5, DataPack!$M224, IF($C$5=Dates1!$B$6, DataPack!$R224))))","v":10},null,{"$f":"IF($C$5=Dates1!$B$3, DataPack!$D224, IF($C$5=Dates1!$B$4, DataPack!$I224, IF($C$5=Dates1!$B$5, DataPack!$N224, IF($C$5=Dates1!$B$6, DataPack!$S224))))","v":5},null,{"$f":"IF($C$5=Dates1!$B$3, DataPack!$E224, IF($C$5=Dates1!$B$4, DataPack!$J224, IF($C$5=Dates1!$B$5, DataPack!$O224, IF($C$5=Dates1!$B$6, DataPack!$T224))))","v":0}]
[null,"          A1.b) How well do learners progress?",null,null,null,null,null,null,17,{"$f":"IF($C$5=Dates1!$B$3, DataPack!$B225, IF($C$5=Dates1!$B$4, DataPack!$G225, IF($C$5=Dates1!$B$5, DataPack!$L225, IF($C$5=Dates1!$B$6, DataPack!$Q225))))","v":0},null,{"$f":"IF($C$5=Dates1!$B$3, DataPack!$C225, IF($C$5=Dates1!$B$4, DataPack!$H225, IF($C$5=Dates1!$B$5, DataPack!$M225, IF($C$5=Dates1!$B$6, DataPack!$R225))))","v":12},null,{"$f":"IF($C$5=Dates1!$B$3, DataPack!$D225, IF($C$5=Dates1!$B$4, DataPack!$I225, IF($C$5=Dates1!$B$5, DataPack!$N225, IF($C$5=Dates1!$B$6, DataPack!$S225))))","v":5},null,{"$f":"IF($C$5=Dates1!$B$3, DataPack!$E225, IF($C$5=Dates1!$B$4, DataPack!$J225, IF($C$5=Dates1!$B$5, DataPack!$O225, IF($C$5=Dates1!$B$6, DataPack!$T225))))","v":0}]
[null,"     A2. How well do learners improve their economic and social well-being through learning \n     and development?",null,null,null,null,null,null,17,{"$f":"IF($C$5=Dates1!$B$3, DataPack!$B226, IF($C$5=Dates1!$B$4, DataPack!$G226, IF($C$5=Dates1!$B$5, DataPack!$L226, IF($C$5=Dates1!$B$6, DataPack!$Q226))))","v":2},null,{"$f":"IF($C$5=Dates1!$B$3, DataPack!$C226, IF($C$5=Dates1!$B$4, DataPack!$H226, IF($C$5=Dates1!$B$5, DataPack!$M226, IF($C$5=Dates1!$B$6, DataPack!$R226))))","v":14},null,{"$f":"IF($C$5=Dates1!$B$3, DataPack!$D226, IF($C$5=Dates1!$B$4, DataPack!$I226, IF($C$5=Dates1!$B$5, DataPack!$N226, IF($C$5=Dates1!$B$6, DataPack!$S226))))","v":1},null,{"$f":"IF($C$5=Dates1!$B$3, DataPack!$E226, IF($C$5=Dates1!$B$4, DataPack!$J226, IF($C$5=Dates1!$B$5, DataPack!$O226, IF($C$5=Dates1!$B$6, DataPack!$T226))))","v":0}]
[null,"     A3. How safe do learners feel?",null,null,null,null,null,null,17,{"$f":"IF($C$5=Dates1!$B$3, DataPack!$B227, IF($C$5=Dates1!$B$4, DataPack!$G227, IF($C$5=Dates1!$B$5, DataPack!$L227, IF($C$5=Dates1!$B$6, DataPack!$Q227))))","v":2},null,{"$f":"IF($C$5=Dates1!$B$3, DataPack!$C227, IF($C$5=Dates1!$B$4, DataPack!$H227, IF($C$5=Dates1!$B$5, DataPack!$M227, IF($C$5=Dates1!$B$6, DataPack!$R227))))","v":14},null,{"$f":"IF($C$5=Dates1!$B$3, DataPack!$D227, IF($C$5=Dates1!$B$4, DataPack!$I227, IF($C$5=Dates1!$B$5, DataPack!$N227, IF($C$5=Dates1!$B$6, DataPack!$S227))))","v":1},null,{"$f":"IF($C$5=Dates1!$B$3, DataPack!$E227, IF($C$5=Dates1!$B$4, DataPack!$J227, IF($C$5=Dates1!$B$5, DataPack!$O227, IF($C$5=Dates1!$B$6, DataPack!$T227))))","v":0}]
[null,"     A4. Are learners able to make informed choices about their own health and well being?1",null,null,null,null,null,null,11,{"$f":"IF($C$5=Dates1!$B$3, DataPack!$B228, IF($C$5=Dates1!$B$4, DataPack!$G228, IF($C$5=Dates1!$B$5, DataPack!$L228, IF($C$5=Dates1!$B$6, DataPack!$Q228))))","v":0},null,{"$f":"IF($C$5=Dates1!$B$3, DataPack!$C228, IF($C$5=Dates1!$B$4, DataPack!$H228, IF($C$5=Dates1!$B$5, DataPack!$M228, IF($C$5=Dates1!$B$6, DataPack!$R228))))","v":8},null,{"$f":"IF($C$5=Dates1!$B$3, DataPack!$D228, IF($C$5=Dates1!$B$4, DataPack!$I228, IF($C$5=Dates1!$B$5, DataPack!$N228, IF($C$5=Dates1!$B$6, DataPack!$S228))))","v":3},null,{"$f":"IF($C$5=Dates1!$B$3, DataPack!$E228, IF($C$5=Dates1!$B$4, DataPack!$J228, IF($C$5=Dates1!$B$5, DataPack!$O228, IF($C$5=Dates1!$B$6, DataPack!$T228))))","v":0}]
[null,"     A5. How well do learners make a positive contribution to the community?1",null,null,null,null,null,null,10,{"$f":"IF($C$5=Dates1!$B$3, DataPack!$B229, IF($C$5=Dates1!$B$4, DataPack!$G229, IF($C$5=Dates1!$B$5, DataPack!$L229, IF($C$5=Dates1!$B$6, DataPack!$Q229))))","v":2},null,{"$f":"IF($C$5=Dates1!$B$3, DataPack!$C229, IF($C$5=Dates1!$B$4, DataPack!$H229, IF($C$5=Dates1!$B$5, DataPack!$M229, IF($C$5=Dates1!$B$6, DataPack!$R229))))","v":5},null,{"$f":"IF($C$5=Dates1!$B$3, DataPack!$D229, IF($C$5=Dates1!$B$4, DataPack!$I229, IF($C$5=Dates1!$B$5, DataPack!$N229, IF($C$5=Dates1!$B$6, DataPack!$S229))))","v":3},null,{"$f":"IF($C$5=Dates1!$B$3, DataPack!$E229, IF($C$5=Dates1!$B$4, DataPack!$J229, IF($C$5=Dates1!$B$5, DataPack!$O229, IF($C$5=Dates1!$B$6, DataPack!$T229))))","v":0}]
[null,"B. Quality of provision",null,null,null,null,null,null,17,{"$f":"IF($C$5=Dates1!$B$3, DataPack!$B230, IF($C$5=Dates1!$B$4, DataPack!$G230, IF($C$5=Dates1!$B$5, DataPack!$L230, IF($C$5=Dates1!$B$6, DataPack!$Q230))))","v":1},null,{"$f":"IF($C$5=Dates1!$B$3, DataPack!$C230, IF($C$5=Dates1!$B$4, DataPack!$H230, IF($C$5=Dates1!$B$5, DataPack!$M230, IF($C$5=Dates1!$B$6, DataPack!$R230))))","v":14},null,{"$f":"IF($C$5=Dates1!$B$3, DataPack!$D230, IF($C$5=Dates1!$B$4, DataPack!$I230, IF($C$5=Dates1!$B$5, DataPack!$N230, IF($C$5=Dates1!$B$6, DataPack!$S230))))","v":2},null,{"$f":"IF($C$5=Dates1!$B$3, DataPack!$E230, IF($C$5=Dates1!$B$4, DataPack!$J230, IF($C$5=Dates1!$B$5, DataPack!$O230, IF($C$5=Dates1!$B$6, DataPack!$T230))))","v":0}]
[null,"     B1. How effectively do teaching, training and assessment support learning and \n     development?",null,null,null,null,null,null,17,{"$f":"IF($C$5=Dates1!$B$3, DataPack!$B231, IF($C$5=Dates1!$B$4, DataPack!$G231, IF($C$5=Dates1!$B$5, DataPack!$L231, IF($C$5=Dates1!$B$6, DataPack!$Q231))))","v":0},null,{"$f":"IF($C$5=Dates1!$B$3, DataPack!$C231, IF($C$5=Dates1!$B$4, DataPack!$H231, IF($C$5=Dates1!$B$5, DataPack!$M231, IF($C$5=Dates1!$B$6, DataPack!$R231))))","v":15},null,{"$f":"IF($C$5=Dates1!$B$3, DataPack!$D231, IF($C$5=Dates1!$B$4, DataPack!$I231, IF($C$5=Dates1!$B$5, DataPack!$N231, IF($C$5=Dates1!$B$6, DataPack!$S231))))","v":2},null,{"$f":"IF($C$5=Dates1!$B$3, DataPack!$E231, IF($C$5=Dates1!$B$4, DataPack!$J231, IF($C$5=Dates1!$B$5, DataPack!$O231, IF($C$5=Dates1!$B$6, DataPack!$T231))))","v":0}]
[null,"     B2. How effectively does the provision meet the needs and interests of users?",null,null,null,null,null,null,17,{"$f":"IF($C$5=Dates1!$B$3, DataPack!$B232, IF($C$5=Dates1!$B$4, DataPack!$G232, IF($C$5=Dates1!$B$5, DataPack!$L232, IF($C$5=Dates1!$B$6, DataPack!$Q232))))","v":3},null,{"$f":"IF($C$5=Dates1!$B$3, DataPack!$C232, IF($C$5=Dates1!$B$4, DataPack!$H232, IF($C$5=Dates1!$B$5, DataPack!$M232, IF($C$5=Dates1!$B$6, DataPack!$R232))))","v":11},null,{"$f":"IF($C$5=Dates1!$B$3, DataPack!$D232, IF($C$5=Dates1!$B$4, DataPack!$I232, IF($C$5=Dates1!$B$5, DataPack!$N232, IF($C$5=Dates1!$B$6, DataPack!$S232))))","v":3},null,{"$f":"IF($C$5=Dates1!$B$3, DataPack!$E232, IF($C$5=Dates1!$B$4, DataPack!$J232, IF($C$5=Dates1!$B$5, DataPack!$O232, IF($C$5=Dates1!$B$6, DataPack!$T232))))","v":0}]
[null,"     B3. How well do partnerships with schools, employers, community groups and others \n     lead to benefits for learners?",null,null,null,null,null,null,17,{"$f":"IF($C$5=Dates1!$B$3, DataPack!$B233, IF($C$5=Dates1!$B$4, DataPack!$G233, IF($C$5=Dates1!$B$5, DataPack!$L233, IF($C$5=Dates1!$B$6, DataPack!$Q233))))","v":5},null,{"$f":"IF($C$5=Dates1!$B$3, DataPack!$C233, IF($C$5=Dates1!$B$4, DataPack!$H233, IF($C$5=Dates1!$B$5, DataPack!$M233, IF($C$5=Dates1!$B$6, DataPack!$R233))))","v":10},null,{"$f":"IF($C$5=Dates1!$B$3, DataPack!$D233, IF($C$5=Dates1!$B$4, DataPack!$I233, IF($C$5=Dates1!$B$5, DataPack!$N233, IF($C$5=Dates1!$B$6, DataPack!$S233))))","v":2},null,{"$f":"IF($C$5=Dates1!$B$3, DataPack!$E233, IF($C$5=Dates1!$B$4, DataPack!$J233, IF($C$5=Dates1!$B$5, DataPack!$O233, IF($C$5=Dates1!$B$6, DataPack!$T233))))","v":0}]
[null,"     B4. How effective are the care, guidance and support learners receive in helping them \n     to achieve?",null,null,null,null,null,null,17,{"$f":"IF($C$5=Dates1!$B$3, DataPack!$B234, IF($C$5=Dates1!$B$4, DataPack!$G234, IF($C$5=Dates1!$B$5, DataPack!$L234, IF($C$5=Dates1!$B$6, DataPack!$Q234))))","v":2},null,{"$f":"IF($C$5=Dates1!$B$3, DataPack!$C234, IF($C$5=Dates1!$B$4, DataPack!$H234, IF($C$5=Dates1!$B$5, DataPack!$M234, IF($C$5=Dates1!$B$6, DataPack!$R234))))","v":12},null,{"$f":"IF($C$5=Dates1!$B$3, DataPack!$D234, IF($C$5=Dates1!$B$4, DataPack!$I234, IF($C$5=Dates1!$B$5, DataPack!$N234, IF($C$5=Dates1!$B$6, DataPack!$S234))))","v":3},null,{"$f":"IF($C$5=Dates1!$B$3, DataPack!$E234, IF($C$5=Dates1!$B$4, DataPack!$J234, IF($C$5=Dates1!$B$5, DataPack!$O234, IF($C$5=Dates1!$B$6, DataPack!$T234))))","v":0}]
[null,"C. Leadership and management",null,null,null,null,null,null,17,{"$f":"IF($C$5=Dates1!$B$3, DataPack!$B235, IF($C$5=Dates1!$B$4, DataPack!$G235, IF($C$5=Dates1!$B$5, DataPack!$L235, IF($C$5=Dates1!$B$6, DataPack!$Q235))))","v":1},null,{"$f":"IF($C$5=Dates1!$B$3, DataPack!$C235, IF($C$5=Dates1!$B$4, DataPack!$H235, IF($C$5=Dates1!$B$5, DataPack!$M235, IF($C$5=Dates1!$B$6, DataPack!$R235))))","v":13},null,{"$f":"IF($C$5=Dates1!$B$3, DataPack!$D235, IF($C$5=Dates1!$B$4, DataPack!$I235, IF($C$5=Dates1!$B$5, DataPack!$N235, IF($C$5=Dates1!$B$6, DataPack!$S235))))","v":3},null,{"$f":"IF($C$5=Dates1!$B$3, DataPack!$E235, IF($C$5=Dates1!$B$4, DataPack!$J235, IF($C$5=Dates1!$B$5, DataPack!$O235, IF($C$5=Dates1!$B$6, DataPack!$T235))))","v":0}]
[null,"     C1. How effectively do leaders and managers raise expectations and promote ambition \n     throughout the organisation?",null,null,null,null,null,null,17,{"$f":"IF($C$5=Dates1!$B$3, DataPack!$B236, IF($C$5=Dates1!$B$4, DataPack!$G236, IF($C$5=Dates1!$B$5, DataPack!$L236, IF($C$5=Dates1!$B$6, DataPack!$Q236))))","v":4},null,{"$f":"IF($C$5=Dates1!$B$3, DataPack!$C236, IF($C$5=Dates1!$B$4, DataPack!$H236, IF($C$5=Dates1!$B$5, DataPack!$M236, IF($C$5=Dates1!$B$6, DataPack!$R236))))","v":9},null,{"$f":"IF($C$5=Dates1!$B$3, DataPack!$D236, IF($C$5=Dates1!$B$4, DataPack!$I236, IF($C$5=Dates1!$B$5, DataPack!$N236, IF($C$5=Dates1!$B$6, DataPack!$S236))))","v":4},null,{"$f":"IF($C$5=Dates1!$B$3, DataPack!$E236, IF($C$5=Dates1!$B$4, DataPack!$J236, IF($C$5=Dates1!$B$5, DataPack!$O236, IF($C$5=Dates1!$B$6, DataPack!$T236))))","v":0}]
[null,"     C2. How effectively do governors and supervisory bodies provide leadership, direction \n     and challenge?1",null,null,null,null,null,null,14,{"$f":"IF($C$5=Dates1!$B$3, DataPack!$B237, IF($C$5=Dates1!$B$4, DataPack!$G237, IF($C$5=Dates1!$B$5, DataPack!$L237, IF($C$5=Dates1!$B$6, DataPack!$Q237))))","v":2},null,{"$f":"IF($C$5=Dates1!$B$3, DataPack!$C237, IF($C$5=Dates1!$B$4, DataPack!$H237, IF($C$5=Dates1!$B$5, DataPack!$M237, IF($C$5=Dates1!$B$6, DataPack!$R237))))","v":6},null,{"$f":"IF($C$5=Dates1!$B$3, DataPack!$D237, IF($C$5=Dates1!$B$4, DataPack!$I237, IF($C$5=Dates1!$B$5, DataPack!$N237, IF($C$5=Dates1!$B$6, DataPack!$S237))))","v":4},null,{"$f":"IF($C$5=Dates1!$B$3, DataPack!$E237, IF($C$5=Dates1!$B$4, DataPack!$J237, IF($C$5=Dates1!$B$5, DataPack!$O237, IF($C$5=Dates1!$B$6, DataPack!$T237))))","v":2}]
[null,"    C3. How effectively does the provider promote the safeguarding of learners?",null,null,null,null,null,null,17,{"$f":"IF($C$5=Dates1!$B$3, DataPack!$B238, IF($C$5=Dates1!$B$4, DataPack!$G238, IF($C$5=Dates1!$B$5, DataPack!$L238, IF($C$5=Dates1!$B$6, DataPack!$Q238))))","v":1},null,{"$f":"IF($C$5=Dates1!$B$3, DataPack!$C238, IF($C$5=Dates1!$B$4, DataPack!$H238, IF($C$5=Dates1!$B$5, DataPack!$M238, IF($C$5=Dates1!$B$6, DataPack!$R238))))","v":12},null,{"$f":"IF($C$5=Dates1!$B$3, DataPack!$D238, IF($C$5=Dates1!$B$4, DataPack!$I238, IF($C$5=Dates1!$B$5, DataPack!$N238, IF($C$5=Dates1!$B$6, DataPack!$S238))))","v":4},null,{"$f":"IF($C$5=Dates1!$B$3, DataPack!$E238, IF($C$5=Dates1!$B$4, DataPack!$J238, IF($C$5=Dates1!$B$5, DataPack!$O238, IF($C$5=Dates1!$B$6, DataPack!$T238))))","v":0}]
[null,"C4. How effectively does the provider actively promote equality and diversity,\ntackle discrimination and narrow the achievement gap?",null,null,null,null,null,null,17,{"$f":"IF($C$5=Dates1!$B$3, DataPack!$B239, IF($C$5=Dates1!$B$4, DataPack!$G239, IF($C$5=Dates1!$B$5, DataPack!$L239, IF($C$5=Dates1!$B$6, DataPack!$Q239))))","v":1},null,{"$f":"IF($C$5=Dates1!$B$3, DataPack!$C239, IF($C$5=Dates1!$B$4, DataPack!$H239, IF($C$5=Dates1!$B$5, DataPack!$M239, IF($C$5=Dates1!$B$6, DataPack!$R239))))","v":12},null,{"$f":"IF($C$5=Dates1!$B$3, DataPack!$D239, IF($C$5=Dates1!$B$4, DataPack!$I239, IF($C$5=Dates1!$B$5, DataPack!$N239, IF($C$5=Dates1!$B$6, DataPack!$S239))))","v":4},null,{"$f":"IF($C$5=Dates1!$B$3, DataPack!$E239, IF($C$5=Dates1!$B$4, DataPack!$J239, IF($C$5=Dates1!$B$5, DataPack!$O239, IF($C$5=Dates1!$B$6, DataPack!$T239))))","v":0}]
[null,"     C5. How effectively does the provider engage with users to support and promote \n     improvement?",null,null,null,null,null,null,17,{"$f":"IF($C$5=Dates1!$B$3, DataPack!$B240, IF($C$5=Dates1!$B$4, DataPack!$G240, IF($C$5=Dates1!$B$5, DataPack!$L240, IF($C$5=Dates1!$B$6, DataPack!$Q240))))","v":1},null,{"$f":"IF($C$5=Dates1!$B$3, DataPack!$C240, IF($C$5=Dates1!$B$4, DataPack!$H240, IF($C$5=Dates1!$B$5, DataPack!$M240, IF($C$5=Dates1!$B$6, DataPack!$R240))))","v":11},null,{"$f":"IF($C$5=Dates1!$B$3, DataPack!$D240, IF($C$5=Dates1!$B$4, DataPack!$I240, IF($C$5=Dates1!$B$5, DataPack!$N240, IF($C$5=Dates1!$B$6, DataPack!$S240))))","v":5},null,{"$f":"IF($C$5=Dates1!$B$3, DataPack!$E240, IF($C$5=Dates1!$B$4, DataPack!$J240, IF($C$5=Dates1!$B$5, DataPack!$O240, IF($C$5=Dates1!$B$6, DataPack!$T240))))","v":0}]
[null,"     C6. How effectively does self-assessment improve the quality of the provision and \n     outcomes for learners?",null,null,null,null,null,null,17,{"$f":"IF($C$5=Dates1!$B$3, DataPack!$B241, IF($C$5=Dates1!$B$4, DataPack!$G241, IF($C$5=Dates1!$B$5, DataPack!$L241, IF($C$5=Dates1!$B$6, DataPack!$Q241))))","v":0},null,{"$f":"IF($C$5=Dates1!$B$3, DataPack!$C241, IF($C$5=Dates1!$B$4, DataPack!$H241, IF($C$5=Dates1!$B$5, DataPack!$M241, IF($C$5=Dates1!$B$6, DataPack!$R241))))","v":13},null,{"$f":"IF($C$5=Dates1!$B$3, DataPack!$D241, IF($C$5=Dates1!$B$4, DataPack!$I241, IF($C$5=Dates1!$B$5, DataPack!$N241, IF($C$5=Dates1!$B$6, DataPack!$S241))))","v":3},null,{"$f":"IF($C$5=Dates1!$B$3, DataPack!$E241, IF($C$5=Dates1!$B$4, DataPack!$J241, IF($C$5=Dates1!$B$5, DataPack!$O241, IF($C$5=Dates1!$B$6, DataPack!$T241))))","v":1}]
[null,"     C7. How efficiently and effectively does the provider use its available resources to \n     secure value for money?",null,null,null,null,null,null,17,{"$f":"IF($C$5=Dates1!$B$3, DataPack!$B242, IF($C$5=Dates1!$B$4, DataPack!$G242, IF($C$5=Dates1!$B$5, DataPack!$L242, IF($C$5=Dates1!$B$6, DataPack!$Q242))))","v":1},null,{"$f":"IF($C$5=Dates1!$B$3, DataPack!$C242, IF($C$5=Dates1!$B$4, DataPack!$H242, IF($C$5=Dates1!$B$5, DataPack!$M242, IF($C$5=Dates1!$B$6, DataPack!$R242))))","v":13},null,{"$f":"IF($C$5=Dates1!$B$3, DataPack!$D242, IF($C$5=Dates1!$B$4, DataPack!$I242, IF($C$5=Dates1!$B$5, DataPack!$N242, IF($C$5=Dates1!$B$6, DataPack!$S242))))","v":3},null,{"$f":"IF($C$5=Dates1!$B$3, DataPack!$E242, IF($C$5=Dates1!$B$4, DataPack!$J242, IF($C$5=Dates1!$B$5, DataPack!$O242, IF($C$5=Dates1!$B$6, DataPack!$T242))))","v":0}]
[null,null,null,null,null,null,null,null,null,null,null,null,"Source: Ofsted inspections"]
[null,"1. Where applicable to the type of provider."]

{"sheet":"Table 2i","index":14,"n_rows":32,"n_cols":16,"rows_kept":32,"cut":false,"hidden":false,"merged":[[4,2,4,6],[4,8,5,8],[4,9,4,10],[4,11,4,12],[4,13,4,14],[4,15,4,16],[7,1,7,6],[8,1,8,6],[9,1,9,6],[10,1,10,6],[11,1,11,6],[12,1,12,6],[13,1,13,6],[14,1,14,6],[15,1,15,6],[16,1,16,6],[17,1,17,6],[18,1,18,6],[19,1,19,6],[20,1,20,6],[21,1,21,6],[22,1,22,6],[23,1,23,6],[24,1,24,6],[25,1,25,6],[26,1,26,6],[27,1,27,6],[28,1,28,6],[29,1,29,6],[30,12,30,16]]}
[]
[null,{"$f":"\"Table 2i: Inspection outcomes of Next Step providers inspected \" & IF('Table 2i'!C5=Dates1!$B$3, \"between \" & Dates1!$B$3, IF('Table 2i'!C5 = Dates1!B4, \"in \" & Dates1!B4, IF('Table 2i'!C5=Dates1!B5, \"in \" & Dates1!B5, IF('Table 2i'!C5=Dates1!B6, \"in \" & Dates1!B6, IF('Table 2i'!C5=Dates1!B7, \"in \" & Dates1!B7)))))  & \" (provisional)\"","v":"Table 2i: Inspection outcomes of Next Step providers inspected between 1 October and 31 December 2011 (provisional)"}]
[]
[]
[null,"Select period:","1 October and 31 December 2011",null,null,null,null,null,"Total number inspected","Outstanding",null,"Good",null,"Satisfactory",null,"Inadequate"]
[null,null,null,null,null,null,null,null,"Number","Number",null,"Number",null,"Number",null,"Number"]
[]
[null,"Overall effectiveness",null,null,null,null,null,null,{"$f":"J8+L8+N8+P8","v":2},{"$f":"IF($C$5=Dates1!$B$3, DataPack!$B246, IF($C$5=Dates1!$B$4, DataPack!$G246, IF($C$5=Dates1!$B$5, DataPack!$L246, IF($C$5=Dates1!$B$6, DataPack!$Q246))))","v":0},null,{"$f":"IF($C$5=Dates1!$B$3, DataPack!$C246, IF($C$5=Dates1!$B$4, DataPack!$H246, IF($C$5=Dates1!$B$5, DataPack!$M246, IF($C$5=Dates1!$B$6, DataPack!$R246))))","v":2},null,{"$f":"IF($C$5=Dates1!$B$3, DataPack!$D246, IF($C$5=Dates1!$B$4, DataPack!$I246, IF($C$5=Dates1!$B$5, DataPack!$N246, IF($C$5=Dates1!$B$6, DataPack!$S246))))","v":0},null,{"$f":"IF($C$5=Dates1!$B$3, DataPack!$E246, IF($C$5=Dates1!$B$4, DataPack!$J246, IF($C$5=Dates1!$B$5, DataPack!$O246, IF($C$5=Dates1!$B$6, DataPack!$T246))))","v":0}]
[null,"Capacity to improve",null,null,null,null,null,null,2,{"$f":"IF($C$5=Dates1!$B$3, DataPack!$B247, IF($C$5=Dates1!$B$4, DataPack!$G247, IF($C$5=Dates1!$B$5, DataPack!$L247, IF($C$5=Dates1!$B$6, DataPack!$Q247))))","v":0},null,{"$f":"IF($C$5=Dates1!$B$3, DataPack!$C247, IF($C$5=Dates1!$B$4, DataPack!$H247, IF($C$5=Dates1!$B$5, DataPack!$M247, IF($C$5=Dates1!$B$6, DataPack!$R247))))","v":2},null,{"$f":"IF($C$5=Dates1!$B$3, DataPack!$D247, IF($C$5=Dates1!$B$4, DataPack!$I247, IF($C$5=Dates1!$B$5, DataPack!$N247, IF($C$5=Dates1!$B$6, DataPack!$S247))))","v":0},null,{"$f":"IF($C$5=Dates1!$B$3, DataPack!$E247, IF($C$5=Dates1!$B$4, DataPack!$J247, IF($C$5=Dates1!$B$5, DataPack!$O247, IF($C$5=Dates1!$B$6, DataPack!$T247))))","v":0}]
[null,"A. Outcomes for learners",null,null,null,null,null,null,2,{"$f":"IF($C$5=Dates1!$B$3, DataPack!$B248, IF($C$5=Dates1!$B$4, DataPack!$G248, IF($C$5=Dates1!$B$5, DataPack!$L248, IF($C$5=Dates1!$B$6, DataPack!$Q248))))","v":0},null,{"$f":"IF($C$5=Dates1!$B$3, DataPack!$C248, IF($C$5=Dates1!$B$4, DataPack!$H248, IF($C$5=Dates1!$B$5, DataPack!$M248, IF($C$5=Dates1!$B$6, DataPack!$R248))))","v":2},null,{"$f":"IF($C$5=Dates1!$B$3, DataPack!$D248, IF($C$5=Dates1!$B$4, DataPack!$I248, IF($C$5=Dates1!$B$5, DataPack!$N248, IF($C$5=Dates1!$B$6, DataPack!$S248))))","v":0},null,{"$f":"IF($C$5=Dates1!$B$3, DataPack!$E248, IF($C$5=Dates1!$B$4, DataPack!$J248, IF($C$5=Dates1!$B$5, DataPack!$O248, IF($C$5=Dates1!$B$6, DataPack!$T248))))","v":0}]
[null,"     A1. How well do learners achieve and enjoy their learning",null,null,null,null,null,null,2,{"$f":"IF($C$5=Dates1!$B$3, DataPack!$B249, IF($C$5=Dates1!$B$4, DataPack!$G249, IF($C$5=Dates1!$B$5, DataPack!$L249, IF($C$5=Dates1!$B$6, DataPack!$Q249))))","v":0},null,{"$f":"IF($C$5=Dates1!$B$3, DataPack!$C249, IF($C$5=Dates1!$B$4, DataPack!$H249, IF($C$5=Dates1!$B$5, DataPack!$M249, IF($C$5=Dates1!$B$6, DataPack!$R249))))","v":2},null,{"$f":"IF($C$5=Dates1!$B$3, DataPack!$D249, IF($C$5=Dates1!$B$4, DataPack!$I249, IF($C$5=Dates1!$B$5, DataPack!$N249, IF($C$5=Dates1!$B$6, DataPack!$S249))))","v":0},null,{"$f":"IF($C$5=Dates1!$B$3, DataPack!$E249, IF($C$5=Dates1!$B$4, DataPack!$J249, IF($C$5=Dates1!$B$5, DataPack!$O249, IF($C$5=Dates1!$B$6, DataPack!$T249))))","v":0}]
[null,"          A1.a) How well do learners attain their learning goals",null,null,null,null,null,null,2,{"$f":"IF($C$5=Dates1!$B$3, DataPack!$B250, IF($C$5=Dates1!$B$4, DataPack!$G250, IF($C$5=Dates1!$B$5, DataPack!$L250, IF($C$5=Dates1!$B$6, DataPack!$Q250))))","v":0},null,{"$f":"IF($C$5=Dates1!$B$3, DataPack!$C250, IF($C$5=Dates1!$B$4, DataPack!$H250, IF($C$5=Dates1!$B$5, DataPack!$M250, IF($C$5=Dates1!$B$6, DataPack!$R250))))","v":2},null,{"$f":"IF($C$5=Dates1!$B$3, DataPack!$D250, IF($C$5=Dates1!$B$4, DataPack!$I250, IF($C$5=Dates1!$B$5, DataPack!$N250, IF($C$5=Dates1!$B$6, DataPack!$S250))))","v":0},null,{"$f":"IF($C$5=Dates1!$B$3, DataPack!$E250, IF($C$5=Dates1!$B$4, DataPack!$J250, IF($C$5=Dates1!$B$5, DataPack!$O250, IF($C$5=Dates1!$B$6, DataPack!$T250))))","v":0}]
[null,"          A1.b) How well do learners progress?",null,null,null,null,null,null,2,{"$f":"IF($C$5=Dates1!$B$3, DataPack!$B251, IF($C$5=Dates1!$B$4, DataPack!$G251, IF($C$5=Dates1!$B$5, DataPack!$L251, IF($C$5=Dates1!$B$6, DataPack!$Q251))))","v":0},null,{"$f":"IF($C$5=Dates1!$B$3, DataPack!$C251, IF($C$5=Dates1!$B$4, DataPack!$H251, IF($C$5=Dates1!$B$5, DataPack!$M251, IF($C$5=Dates1!$B$6, DataPack!$R251))))","v":2},null,{"$f":"IF($C$5=Dates1!$B$3, DataPack!$D251, IF($C$5=Dates1!$B$4, DataPack!$I251, IF($C$5=Dates1!$B$5, DataPack!$N251, IF($C$5=Dates1!$B$6, DataPack!$S251))))","v":0},null,{"$f":"IF($C$5=Dates1!$B$3, DataPack!$E251, IF($C$5=Dates1!$B$4, DataPack!$J251, IF($C$5=Dates1!$B$5, DataPack!$O251, IF($C$5=Dates1!$B$6, DataPack!$T251))))","v":0}]
[null,"     A2. How well do learners improve their economic and social well-being through learning \n     and development?",null,null,null,null,null,null,2,{"$f":"IF($C$5=Dates1!$B$3, DataPack!$B252, IF($C$5=Dates1!$B$4, DataPack!$G252, IF($C$5=Dates1!$B$5, DataPack!$L252, IF($C$5=Dates1!$B$6, DataPack!$Q252))))","v":0},null,{"$f":"IF($C$5=Dates1!$B$3, DataPack!$C252, IF($C$5=Dates1!$B$4, DataPack!$H252, IF($C$5=Dates1!$B$5, DataPack!$M252, IF($C$5=Dates1!$B$6, DataPack!$R252))))","v":2},null,{"$f":"IF($C$5=Dates1!$B$3, DataPack!$D252, IF($C$5=Dates1!$B$4, DataPack!$I252, IF($C$5=Dates1!$B$5, DataPack!$N252, IF($C$5=Dates1!$B$6, DataPack!$S252))))","v":0},null,{"$f":"IF($C$5=Dates1!$B$3, DataPack!$E252, IF($C$5=Dates1!$B$4, DataPack!$J252, IF($C$5=Dates1!$B$5, DataPack!$O252, IF($C$5=Dates1!$B$6, DataPack!$T252))))","v":0}]
[null,"     A3. How safe do learners feel?",null,null,null,null,null,null,2,{"$f":"IF($C$5=Dates1!$B$3, DataPack!$B253, IF($C$5=Dates1!$B$4, DataPack!$G253, IF($C$5=Dates1!$B$5, DataPack!$L253, IF($C$5=Dates1!$B$6, DataPack!$Q253))))","v":0},null,{"$f":"IF($C$5=Dates1!$B$3, DataPack!$C253, IF($C$5=Dates1!$B$4, DataPack!$H253, IF($C$5=Dates1!$B$5, DataPack!$M253, IF($C$5=Dates1!$B$6, DataPack!$R253))))","v":2},null,{"$f":"IF($C$5=Dates1!$B$3, DataPack!$D253, IF($C$5=Dates1!$B$4, DataPack!$I253, IF($C$5=Dates1!$B$5, DataPack!$N253, IF($C$5=Dates1!$B$6, DataPack!$S253))))","v":0},null,{"$f":"IF($C$5=Dates1!$B$3, DataPack!$E253, IF($C$5=Dates1!$B$4, DataPack!$J253, IF($C$5=Dates1!$B$5, DataPack!$O253, IF($C$5=Dates1!$B$6, DataPack!$T253))))","v":0}]
[null,"     A4. Are learners able to make informed choices about their own health and well being?1",null,null,null,null,null,null,0,{"$f":"IF($C$5=Dates1!$B$3, DataPack!$B254, IF($C$5=Dates1!$B$4, DataPack!$G254, IF($C$5=Dates1!$B$5, DataPack!$L254, IF($C$5=Dates1!$B$6, DataPack!$Q254))))","v":0},null,{"$f":"IF($C$5=Dates1!$B$3, DataPack!$C254, IF($C$5=Dates1!$B$4, DataPack!$H254, IF($C$5=Dates1!$B$5, DataPack!$M254, IF($C$5=Dates1!$B$6, DataPack!$R254))))","v":0},null,{"$f":"IF($C$5=Dates1!$B$3, DataPack!$D254, IF($C$5=Dates1!$B$4, DataPack!$I254, IF($C$5=Dates1!$B$5, DataPack!$N254, IF($C$5=Dates1!$B$6, DataPack!$S254))))","v":0},null,{"$f":"IF($C$5=Dates1!$B$3, DataPack!$E254, IF($C$5=Dates1!$B$4, DataPack!$J254, IF($C$5=Dates1!$B$5, DataPack!$O254, IF($C$5=Dates1!$B$6, DataPack!$T254))))","v":0}]
[null,"     A5. How well do learners make a positive contribution to the community?1",null,null,null,null,null,null,1,{"$f":"IF($C$5=Dates1!$B$3, DataPack!$B255, IF($C$5=Dates1!$B$4, DataPack!$G255, IF($C$5=Dates1!$B$5, DataPack!$L255, IF($C$5=Dates1!$B$6, DataPack!$Q255))))","v":0},null,{"$f":"IF($C$5=Dates1!$B$3, DataPack!$C255, IF($C$5=Dates1!$B$4, DataPack!$H255, IF($C$5=Dates1!$B$5, DataPack!$M255, IF($C$5=Dates1!$B$6, DataPack!$R255))))","v":1},null,{"$f":"IF($C$5=Dates1!$B$3, DataPack!$D255, IF($C$5=Dates1!$B$4, DataPack!$I255, IF($C$5=Dates1!$B$5, DataPack!$N255, IF($C$5=Dates1!$B$6, DataPack!$S255))))","v":0},null,{"$f":"IF($C$5=Dates1!$B$3, DataPack!$E255, IF($C$5=Dates1!$B$4, DataPack!$J255, IF($C$5=Dates1!$B$5, DataPack!$O255, IF($C$5=Dates1!$B$6, DataPack!$T255))))","v":0}]
[null,"B. Quality of provision",null,null,null,null,null,null,2,{"$f":"IF($C$5=Dates1!$B$3, DataPack!$B256, IF($C$5=Dates1!$B$4, DataPack!$G256, IF($C$5=Dates1!$B$5, DataPack!$L256, IF($C$5=Dates1!$B$6, DataPack!$Q256))))","v":0},null,{"$f":"IF($C$5=Dates1!$B$3, DataPack!$C256, IF($C$5=Dates1!$B$4, DataPack!$H256, IF($C$5=Dates1!$B$5, DataPack!$M256, IF($C$5=Dates1!$B$6, DataPack!$R256))))","v":2},null,{"$f":"IF($C$5=Dates1!$B$3, DataPack!$D256, IF($C$5=Dates1!$B$4, DataPack!$I256, IF($C$5=Dates1!$B$5, DataPack!$N256, IF($C$5=Dates1!$B$6, DataPack!$S256))))","v":0},null,{"$f":"IF($C$5=Dates1!$B$3, DataPack!$E256, IF($C$5=Dates1!$B$4, DataPack!$J256, IF($C$5=Dates1!$B$5, DataPack!$O256, IF($C$5=Dates1!$B$6, DataPack!$T256))))","v":0}]
[null,"     B1. How effectively do teaching, training and assessment support learning and \n     development?",null,null,null,null,null,null,2,{"$f":"IF($C$5=Dates1!$B$3, DataPack!$B257, IF($C$5=Dates1!$B$4, DataPack!$G257, IF($C$5=Dates1!$B$5, DataPack!$L257, IF($C$5=Dates1!$B$6, DataPack!$Q257))))","v":0},null,{"$f":"IF($C$5=Dates1!$B$3, DataPack!$C257, IF($C$5=Dates1!$B$4, DataPack!$H257, IF($C$5=Dates1!$B$5, DataPack!$M257, IF($C$5=Dates1!$B$6, DataPack!$R257))))","v":2},null,{"$f":"IF($C$5=Dates1!$B$3, DataPack!$D257, IF($C$5=Dates1!$B$4, DataPack!$I257, IF($C$5=Dates1!$B$5, DataPack!$N257, IF($C$5=Dates1!$B$6, DataPack!$S257))))","v":0},null,{"$f":"IF($C$5=Dates1!$B$3, DataPack!$E257, IF($C$5=Dates1!$B$4, DataPack!$J257, IF($C$5=Dates1!$B$5, DataPack!$O257, IF($C$5=Dates1!$B$6, DataPack!$T257))))","v":0}]
[null,"     B2. How effectively does the provision meet the needs and interests of users?",null,null,null,null,null,null,2,{"$f":"IF($C$5=Dates1!$B$3, DataPack!$B258, IF($C$5=Dates1!$B$4, DataPack!$G258, IF($C$5=Dates1!$B$5, DataPack!$L258, IF($C$5=Dates1!$B$6, DataPack!$Q258))))","v":0},null,{"$f":"IF($C$5=Dates1!$B$3, DataPack!$C258, IF($C$5=Dates1!$B$4, DataPack!$H258, IF($C$5=Dates1!$B$5, DataPack!$M258, IF($C$5=Dates1!$B$6, DataPack!$R258))))","v":2},null,{"$f":"IF($C$5=Dates1!$B$3, DataPack!$D258, IF($C$5=Dates1!$B$4, DataPack!$I258, IF($C$5=Dates1!$B$5, DataPack!$N258, IF($C$5=Dates1!$B$6, DataPack!$S258))))","v":0},null,{"$f":"IF($C$5=Dates1!$B$3, DataPack!$E258, IF($C$5=Dates1!$B$4, DataPack!$J258, IF($C$5=Dates1!$B$5, DataPack!$O258, IF($C$5=Dates1!$B$6, DataPack!$T258))))","v":0}]
[null,"     B3. How well do partnerships with schools, employers, community groups and others \n     lead to benefits for learners?",null,null,null,null,null,null,2,{"$f":"IF($C$5=Dates1!$B$3, DataPack!$B259, IF($C$5=Dates1!$B$4, DataPack!$G259, IF($C$5=Dates1!$B$5, DataPack!$L259, IF($C$5=Dates1!$B$6, DataPack!$Q259))))","v":0},null,{"$f":"IF($C$5=Dates1!$B$3, DataPack!$C259, IF($C$5=Dates1!$B$4, DataPack!$H259, IF($C$5=Dates1!$B$5, DataPack!$M259, IF($C$5=Dates1!$B$6, DataPack!$R259))))","v":2},null,{"$f":"IF($C$5=Dates1!$B$3, DataPack!$D259, IF($C$5=Dates1!$B$4, DataPack!$I259, IF($C$5=Dates1!$B$5, DataPack!$N259, IF($C$5=Dates1!$B$6, DataPack!$S259))))","v":0},null,{"$f":"IF($C$5=Dates1!$B$3, DataPack!$E259, IF($C$5=Dates1!$B$4, DataPack!$J259, IF($C$5=Dates1!$B$5, DataPack!$O259, IF($C$5=Dates1!$B$6, DataPack!$T259))))","v":0}]
[null,"     B4. How effective are the care, guidance and support learners receive in helping them \n     to achieve?",null,null,null,null,null,null,2,{"$f":"IF($C$5=Dates1!$B$3, DataPack!$B260, IF($C$5=Dates1!$B$4, DataPack!$G260, IF($C$5=Dates1!$B$5, DataPack!$L260, IF($C$5=Dates1!$B$6, DataPack!$Q260))))","v":0},null,{"$f":"IF($C$5=Dates1!$B$3, DataPack!$C260, IF($C$5=Dates1!$B$4, DataPack!$H260, IF($C$5=Dates1!$B$5, DataPack!$M260, IF($C$5=Dates1!$B$6, DataPack!$R260))))","v":2},null,{"$f":"IF($C$5=Dates1!$B$3, DataPack!$D260, IF($C$5=Dates1!$B$4, DataPack!$I260, IF($C$5=Dates1!$B$5, DataPack!$N260, IF($C$5=Dates1!$B$6, DataPack!$S260))))","v":0},null,{"$f":"IF($C$5=Dates1!$B$3, DataPack!$E260, IF($C$5=Dates1!$B$4, DataPack!$J260, IF($C$5=Dates1!$B$5, DataPack!$O260, IF($C$5=Dates1!$B$6, DataPack!$T260))))","v":0}]
[null,"C. Leadership and management",null,null,null,null,null,null,2,{"$f":"IF($C$5=Dates1!$B$3, DataPack!$B261, IF($C$5=Dates1!$B$4, DataPack!$G261, IF($C$5=Dates1!$B$5, DataPack!$L261, IF($C$5=Dates1!$B$6, DataPack!$Q261))))","v":0},null,{"$f":"IF($C$5=Dates1!$B$3, DataPack!$C261, IF($C$5=Dates1!$B$4, DataPack!$H261, IF($C$5=Dates1!$B$5, DataPack!$M261, IF($C$5=Dates1!$B$6, DataPack!$R261))))","v":2},null,{"$f":"IF($C$5=Dates1!$B$3, DataPack!$D261, IF($C$5=Dates1!$B$4, DataPack!$I261, IF($C$5=Dates1!$B$5, DataPack!$N261, IF($C$5=Dates1!$B$6, DataPack!$S261))))","v":0},null,{"$f":"IF($C$5=Dates1!$B$3, DataPack!$E261, IF($C$5=Dates1!$B$4, DataPack!$J261, IF($C$5=Dates1!$B$5, DataPack!$O261, IF($C$5=Dates1!$B$6, DataPack!$T261))))","v":0}]
[null,"     C1. How effectively do leaders and managers raise expectations and promote ambition \n     throughout the organisation?",null,null,null,null,null,null,2,{"$f":"IF($C$5=Dates1!$B$3, DataPack!$B262, IF($C$5=Dates1!$B$4, DataPack!$G262, IF($C$5=Dates1!$B$5, DataPack!$L262, IF($C$5=Dates1!$B$6, DataPack!$Q262))))","v":0},null,{"$f":"IF($C$5=Dates1!$B$3, DataPack!$C262, IF($C$5=Dates1!$B$4, DataPack!$H262, IF($C$5=Dates1!$B$5, DataPack!$M262, IF($C$5=Dates1!$B$6, DataPack!$R262))))","v":2},null,{"$f":"IF($C$5=Dates1!$B$3, DataPack!$D262, IF($C$5=Dates1!$B$4, DataPack!$I262, IF($C$5=Dates1!$B$5, DataPack!$N262, IF($C$5=Dates1!$B$6, DataPack!$S262))))","v":0},null,{"$f":"IF($C$5=Dates1!$B$3, DataPack!$E262, IF($C$5=Dates1!$B$4, DataPack!$J262, IF($C$5=Dates1!$B$5, DataPack!$O262, IF($C$5=Dates1!$B$6, DataPack!$T262))))","v":0}]
[null,"     C2. How effectively do governors and supervisory bodies provide leadership, direction \n     and challenge?1",null,null,null,null,null,null,1,{"$f":"IF($C$5=Dates1!$B$3, DataPack!$B263, IF($C$5=Dates1!$B$4, DataPack!$G263, IF($C$5=Dates1!$B$5, DataPack!$L263, IF($C$5=Dates1!$B$6, DataPack!$Q263))))","v":0},null,{"$f":"IF($C$5=Dates1!$B$3, DataPack!$C263, IF($C$5=Dates1!$B$4, DataPack!$H263, IF($C$5=Dates1!$B$5, DataPack!$M263, IF($C$5=Dates1!$B$6, DataPack!$R263))))","v":1},null,{"$f":"IF($C$5=Dates1!$B$3, DataPack!$D263, IF($C$5=Dates1!$B$4, DataPack!$I263, IF($C$5=Dates1!$B$5, DataPack!$N263, IF($C$5=Dates1!$B$6, DataPack!$S263))))","v":0},null,{"$f":"IF($C$5=Dates1!$B$3, DataPack!$E263, IF($C$5=Dates1!$B$4, DataPack!$J263, IF($C$5=Dates1!$B$5, DataPack!$O263, IF($C$5=Dates1!$B$6, DataPack!$T263))))","v":0}]
[null,"    C3. How effectively does the provider promote the safeguarding of learners?",null,null,null,null,null,null,2,{"$f":"IF($C$5=Dates1!$B$3, DataPack!$B264, IF($C$5=Dates1!$B$4, DataPack!$G264, IF($C$5=Dates1!$B$5, DataPack!$L264, IF($C$5=Dates1!$B$6, DataPack!$Q264))))","v":0},null,{"$f":"IF($C$5=Dates1!$B$3, DataPack!$C264, IF($C$5=Dates1!$B$4, DataPack!$H264, IF($C$5=Dates1!$B$5, DataPack!$M264, IF($C$5=Dates1!$B$6, DataPack!$R264))))","v":2},null,{"$f":"IF($C$5=Dates1!$B$3, DataPack!$D264, IF($C$5=Dates1!$B$4, DataPack!$I264, IF($C$5=Dates1!$B$5, DataPack!$N264, IF($C$5=Dates1!$B$6, DataPack!$S264))))","v":0},null,{"$f":"IF($C$5=Dates1!$B$3, DataPack!$E264, IF($C$5=Dates1!$B$4, DataPack!$J264, IF($C$5=Dates1!$B$5, DataPack!$O264, IF($C$5=Dates1!$B$6, DataPack!$T264))))","v":0}]
[null,"C4. How effectively does the provider actively promote equality and diversity,\ntackle discrimination and narrow the achievement gap?",null,null,null,null,null,null,2,{"$f":"IF($C$5=Dates1!$B$3, DataPack!$B265, IF($C$5=Dates1!$B$4, DataPack!$G265, IF($C$5=Dates1!$B$5, DataPack!$L265, IF($C$5=Dates1!$B$6, DataPack!$Q265))))","v":0},null,{"$f":"IF($C$5=Dates1!$B$3, DataPack!$C265, IF($C$5=Dates1!$B$4, DataPack!$H265, IF($C$5=Dates1!$B$5, DataPack!$M265, IF($C$5=Dates1!$B$6, DataPack!$R265))))","v":2},null,{"$f":"IF($C$5=Dates1!$B$3, DataPack!$D265, IF($C$5=Dates1!$B$4, DataPack!$I265, IF($C$5=Dates1!$B$5, DataPack!$N265, IF($C$5=Dates1!$B$6, DataPack!$S265))))","v":0},null,{"$f":"IF($C$5=Dates1!$B$3, DataPack!$E265, IF($C$5=Dates1!$B$4, DataPack!$J265, IF($C$5=Dates1!$B$5, DataPack!$O265, IF($C$5=Dates1!$B$6, DataPack!$T265))))","v":0}]
[null,"     C5. How effectively does the provider engage with users to support and promote \n     improvement?",null,null,null,null,null,null,2,{"$f":"IF($C$5=Dates1!$B$3, DataPack!$B266, IF($C$5=Dates1!$B$4, DataPack!$G266, IF($C$5=Dates1!$B$5, DataPack!$L266, IF($C$5=Dates1!$B$6, DataPack!$Q266))))","v":0},null,{"$f":"IF($C$5=Dates1!$B$3, DataPack!$C266, IF($C$5=Dates1!$B$4, DataPack!$H266, IF($C$5=Dates1!$B$5, DataPack!$M266, IF($C$5=Dates1!$B$6, DataPack!$R266))))","v":2},null,{"$f":"IF($C$5=Dates1!$B$3, DataPack!$D266, IF($C$5=Dates1!$B$4, DataPack!$I266, IF($C$5=Dates1!$B$5, DataPack!$N266, IF($C$5=Dates1!$B$6, DataPack!$S266))))","v":0},null,{"$f":"IF($C$5=Dates1!$B$3, DataPack!$E266, IF($C$5=Dates1!$B$4, DataPack!$J266, IF($C$5=Dates1!$B$5, DataPack!$O266, IF($C$5=Dates1!$B$6, DataPack!$T266))))","v":0}]
[null,"     C6. How effectively does self-assessment improve the quality of the provision and \n     outcomes for learners?",null,null,null,null,null,null,2,{"$f":"IF($C$5=Dates1!$B$3, DataPack!$B267, IF($C$5=Dates1!$B$4, DataPack!$G267, IF($C$5=Dates1!$B$5, DataPack!$L267, IF($C$5=Dates1!$B$6, DataPack!$Q267))))","v":0},null,{"$f":"IF($C$5=Dates1!$B$3, DataPack!$C267, IF($C$5=Dates1!$B$4, DataPack!$H267, IF($C$5=Dates1!$B$5, DataPack!$M267, IF($C$5=Dates1!$B$6, DataPack!$R267))))","v":1},null,{"$f":"IF($C$5=Dates1!$B$3, DataPack!$D267, IF($C$5=Dates1!$B$4, DataPack!$I267, IF($C$5=Dates1!$B$5, DataPack!$N267, IF($C$5=Dates1!$B$6, DataPack!$S267))))","v":1},null,{"$f":"IF($C$5=Dates1!$B$3, DataPack!$E267, IF($C$5=Dates1!$B$4, DataPack!$J267, IF($C$5=Dates1!$B$5, DataPack!$O267, IF($C$5=Dates1!$B$6, DataPack!$T267))))","v":0}]
[null,"     C7. How efficiently and effectively does the provider use its available resources to \n     secure value for money?",null,null,null,null,null,null,2,{"$f":"IF($C$5=Dates1!$B$3, DataPack!$B268, IF($C$5=Dates1!$B$4, DataPack!$G268, IF($C$5=Dates1!$B$5, DataPack!$L268, IF($C$5=Dates1!$B$6, DataPack!$Q268))))","v":0},null,{"$f":"IF($C$5=Dates1!$B$3, DataPack!$C268, IF($C$5=Dates1!$B$4, DataPack!$H268, IF($C$5=Dates1!$B$5, DataPack!$M268, IF($C$5=Dates1!$B$6, DataPack!$R268))))","v":2},null,{"$f":"IF($C$5=Dates1!$B$3, DataPack!$D268, IF($C$5=Dates1!$B$4, DataPack!$I268, IF($C$5=Dates1!$B$5, DataPack!$N268, IF($C$5=Dates1!$B$6, DataPack!$S268))))","v":0},null,{"$f":"IF($C$5=Dates1!$B$3, DataPack!$E268, IF($C$5=Dates1!$B$4, DataPack!$J268, IF($C$5=Dates1!$B$5, DataPack!$O268, IF($C$5=Dates1!$B$6, DataPack!$T268))))","v":0}]
[null,null,null,null,null,null,null,null,null,null,null,null,"Source: Ofsted inspections"]
[null,"1. Where applicable to the type of provision."]

{"sheet":"Table 2j","index":15,"n_rows":32,"n_cols":16,"rows_kept":32,"cut":false,"hidden":false,"merged":[[4,8,5,8],[30,12,30,16],[4,9,4,10],[4,11,4,12],[4,13,4,14],[4,15,4,16],[25,1,25,6],[24,1,24,6],[29,1,29,6],[28,1,28,6],[27,1,27,6],[26,1,26,6],[14,1,14,6],[15,1,15,6],[23,1,23,6],[22,1,22,6],[21,1,21,6],[20,1,20,6],[19,1,19,6],[18,1,18,6],[17,1,17,6],[16,1,16,6],[11,1,11,6],[12,1,12,6],[13,1,13,6],[4,2,4,6],[8,1,8,6],[9,1,9,6],[10,1,10,6],[7,1,7,6]]}
[]
[null,{"$f":"\"Table 2j: Inspection outcomes of prison and young offender institutions inspected \" & IF('Table 2j'!C5=Dates1!$B$3, \"between \" & Dates1!$B$3, IF('Table 2j'!C5 = Dates1!B4, \"in \" & Dates1!B4, IF('Table 2j'!C5=Dates1!B5, \"in \" & Dates1!B5, IF('Table 2j'!C5=Dates1!B6, \"in \" & Dates1!B6, IF('Table 2j'!C5=Dates1!B7, \"in \" & Dates1!B7)))))  & \" (provisional)\"","v":"Table 2j: Inspection outcomes of prison and young offender institutions inspected between 1 October and 31 December 2011 (provisional)"}]
[]
[]
[null,"Select period:","1 October and 31 December 2011",null,null,null,null,null,"Total number inspected","Outstanding",null,"Good",null,"Satisfactory",null,"Inadequate"]
[null,null,null,null,null,null,null,null,"Number","Number",null,"Number",null,"Number",null,"Number"]
[]
[null,"Overall effectiveness",null,null,null,null,null,null,{"$f":"J8+L8+N8+P8","v":4},{"$f":"IF($C$5=Dates1!$B$3, DataPack!$B272, IF($C$5=Dates1!$B$4, DataPack!$G272, IF($C$5=Dates1!$B$5, DataPack!$L272, IF($C$5=Dates1!$B$6, DataPack!$Q272))))","v":0},null,{"$f":"IF($C$5=Dates1!$B$3, DataPack!$C272, IF($C$5=Dates1!$B$4, DataPack!$H272, IF($C$5=Dates1!$B$5, DataPack!$M272, IF($C$5=Dates1!$B$6, DataPack!$R272))))","v":3},null,{"$f":"IF($C$5=Dates1!$B$3, DataPack!$D272, IF($C$5=Dates1!$B$4, DataPack!$I272, IF($C$5=Dates1!$B$5, DataPack!$N272, IF($C$5=Dates1!$B$6, DataPack!$S272))))","v":1},null,{"$f":"IF($C$5=Dates1!$B$3, DataPack!$E272, IF($C$5=Dates1!$B$4, DataPack!$J272, IF($C$5=Dates1!$B$5, DataPack!$O272, IF($C$5=Dates1!$B$6, DataPack!$T272))))","v":0}]
[null,"Capacity to improve",null,null,null,null,null,null,4,{"$f":"IF($C$5=Dates1!$B$3, DataPack!$B273, IF($C$5=Dates1!$B$4, DataPack!$G273, IF($C$5=Dates1!$B$5, DataPack!$L273, IF($C$5=Dates1!$B$6, DataPack!$Q273))))","v":0},null,{"$f":"IF($C$5=Dates1!$B$3, DataPack!$C273, IF($C$5=Dates1!$B$4, DataPack!$H273, IF($C$5=Dates1!$B$5, DataPack!$M273, IF($C$5=Dates1!$B$6, DataPack!$R273))))","v":3},null,{"$f":"IF($C$5=Dates1!$B$3, DataPack!$D273, IF($C$5=Dates1!$B$4, DataPack!$I273, IF($C$5=Dates1!$B$5, DataPack!$N273, IF($C$5=Dates1!$B$6, DataPack!$S273))))","v":1},null,{"$f":"IF($C$5=Dates1!$B$3, DataPack!$E273, IF($C$5=Dates1!$B$4, DataPack!$J273, IF($C$5=Dates1!$B$5, DataPack!$O273, IF($C$5=Dates1!$B$6, DataPack!$T273))))","v":0}]
[null,"A. Outcomes for learners",null,null,null,null,null,null,4,{"$f":"IF($C$5=Dates1!$B$3, DataPack!$B274, IF($C$5=Dates1!$B$4, DataPack!$G274, IF($C$5=Dates1!$B$5, DataPack!$L274, IF($C$5=Dates1!$B$6, DataPack!$Q274))))","v":1},null,{"$f":"IF($C$5=Dates1!$B$3, DataPack!$C274, IF($C$5=Dates1!$B$4, DataPack!$H274, IF($C$5=Dates1!$B$5, DataPack!$M274, IF($C$5=Dates1!$B$6, DataPack!$R274))))","v":2},null,{"$f":"IF($C$5=Dates1!$B$3, DataPack!$D274, IF($C$5=Dates1!$B$4, DataPack!$I274, IF($C$5=Dates1!$B$5, DataPack!$N274, IF($C$5=Dates1!$B$6, DataPack!$S274))))","v":1},null,{"$f":"IF($C$5=Dates1!$B$3, DataPack!$E274, IF($C$5=Dates1!$B$4, DataPack!$J274, IF($C$5=Dates1!$B$5, DataPack!$O274, IF($C$5=Dates1!$B$6, DataPack!$T274))))","v":0}]
[null,"     A1. How well do learners achieve and enjoy their learning",null,null,null,null,null,null,4,{"$f":"IF($C$5=Dates1!$B$3, DataPack!$B275, IF($C$5=Dates1!$B$4, DataPack!$G275, IF($C$5=Dates1!$B$5, DataPack!$L275, IF($C$5=Dates1!$B$6, DataPack!$Q275))))","v":1},null,{"$f":"IF($C$5=Dates1!$B$3, DataPack!$C275, IF($C$5=Dates1!$B$4, DataPack!$H275, IF($C$5=Dates1!$B$5, DataPack!$M275, IF($C$5=Dates1!$B$6, DataPack!$R275))))","v":2},null,{"$f":"IF($C$5=Dates1!$B$3, DataPack!$D275, IF($C$5=Dates1!$B$4, DataPack!$I275, IF($C$5=Dates1!$B$5, DataPack!$N275, IF($C$5=Dates1!$B$6, DataPack!$S275))))","v":1},null,{"$f":"IF($C$5=Dates1!$B$3, DataPack!$E275, IF($C$5=Dates1!$B$4, DataPack!$J275, IF($C$5=Dates1!$B$5, DataPack!$O275, IF($C$5=Dates1!$B$6, DataPack!$T275))))","v":0}]
[null,"          A1.a) How well do learners attain their learning goals",null,null,null,null,null,null,4,{"$f":"IF($C$5=Dates1!$B$3, DataPack!$B276, IF($C$5=Dates1!$B$4, DataPack!$G276, IF($C$5=Dates1!$B$5, DataPack!$L276, IF($C$5=Dates1!$B$6, DataPack!$Q276))))","v":1},null,{"$f":"IF($C$5=Dates1!$B$3, DataPack!$C276, IF($C$5=Dates1!$B$4, DataPack!$H276, IF($C$5=Dates1!$B$5, DataPack!$M276, IF($C$5=Dates1!$B$6, DataPack!$R276))))","v":2},null,{"$f":"IF($C$5=Dates1!$B$3, DataPack!$D276, IF($C$5=Dates1!$B$4, DataPack!$I276, IF($C$5=Dates1!$B$5, DataPack!$N276, IF($C$5=Dates1!$B$6, DataPack!$S276))))","v":1},null,{"$f":"IF($C$5=Dates1!$B$3, DataPack!$E276, IF($C$5=Dates1!$B$4, DataPack!$J276, IF($C$5=Dates1!$B$5, DataPack!$O276, IF($C$5=Dates1!$B$6, DataPack!$T276))))","v":0}]
[null,"          A1.b) How well do learners progress?",null,null,null,null,null,null,4,{"$f":"IF($C$5=Dates1!$B$3, DataPack!$B277, IF($C$5=Dates1!$B$4, DataPack!$G277, IF($C$5=Dates1!$B$5, DataPack!$L277, IF($C$5=Dates1!$B$6, DataPack!$Q277))))","v":1},null,{"$f":"IF($C$5=Dates1!$B$3, DataPack!$C277, IF($C$5=Dates1!$B$4, DataPack!$H277, IF($C$5=Dates1!$B$5, DataPack!$M277, IF($C$5=Dates1!$B$6, DataPack!$R277))))","v":2},null,{"$f":"IF($C$5=Dates1!$B$3, DataPack!$D277, IF($C$5=Dates1!$B$4, DataPack!$I277, IF($C$5=Dates1!$B$5, DataPack!$N277, IF($C$5=Dates1!$B$6, DataPack!$S277))))","v":1},null,{"$f":"IF($C$5=Dates1!$B$3, DataPack!$E277, IF($C$5=Dates1!$B$4, DataPack!$J277, IF($C$5=Dates1!$B$5, DataPack!$O277, IF($C$5=Dates1!$B$6, DataPack!$T277))))","v":0}]
[null,"     A2. How well do learners improve their economic and social well-being through learning \n     and development?",null,null,null,null,null,null,4,{"$f":"IF($C$5=Dates1!$B$3, DataPack!$B278, IF($C$5=Dates1!$B$4, DataPack!$G278, IF($C$5=Dates1!$B$5, DataPack!$L278, IF($C$5=Dates1!$B$6, DataPack!$Q278))))","v":1},null,{"$f":"IF($C$5=Dates1!$B$3, DataPack!$C278, IF($C$5=Dates1!$B$4, DataPack!$H278, IF($C$5=Dates1!$B$5, DataPack!$M278, IF($C$5=Dates1!$B$6, DataPack!$R278))))","v":1},null,{"$f":"IF($C$5=Dates1!$B$3, DataPack!$D278, IF($C$5=Dates1!$B$4, DataPack!$I278, IF($C$5=Dates1!$B$5, DataPack!$N278, IF($C$5=Dates1!$B$6, DataPack!$S278))))","v":2},null,{"$f":"IF($C$5=Dates1!$B$3, DataPack!$E278, IF($C$5=Dates1!$B$4, DataPack!$J278, IF($C$5=Dates1!$B$5, DataPack!$O278, IF($C$5=Dates1!$B$6, DataPack!$T278))))","v":0}]
[null,"     A3. How safe do learners feel?",null,null,null,null,null,null,4,{"$f":"IF($C$5=Dates1!$B$3, DataPack!$B279, IF($C$5=Dates1!$B$4, DataPack!$G279, IF($C$5=Dates1!$B$5, DataPack!$L279, IF($C$5=Dates1!$B$6, DataPack!$Q279))))","v":0},null,{"$f":"IF($C$5=Dates1!$B$3, DataPack!$C279, IF($C$5=Dates1!$B$4, DataPack!$H279, IF($C$5=Dates1!$B$5, DataPack!$M279, IF($C$5=Dates1!$B$6, DataPack!$R279))))","v":3},null,{"$f":"IF($C$5=Dates1!$B$3, DataPack!$D279, IF($C$5=Dates1!$B$4, DataPack!$I279, IF($C$5=Dates1!$B$5, DataPack!$N279, IF($C$5=Dates1!$B$6, DataPack!$S279))))","v":1},null,{"$f":"IF($C$5=Dates1!$B$3, DataPack!$E279, IF($C$5=Dates1!$B$4, DataPack!$J279, IF($C$5=Dates1!$B$5, DataPack!$O279, IF($C$5=Dates1!$B$6, DataPack!$T279))))","v":0}]
[null,"     A4. Are learners able to make informed choices about their own health and well being?1",null,null,null,null,null,null,1,{"$f":"IF($C$5=Dates1!$B$3, DataPack!$B280, IF($C$5=Dates1!$B$4, DataPack!$G280, IF($C$5=Dates1!$B$5, DataPack!$L280, IF($C$5=Dates1!$B$6, DataPack!$Q280))))","v":0},null,{"$f":"IF($C$5=Dates1!$B$3, DataPack!$C280, IF($C$5=Dates1!$B$4, DataPack!$H280, IF($C$5=Dates1!$B$5, DataPack!$M280, IF($C$5=Dates1!$B$6, DataPack!$R280))))","v":1},null,{"$f":"IF($C$5=Dates1!$B$3, DataPack!$D280, IF($C$5=Dates1!$B$4, DataPack!$I280, IF($C$5=Dates1!$B$5, DataPack!$N280, IF($C$5=Dates1!$B$6, DataPack!$S280))))","v":0},null,{"$f":"IF($C$5=Dates1!$B$3, DataPack!$E280, IF($C$5=Dates1!$B$4, DataPack!$J280, IF($C$5=Dates1!$B$5, DataPack!$O280, IF($C$5=Dates1!$B$6, DataPack!$T280))))","v":0}]
[null,"     A5. How well do learners make a positive contribution to the community?1",null,null,null,null,null,null,2,{"$f":"IF($C$5=Dates1!$B$3, DataPack!$B281, IF($C$5=Dates1!$B$4, DataPack!$G281, IF($C$5=Dates1!$B$5, DataPack!$L281, IF($C$5=Dates1!$B$6, DataPack!$Q281))))","v":1},null,{"$f":"IF($C$5=Dates1!$B$3, DataPack!$C281, IF($C$5=Dates1!$B$4, DataPack!$H281, IF($C$5=Dates1!$B$5, DataPack!$M281, IF($C$5=Dates1!$B$6, DataPack!$R281))))","v":1},null,{"$f":"IF($C$5=Dates1!$B$3, DataPack!$D281, IF($C$5=Dates1!$B$4, DataPack!$I281, IF($C$5=Dates1!$B$5, DataPack!$N281, IF($C$5=Dates1!$B$6, DataPack!$S281))))","v":0},null,{"$f":"IF($C$5=Dates1!$B$3, DataPack!$E281, IF($C$5=Dates1!$B$4, DataPack!$J281, IF($C$5=Dates1!$B$5, DataPack!$O281, IF($C$5=Dates1!$B$6, DataPack!$T281))))","v":0}]
[null,"B. Quality of provision",null,null,null,null,null,null,4,{"$f":"IF($C$5=Dates1!$B$3, DataPack!$B282, IF($C$5=Dates1!$B$4, DataPack!$G282, IF($C$5=Dates1!$B$5, DataPack!$L282, IF($C$5=Dates1!$B$6, DataPack!$Q282))))","v":0},null,{"$f":"IF($C$5=Dates1!$B$3, DataPack!$C282, IF($C$5=Dates1!$B$4, DataPack!$H282, IF($C$5=Dates1!$B$5, DataPack!$M282, IF($C$5=Dates1!$B$6, DataPack!$R282))))","v":3},null,{"$f":"IF($C$5=Dates1!$B$3, DataPack!$D282, IF($C$5=Dates1!$B$4, DataPack!$I282, IF($C$5=Dates1!$B$5, DataPack!$N282, IF($C$5=Dates1!$B$6, DataPack!$S282))))","v":1},null,{"$f":"IF($C$5=Dates1!$B$3, DataPack!$E282, IF($C$5=Dates1!$B$4, DataPack!$J282, IF($C$5=Dates1!$B$5, DataPack!$O282, IF($C$5=Dates1!$B$6, DataPack!$T282))))","v":0}]
[null,"     B1. How effectively do teaching, training and assessment support learning and \n     development?",null,null,null,null,null,null,4,{"$f":"IF($C$5=Dates1!$B$3, DataPack!$B283, IF($C$5=Dates1!$B$4, DataPack!$G283, IF($C$5=Dates1!$B$5, DataPack!$L283, IF($C$5=Dates1!$B$6, DataPack!$Q283))))","v":0},null,{"$f":"IF($C$5=Dates1!$B$3, DataPack!$C283, IF($C$5=Dates1!$B$4, DataPack!$H283, IF($C$5=Dates1!$B$5, DataPack!$M283, IF($C$5=Dates1!$B$6, DataPack!$R283))))","v":2},null,{"$f":"IF($C$5=Dates1!$B$3, DataPack!$D283, IF($C$5=Dates1!$B$4, DataPack!$I283, IF($C$5=Dates1!$B$5, DataPack!$N283, IF($C$5=Dates1!$B$6, DataPack!$S283))))","v":2},null,{"$f":"IF($C$5=Dates1!$B$3, DataPack!$E283, IF($C$5=Dates1!$B$4, DataPack!$J283, IF($C$5=Dates1!$B$5, DataPack!$O283, IF($C$5=Dates1!$B$6, DataPack!$T283))))","v":0}]
[null,"     B2. How effectively does the provision meet the needs and interests of users?",null,null,null,null,null,null,4,{"$f":"IF($C$5=Dates1!$B$3, DataPack!$B284, IF($C$5=Dates1!$B$4, DataPack!$G284, IF($C$5=Dates1!$B$5, DataPack!$L284, IF($C$5=Dates1!$B$6, DataPack!$Q284))))","v":0},null,{"$f":"IF($C$5=Dates1!$B$3, DataPack!$C284, IF($C$5=Dates1!$B$4, DataPack!$H284, IF($C$5=Dates1!$B$5, DataPack!$M284, IF($C$5=Dates1!$B$6, DataPack!$R284))))","v":3},null,{"$f":"IF($C$5=Dates1!$B$3, DataPack!$D284, IF($C$5=Dates1!$B$4, DataPack!$I284, IF($C$5=Dates1!$B$5, DataPack!$N284, IF($C$5=Dates1!$B$6, DataPack!$S284))))","v":1},null,{"$f":"IF($C$5=Dates1!$B$3, DataPack!$E284, IF($C$5=Dates1!$B$4, DataPack!$J284, IF($C$5=Dates1!$B$5, DataPack!$O284, IF($C$5=Dates1!$B$6, DataPack!$T284))))","v":0}]
[null,"     B3. How well do partnerships with schools, employers, community groups and others \n     lead to benefits for learners?",null,null,null,null,null,null,4,{"$f":"IF($C$5=Dates1!$B$3, DataPack!$B285, IF($C$5=Dates1!$B$4, DataPack!$G285, IF($C$5=Dates1!$B$5, DataPack!$L285, IF($C$5=Dates1!$B$6, DataPack!$Q285))))","v":1},null,{"$f":"IF($C$5=Dates1!$B$3, DataPack!$C285, IF($C$5=Dates1!$B$4, DataPack!$H285, IF($C$5=Dates1!$B$5, DataPack!$M285, IF($C$5=Dates1!$B$6, DataPack!$R285))))","v":2},null,{"$f":"IF($C$5=Dates1!$B$3, DataPack!$D285, IF($C$5=Dates1!$B$4, DataPack!$I285, IF($C$5=Dates1!$B$5, DataPack!$N285, IF($C$5=Dates1!$B$6, DataPack!$S285))))","v":1},null,{"$f":"IF($C$5=Dates1!$B$3, DataPack!$E285, IF($C$5=Dates1!$B$4, DataPack!$J285, IF($C$5=Dates1!$B$5, DataPack!$O285, IF($C$5=Dates1!$B$6, DataPack!$T285))))","v":0}]
[null,"     B4. How effective are the care, guidance and support learners receive in helping them \n     to achieve?",null,null,null,null,null,null,4,{"$f":"IF($C$5=Dates1!$B$3, DataPack!$B286, IF($C$5=Dates1!$B$4, DataPack!$G286, IF($C$5=Dates1!$B$5, DataPack!$L286, IF($C$5=Dates1!$B$6, DataPack!$Q286))))","v":0},null,{"$f":"IF($C$5=Dates1!$B$3, DataPack!$C286, IF($C$5=Dates1!$B$4, DataPack!$H286, IF($C$5=Dates1!$B$5, DataPack!$M286, IF($C$5=Dates1!$B$6, DataPack!$R286))))","v":2},null,{"$f":"IF($C$5=Dates1!$B$3, DataPack!$D286, IF($C$5=Dates1!$B$4, DataPack!$I286, IF($C$5=Dates1!$B$5, DataPack!$N286, IF($C$5=Dates1!$B$6, DataPack!$S286))))","v":2},null,{"$f":"IF($C$5=Dates1!$B$3, DataPack!$E286, IF($C$5=Dates1!$B$4, DataPack!$J286, IF($C$5=Dates1!$B$5, DataPack!$O286, IF($C$5=Dates1!$B$6, DataPack!$T286))))","v":0}]
[null,"C. Leadership and management",null,null,null,null,null,null,4,{"$f":"IF($C$5=Dates1!$B$3, DataPack!$B287, IF($C$5=Dates1!$B$4, DataPack!$G287, IF($C$5=Dates1!$B$5, DataPack!$L287, IF($C$5=Dates1!$B$6, DataPack!$Q287))))","v":0},null,{"$f":"IF($C$5=Dates1!$B$3, DataPack!$C287, IF($C$5=Dates1!$B$4, DataPack!$H287, IF($C$5=Dates1!$B$5, DataPack!$M287, IF($C$5=Dates1!$B$6, DataPack!$R287))))","v":3},null,{"$f":"IF($C$5=Dates1!$B$3, DataPack!$D287, IF($C$5=Dates1!$B$4, DataPack!$I287, IF($C$5=Dates1!$B$5, DataPack!$N287, IF($C$5=Dates1!$B$6, DataPack!$S287))))","v":1},null,{"$f":"IF($C$5=Dates1!$B$3, DataPack!$E287, IF($C$5=Dates1!$B$4, DataPack!$J287, IF($C$5=Dates1!$B$5, DataPack!$O287, IF($C$5=Dates1!$B$6, DataPack!$T287))))","v":0}]
[null,"     C1. How effectively do leaders and managers raise expectations and promote ambition \n     throughout the organisation?",null,null,null,null,null,null,4,{"$f":"IF($C$5=Dates1!$B$3, DataPack!$B288, IF($C$5=Dates1!$B$4, DataPack!$G288, IF($C$5=Dates1!$B$5, DataPack!$L288, IF($C$5=Dates1!$B$6, DataPack!$Q288))))","v":0},null,{"$f":"IF($C$5=Dates1!$B$3, DataPack!$C288, IF($C$5=Dates1!$B$4, DataPack!$H288, IF($C$5=Dates1!$B$5, DataPack!$M288, IF($C$5=Dates1!$B$6, DataPack!$R288))))","v":3},null,{"$f":"IF($C$5=Dates1!$B$3, DataPack!$D288, IF($C$5=Dates1!$B$4, DataPack!$I288, IF($C$5=Dates1!$B$5, DataPack!$N288, IF($C$5=Dates1!$B$6, DataPack!$S288))))","v":1},null,{"$f":"IF($C$5=Dates1!$B$3, DataPack!$E288, IF($C$5=Dates1!$B$4, DataPack!$J288, IF($C$5=Dates1!$B$5, DataPack!$O288, IF($C$5=Dates1!$B$6, DataPack!$T288))))","v":0}]
[null,"     C2. How effectively do governors and supervisory bodies provide leadership, direction \n     and challenge?1",null,null,null,null,null,null,0,{"$f":"IF($C$5=Dates1!$B$3, DataPack!$B289, IF($C$5=Dates1!$B$4, DataPack!$G289, IF($C$5=Dates1!$B$5, DataPack!$L289, IF($C$5=Dates1!$B$6, DataPack!$Q289))))","v":0},null,{"$f":"IF($C$5=Dates1!$B$3, DataPack!$C289, IF($C$5=Dates1!$B$4, DataPack!$H289, IF($C$5=Dates1!$B$5, DataPack!$M289, IF($C$5=Dates1!$B$6, DataPack!$R289))))","v":0},null,{"$f":"IF($C$5=Dates1!$B$3, DataPack!$D289, IF($C$5=Dates1!$B$4, DataPack!$I289, IF($C$5=Dates1!$B$5, DataPack!$N289, IF($C$5=Dates1!$B$6, DataPack!$S289))))","v":0},null,{"$f":"IF($C$5=Dates1!$B$3, DataPack!$E289, IF($C$5=Dates1!$B$4, DataPack!$J289, IF($C$5=Dates1!$B$5, DataPack!$O289, IF($C$5=Dates1!$B$6, DataPack!$T289))))","v":0}]
[null,"    C3. How effectively does the provider promote the safeguarding of learners?",null,null,null,null,null,null,4,{"$f":"IF($C$5=Dates1!$B$3, DataPack!$B290, IF($C$5=Dates1!$B$4, DataPack!$G290, IF($C$5=Dates1!$B$5, DataPack!$L290, IF($C$5=Dates1!$B$6, DataPack!$Q290))))","v":0},null,{"$f":"IF($C$5=Dates1!$B$3, DataPack!$C290, IF($C$5=Dates1!$B$4, DataPack!$H290, IF($C$5=Dates1!$B$5, DataPack!$M290, IF($C$5=Dates1!$B$6, DataPack!$R290))))","v":3},null,{"$f":"IF($C$5=Dates1!$B$3, DataPack!$D290, IF($C$5=Dates1!$B$4, DataPack!$I290, IF($C$5=Dates1!$B$5, DataPack!$N290, IF($C$5=Dates1!$B$6, DataPack!$S290))))","v":1},null,{"$f":"IF($C$5=Dates1!$B$3, DataPack!$E290, IF($C$5=Dates1!$B$4, DataPack!$J290, IF($C$5=Dates1!$B$5, DataPack!$O290, IF($C$5=Dates1!$B$6, DataPack!$T290))))","v":0}]
[null,"C4. How effectively does the provider actively promote equality and diversity,\ntackle discrimination and narrow the achievement gap?",null,null,null,null,null,null,4,{"$f":"IF($C$5=Dates1!$B$3, DataPack!$B291, IF($C$5=Dates1!$B$4, DataPack!$G291, IF($C$5=Dates1!$B$5, DataPack!$L291, IF($C$5=Dates1!$B$6, DataPack!$Q291))))","v":0},null,{"$f":"IF($C$5=Dates1!$B$3, DataPack!$C291, IF($C$5=Dates1!$B$4, DataPack!$H291, IF($C$5=Dates1!$B$5, DataPack!$M291, IF($C$5=Dates1!$B$6, DataPack!$R291))))","v":1},null,{"$f":"IF($C$5=Dates1!$B$3, DataPack!$D291, IF($C$5=Dates1!$B$4, DataPack!$I291, IF($C$5=Dates1!$B$5, DataPack!$N291, IF($C$5=Dates1!$B$6, DataPack!$S291))))","v":3},null,{"$f":"IF($C$5=Dates1!$B$3, DataPack!$E291, IF($C$5=Dates1!$B$4, DataPack!$J291, IF($C$5=Dates1!$B$5, DataPack!$O291, IF($C$5=Dates1!$B$6, DataPack!$T291))))","v":0}]
[null,"     C5. How effectively does the provider engage with users to support and promote \n     improvement?",null,null,null,null,null,null,4,{"$f":"IF($C$5=Dates1!$B$3, DataPack!$B292, IF($C$5=Dates1!$B$4, DataPack!$G292, IF($C$5=Dates1!$B$5, DataPack!$L292, IF($C$5=Dates1!$B$6, DataPack!$Q292))))","v":0},null,{"$f":"IF($C$5=Dates1!$B$3, DataPack!$C292, IF($C$5=Dates1!$B$4, DataPack!$H292, IF($C$5=Dates1!$B$5, DataPack!$M292, IF($C$5=Dates1!$B$6, DataPack!$R292))))","v":3},null,{"$f":"IF($C$5=Dates1!$B$3, DataPack!$D292, IF($C$5=Dates1!$B$4, DataPack!$I292, IF($C$5=Dates1!$B$5, DataPack!$N292, IF($C$5=Dates1!$B$6, DataPack!$S292))))","v":1},null,{"$f":"IF($C$5=Dates1!$B$3, DataPack!$E292, IF($C$5=Dates1!$B$4, DataPack!$J292, IF($C$5=Dates1!$B$5, DataPack!$O292, IF($C$5=Dates1!$B$6, DataPack!$T292))))","v":0}]
[null,"     C6. How effectively does self-assessment improve the quality of the provision and \n     outcomes for learners?",null,null,null,null,null,null,4,{"$f":"IF($C$5=Dates1!$B$3, DataPack!$B293, IF($C$5=Dates1!$B$4, DataPack!$G293, IF($C$5=Dates1!$B$5, DataPack!$L293, IF($C$5=Dates1!$B$6, DataPack!$Q293))))","v":0},null,{"$f":"IF($C$5=Dates1!$B$3, DataPack!$C293, IF($C$5=Dates1!$B$4, DataPack!$H293, IF($C$5=Dates1!$B$5, DataPack!$M293, IF($C$5=Dates1!$B$6, DataPack!$R293))))","v":2},null,{"$f":"IF($C$5=Dates1!$B$3, DataPack!$D293, IF($C$5=Dates1!$B$4, DataPack!$I293, IF($C$5=Dates1!$B$5, DataPack!$N293, IF($C$5=Dates1!$B$6, DataPack!$S293))))","v":2},null,{"$f":"IF($C$5=Dates1!$B$3, DataPack!$E293, IF($C$5=Dates1!$B$4, DataPack!$J293, IF($C$5=Dates1!$B$5, DataPack!$O293, IF($C$5=Dates1!$B$6, DataPack!$T293))))","v":0}]
[null,"     C7. How efficiently and effectively does the provider use its available resources to \n     secure value for money?",null,null,null,null,null,null,4,{"$f":"IF($C$5=Dates1!$B$3, DataPack!$B294, IF($C$5=Dates1!$B$4, DataPack!$G294, IF($C$5=Dates1!$B$5, DataPack!$L294, IF($C$5=Dates1!$B$6, DataPack!$Q294))))","v":0},null,{"$f":"IF($C$5=Dates1!$B$3, DataPack!$C294, IF($C$5=Dates1!$B$4, DataPack!$H294, IF($C$5=Dates1!$B$5, DataPack!$M294, IF($C$5=Dates1!$B$6, DataPack!$R294))))","v":3},null,{"$f":"IF($C$5=Dates1!$B$3, DataPack!$D294, IF($C$5=Dates1!$B$4, DataPack!$I294, IF($C$5=Dates1!$B$5, DataPack!$N294, IF($C$5=Dates1!$B$6, DataPack!$S294))))","v":1},null,{"$f":"IF($C$5=Dates1!$B$3, DataPack!$E294, IF($C$5=Dates1!$B$4, DataPack!$J294, IF($C$5=Dates1!$B$5, DataPack!$O294, IF($C$5=Dates1!$B$6, DataPack!$T294))))","v":0}]
[null,null,null,null,null,null,null,null,null,null,null,null,"Source: Ofsted inspections"]
[null,"1. Where applicable to the type of provision."]

{"sheet":"Table 3","index":16,"n_rows":19,"n_cols":7,"rows_kept":19,"cut":false,"hidden":false,"merged":[[554,2,554,4],[543,2,543,4],[544,2,544,4],[545,2,545,4],[546,2,546,4],[547,2,547,4],[548,2,548,4],[549,2,549,4],[552,2,552,4],[553,2,553,4],[533,2,533,4],[534,2,534,4],[541,2,541,4],[542,2,542,4],[535,2,535,4],[536,2,536,4],[537,2,537,4],[538,2,538,4],[539,2,539,4],[540,2,540,4],[550,2,550,4],[551,2,551,4],[525,2,525,4],[526,2,526,4],[527,2,527,4],[528,2,528,4],[529,2,529,4],[530,2,530,4],[531,2,531,4],[532,2,532,4],[519,2,519,4],[520,2,520,4],[521,2,521,4],[522,2,522,4],[509,2,509,4],[510,2,510,4],[511,2,511,4],[512,2,512,4],[505,2,505,4],[506,2,506,4],[523,2,523,4],[524,2,524,4],[513,2,513,4],[514,2,514,4],[515,2,515,4],[516,2,516,4],[517,2,517,4],[518,2,518,4],[507,2,507,4],[508,2,508,4],[495,2,495,4],[496,2,496,4],[497,2,497,4],[498,2,498,4],[501,2,501,4],[502,2,502,4],[503,2,503,4],[504,2,504,4],[485,2,485,4],[486,2,486,4],[499,2,499,4],[500,2,500,4],[489,2,489,4],[490,2,490,4],[491,2,491,4],[492,2,492,4],[493,2,493,4],[494,2,494,4],[487,2,487,4],[488,2,488,4],[477,2,477,4],[478,2,478,4],[479,2,479,4],[480,2,480,4],[481,2,481,4],[482,2,482,4],[483,2,483,4],[484,2,484,4],[471,2,471,4],[472,2,472,4],[473,2,473,4],[474,2,474,4],[461,2,461,4],[462,2,462,4],[463,2,463,4],[464,2,464,4],[457,2,457,4],[458,2,458,4],[475,2,475,4],[476,2,476,4],[465,2,465,4],[466,2,466,4],[467,2,467,4],[468,2,468,4],[469,2,469,4],[470,2,470,4],[459,2,459,4],[460,2,460,4],[447,2,447,4],[448,2,448,4],[449,2,449,4],[450,2,450,4],[453,2,453,4],[454,2,454,4],[455,2,455,4],[456,2,456,4],[437,2,437,4],[438,2,438,4],[451,2,451,4],[452,2,452,4],[441,2,441,4],[442,2,442,4],[443,2,443,4],[444,2,444,4],[445,2,445,4],[446,2,446,4],[439,2,439,4],[440,2,440,4],[429,2,429,4],[430,2,430,4],[431,2,431,4],[432,2,432,4],[433,2,433,4],[434,2,434,4],[435,2,435,4],[436,2,436,4],[423,2,423,4],[424,2,424,4],[425,2,425,4],[426,2,426,4],[413,2,413,4],[414,2,414,4],[415,2,415,4],[416,2,416,4],[409,2,409,4],[410,2,410,4],[427,2,427,4],[428,2,428,4],[417,2,417,4],[418,2,418,4],[419,2,419,4],[420,2,420,4],[421,2,421,4],[422,2,422,4],[411,2,411,4],[412,2,412,4],[399,2,399,4],[400,2,400,4],[401,2,401,4],[402,2,402,4],[405,2,405,4],[406,2,406,4],[407,2,407,4],[408,2,408,4],[389,2,389,4],[390,2,390,4],[403,2,403,4],[404,2,404,4],[393,2,393,4],[394,2,394,4],[395,2,395,4],[396,2,396,4],[397,2,397,4],[398,2,398,4],[391,2,391,4],[392,2,392,4],[381,2,381,4],[382,2,382,4],[383,2,383,4],[384,2,384,4],[385,2,385,4],[386,2,386,4],[387,2,387,4],[388,2,388,4],[375,2,375,4],[376,2,376,4],[377,2,377,4],[378,2,378,4],[365,2,365,4],[366,2,366,4],[367,2,367,4],[368,2,368,4],[361,2,361,4],[362,2,362,4],[379,2,379,4],[380,2,380,4],[369,2,369,4],[370,2,370,4],[371,2,371,4],[372,2,372,4],[373,2,373,4],[374,2,374,4],[363,2,363,4],[364,2,364,4],[351,2,351,4],[352,2,352,4],[353,2,353,4],[354,2,354,4],[357,2,357,4],[358,2,358,4],[359,2,359,4],[360,2,360,4],[341,2,341,4],[342,2,342,4],[355,2,355,4],[356,2,356,4],[345,2,345,4],[346,2,346,4],[347,2,347,4],[348,2,348,4],[349,2,349,4],[350,2,350,4],[343,2,343,4],[344,2,344,4],[333,2,333,4],[334,2,334,4],[335,2,335,4],[336,2,336,4],[337,2,337,4],[338,2,338,4],[339,2,339,4],[340,2,340,4],[327,2,327,4],[328,2,328,4],[329,2,329,4],[330,2,330,4],[317,2,317,4],[318,2,318,4],[319,2,319,4],[320,2,320,4],[313,2,313,4],[314,2,314,4],[331,2,331,4],[332,2,332,4],[321,2,321,4],[322,2,322,4],[323,2,323,4],[324,2,324,4],[325,2,325,4],[326,2,326,4],[315,2,315,4],[316,2,316,4],[303,2,303,4],[304,2,304,4],[305,2,305,4],[306,2,306,4],[309,2,309,4],[310,2,310,4],[311,2,311,4],[312,2,312,4],[293,2,293,4],[294,2,294,4],[307,2,307,4],[308,2,308,4],[297,2,297,4],[298,2,298,4],[299,2,299,4],[300,2,300,4],[301,2,301,4],[302,2,302,4],[295,2,295,4],[296,2,296,4],[285,2,285,4],[286,2,286,4],[287,2,287,4],[288,2,288,4],[289,2,289,4],[290,2,290,4],[291,2,291,4],[292,2,292,4],[279,2,279,4],[280,2,280,4],[281,2,281,4],[282,2,282,4],[269,2,269,4],[270,2,270,4],[271,2,271,4],[272,2,272,4],[265,2,265,4],[266,2,266,4],[283,2,283,4],[284,2,284,4],[273,2,273,4],[274,2,274,4],[275,2,275,4],[276,2,276,4],[277,2,277,4],[278,2,278,4],[267,2,267,4],[268,2,268,4],[255,2,255,4],[256,2,256,4],[257,2,257,4],[258,2,258,4],[261,2,261,4],[262,2,262,4],[263,2,263,4],[264,2,264,4],[245,2,245,4],[246,2,246,4],[259,2,259,4],[260,2,260,4],[249,2,249,4],[250,2,250,4],[251,2,251,4],[252,2,252,4],[253,2,253,4],[254,2,254,4],[247,2,247,4],[248,2,248,4],[237,2,237,4],[238,2,238,4],[239,2,239,4],[240,2,240,4],[241,2,241,4],[242,2,242,4],[243,2,243,4],[244,2,244,4],[231,2,231,4],[232,2,232,4],[233,2,233,4],[234,2,234,4],[221,2,221,4],[222,2,222,4],[223,2,223,4],[224,2,224,4],[217,2,217,4],[218,2,218,4],[235,2,235,4],[236,2,236,4],[225,2,225,4],[226,2,226,4],[227,2,227,4],[228,2,228,4],[229,2,229,4],[230,2,230,4],[219,2,219,4],[220,2,220,4],[207,2,207,4],[208,2,208,4],[209,2,209,4],[210,2,210,4],[213,2,213,4],[214,2,214,4],[215,2,215,4],[216,2,216,4],[197,2,197,4],[198,2,198,4],[211,2,211,4],[212,2,212,4],[201,2,201,4],[202,2,202,4],[203,2,203,4],[204,2,204,4],[205,2,205,4],[206,2,206,4],[199,2,199,4],[200,2,200,4],[189,2,189,4],[190,2,190,4],[191,2,191,4],[192,2,192,4],[193,2,193,4],[194,2,194,4],[195,2,195,4],[196,2,196,4],[183,2,183,4],[184,2,184,4],[185,2,185,4],[186,2,186,4],[173,2,173,4],[174,2,174,4],[175,2,175,4],[176,2,176,4],[169,2,169,4],[170,2,170,4],[187,2,187,4],[188,2,188,4],[177,2,177,4],[178,2,178,4],[179,2,179,4],[180,2,180,4],[181,2,181,4],[182,2,182,4],[171,2,171,4],[172,2,172,4],[159,2,159,4],[160,2,160,4],[161,2,161,4],[162,2,162,4],[165,2,165,4],[166,2,166,4],[167,2,167,4],[168,2,168,4],[149,2,149,4],[150,2,150,4],[163,2,163,4],[164,2,164,4],[153,2,153,4],[154,2,154,4],[155,2,155,4],[156,2,156,4],[157,2,157,4],[158,2,158,4],[151,2,151,4],[152,2,152,4],[141,2,141,4],[142,2,142,4],[143,2,143,4],[144,2,144,4],[145,2,145,4],[146,2,146,4],[147,2,147,4],[148,2,148,4],[135,2,135,4],[136,2,136,4],[137,2,137,4],[138,2,138,4],[125,2,125,4],[126,2,126,4],[127,2,127,4],[128,2,128,4],[121,2,121,4],[122,2,122,4],[139,2,139,4],[140,2,140,4],[129,2,129,4],[130,2,130,4],[131,2,131,4],[132,2,132,4],[133,2,133,4],[134,2,134,4],[123,2,123,4],[124,2,124,4],[111,2,111,4],[112,2,112,4],[113,2,113,4],[114,2,114,4],[117,2,117,4],[118,2,118,4],[119,2,119,4],[120,2,120,4],[101,2,101,4],[102,2,102,4],[115,2,115,4],[116,2,116,4],[105,2,105,4],[106,2,106,4],[107,2,107,4],[108,2,108,4],[109,2,109,4],[110,2,110,4],[103,2,103,4],[104,2,104,4],[93,2,93,4],[94,2,94,4],[95,2,95,4],[96,2,96,4],[97,2,97,4],[98,2,98,4],[99,2,99,4],[100,2,100,4],[87,2,87,4],[88,2,88,4],[89,2,89,4],[90,2,90,4],[77,2,77,4],[78,2,78,4],[79,2,79,4],[80,2,80,4],[73,2,73,4],[74,2,74,4],[91,2,91,4],[92,2,92,4],[81,2,81,4],[82,2,82,4],[83,2,83,4],[84,2,84,4],[85,2,85,4],[86,2,86,4],[75,2,75,4],[76,2,76,4],[63,2,63,4],[64,2,64,4],[65,2,65,4],[66,2,66,4],[69,2,69,4],[70,2,70,4],[71,2,71,4],[72,2,72,4],[53,2,53,4],[54,2,54,4],[67,2,67,4],[68,2,68,4],[57,2,57,4],[58,2,58,4],[59,2,59,4],[60,2,60,4],[61,2,61,4],[62,2,62,4],[55,2,55,4],[56,2,56,4],[45,2,45,4],[46,2,46,4],[47,2,47,4],[48,2,48,4],[49,2,49,4],[50,2,50,4],[51,2,51,4],[52,2,52,4],[44,2,44,4],[33,2,33,4],[34,2,34,4],[35,2,35,4],[36,2,36,4],[37,2,37,4],[38,2,38,4],[39,2,39,4],[40,2,40,4],[41,2,41,4],[29,2,29,4],[30,2,30,4],[43,2,43,4],[42,2,42,4],[31,2,31,4],[32,2,32,4],[21,2,21,4],[22,2,22,4],[23,2,23,4],[24,2,24,4],[25,2,25,4],[26,2,26,4],[27,2,27,4],[28,2,28,4],[5,1,6,1],[5,5,6,5],[19,2,19,4],[20,2,20,4],[5,2,6,4],[17,2,17,4],[17,5,17,6],[5,6,6,6]]}
[]
[null,"Table 3: Learning and skills providers judged inadequate between 1 October 2011 and 31 December 20111"]
[]
[]
[]
[null,"URN","Provider name",null,null,"Type of provider","Date of inspection"]
[]
[null,58587,null,"Capital Engineering Group Holdings Ltd",null,"Independent learning provider","2011-10-07"]
[null,54472,null,"Southbank Training Limited",null,"Independent learning provider","2011-10-21"]
[null,130433,null,"Coulsdon Sixth Form College",null,"Sixth form college","2011-10-21"]
[null,58966,null,"Travis Perkins Plc",null,"Independent learning provider - employer","2011-11-04"]
[null,132980,null,"Treloar College",null,"Independent specialist college","2011-11-10"]
[null,58927,null,"ISS UK Limited",null,"Independent learning provider - employer","2011-11-25"]
[null,130665,null,"Sussex Coast College Hastings",null,"General further education college/tertiary college","2011-11-25"]
[null,130588,null,"John Leggott Sixth Form College",null,"Sixth form college","2011-11-25"]
[null,130417,null,"Southwark College",null,"General further education college/tertiary college","2011-12-09"]
[null,58198,null,"Polestar UK Print Limited",null,"Independent learning provider - employer","2011-12-16"]
[null,null,null,null,null,"Source: Ofsted inspections"]
[null,"1. This list only includes inspections where the report was published as at 31 January 2012"]

{"sheet":"Chart 1","index":17,"n_rows":40,"n_cols":7,"rows_kept":40,"cut":false,"hidden":false,"merged":[[3,2,3,4],[6,11,6,15],[6,1,7,1],[6,2,7,2],[6,3,6,6],[38,1,38,9]]}
[]
[null,{"$f":"\"Chart 1: Overall effectiveness of learning and skills providers inspected \" & IF('Chart 1'!$C$4=Dates1!$B$3, \"between \" & Dates1!$B$3, IF('Chart 1'!$C$4 = Dates1!B3, \"in \"&Dates1!B3, IF('Chart 1'!$C$4=Dates1!B4,\"in \"& Dates1!B4, IF('Chart 1'!$C$4=Dates1!B5,\"in \"& Dates1!B5, IF('Chart 1'!$C$4=Dates1!B6, \"in \" & Dates1!B6, IF('Chart 1'!$C$4=Dates1!B7, \"in \" & Dates1!B7)))))) & \" (provisional)\"&CHAR(185)&CHAR(178)","v":"Chart 1: Overall effectiveness of learning and skills providers inspected between 1 October and 31 December 2011 (provisional)¹²"}]
[]
[null,"Select period:","1 October and 31 December 2011"]
[]
[null,"Number of providers"]
[null,null,"Total number inspected","Overall effectiveness"]
[null,null,null,"Outstanding","Good","Satisfactory","Inadequate"]
[null,{"$f":"\"All colleges (\" & C9 & \")\"& CHAR(179)","v":"All colleges (23)³"},{"$f":"SUM(D9:G9)","v":23},{"$f":"IF($C$4=Dates1!$B$3, DataPack!$B38, IF($C$4=Dates1!$B$4, DataPack!$G38, IF($C$4=Dates1!$B$5, DataPack!$L38, IF($C$4=Dates1!$B$6, DataPack!$Q38))))","v":1},{"$f":"IF($C$4=Dates1!$B$3, DataPack!$C38, IF($C$4=Dates1!$B$4, DataPack!$H38, IF($C$4=Dates1!$B$5, DataPack!$M38, IF($C$4=Dates1!$B$6, DataPack!$R38))))","v":8},{"$f":"IF($C$4=Dates1!$B$3, DataPack!$D38, IF($C$4=Dates1!$B$4, DataPack!$I38, IF($C$4=Dates1!$B$5, DataPack!$N38, IF($C$4=Dates1!$B$6, DataPack!$S38))))","v":9},{"$f":"IF($C$4=Dates1!$B$3, DataPack!$E38, IF($C$4=Dates1!$B$4, DataPack!$J38, IF($C$4=Dates1!$B$5, DataPack!$O38, IF($C$4=Dates1!$B$6, DataPack!$T38))))","v":5}]
[null,{"$f":"\"GFEC/TC (\" & C10 & \")\"","v":"GFEC/TC (13)"},{"$f":"SUM(D10:G10)","v":13},{"$f":"IF($C$4=Dates1!$B$3, DataPack!$B64, IF($C$4=Dates1!$B$4, DataPack!$G64, IF($C$4=Dates1!$B$5, DataPack!$L64, IF($C$4=Dates1!$B$6, DataPack!$Q64))))","v":1},{"$f":"IF($C$4=Dates1!$B$3, DataPack!$C64, IF($C$4=Dates1!$B$4, DataPack!$H64, IF($C$4=Dates1!$B$5, DataPack!$M64, IF($C$4=Dates1!$B$6, DataPack!$R64))))","v":5},{"$f":"IF($C$4=Dates1!$B$3, DataPack!$D64, IF($C$4=Dates1!$B$4, DataPack!$I64, IF($C$4=Dates1!$B$5, DataPack!$N64, IF($C$4=Dates1!$B$6, DataPack!$S64))))","v":5},{"$f":"IF($C$4=Dates1!$B$3, DataPack!$E64, IF($C$4=Dates1!$B$4, DataPack!$J64, IF($C$4=Dates1!$B$5, DataPack!$O64, IF($C$4=Dates1!$B$6, DataPack!$T64))))","v":2}]
[null,{"$f":"\"SFC (\" & C11 & \")\"","v":"SFC (8)"},8,{"$f":"IF($C$4=Dates1!$B$3, DataPack!$B90, IF($C$4=Dates1!$B$4, DataPack!$G90, IF($C$4=Dates1!$B$5, DataPack!$L90, IF($C$4=Dates1!$B$6, DataPack!$Q90))))","v":0},{"$f":"IF($C$4=Dates1!$B$3, DataPack!$C90, IF($C$4=Dates1!$B$4, DataPack!$H90, IF($C$4=Dates1!$B$5, DataPack!$M90, IF($C$4=Dates1!$B$6, DataPack!$R90))))","v":2},{"$f":"IF($C$4=Dates1!$B$3, DataPack!$D90, IF($C$4=Dates1!$B$4, DataPack!$I90, IF($C$4=Dates1!$B$5, DataPack!$N90, IF($C$4=Dates1!$B$6, DataPack!$S90))))","v":4},{"$f":"IF($C$4=Dates1!$B$3, DataPack!$E90, IF($C$4=Dates1!$B$4, DataPack!$J90, IF($C$4=Dates1!$B$5, DataPack!$O90, IF($C$4=Dates1!$B$6, DataPack!$T90))))","v":2}]
[null,{"$f":"\"ISC (\" & C12 & \")\"","v":"ISC (2)"},2,{"$f":"IF($C$4=Dates1!$B$3, DataPack!$B116, IF($C$4=Dates1!$B$4, DataPack!$G116, IF($C$4=Dates1!$B$5, DataPack!$L116, IF($C$4=Dates1!$B$6, DataPack!$Q116))))","v":0},{"$f":"IF($C$4=Dates1!$B$3, DataPack!$C116, IF($C$4=Dates1!$B$4, DataPack!$H116, IF($C$4=Dates1!$B$5, DataPack!$M116, IF($C$4=Dates1!$B$6, DataPack!$R116))))","v":1},{"$f":"IF($C$4=Dates1!$B$3, DataPack!$D116, IF($C$4=Dates1!$B$4, DataPack!$I116, IF($C$4=Dates1!$B$5, DataPack!$N116, IF($C$4=Dates1!$B$6, DataPack!$S116))))","v":0},{"$f":"IF($C$4=Dates1!$B$3, DataPack!$E116, IF($C$4=Dates1!$B$4, DataPack!$J116, IF($C$4=Dates1!$B$5, DataPack!$O116, IF($C$4=Dates1!$B$6, DataPack!$T116))))","v":1}]
[null,{"$f":"\"ILP (\" & C13 & \")\"","v":"ILP (35)"},35,{"$f":"IF($C$4=Dates1!$B$3, DataPack!$B194, IF($C$4=Dates1!$B$4, DataPack!$G194, IF($C$4=Dates1!$B$5, DataPack!$L194, IF($C$4=Dates1!$B$6, DataPack!$Q194))))","v":1},{"$f":"IF($C$4=Dates1!$B$3, DataPack!$C194, IF($C$4=Dates1!$B$4, DataPack!$H194, IF($C$4=Dates1!$B$5, DataPack!$M194, IF($C$4=Dates1!$B$6, DataPack!$R194))))","v":15},{"$f":"IF($C$4=Dates1!$B$3, DataPack!$D194, IF($C$4=Dates1!$B$4, DataPack!$I194, IF($C$4=Dates1!$B$5, DataPack!$N194, IF($C$4=Dates1!$B$6, DataPack!$S194))))","v":14},{"$f":"IF($C$4=Dates1!$B$3, DataPack!$E194, IF($C$4=Dates1!$B$4, DataPack!$J194, IF($C$4=Dates1!$B$5, DataPack!$O194, IF($C$4=Dates1!$B$6, DataPack!$T194))))","v":5}]
[null,{"$f":"\"ACL (\" & C14 & \")\"","v":"ACL (17)"},17,{"$f":"IF($C$4=Dates1!$B$3, DataPack!$B220, IF($C$4=Dates1!$B$4, DataPack!$G220, IF($C$4=Dates1!$B$5, DataPack!$L220, IF($C$4=Dates1!$B$6, DataPack!$Q220))))","v":1},{"$f":"IF($C$4=Dates1!$B$3, DataPack!$C220, IF($C$4=Dates1!$B$4, DataPack!$H220, IF($C$4=Dates1!$B$5, DataPack!$M220, IF($C$4=Dates1!$B$6, DataPack!$R220))))","v":13},{"$f":"IF($C$4=Dates1!$B$3, DataPack!$D220, IF($C$4=Dates1!$B$4, DataPack!$I220, IF($C$4=Dates1!$B$5, DataPack!$N220, IF($C$4=Dates1!$B$6, DataPack!$S220))))","v":3},{"$f":"IF($C$4=Dates1!$B$3, DataPack!$E220, IF($C$4=Dates1!$B$4, DataPack!$J220, IF($C$4=Dates1!$B$5, DataPack!$O220, IF($C$4=Dates1!$B$6, DataPack!$T220))))","v":0}]
[null,{"$f":"\"Next Step (\" & C15 & \")\"","v":"Next Step (2)"},2,{"$f":"IF($C$4=Dates1!$B$3, DataPack!$B246, IF($C$4=Dates1!$B$4, DataPack!$G246, IF($C$4=Dates1!$B$5, DataPack!$L246, IF($C$4=Dates1!$B$6, DataPack!$Q246))))","v":0},{"$f":"IF($C$4=Dates1!$B$3, DataPack!$C246, IF($C$4=Dates1!$B$4, DataPack!$H246, IF($C$4=Dates1!$B$5, DataPack!$M246, IF($C$4=Dates1!$B$6, DataPack!$R246))))","v":2},{"$f":"IF($C$4=Dates1!$B$3, DataPack!$D246, IF($C$4=Dates1!$B$4, DataPack!$I246, IF($C$4=Dates1!$B$5, DataPack!$N246, IF($C$4=Dates1!$B$6, DataPack!$S246))))","v":0},{"$f":"IF($C$4=Dates1!$B$3, DataPack!$E246, IF($C$4=Dates1!$B$4, DataPack!$J246, IF($C$4=Dates1!$B$5, DataPack!$O246, IF($C$4=Dates1!$B$6, DataPack!$T246))))","v":0}]
[null,{"$f":"\"Prison/YOI (\" & C16 & \")\"","v":"Prison/YOI (4)"},4,{"$f":"IF($C$4=Dates1!$B$3, DataPack!$B272, IF($C$4=Dates1!$B$4, DataPack!$G272, IF($C$4=Dates1!$B$5, DataPack!$L272, IF($C$4=Dates1!$B$6, DataPack!$Q272))))","v":0},{"$f":"IF($C$4=Dates1!$B$3, DataPack!$C272, IF($C$4=Dates1!$B$4, DataPack!$H272, IF($C$4=Dates1!$B$5, DataPack!$M272, IF($C$4=Dates1!$B$6, DataPack!$R272))))","v":3},{"$f":"IF($C$4=Dates1!$B$3, DataPack!$D272, IF($C$4=Dates1!$B$4, DataPack!$I272, IF($C$4=Dates1!$B$5, DataPack!$N272, IF($C$4=Dates1!$B$6, DataPack!$S272))))","v":1},{"$f":"IF($C$4=Dates1!$B$3, DataPack!$E272, IF($C$4=Dates1!$B$4, DataPack!$J272, IF($C$4=Dates1!$B$5, DataPack!$O272, IF($C$4=Dates1!$B$6, DataPack!$T272))))","v":0}]
[null,null,null,null,null,null,"Source: Ofsted inspections"]
[]
[]
[]
[]
[]
[]
[]
[]
[]
[]
[]
[]
[]
[]
[]
[]
[]
[]
[]
[]
[null,"1. Figures represent the number of providers."]
[null,"2. GFEC/TC: general further education college/tertiary college; SFC: sixth form college; ISC: independent specialist college; ILP: independent learning provider (includes employer providers); ACL: adult and community learning provider; YOI: young offender institution."]
[null,"3. Includes general further education college/tertiary college, sixth form college, specialist further education college and independent specialist college."]

{"sheet":"Chart 1a","index":18,"n_rows":38,"n_cols":7,"rows_kept":38,"cut":false,"hidden":false,"merged":[[4,1,5,1],[4,2,5,2],[4,3,4,6],[36,1,36,9]]}
[]
[null,"Chart 1a: Overall effectiveness of learning and skills providers inspected between 1 September 2011 and 31 December 2011 (provisional)¹ ²"]
[]
[]
[null,null,"Total number inspected","Overall effectiveness"]
[null,null,null,"Outstanding","Good","Satisfactory","Inadequate"]
[null,{"$f":"\"All colleges (\" & C7 & \")\"& CHAR(179)","v":"All colleges (27)³"},{"$f":"SUM(D7:G7)","v":27},1,10,10,6]
[null,{"$f":"\"GFEC/TC (\" & C8 & \")\"","v":"GFEC/TC (13)"},{"$f":"SUM(D8:G8)","v":13},1,5,5,2]
[null,{"$f":"\"SFC (\" & C9 & \")\"","v":"SFC (10)"},10,0,3,4,3]
[null,{"$f":"\"ISC (\" & C10 & \")\"","v":"ISC (4)"},4,0,2,1,1]
[null,{"$f":"\"ILP (\" & C11 & \")\"","v":"ILP (43)"},43,2,20,16,5]
[null,{"$f":"\"ACL (\" & C12 & \")\"","v":"ACL (19)"},19,1,14,3,1]
[null,{"$f":"\"Next Step (\" & C13 & \")\"","v":"Next Step (2)"},{"$f":"SUM(D13:G13)","v":2},0,2,0,0]
[null,{"$f":"\"Prison/YOI (\" & C14 & \")\"","v":"Prison/YOI (5)"},5,0,3,2,0]
[null,null,null,null,null,null,"Source: Ofsted inspections"]
[]
[]
[]
[]
[]
[]
[]
[]
[]
[]
[]
[]
[]
[]
[]
[]
[]
[]
[]
[]
[null,"1. Figures represent the number of providers."]
[null,"2. GFEC/TC: general further education college/tertiary college; SFC: sixth form college; ISC: independent specialist college; ILP: independent learning provider (includes employer providers); ACL: adult and community learning provider; YOI: young offender institution."]
[null,"3. Includes general further education college/tertiary college, sixth form college, specialist further education college and independent specialist college."]

{"sheet":"Chart 2","index":19,"n_rows":36,"n_cols":7,"rows_kept":36,"cut":false,"hidden":false,"merged":[[6,1,7,1],[11,9,11,10],[12,9,12,10],[6,2,7,2],[6,3,6,6],[6,11,6,15],[8,9,8,10],[9,9,9,10],[10,9,10,10],[3,2,3,4],[14,5,14,6]]}
[]
[null,{"$f":"\"Chart 2: Key inspection judgements of learning and skills providers inspected \" & IF('Chart 2'!$C$4=Dates1!$B$3, \"between \" & Dates1!$B$3, IF('Chart 2'!$C$4 = Dates1!$B$4, \"in \"&Dates1!$B$4, IF('Chart 2'!$C$4=Dates1!$B$5,\"in \"& Dates1!$B$5, IF('Chart 2'!$C$4=Dates1!$B$6,\"in \"& Dates1!$B$6, IF('Chart 2'!$C$4=Dates1!$B$7, \"in \" &Dates1!$B$7))))) & \" (provisional)\"&CHAR(185)&\" \"&CHAR(178)","v":"Chart 2: Key inspection judgements of learning and skills providers inspected between 1 October and 31 December 2011 (provisional)¹ ²"}]
[]
[null,"Select period:","1 October and 31 December 2011"]
[]
[]
[null,null,"Total number inspected","All learning and skills"]
[null,null,null,"Outstanding","Good","Satisfactory","Inadequate"]
[null,{"$f":"\"Overall effectiveness (\" &C9 &\")\"","v":"Overall effectiveness (81)"},{"$f":"SUM(D9:G9)","v":81},{"$f":"IF($C$4=Dates1!$B$3, DataPack!$B12, IF($C$4=Dates1!$B$4, DataPack!$G12, IF($C$4=Dates1!$B$5, DataPack!$L12, IF($C$4=Dates1!$B$6, DataPack!$Q12))))","v":3},{"$f":"IF($C$4=Dates1!$B$3, DataPack!$C12, IF($C$4=Dates1!$B$4, DataPack!$H12, IF($C$4=Dates1!$B$5, DataPack!$M12, IF($C$4=Dates1!$B$6, DataPack!$R12))))","v":41},{"$f":"IF($C$4=Dates1!$B$3, DataPack!$D12, IF($C$4=Dates1!$B$4, DataPack!$I12, IF($C$4=Dates1!$B$5, DataPack!$N12, IF($C$4=Dates1!$B$6, DataPack!$S12))))","v":27},{"$f":"IF($C$4=Dates1!$B$3, DataPack!$E12, IF($C$4=Dates1!$B$4, DataPack!$J12, IF($C$4=Dates1!$B$5, DataPack!$O12, IF($C$4=Dates1!$B$6, DataPack!$T12))))","v":10}]
[null,{"$f":"\"Capacity to improve (\" &C10 &\")\"","v":"Capacity to improve (81)"},81,{"$f":"IF($C$4=Dates1!$B$3, DataPack!$B13, IF($C$4=Dates1!$B$4, DataPack!$G13, IF($C$4=Dates1!$B$5, DataPack!$L13, IF($C$4=Dates1!$B$6, DataPack!$Q13))))","v":2},{"$f":"IF($C$4=Dates1!$B$3, DataPack!$C13, IF($C$4=Dates1!$B$4, DataPack!$H13, IF($C$4=Dates1!$B$5, DataPack!$M13, IF($C$4=Dates1!$B$6, DataPack!$R13))))","v":41},{"$f":"IF($C$4=Dates1!$B$3, DataPack!$D13, IF($C$4=Dates1!$B$4, DataPack!$I13, IF($C$4=Dates1!$B$5, DataPack!$N13, IF($C$4=Dates1!$B$6, DataPack!$S13))))","v":29},{"$f":"IF($C$4=Dates1!$B$3, DataPack!$E13, IF($C$4=Dates1!$B$4, DataPack!$J13, IF($C$4=Dates1!$B$5, DataPack!$O13, IF($C$4=Dates1!$B$6, DataPack!$T13))))","v":9}]
[null,{"$f":"\"Outcomes for learners (\" &C11 &\")\"","v":"Outcomes for learners (81)"},81,{"$f":"IF($C$4=Dates1!$B$3, DataPack!$B14, IF($C$4=Dates1!$B$4, DataPack!$G14, IF($C$4=Dates1!$B$5, DataPack!$L14, IF($C$4=Dates1!$B$6, DataPack!$Q14))))","v":4},{"$f":"IF($C$4=Dates1!$B$3, DataPack!$C14, IF($C$4=Dates1!$B$4, DataPack!$H14, IF($C$4=Dates1!$B$5, DataPack!$M14, IF($C$4=Dates1!$B$6, DataPack!$R14))))","v":41},{"$f":"IF($C$4=Dates1!$B$3, DataPack!$D14, IF($C$4=Dates1!$B$4, DataPack!$I14, IF($C$4=Dates1!$B$5, DataPack!$N14, IF($C$4=Dates1!$B$6, DataPack!$S14))))","v":29},{"$f":"IF($C$4=Dates1!$B$3, DataPack!$E14, IF($C$4=Dates1!$B$4, DataPack!$J14, IF($C$4=Dates1!$B$5, DataPack!$O14, IF($C$4=Dates1!$B$6, DataPack!$T14))))","v":7}]
[null,{"$f":"\"Quality of provision (\" &C12 &\")\"","v":"Quality of provision (81)"},81,{"$f":"IF($C$4=Dates1!$B$3, DataPack!$B22, IF($C$4=Dates1!$B$4, DataPack!$G22, IF($C$4=Dates1!$B$5, DataPack!$L22, IF($C$4=Dates1!$B$6, DataPack!$Q22))))","v":4},{"$f":"IF($C$4=Dates1!$B$3, DataPack!$C22, IF($C$4=Dates1!$B$4, DataPack!$H22, IF($C$4=Dates1!$B$5, DataPack!$M22, IF($C$4=Dates1!$B$6, DataPack!$R22))))","v":46},{"$f":"IF($C$4=Dates1!$B$3, DataPack!$D22, IF($C$4=Dates1!$B$4, DataPack!$I22, IF($C$4=Dates1!$B$5, DataPack!$N22, IF($C$4=Dates1!$B$6, DataPack!$S22))))","v":28},{"$f":"IF($C$4=Dates1!$B$3, DataPack!$E22, IF($C$4=Dates1!$B$4, DataPack!$J22, IF($C$4=Dates1!$B$5, DataPack!$O22, IF($C$4=Dates1!$B$6, DataPack!$T22))))","v":3}]
[null,{"$f":"\"Leadership and management (\" &C13 &\")\"","v":"Leadership and management (81)"},81,{"$f":"IF($C$4=Dates1!$B$3, DataPack!$B27, IF($C$4=Dates1!$B$4, DataPack!$G27, IF($C$4=Dates1!$B$5, DataPack!$L27, IF($C$4=Dates1!$B$6, DataPack!$Q27))))","v":3},{"$f":"IF($C$4=Dates1!$B$3, DataPack!$C27, IF($C$4=Dates1!$B$4, DataPack!$H27, IF($C$4=Dates1!$B$5, DataPack!$M27, IF($C$4=Dates1!$B$6, DataPack!$R27))))","v":41},{"$f":"IF($C$4=Dates1!$B$3, DataPack!$D27, IF($C$4=Dates1!$B$4, DataPack!$I27, IF($C$4=Dates1!$B$5, DataPack!$N27, IF($C$4=Dates1!$B$6, DataPack!$S27))))","v":29},{"$f":"IF($C$4=Dates1!$B$3, DataPack!$E27, IF($C$4=Dates1!$B$4, DataPack!$J27, IF($C$4=Dates1!$B$5, DataPack!$O27, IF($C$4=Dates1!$B$6, DataPack!$T27))))","v":8}]
[null,{"$f":"\"How effectively do teaching, training and assessment support learning and development? (\" &C14 &\")\"","v":"How effectively do teaching, training and assessment support learning and development? (81)"},81,{"$f":"IF($C$4=Dates1!$B$3, DataPack!$B23, IF($C$4=Dates1!$B$4, DataPack!$G23, IF($C$4=Dates1!$B$5, DataPack!$L23, IF($C$4=Dates1!$B$6, DataPack!$Q23))))","v":2},{"$f":"IF($C$4=Dates1!$B$3, DataPack!$C23, IF($C$4=Dates1!$B$4, DataPack!$H23, IF($C$4=Dates1!$B$5, DataPack!$M23, IF($C$4=Dates1!$B$6, DataPack!$R23))))","v":45},{"$f":"IF($C$4=Dates1!$B$3, DataPack!$D23, IF($C$4=Dates1!$B$4, DataPack!$I23, IF($C$4=Dates1!$B$5, DataPack!$N23, IF($C$4=Dates1!$B$6, DataPack!$S23))))","v":31},{"$f":"IF($C$4=Dates1!$B$3, DataPack!$E23, IF($C$4=Dates1!$B$4, DataPack!$J23, IF($C$4=Dates1!$B$5, DataPack!$O23, IF($C$4=Dates1!$B$6, DataPack!$T23))))","v":3}]
[null,null,null,null,null,"Source: Ofsted inspections"]
[]
[]
[]
[]
[]
[]
[]
[]
[]
[]
[]
[]
[]
[]
[]
[]
[]
[]
[null,"1. Percentages are rounded and may not add to 100."]
[null,"1. Figures represent the number of providers."]
[null,"2. Does not include dance and drama college inspections or further education in higher education institute inspections."]

{"sheet":"Chart 2a","index":20,"n_rows":37,"n_cols":7,"rows_kept":37,"cut":false,"hidden":false,"merged":[[9,9,9,10],[14,5,14,6],[10,9,10,10],[11,9,11,10],[12,9,12,10],[3,2,3,4],[6,1,7,1],[6,2,7,2],[6,11,6,15],[6,3,6,6],[8,9,8,10]]}
[]
[null,{"$f":"\"Chart 2a: Key inspection judgements of colleges inspected \" & IF('Chart 2a'!$C$4=Dates1!$B$3, \"between \" & Dates1!$B$3, IF('Chart 2a'!$C$4 = Dates1!$B$4, \"in \"&Dates1!$B$4, IF('Chart 2a'!$C$4=Dates1!$B$5,\"in \"& Dates1!$B$5, IF('Chart 2a'!$C$4=Dates1!$B$6,\"in \"& Dates1!$B$6, IF('Chart 2a'!$C$4=Dates1!$B$7, \"in \" &Dates1!$B$7))))) & \" (provisional)\"&CHAR(185)&\" \"&CHAR(178)","v":"Chart 2a: Key inspection judgements of colleges inspected between 1 October and 31 December 2011 (provisional)¹ ²"}]
[]
[null,"Select period:","1 October and 31 December 2011"]
[]
[]
[null,null,"Total number inspected","All colleges"]
[null,null,null,"Outstanding","Good","Satisfactory","Inadequate"]
[null,{"$f":"\"Overall effectiveness (\" &C9 &\")\"","v":"Overall effectiveness (23)"},{"$f":"SUM(D9:G9)","v":23},{"$f":"IF($C$4=Dates1!$B$3, DataPack!$B38, IF($C$4=Dates1!$B$4, DataPack!$G38, IF($C$4=Dates1!$B$5, DataPack!$L38, IF($C$4=Dates1!$B$6, DataPack!$Q38))))","v":1},{"$f":"IF($C$4=Dates1!$B$3, DataPack!$C38, IF($C$4=Dates1!$B$4, DataPack!$H38, IF($C$4=Dates1!$B$5, DataPack!$M38, IF($C$4=Dates1!$B$6, DataPack!$R38))))","v":8},{"$f":"IF($C$4=Dates1!$B$3, DataPack!$D38, IF($C$4=Dates1!$B$4, DataPack!$I38, IF($C$4=Dates1!$B$5, DataPack!$N38, IF($C$4=Dates1!$B$6, DataPack!$S38))))","v":9},{"$f":"IF($C$4=Dates1!$B$3, DataPack!$E38, IF($C$4=Dates1!$B$4, DataPack!$J38, IF($C$4=Dates1!$B$5, DataPack!$O38, IF($C$4=Dates1!$B$6, DataPack!$T38))))","v":5}]
[null,{"$f":"\"Capacity to improve (\" &C10 &\")\"","v":"Capacity to improve (23)"},23,{"$f":"IF($C$4=Dates1!$B$3, DataPack!$B39, IF($C$4=Dates1!$B$4, DataPack!$G39, IF($C$4=Dates1!$B$5, DataPack!$L39, IF($C$4=Dates1!$B$6, DataPack!$Q39))))","v":1},{"$f":"IF($C$4=Dates1!$B$3, DataPack!$C39, IF($C$4=Dates1!$B$4, DataPack!$H39, IF($C$4=Dates1!$B$5, DataPack!$M39, IF($C$4=Dates1!$B$6, DataPack!$R39))))","v":9},{"$f":"IF($C$4=Dates1!$B$3, DataPack!$D39, IF($C$4=Dates1!$B$4, DataPack!$I39, IF($C$4=Dates1!$B$5, DataPack!$N39, IF($C$4=Dates1!$B$6, DataPack!$S39))))","v":9},{"$f":"IF($C$4=Dates1!$B$3, DataPack!$E39, IF($C$4=Dates1!$B$4, DataPack!$J39, IF($C$4=Dates1!$B$5, DataPack!$O39, IF($C$4=Dates1!$B$6, DataPack!$T39))))","v":4}]
[null,{"$f":"\"Outcomes for learners (\" &C11 &\")\"","v":"Outcomes for learners (23)"},23,{"$f":"IF($C$4=Dates1!$B$3, DataPack!$B40, IF($C$4=Dates1!$B$4, DataPack!$G40, IF($C$4=Dates1!$B$5, DataPack!$L40, IF($C$4=Dates1!$B$6, DataPack!$Q40))))","v":1},{"$f":"IF($C$4=Dates1!$B$3, DataPack!$C40, IF($C$4=Dates1!$B$4, DataPack!$H40, IF($C$4=Dates1!$B$5, DataPack!$M40, IF($C$4=Dates1!$B$6, DataPack!$R40))))","v":7},{"$f":"IF($C$4=Dates1!$B$3, DataPack!$D40, IF($C$4=Dates1!$B$4, DataPack!$I40, IF($C$4=Dates1!$B$5, DataPack!$N40, IF($C$4=Dates1!$B$6, DataPack!$S40))))","v":11},{"$f":"IF($C$4=Dates1!$B$3, DataPack!$E40, IF($C$4=Dates1!$B$4, DataPack!$J40, IF($C$4=Dates1!$B$5, DataPack!$O40, IF($C$4=Dates1!$B$6, DataPack!$T40))))","v":4}]
[null,{"$f":"\"Quality of provision (\" &C12 &\")\"","v":"Quality of provision (23)"},23,{"$f":"IF($C$4=Dates1!$B$3, DataPack!$B48, IF($C$4=Dates1!$B$4, DataPack!$G48, IF($C$4=Dates1!$B$5, DataPack!$L48, IF($C$4=Dates1!$B$6, DataPack!$Q48))))","v":1},{"$f":"IF($C$4=Dates1!$B$3, DataPack!$C48, IF($C$4=Dates1!$B$4, DataPack!$H48, IF($C$4=Dates1!$B$5, DataPack!$M48, IF($C$4=Dates1!$B$6, DataPack!$R48))))","v":9},{"$f":"IF($C$4=Dates1!$B$3, DataPack!$D48, IF($C$4=Dates1!$B$4, DataPack!$I48, IF($C$4=Dates1!$B$5, DataPack!$N48, IF($C$4=Dates1!$B$6, DataPack!$S48))))","v":10},{"$f":"IF($C$4=Dates1!$B$3, DataPack!$E48, IF($C$4=Dates1!$B$4, DataPack!$J48, IF($C$4=Dates1!$B$5, DataPack!$O48, IF($C$4=Dates1!$B$6, DataPack!$T48))))","v":3}]
[null,{"$f":"\"Leadership and management (\" &C13 &\")\"","v":"Leadership and management (23)"},23,{"$f":"IF($C$4=Dates1!$B$3, DataPack!$B53, IF($C$4=Dates1!$B$4, DataPack!$G53, IF($C$4=Dates1!$B$5, DataPack!$L53, IF($C$4=Dates1!$B$6, DataPack!$Q53))))","v":1},{"$f":"IF($C$4=Dates1!$B$3, DataPack!$C53, IF($C$4=Dates1!$B$4, DataPack!$H53, IF($C$4=Dates1!$B$5, DataPack!$M53, IF($C$4=Dates1!$B$6, DataPack!$R53))))","v":9},{"$f":"IF($C$4=Dates1!$B$3, DataPack!$D53, IF($C$4=Dates1!$B$4, DataPack!$I53, IF($C$4=Dates1!$B$5, DataPack!$N53, IF($C$4=Dates1!$B$6, DataPack!$S53))))","v":8},{"$f":"IF($C$4=Dates1!$B$3, DataPack!$E53, IF($C$4=Dates1!$B$4, DataPack!$J53, IF($C$4=Dates1!$B$5, DataPack!$O53, IF($C$4=Dates1!$B$6, DataPack!$T53))))","v":5}]
[null,{"$f":"\"How effectively do teaching, training and assessment support learning and development? (\" &C14 &\")\"","v":"How effectively do teaching, training and assessment support learning and development? (23)"},23,{"$f":"IF($C$4=Dates1!$B$3, DataPack!$B49, IF($C$4=Dates1!$B$4, DataPack!$G49, IF($C$4=Dates1!$B$5, DataPack!$L49, IF($C$4=Dates1!$B$6, DataPack!$Q49))))","v":0},{"$f":"IF($C$4=Dates1!$B$3, DataPack!$C49, IF($C$4=Dates1!$B$4, DataPack!$H49, IF($C$4=Dates1!$B$5, DataPack!$M49, IF($C$4=Dates1!$B$6, DataPack!$R49))))","v":11},{"$f":"IF($C$4=Dates1!$B$3, DataPack!$D49, IF($C$4=Dates1!$B$4, DataPack!$I49, IF($C$4=Dates1!$B$5, DataPack!$N49, IF($C$4=Dates1!$B$6, DataPack!$S49))))","v":9},{"$f":"IF($C$4=Dates1!$B$3, DataPack!$E49, IF($C$4=Dates1!$B$4, DataPack!$J49, IF($C$4=Dates1!$B$5, DataPack!$O49, IF($C$4=Dates1!$B$6, DataPack!$T49))))","v":3}]
[null,null,null,null,null,"Source: Ofsted inspections"]
[]
[]
[]
[]
[]
[]
[]
[]
[]
[]
[]
[]
[]
[]
[]
[]
[]
[]
[null,"1. Percentages are rounded and may not add to 100."]
[]
[null,"1. Includes general further education college/tertiary college, sixth form college, specialist further education college and independent specialist college."]
[null,"2. Figures represent the number of providers."]

{"sheet":"Chart 2b","index":21,"n_rows":36,"n_cols":7,"rows_kept":36,"cut":false,"hidden":false,"merged":[[6,11,6,15],[6,1,7,1],[3,2,3,4],[14,9,14,10],[6,2,7,2],[6,3,6,6],[14,5,14,6]]}
[]
[null,{"$f":"\"Chart 2b: Key inspection judgements of independent learning providers inspected \" & IF('Chart 2b'!$C$4=Dates1!$B$3, \"between \" & Dates1!$B$3, IF('Chart 2b'!$C$4 = Dates1!$B$4, \"in \"&Dates1!$B$4, IF('Chart 2b'!$C$4=Dates1!$B$5,\"in \"& Dates1!$B$5, IF('Chart 2b'!$C$4=Dates1!$B$6,\"in \"& Dates1!$B$6, IF('Chart 2b'!$C$4=Dates1!$B$7, \"in \" &Dates1!$B$7))))) & \" (provisional)\"&CHAR(185)&\" \"&CHAR(178)","v":"Chart 2b: Key inspection judgements of independent learning providers inspected between 1 October and 31 December 2011 (provisional)¹ ²"}]
[]
[null,"Select period:","1 October and 31 December 2011"]
[]
[]
[null,null,"Total number inspected","All independent learning providers"]
[null,null,null,"Outstanding","Good","Satisfactory","Inadequate"]
[null,{"$f":"\"Overall effectiveness (\" &C9 &\")\"","v":"Overall effectiveness (35)"},{"$f":"SUM(D9:G9)","v":35},{"$f":"IF($C$4=Dates1!$B$3, DataPack!$B194, IF($C$4=Dates1!$B$4, DataPack!$G194, IF($C$4=Dates1!$B$5, DataPack!$L194, IF($C$4=Dates1!$B$6, DataPack!$Q194))))","v":1},{"$f":"IF($C$4=Dates1!$B$3, DataPack!$C194, IF($C$4=Dates1!$B$4, DataPack!$H194, IF($C$4=Dates1!$B$5, DataPack!$M194, IF($C$4=Dates1!$B$6, DataPack!$R194))))","v":15},{"$f":"IF($C$4=Dates1!$B$3, DataPack!$D194, IF($C$4=Dates1!$B$4, DataPack!$I194, IF($C$4=Dates1!$B$5, DataPack!$N194, IF($C$4=Dates1!$B$6, DataPack!$S194))))","v":14},{"$f":"IF($C$4=Dates1!$B$3, DataPack!$E194, IF($C$4=Dates1!$B$4, DataPack!$J194, IF($C$4=Dates1!$B$5, DataPack!$O194, IF($C$4=Dates1!$B$6, DataPack!$T194))))","v":5}]
[null,{"$f":"\"Capacity to improve (\" &C10 &\")\"","v":"Capacity to improve (35)"},35,{"$f":"IF($C$4=Dates1!$B$3, DataPack!$B195, IF($C$4=Dates1!$B$4, DataPack!$G195, IF($C$4=Dates1!$B$5, DataPack!$L195, IF($C$4=Dates1!$B$6, DataPack!$Q195))))","v":1},{"$f":"IF($C$4=Dates1!$B$3, DataPack!$C195, IF($C$4=Dates1!$B$4, DataPack!$H195, IF($C$4=Dates1!$B$5, DataPack!$M195, IF($C$4=Dates1!$B$6, DataPack!$R195))))","v":14},{"$f":"IF($C$4=Dates1!$B$3, DataPack!$D195, IF($C$4=Dates1!$B$4, DataPack!$I195, IF($C$4=Dates1!$B$5, DataPack!$N195, IF($C$4=Dates1!$B$6, DataPack!$S195))))","v":15},{"$f":"IF($C$4=Dates1!$B$3, DataPack!$E195, IF($C$4=Dates1!$B$4, DataPack!$J195, IF($C$4=Dates1!$B$5, DataPack!$O195, IF($C$4=Dates1!$B$6, DataPack!$T195))))","v":5}]
[null,{"$f":"\"Outcomes for learners (\" &C11 &\")\"","v":"Outcomes for learners (35)"},35,{"$f":"IF($C$4=Dates1!$B$3, DataPack!$B196, IF($C$4=Dates1!$B$4, DataPack!$G196, IF($C$4=Dates1!$B$5, DataPack!$L196, IF($C$4=Dates1!$B$6, DataPack!$Q196))))","v":1},{"$f":"IF($C$4=Dates1!$B$3, DataPack!$C196, IF($C$4=Dates1!$B$4, DataPack!$H196, IF($C$4=Dates1!$B$5, DataPack!$M196, IF($C$4=Dates1!$B$6, DataPack!$R196))))","v":18},{"$f":"IF($C$4=Dates1!$B$3, DataPack!$D196, IF($C$4=Dates1!$B$4, DataPack!$I196, IF($C$4=Dates1!$B$5, DataPack!$N196, IF($C$4=Dates1!$B$6, DataPack!$S196))))","v":13},{"$f":"IF($C$4=Dates1!$B$3, DataPack!$E196, IF($C$4=Dates1!$B$4, DataPack!$J196, IF($C$4=Dates1!$B$5, DataPack!$O196, IF($C$4=Dates1!$B$6, DataPack!$T196))))","v":3}]
[null,{"$f":"\"Quality of provision (\" &C12 &\")\"","v":"Quality of provision (35)"},35,{"$f":"IF($C$4=Dates1!$B$3, DataPack!$B204, IF($C$4=Dates1!$B$4, DataPack!$G204, IF($C$4=Dates1!$B$5, DataPack!$L204, IF($C$4=Dates1!$B$6, DataPack!$Q204))))","v":2},{"$f":"IF($C$4=Dates1!$B$3, DataPack!$C204, IF($C$4=Dates1!$B$4, DataPack!$H204, IF($C$4=Dates1!$B$5, DataPack!$M204, IF($C$4=Dates1!$B$6, DataPack!$R204))))","v":18},{"$f":"IF($C$4=Dates1!$B$3, DataPack!$D204, IF($C$4=Dates1!$B$4, DataPack!$I204, IF($C$4=Dates1!$B$5, DataPack!$N204, IF($C$4=Dates1!$B$6, DataPack!$S204))))","v":15},{"$f":"IF($C$4=Dates1!$B$3, DataPack!$E204, IF($C$4=Dates1!$B$4, DataPack!$J204, IF($C$4=Dates1!$B$5, DataPack!$O204, IF($C$4=Dates1!$B$6, DataPack!$T204))))","v":0}]
[null,{"$f":"\"Leadership and management (\" &C13 &\")\"","v":"Leadership and management (35)"},35,{"$f":"IF($C$4=Dates1!$B$3, DataPack!$B209, IF($C$4=Dates1!$B$4, DataPack!$G209, IF($C$4=Dates1!$B$5, DataPack!$L209, IF($C$4=Dates1!$B$6, DataPack!$Q209))))","v":1},{"$f":"IF($C$4=Dates1!$B$3, DataPack!$C209, IF($C$4=Dates1!$B$4, DataPack!$H209, IF($C$4=Dates1!$B$5, DataPack!$M209, IF($C$4=Dates1!$B$6, DataPack!$R209))))","v":14},{"$f":"IF($C$4=Dates1!$B$3, DataPack!$D209, IF($C$4=Dates1!$B$4, DataPack!$I209, IF($C$4=Dates1!$B$5, DataPack!$N209, IF($C$4=Dates1!$B$6, DataPack!$S209))))","v":17},{"$f":"IF($C$4=Dates1!$B$3, DataPack!$E209, IF($C$4=Dates1!$B$4, DataPack!$J209, IF($C$4=Dates1!$B$5, DataPack!$O209, IF($C$4=Dates1!$B$6, DataPack!$T209))))","v":3}]
[null,{"$f":"\"How effectively do teaching, training and assessment support learning and development? (\" &C14 &\")\"","v":"How effectively do teaching, training and assessment support learning and development? (35)"},35,{"$f":"IF($C$4=Dates1!$B$3, DataPack!$B205, IF($C$4=Dates1!$B$4, DataPack!$G205, IF($C$4=Dates1!$B$5, DataPack!$L205, IF($C$4=Dates1!$B$6, DataPack!$Q205))))","v":2},{"$f":"IF($C$4=Dates1!$B$3, DataPack!$C205, IF($C$4=Dates1!$B$4, DataPack!$H205, IF($C$4=Dates1!$B$5, DataPack!$M205, IF($C$4=Dates1!$B$6, DataPack!$R205))))","v":15},{"$f":"IF($C$4=Dates1!$B$3, DataPack!$D205, IF($C$4=Dates1!$B$4, DataPack!$I205, IF($C$4=Dates1!$B$5, DataPack!$N205, IF($C$4=Dates1!$B$6, DataPack!$S205))))","v":18},{"$f":"IF($C$4=Dates1!$B$3, DataPack!$E205, IF($C$4=Dates1!$B$4, DataPack!$J205, IF($C$4=Dates1!$B$5, DataPack!$O205, IF($C$4=Dates1!$B$6, DataPack!$T205))))","v":0}]
[null,null,null,null,null,"Source: Ofsted inspections"]
[]
[]
[]
[]
[]
[]
[]
[]
[]
[]
[]
[]
[]
[]
[]
[]
[]
[]
[null,"1. Percentages are rounded and may not add to 100."]
[null,"1. Figures represent the number of providers."]
[null,"2. Includes employer providers"]

{"sheet":"Chart 2c","index":22,"n_rows":34,"n_cols":24,"rows_kept":34,"cut":false,"hidden":false,"merged":[[3,2,3,4],[11,10,11,11],[12,10,12,11],[6,1,7,1],[6,2,7,2],[6,3,6,6],[6,12,6,16],[8,10,8,11],[9,10,9,11],[10,10,10,11]]}
[]
[null,{"$f":"\"Chart 2c: Key inspection judgements of adult and community learning providers inspected \" & IF('Chart 2c'!$C$4=Dates1!$B$3, \"between \" & Dates1!$B$3, IF('Chart 2c'!$C$4 = Dates1!$B$4, \"in \"&Dates1!$B$4, IF('Chart 2c'!$C$4=Dates1!$B$5,\"in \"& Dates1!$B$5, IF('Chart 2c'!$C$4=Dates1!$B$6,\"in \"& Dates1!$B$6, IF('Chart 2c'!$C$4=Dates1!$B$7, \"in \" &Dates1!$B$7))))) & \" (provisional)\"&CHAR(185)","v":"Chart 2c: Key inspection judgements of adult and community learning providers inspected between 1 October and 31 December 2011 (provisional)¹"},null,null,null,null,null,null,null,null,null,null,null,null,null,null,null,null,null,null,null,null,null,"1 October and 31 December 2011"]
[null,null,null,null,null,null,null,null,null,null,null,null,null,null,null,null,null,null,null,null,null,null,null,"October 2011"]
[null,"Select period:","1 October and 31 December 2011",null,null,null,null,null,null,null,null,null,null,null,null,null,null,null,null,null,null,null,null,"November 2011"]
[null,null,null,null,null,null,null,null,null,null,null,null,null,null,null,null,null,null,null,null,null,null,null,"December 2011"]
[]
[null,"Judgement","Total number inspected","All adult and community learning "]
[null,null,null,"Outstanding","Good","Satisfactory","Inadequate"]
[null,{"$f":"\"Overall effectiveness (\" & C9 &\")\"","v":"Overall effectiveness (17)"},{"$f":"SUM(D9:G9)","v":17},{"$f":"IF($C$4=Dates1!$B$3, DataPack!$B220, IF($C$4=Dates1!$B$4, DataPack!$G220, IF($C$4=Dates1!$B$5, DataPack!$L220, IF($C$4=Dates1!$B$6, DataPack!$Q220))))","v":1},{"$f":"IF($C$4=Dates1!$B$3, DataPack!$C220, IF($C$4=Dates1!$B$4, DataPack!$H220, IF($C$4=Dates1!$B$5, DataPack!$M220, IF($C$4=Dates1!$B$6, DataPack!$R220))))","v":13},{"$f":"IF($C$4=Dates1!$B$3, DataPack!$D220, IF($C$4=Dates1!$B$4, DataPack!$I220, IF($C$4=Dates1!$B$5, DataPack!$N220, IF($C$4=Dates1!$B$6, DataPack!$S220))))","v":3},{"$f":"IF($C$4=Dates1!$B$3, DataPack!$E220, IF($C$4=Dates1!$B$4, DataPack!$J220, IF($C$4=Dates1!$B$5, DataPack!$O220, IF($C$4=Dates1!$B$6, DataPack!$T220))))","v":0}]
[null,{"$f":"\"Capacity to improve (\" & C10 &\")\"","v":"Capacity to improve (17)"},17,{"$f":"IF($C$4=Dates1!$B$3, DataPack!$B221, IF($C$4=Dates1!$B$4, DataPack!$G221, IF($C$4=Dates1!$B$5, DataPack!$L221, IF($C$4=Dates1!$B$6, DataPack!$Q221))))","v":0},{"$f":"IF($C$4=Dates1!$B$3, DataPack!$C221, IF($C$4=Dates1!$B$4, DataPack!$H221, IF($C$4=Dates1!$B$5, DataPack!$M221, IF($C$4=Dates1!$B$6, DataPack!$R221))))","v":13},{"$f":"IF($C$4=Dates1!$B$3, DataPack!$D221, IF($C$4=Dates1!$B$4, DataPack!$I221, IF($C$4=Dates1!$B$5, DataPack!$N221, IF($C$4=Dates1!$B$6, DataPack!$S221))))","v":4},{"$f":"IF($C$4=Dates1!$B$3, DataPack!$E221, IF($C$4=Dates1!$B$4, DataPack!$J221, IF($C$4=Dates1!$B$5, DataPack!$O221, IF($C$4=Dates1!$B$6, DataPack!$T221))))","v":0}]
[null,{"$f":"\"Outcomes for learners (\" & C11 &\")\"","v":"Outcomes for learners (17)"},17,{"$f":"IF($C$4=Dates1!$B$3, DataPack!$B222, IF($C$4=Dates1!$B$4, DataPack!$G222, IF($C$4=Dates1!$B$5, DataPack!$L222, IF($C$4=Dates1!$B$6, DataPack!$Q222))))","v":1},{"$f":"IF($C$4=Dates1!$B$3, DataPack!$C222, IF($C$4=Dates1!$B$4, DataPack!$H222, IF($C$4=Dates1!$B$5, DataPack!$M222, IF($C$4=Dates1!$B$6, DataPack!$R222))))","v":12},{"$f":"IF($C$4=Dates1!$B$3, DataPack!$D222, IF($C$4=Dates1!$B$4, DataPack!$I222, IF($C$4=Dates1!$B$5, DataPack!$N222, IF($C$4=Dates1!$B$6, DataPack!$S222))))","v":4},{"$f":"IF($C$4=Dates1!$B$3, DataPack!$E222, IF($C$4=Dates1!$B$4, DataPack!$J222, IF($C$4=Dates1!$B$5, DataPack!$O222, IF($C$4=Dates1!$B$6, DataPack!$T222))))","v":0}]
[null,{"$f":"\"Quality of provision (\" & C12 &\")\"","v":"Quality of provision (17)"},17,{"$f":"IF($C$4=Dates1!$B$3, DataPack!$B230, IF($C$4=Dates1!$B$4, DataPack!$G230, IF($C$4=Dates1!$B$5, DataPack!$L230, IF($C$4=Dates1!$B$6, DataPack!$Q230))))","v":1},{"$f":"IF($C$4=Dates1!$B$3, DataPack!$C230, IF($C$4=Dates1!$B$4, DataPack!$H230, IF($C$4=Dates1!$B$5, DataPack!$M230, IF($C$4=Dates1!$B$6, DataPack!$R230))))","v":14},{"$f":"IF($C$4=Dates1!$B$3, DataPack!$D230, IF($C$4=Dates1!$B$4, DataPack!$I230, IF($C$4=Dates1!$B$5, DataPack!$N230, IF($C$4=Dates1!$B$6, DataPack!$S230))))","v":2},{"$f":"IF($C$4=Dates1!$B$3, DataPack!$E230, IF($C$4=Dates1!$B$4, DataPack!$J230, IF($C$4=Dates1!$B$5, DataPack!$O230, IF($C$4=Dates1!$B$6, DataPack!$T230))))","v":0}]
[null,{"$f":"\"Leadership and management (\" & C13 &\")\"","v":"Leadership and management (17)"},17,{"$f":"IF($C$4=Dates1!$B$3, DataPack!$B235, IF($C$4=Dates1!$B$4, DataPack!$G235, IF($C$4=Dates1!$B$5, DataPack!$L235, IF($C$4=Dates1!$B$6, DataPack!$Q235))))","v":1},{"$f":"IF($C$4=Dates1!$B$3, DataPack!$C235, IF($C$4=Dates1!$B$4, DataPack!$H235, IF($C$4=Dates1!$B$5, DataPack!$M235, IF($C$4=Dates1!$B$6, DataPack!$R235))))","v":13},{"$f":"IF($C$4=Dates1!$B$3, DataPack!$D235, IF($C$4=Dates1!$B$4, DataPack!$I235, IF($C$4=Dates1!$B$5, DataPack!$N235, IF($C$4=Dates1!$B$6, DataPack!$S235))))","v":3},{"$f":"IF($C$4=Dates1!$B$3, DataPack!$E235, IF($C$4=Dates1!$B$4, DataPack!$J235, IF($C$4=Dates1!$B$5, DataPack!$O235, IF($C$4=Dates1!$B$6, DataPack!$T235))))","v":0}]
[null,{"$f":"\"How effectively do teaching, training and assessment support learning and development? (\" & C14 &\")\"","v":"How effectively do teaching, training and assessment support learning and development? (17)"},17,{"$f":"IF($C$4=Dates1!$B$3, DataPack!$B231, IF($C$4=Dates1!$B$4, DataPack!$G231, IF($C$4=Dates1!$B$5, DataPack!$L231, IF($C$4=Dates1!$B$6, DataPack!$Q231))))","v":0},{"$f":"IF($C$4=Dates1!$B$3, DataPack!$C231, IF($C$4=Dates1!$B$4, DataPack!$H231, IF($C$4=Dates1!$B$5, DataPack!$M231, IF($C$4=Dates1!$B$6, DataPack!$R231))))","v":15},{"$f":"IF($C$4=Dates1!$B$3, DataPack!$D231, IF($C$4=Dates1!$B$4, DataPack!$I231, IF($C$4=Dates1!$B$5, DataPack!$N231, IF($C$4=Dates1!$B$6, DataPack!$S231))))","v":2},{"$f":"IF($C$4=Dates1!$B$3, DataPack!$E231, IF($C$4=Dates1!$B$4, DataPack!$J231, IF($C$4=Dates1!$B$5, DataPack!$O231, IF($C$4=Dates1!$B$6, DataPack!$T231))))","v":0}]
[null,null,null,null,null,null,"Source: Ofsted inspections"]
[]
[]
[]
[]
[]
[]
[]
[]
[]
[]
[]
[]
[]
[]
[]
[]
[]
[]
[null,"1. Figures represent the number of providers."]

{"sheet":"Chart 3","index":23,"n_rows":37,"n_cols":7,"rows_kept":37,"cut":false,"hidden":false,"merged":[[4,2,5,2],[4,3,4,6]]}
[]
[null,"Chart 3: Overall effectiveness of learning and skills providers inspected between 1 January 2010 and 31 December 2011, by quarter12"]
[]
[]
[null,null,"Total number inspected","Overall effectiveness"]
[null,null,null,"Outstanding","Good","Satisfactory","Inadequate"]
[null,{"$f":"\"1 Oct 2011 - 31 Dec 2011 (\"&C7&\")\"&CHAR(179)","v":"1 Oct 2011 - 31 Dec 2011 (81)³"},81,3,41,27,10]
[null,{"$f":"\"1 Jul 2011 - 30 Sep 2011  (\"&C8&\")\"","v":"1 Jul 2011 - 30 Sep 2011  (41)"},41,3,21,15,2]
[null,{"$f":"\"1 Apr 2011 - 30 Jun 2011 (\"&C9&\")\"","v":"1 Apr 2011 - 30 Jun 2011 (83)"},83,4,35,38,6]
[null,{"$f":"\"1 Jan 2011 - 31 Mar 2011 (\"&C10&\")\"","v":"1 Jan 2011 - 31 Mar 2011 (102)"},{"$f":"SUM(D10:G10)","v":102},6,48,43,5]
[null,{"$f":"\"1 Oct 2010 - 31 Dec 2010 (\"&C11&\")\"","v":"1 Oct 2010 - 31 Dec 2010 (125)"},{"$f":"SUM(D11:G11)","v":125},12,62,49,2]
[null,{"$f":"\"1 Jul 2010 - 30 Sep 2010  (\"&C12&\")\"","v":"1 Jul 2010 - 30 Sep 2010  (75)"},{"$f":"SUM(D12:G12)","v":75},2,29,35,9]
[null,{"$f":"\"1 Apr 2010 - 30 Jun 2010 (\"&C13&\")\"","v":"1 Apr 2010 - 30 Jun 2010 (105)"},{"$f":"SUM(D13:G13)","v":105},6,57,33,9]
[null,{"$f":"\"1 Jan 2010 - 31 Mar 2010 (\"&C14&\")\"","v":"1 Jan 2010 - 31 Mar 2010 (97)"},{"$f":"SUM(D14:G14)","v":97},4,44,42,7]
[null,null,null,null,null,null,"Source: Ofsted inspections"]
[]
[]
[]
[]
[]
[]
[]
[]
[]
[]
[]
[]
[]
[]
[]
[]
[]
[]
[]
[null,"1. Figures represent the number of providers."]
[null,"2. Does not include dance and drama college inspections or further education in higher education institute inspections."]
[null,"3. Provisional"]

{"sheet":"Chart 4","index":24,"n_rows":36,"n_cols":7,"rows_kept":36,"cut":false,"hidden":false,"merged":[[4,2,5,2],[4,3,4,6]]}
[]
[null,"Chart 4: Overall effectiveness of colleges inspected between 1 September 2005 and 31 December 2011, by academic year1 2"]
[]
[]
[null,null,"Total number inspected","Overall effectiveness"]
[null,null,null,"Outstanding","Good","Satisfactory","Inadequate"]
[null,{"$f":"\"1 Sep 2011 - 31 Dec 2011  (\"&C7&\")\"&CHAR(179)","v":"1 Sep 2011 - 31 Dec 2011  (27)³"},27,1,10,10,6]
[null,{"$f":"\"1 Sep 2010 - 31 Aug 2011  (\"&C8&\")\"","v":"1 Sep 2010 - 31 Aug 2011  (84)"},{"$f":"SUM(D8:G8)","v":84},5,34,41,4]
[null,{"$f":"\"1 Sep 2009 - 31 Aug 2010  (\"&C9&\")\"","v":"1 Sep 2009 - 31 Aug 2010  (92)"},92,9,43,35,5]
[null,{"$f":"\"1 Sep 2008 - 31 Aug 2009  (\"&C10&\")\"","v":"1 Sep 2008 - 31 Aug 2009  (94)"},94,18,40,32,4]
[null,{"$f":"\"1 Sep 2007 - 31 Aug 2008 (\"&C11&\")\"","v":"1 Sep 2007 - 31 Aug 2008 (133)"},133,37,54,32,10]
[null,{"$f":"\"1 Sep 2006 - 31 Aug 2007 (\"&C12&\")\"","v":"1 Sep 2006 - 31 Aug 2007 (120)"},120,20,49,42,9]
[null,{"$f":"\"1 Sep 2005 - 31 Aug 2006 (\"&C13&\")\"","v":"1 Sep 2005 - 31 Aug 2006 (100)"},100,11,44,37,8]
[null,null,null,null,null,null,"Source: Ofsted inspections"]
[]
[]
[]
[]
[]
[]
[]
[]
[]
[]
[]
[]
[]
[]
[]
[]
[]
[]
[]
[null,"1. Figures represent the number of providers."]
[null,"2. Does not include dance and drama college inspections or further education in higher education institute inspections."]
[null,"3. Provisional"]

{"sheet":"Chart 4a","index":25,"n_rows":34,"n_cols":7,"rows_kept":34,"cut":false,"hidden":false,"merged":[[4,2,5,2],[4,3,4,6]]}
[]
[null,"Chart 4a: Overall effectiveness of independent learning providers inspected between 1 September 2007 and 31 March 2011, by academic year1 2"]
[]
[]
[null,null,"Total number inspected","Overall effectiveness"]
[null,null,null,"Outstanding","Good","Satisfactory","Inadequate"]
[null,"1 Sep 2011 - 31 Dec 2011 (43)³",43,2,20,16,5]
[null,{"$f":"\"1 Sep 2010 - 31 Aug 2011 (\"&C8&\")\"","v":"1 Sep 2010 - 31 Aug 2011 (183)"},{"$f":"SUM(D8:G8)","v":183},19,83,71,10]
[null,{"$f":"\"1 Sep 2009 - 31 Aug 2010 (\"&C9&\")\"","v":"1 Sep 2009 - 31 Aug 2010 (209)"},{"$f":"SUM(D9:G9)","v":209},11,89,92,17]
[null,{"$f":"\"1 Sep 2008 - 31 Aug 2009 (\"&C10&\")\"","v":"1 Sep 2008 - 31 Aug 2009 (242)"},{"$f":"SUM(D10:G10)","v":242},12,87,124,19]
[null,{"$f":"\"1 Sep 2007 - 31 Aug 2008 (\"&C11&\")\"","v":"1 Sep 2007 - 31 Aug 2008 (221)"},{"$f":"SUM(D11:G11)","v":221},13,119,75,14]
[null,null,null,null,null,null,"Source: Ofsted inspections"]
[]
[]
[]
[]
[]
[]
[]
[]
[]
[]
[]
[]
[]
[]
[]
[]
[]
[]
[]
[null,"1. Figures represent the number of providers."]
[null,"2. Includes employer providers"]
[null,"3. Provisional"]

{"sheet":"Chart 4b","index":26,"n_rows":33,"n_cols":7,"rows_kept":33,"cut":false,"hidden":false,"merged":[[4,2,5,2],[4,3,4,6]]}
[]
[null,"Chart 4b: Overall effectiveness of adult and community learning providers inspected between 1 September 2007 and 31 March 2011, by academic year1"]
[]
[]
[null,null,"Total number inspected","Overall effectiveness"]
[null,null,null,"Outstanding","Good","Satisfactory","Inadequate"]
[null,{"$f":"\"1 Sep 2011 - 31 Dec 2011 (\"&C7&\")\"& CHAR(178)","v":"1 Sep 2011 - 31 Dec 2011 (19)²"},19,1,14,3,1]
[null,{"$f":"\"1 Sep 2010 - 31 Aug 2011 (\"&C8&\")\"","v":"1 Sep 2010 - 31 Aug 2011 (45)"},{"$f":"SUM(D8:G8)","v":45},1,33,11,0]
[null,{"$f":"\"1 Sep 2009 - 31 Aug 2010 (\"&C9&\")\"","v":"1 Sep 2009 - 31 Aug 2010 (43)"},{"$f":"SUM(D9:G9)","v":43},0,30,10,3]
[null,{"$f":"\"1 Sep 2008 - 31 Aug 2009 (\"&C10&\")\"","v":"1 Sep 2008 - 31 Aug 2009 (68)"},{"$f":"SUM(D10:G10)","v":68},4,30,32,2]
[null,{"$f":"\"1 Sep 2007 - 31 Aug 2008 (\"&C11&\")\"","v":"1 Sep 2007 - 31 Aug 2008 (49)"},{"$f":"SUM(D11:G11)","v":49},3,17,22,7]
[null,null,null,null,null,null,"Source: Ofsted inspections"]
[]
[]
[]
[]
[]
[]
[]
[]
[]
[]
[]
[]
[]
[]
[]
[]
[]
[]
[]
[null,"1. Figures represent the number of providers."]
[null,"2. Provisional."]